Workbook

Sheet Intro
E1: =zWorkbookTitle -> Camacho et al. (2024) Harms of hazardous prescribing of NSAIDs
F3: This model accompanies the publication:
F5: Camacho et al. Estimating the economic effect of harm associated with high risk prescribing of oral
F6: non-steroidal anti-inflammatory drugs in England: population based cohort and economic modelling study.
F7: BMJ 2024;385:e077880
F8: http://dx.doi.org/10.1136/bmj-2023-077880
H12: This work is licensed under | R12: CC BY-NC-SA 4.0 | X12: In summary:
H14: You are free to:
H15: * Share — copy and redistribute the material in any medium or format
H16: * Adapt — remix, transform, and build upon the material
H17: The licensor cannot revoke these freedoms as long as you follow the license terms.
H19: * Attribution — You must give appropriate credit, provide a link to the license, and indicate if
H20: changes were made. You may do so in any reasonable manner, but not in any way that suggests the
H21: licensor endorses you or your use.
H22: * NonCommercial — You may not use the material for commercial purposes.
H23: * ShareAlike — If you remix, transform, or build upon the material, you must distribute your
H24: contributions under the same license as the original.
H25: * No additional restrictions — You may not apply legal terms or technological measures that
H26: legally restrict others from doing anything the license permits.
F30: The model should be reviewed in conjunction with the full technical report, which can be found in
F31: the published paper and Appendix 2 of its supplementary material.
F33: Please note:
F34: * Using this model requires relevant technical expertise
F35: * This workbook has not been protected; care must be taken not to overtype formulae on which it relies.
F36: * Model inputs do not have data-entry restrictions; be aware that it may be possible to enter values
F37: outside the range that will work in the model.
F38: * This model has been developed in Excel365, making extensive use of =LET() and =LAMBDA() functions.
F39: It is unlikely to work in earlier versions of Excel.
F40: * The probabilistic results in this workbook do not exactly match those reported in the paper. This
F41: is because we have saved it with a limited number of probabilistic iterations to reduce file-size,
F42: and random number streams cannot be seeded, using the Excel =RAND() function on which this workbook
F43: relies.

Sheet Settings >>>
E1: =zWorkbookTitle -> Camacho et al. (2024) Harms of hazardous prescribing of NSAIDs
F3: The following worksheets contain all settings for the model
F5: * 'MasterLists' is a repository specifiying indicators and states used throughout the calculations
F6: * 'Parameters' contains all inputs to the analyses
G7: - The horizontal arrangement of the worksheet is as follows:
H8: o Data extracted from primary sources are given in columns Q:X, with sources noted in column Y
H9: o Parameters for probabilistic analysis are given in columns Z:AF
G10: - The vertical arrangement of the worksheet is as follows:
H11: o The top section (rows 4:113) contains parameters and settings that apply across all queries
H12: o Rows 114:166 contains parameters and settings that apply across all queries with
H13: gastrointestinal outcomes
H14: o Rows 167:245 contains parameters and settings for queries A & B
H15: o Rows 246:450 contains parameters and settings for query C
H16: o Rows 451:735 contains parameters and settings for query D
H17: o Rows 736:1085 contains parameters and settings for query E
H18: o The bottom section (rows 1086:1192) contains parameters, settings, and calculations for scaling
H19: up to expected impact across the population of England

Sheet MasterLists
E1: =zWorkbookTitle -> Camacho et al. (2024) Harms of hazardous prescribing of NSAIDs
F3: Queries | K3: Strategies | M3: States (A&B) | O3: States (C) | R3: States (D) | T3: States (E)
F4: Indicator | G4: HPE | H4: Popn | I4: Query | K4: Total number of strategies: | M4: Total number of states: | O4: Total number of states: | R4: Total number of states: | T4: Total number of states:
F5: A | G5: No gastroprotection | H5: NSAIDs in people >65 | I5: =tblQs[[#This Row],[Indicator]]&": "&tblQs[[#This Row],[HPE]]&" - " & tblQs[[#This Row],[Popn]] -> A: No gastroprotection - NSAIDs in people >65 | K5: 2 | M5: 10 | O5: 13 | R5: 9 | T5: 12
F6: B | G6: No gastroprotection | H6: NSAIDs in people with ulcer history | I6: =tblQs[[#This Row],[Indicator]]&": "&tblQs[[#This Row],[HPE]]&" - " & tblQs[[#This Row],[Popn]] -> B: No gastroprotection - NSAIDs in people with ulcer history | K6: Strategy names | M6: Strategy names | O6: Strategy names | P6: Abbrev | R6: Strategy names | T6: State names
D7: 1 | F7: C | G7: NSAIDs | H7: DOAC/warfarin | I7: =tblQs[[#This Row],[Indicator]]&": "&tblQs[[#This Row],[HPE]]&" - " & tblQs[[#This Row],[Popn]] -> C: NSAIDs - DOAC/warfarin | K7: HPE | M7: Well no HPE | O7: Well no HPE | P7: W.noHPE | R7: HF no HPE | T7: No event no NSAID | AJ7: =IF(AI7="", "", AI7&"["&#REF!&"]") -> 
D8: =D7+1 -> 2 | F8: D | G8: NSAIDs | H8: HF | I8: =tblQs[[#This Row],[Indicator]]&": "&tblQs[[#This Row],[HPE]]&" - " & tblQs[[#This Row],[Popn]] -> D: NSAIDs - HF | K8: No HPE | M8: Well with HPE | O8: Well with HPE | P8: W.wHPE | R8: PCE no HPE | T8: No event + NSAID | AJ8: =IF(AI8="", "", AI8&"["&#REF!&"]") -> 
D9: =D8+1 -> 3 | F9: E | G9: NSAIDs | H9: CKD | I9: =tblQs[[#This Row],[Indicator]]&": "&tblQs[[#This Row],[HPE]]&" - " & tblQs[[#This Row],[Popn]] -> E: NSAIDs - CKD | M9: GI discomfort | O9: GI discomfort | P9: GID | R9: SCE no HPE | T9: Primary care AKI | AJ9: =IF(AI9="", "", AI9&"["&#REF!&"]") -> 
D10: 4 | F10: Expected harm in England | G10: query A | H10: =H5 -> NSAIDs in people >65 | I10: =tblQs[[#This Row],[Indicator]]&": "&tblQs[[#This Row],[HPE]] -> Expected harm in England: query A | M10: Unresolved GI discomfort | O10: Unresolved GI discomfort | P10: GID.un | R10: HF w HPE | T10: Secondary care AKI (no RRT) | AJ10: =IF(AI10="", "", AI10&"["&#REF!&"]") -> 
D11: 5 | F11: Expected harm in England | G11: query B | H11: =H6 -> NSAIDs in people with ulcer history | I11: =tblQs[[#This Row],[Indicator]]&": "&tblQs[[#This Row],[HPE]] -> Expected harm in England: query B | M11: Symptomatic ulcer | O11: Symptomatic ulcer | P11: SU | R11: PCE w HPE | T11: Secondary care AKI (with RRT) | AJ11: =IF(AI11="", "", AI11&"["&#REF!&"]") -> 
D12: 6 | F12: Expected harm in England | G12: query C | H12: =H7 -> DOAC/warfarin | I12: =tblQs[[#This Row],[Indicator]]&": "&tblQs[[#This Row],[HPE]] -> Expected harm in England: query C | M12: Unresolved ulcer | O12: Unresolved ulcer | P12: SU.un | R12: SCE w HPE | T12: Post-event CKD stage 3b-4 | AJ12: =IF(AI12="", "", AI12&"["&#REF!&"]") -> 
D13: 7 | F13: Expected harm in England | G13: query D | H13: =H8 -> HF | I13: =tblQs[[#This Row],[Indicator]]&": "&tblQs[[#This Row],[HPE]] -> Expected harm in England: query D | M13: Serious GI event | O13: Serious GI event | P13: GIB | R13: HF post event no HPE | T13: ESRD | AJ13: =IF(AI13="", "", AI13&"["&#REF!&"]") -> 
D14: 8 | F14: Expected harm in England | G14: query E | H14: =H9 -> CKD | I14: =tblQs[[#This Row],[Indicator]]&": "&tblQs[[#This Row],[HPE]] -> Expected harm in England: query E | M14: Unresolved serious GI event | O14: Unresolved serious GI event | P14: GIB.un | R14: HF post event w HPE | T14: ESRD+RRT | AJ14: =IF(AI14="", "", AI14&"["&#REF!&"]") -> 
D15: 9 | F15: Expected harm in England | G15: total | H15: total | I15: =tblQs[[#This Row],[Indicator]]&": "&tblQs[[#This Row],[HPE]] -> Expected harm in England: total | M15: Post-event | O15: Post-GI event | P15: postEv | R15: Dead | T15: Transplant | AJ15: =IF(AI15="", "", AI15&"["&#REF!&"]") -> 
D16: 10 | M16: Dead | O16: Stroke | P16: Strk | T16: Post-transplant | AJ16: =IF(AI16="", "", AI16&"["&#REF!&"]") -> 
D17: 11 | M17: State11 | O17: Recurrent stroke | P17: Strk.un | T17: Dead (AKI) | AJ17: =IF(AI17="", "", AI17&"["&#REF!&"]") -> 
D18: 12 | M18: State12 | O18: Post-stroke | P18: PostStrk | T18: Dead (other) | AJ18: =IF(AI18="", "", AI18&"["&#REF!&"]") -> 
D19: 13 | M19: State13 | O19: Dead | P19: Dead | AJ19: =IF(AI19="", "", AI19&"["&#REF!&"]") -> 
D20: 14 | M20: State14 | P20: HF | AJ20: =IF(AI20="", "", AI20&"["&#REF!&"]") -> 
D21: 15 | M21: State15 | P21: ="P."&P20 -> P.HF | AJ21: =IF(AI21="", "", AI21&"["&#REF!&"]") -> 
D22: 16 | M22: State16 | P22: PAD | AJ22: =IF(AI22="", "", AI22&"["&#REF!&"]") -> 
D23: 17 | M23: State17 | P23: ="P."&P22 -> P.PAD | AJ23: =IF(AI23="", "", AI23&"["&#REF!&"]") -> 
D24: 18 | M24: State18 | P24: CVD | AJ24: =IF(AI24="", "", AI24&"["&#REF!&"]") -> 
D25: 19 | M25: State19 | P25: NCM | AJ25: =IF(AI25="", "", AI25&"["&#REF!&"]") -> 
D26: 20 | M26: State20 | AJ26: =IF(AI26="", "", AI26&"["&#REF!&"]") -> 
AJ27: =IF(AI27="", "", AI27&"["&#REF!&"]") -> 
AJ28: =IF(AI28="", "", AI28&"["&#REF!&"]") -> 
AJ29: =IF(AI29="", "", AI29&"["&#REF!&"]") -> 
AJ30: =IF(AI30="", "", AI30&"["&#REF!&"]") -> 
AJ31: =IF(AI31="", "", AI31&"["&#REF!&"]") -> 
AJ32: =IF(AI32="", "", AI32&"["&#REF!&"]") -> 
AJ33: =IF(AI33="", "", AI33&"["&#REF!&"]") -> 
AJ34: =IF(AI34="", "", AI34&"["&#REF!&"]") -> 
AJ35: =IF(AI35="", "", AI35&"["&#REF!&"]") -> 
AJ36: =IF(AI36="", "", AI36&"["&#REF!&"]") -> 
AJ37: =IF(AI37="", "", AI37&"["&#REF!&"]") -> 
AJ38: =IF(AI38="", "", AI38&"["&#REF!&"]") -> 
AJ39: =IF(AI39="", "", AI39&"["&#REF!&"]") -> 
AJ40: =IF(AI40="", "", AI40&"["&#REF!&"]") -> 
AJ41: =IF(AI41="", "", AI41&"["&#REF!&"]") -> 
AJ42: =IF(AI42="", "", AI42&"["&#REF!&"]") -> 
AJ43: =IF(AI43="", "", AI43&"["&#REF!&"]") -> 
AJ44: =IF(AI44="", "", AI44&"["&#REF!&"]") -> 
AJ45: =IF(AI45="", "", AI45&"["&#REF!&"]") -> 
AJ46: =IF(AI46="", "", AI46&"["&#REF!&"]") -> 
AJ47: =IF(AI47="", "", AI47&"["&#REF!&"]") -> 
AJ48: =IF(AI48="", "", AI48&"["&#REF!&"]") -> 
AJ49: =IF(AI49="", "", AI49&"["&#REF!&"]") -> 
AJ50: =IF(AI50="", "", AI50&"["&#REF!&"]") -> 
AJ51: =IF(AI51="", "", AI51&"["&#REF!&"]") -> 
AJ52: =IF(AI52="", "", AI52&"["&#REF!&"]") -> 
AJ53: =IF(AI53="", "", AI53&"["&#REF!&"]") -> 
AJ54: =IF(AI54="", "", AI54&"["&#REF!&"]") -> 
AJ55: =IF(AI55="", "", AI55&"["&#REF!&"]") -> 
AJ56: =IF(AI56="", "", AI56&"["&#REF!&"]") -> 
AJ57: =IF(AI57="", "", AI57&"["&#REF!&"]") -> 
AJ58: =IF(AI58="", "", AI58&"["&#REF!&"]") -> 
AJ59: =IF(AI59="", "", AI59&"["&#REF!&"]") -> 
AJ60: =IF(AI60="", "", AI60&"["&#REF!&"]") -> 
AJ61: =IF(AI61="", "", AI61&"["&#REF!&"]") -> 
AJ62: =IF(AI62="", "", AI62&"["&#REF!&"]") -> 
AJ63: =IF(AI63="", "", AI63&"["&#REF!&"]") -> 
AJ64: =IF(AI64="", "", AI64&"["&#REF!&"]") -> 
AJ65: =IF(AI65="", "", AI65&"["&#REF!&"]") -> 
AJ66: =IF(AI66="", "", AI66&"["&#REF!&"]") -> 
AJ67: =IF(AI67="", "", AI67&"["&#REF!&"]") -> 
AJ68: =IF(AI68="", "", AI68&"["&#REF!&"]") -> 
AJ69: =IF(AI69="", "", AI69&"["&#REF!&"]") -> 
AJ70: =IF(AI70="", "", AI70&"["&#REF!&"]") -> 
AJ71: =IF(AI71="", "", AI71&"["&#REF!&"]") -> 
AJ72: =IF(AI72="", "", AI72&"["&#REF!&"]") -> 
AJ73: =IF(AI73="", "", AI73&"["&#REF!&"]") -> 
AJ74: =IF(AI74="", "", AI74&"["&#REF!&"]") -> 
AJ75: =IF(AI75="", "", AI75&"["&#REF!&"]") -> 
AJ76: =IF(AI76="", "", AI76&"["&#REF!&"]") -> 
AJ77: =IF(AI77="", "", AI77&"["&#REF!&"]") -> 
AJ78: =IF(AI78="", "", AI78&"["&#REF!&"]") -> 
AJ79: =IF(AI79="", "", AI79&"["&#REF!&"]") -> 
AJ80: =IF(AI80="", "", AI80&"["&#REF!&"]") -> 
AJ81: =IF(AI81="", "", AI81&"["&#REF!&"]") -> 
AJ82: =IF(AI82="", "", AI82&"["&#REF!&"]") -> 
AJ83: =IF(AI83="", "", AI83&"["&#REF!&"]") -> 
AJ84: =IF(AI84="", "", AI84&"["&#REF!&"]") -> 
AJ85: =IF(AI85="", "", AI85&"["&#REF!&"]") -> 
AJ86: =IF(AI86="", "", AI86&"["&#REF!&"]") -> 
AJ87: =IF(AI87="", "", AI87&"["&#REF!&"]") -> 
AJ88: =IF(AI88="", "", AI88&"["&#REF!&"]") -> 
AJ89: =IF(AI89="", "", AI89&"["&#REF!&"]") -> 
AJ90: =IF(AI90="", "", AI90&"["&#REF!&"]") -> 
AJ91: =IF(AI91="", "", AI91&"["&#REF!&"]") -> 
AJ92: =IF(AI92="", "", AI92&"["&#REF!&"]") -> 
AJ93: =IF(AI93="", "", AI93&"["&#REF!&"]") -> 
AJ94: =IF(AI94="", "", AI94&"["&#REF!&"]") -> 
AJ95: =IF(AI95="", "", AI95&"["&#REF!&"]") -> 
AJ96: =IF(AI96="", "", AI96&"["&#REF!&"]") -> 
AJ97: =IF(AI97="", "", AI97&"["&#REF!&"]") -> 
AJ98: =IF(AI98="", "", AI98&"["&#REF!&"]") -> 
AJ99: =IF(AI99="", "", AI99&"["&#REF!&"]") -> 
AJ100: =IF(AI100="", "", AI100&"["&#REF!&"]") -> 
AJ101: =IF(AI101="", "", AI101&"["&#REF!&"]") -> 
AJ102: =IF(AI102="", "", AI102&"["&#REF!&"]") -> 
AJ103: =IF(AI103="", "", AI103&"["&#REF!&"]") -> 
AJ104: =IF(AI104="", "", AI104&"["&#REF!&"]") -> 
AJ105: =IF(AI105="", "", AI105&"["&#REF!&"]") -> 
AJ106: =IF(AI106="", "", AI106&"["&#REF!&"]") -> 
AJ107: =IF(AI107="", "", AI107&"["&#REF!&"]") -> 
AJ108: =IF(AI108="", "", AI108&"["&#REF!&"]") -> 
AJ109: =IF(AI109="", "", AI109&"["&#REF!&"]") -> 
AJ110: =IF(AI110="", "", AI110&"["&#REF!&"]") -> 
AJ111: =IF(AI111="", "", AI111&"["&#REF!&"]") -> 
AJ112: =IF(AI112="", "", AI112&"["&#REF!&"]") -> 
AJ113: =IF(AI113="", "", AI113&"["&#REF!&"]") -> 
AJ114: =IF(AI114="", "", AI114&"["&#REF!&"]") -> 
AJ115: =IF(AI115="", "", AI115&"["&#REF!&"]") -> 
AJ116: =IF(AI116="", "", AI116&"["&#REF!&"]") -> 
AJ117: =IF(AI117="", "", AI117&"["&#REF!&"]") -> 
AJ118: =IF(AI118="", "", AI118&"["&#REF!&"]") -> 
AJ119: =IF(AI119="", "", AI119&"["&#REF!&"]") -> 
AJ120: =IF(AI120="", "", AI120&"["&#REF!&"]") -> 
AJ121: =IF(AI121="", "", AI121&"["&#REF!&"]") -> 
AJ122: =IF(AI122="", "", AI122&"["&#REF!&"]") -> 
AJ123: =IF(AI123="", "", AI123&"["&#REF!&"]") -> 
AJ124: =IF(AI124="", "", AI124&"["&#REF!&"]") -> 
AJ125: =IF(AI125="", "", AI125&"["&#REF!&"]") -> 
AJ126: =IF(AI126="", "", AI126&"["&#REF!&"]") -> 
AJ127: =IF(AI127="", "", AI127&"["&#REF!&"]") -> 
AJ128: =IF(AI128="", "", AI128&"["&#REF!&"]") -> 
AJ129: =IF(AI129="", "", AI129&"["&#REF!&"]") -> 
AJ130: =IF(AI130="", "", AI130&"["&#REF!&"]") -> 
AJ131: =IF(AI131="", "", AI131&"["&#REF!&"]") -> 
AJ132: =IF(AI132="", "", AI132&"["&#REF!&"]") -> 
AJ133: =IF(AI133="", "", AI133&"["&#REF!&"]") -> 
AJ134: =IF(AI134="", "", AI134&"["&#REF!&"]") -> 
AJ135: =IF(AI135="", "", AI135&"["&#REF!&"]") -> 
AJ136: =IF(AI136="", "", AI136&"["&#REF!&"]") -> 
AJ137: =IF(AI137="", "", AI137&"["&#REF!&"]") -> 
AJ138: =IF(AI138="", "", AI138&"["&#REF!&"]") -> 
AJ139: =IF(AI139="", "", AI139&"["&#REF!&"]") -> 
AJ140: =IF(AI140="", "", AI140&"["&#REF!&"]") -> 
AJ141: =IF(AI141="", "", AI141&"["&#REF!&"]") -> 
AJ142: =IF(AI142="", "", AI142&"["&#REF!&"]") -> 
AJ143: =IF(AI143="", "", AI143&"["&#REF!&"]") -> 
AJ144: =IF(AI144="", "", AI144&"["&#REF!&"]") -> 
AJ145: =IF(AI145="", "", AI145&"["&#REF!&"]") -> 
AJ146: =IF(AI146="", "", AI146&"["&#REF!&"]") -> 
AJ147: =IF(AI147="", "", AI147&"["&#REF!&"]") -> 
AJ148: =IF(AI148="", "", AI148&"["&#REF!&"]") -> 
AJ149: =IF(AI149="", "", AI149&"["&#REF!&"]") -> 
AJ150: =IF(AI150="", "", AI150&"["&#REF!&"]") -> 
AJ151: =IF(AI151="", "", AI151&"["&#REF!&"]") -> 
AJ152: =IF(AI152="", "", AI152&"["&#REF!&"]") -> 
AJ153: =IF(AI153="", "", AI153&"["&#REF!&"]") -> 
AJ154: =IF(AI154="", "", AI154&"["&#REF!&"]") -> 
AJ155: =IF(AI155="", "", AI155&"["&#REF!&"]") -> 
AJ156: =IF(AI156="", "", AI156&"["&#REF!&"]") -> 
AJ157: =IF(AI157="", "", AI157&"["&#REF!&"]") -> 
AJ158: =IF(AI158="", "", AI158&"["&#REF!&"]") -> 
AJ159: =IF(AI159="", "", AI159&"["&#REF!&"]") -> 
AJ160: =IF(AI160="", "", AI160&"["&#REF!&"]") -> 
AJ161: =IF(AI161="", "", AI161&"["&#REF!&"]") -> 
AJ162: =IF(AI162="", "", AI162&"["&#REF!&"]") -> 
AJ163: =IF(AI163="", "", AI163&"["&#REF!&"]") -> 
AJ164: =IF(AI164="", "", AI164&"["&#REF!&"]") -> 
AJ165: =IF(AI165="", "", AI165&"["&#REF!&"]") -> 
AJ166: =IF(AI166="", "", AI166&"["&#REF!&"]") -> 
AJ167: =IF(AI167="", "", AI167&"["&#REF!&"]") -> 
AJ168: =IF(AI168="", "", AI168&"["&#REF!&"]") -> 
AJ169: =IF(AI169="", "", AI169&"["&#REF!&"]") -> 
AJ170: =IF(AI170="", "", AI170&"["&#REF!&"]") -> 
AJ171: =IF(AI171="", "", AI171&"["&#REF!&"]") -> 
AJ172: =IF(AI172="", "", AI172&"["&#REF!&"]") -> 
AJ173: =IF(AI173="", "", AI173&"["&#REF!&"]") -> 
AJ174: =IF(AI174="", "", AI174&"["&#REF!&"]") -> 
AJ175: =IF(AI175="", "", AI175&"["&#REF!&"]") -> 
AJ176: =IF(AI176="", "", AI176&"["&#REF!&"]") -> 
AJ177: =IF(AI177="", "", AI177&"["&#REF!&"]") -> 
AJ178: =IF(AI178="", "", AI178&"["&#REF!&"]") -> 
AJ179: =IF(AI179="", "", AI179&"["&#REF!&"]") -> 
AJ180: =IF(AI180="", "", AI180&"["&#REF!&"]") -> 
AJ181: =IF(AI181="", "", AI181&"["&#REF!&"]") -> 
AJ182: =IF(AI182="", "", AI182&"["&#REF!&"]") -> 
AJ183: =IF(AI183="", "", AI183&"["&#REF!&"]") -> 
AJ184: =IF(AI184="", "", AI184&"["&#REF!&"]") -> 
AJ185: =IF(AI185="", "", AI185&"["&#REF!&"]") -> 
AJ186: =IF(AI186="", "", AI186&"["&#REF!&"]") -> 
AJ187: =IF(AI187="", "", AI187&"["&#REF!&"]") -> 
AJ188: =IF(AI188="", "", AI188&"["&#REF!&"]") -> 
AJ189: =IF(AI189="", "", AI189&"["&#REF!&"]") -> 
AJ190: =IF(AI190="", "", AI190&"["&#REF!&"]") -> 
AJ191: =IF(AI191="", "", AI191&"["&#REF!&"]") -> 
AJ192: =IF(AI192="", "", AI192&"["&#REF!&"]") -> 
AJ193: =IF(AI193="", "", AI193&"["&#REF!&"]") -> 
AJ194: =IF(AI194="", "", AI194&"["&#REF!&"]") -> 
AJ195: =IF(AI195="", "", AI195&"["&#REF!&"]") -> 
AJ196: =IF(AI196="", "", AI196&"["&#REF!&"]") -> 
AJ197: =IF(AI197="", "", AI197&"["&#REF!&"]") -> 
AJ198: =IF(AI198="", "", AI198&"["&#REF!&"]") -> 
AJ199: =IF(AI199="", "", AI199&"["&#REF!&"]") -> 
AJ200: =IF(AI200="", "", AI200&"["&#REF!&"]") -> 
AJ201: =IF(AI201="", "", AI201&"["&#REF!&"]") -> 
... 3288 more rows

Sheet Parameters
L1: =zWorkbookTitle -> Camacho et al. (2024) Harms of hazardous prescribing of NSAIDs
D2: =intLastParamRow -> 1192 | G2: a | H2: b | I2: c | J2: d | K2: e | L2: Parameter | M2: Active | N2: Name | O2: Default | P2: Data -> | Q2: Extracted / assumed values | Y2: Source | Z2: PSA -> | AA2: Probabilistic sensitivity analysis
G3: a | H3: b | I3: d | J3: i | K3: k | Q3: N | R3: k | S3: mean | T3: SD | U3: SE | V3: Lo/Min | W3: Med/Mode | X3: Hi/Max | AA3: Rnd | AB3: ProbVal | AC3: Dist | AD3: Param1 | AE3: Param2 | AF3: Param3
L4: Global parameters
L5: Switches and settings
G6: X | H6: X | I6: X | J6: X | K6: X | L6: PSA (1=off; 2=on) | M6: 1 | N6: swtchPSA
G7: X | H7: X | I7: X | J7: X | K7: X | L7: Discount rate (QALYs) | M7: =O7 -> 3.5% | N7: DQALYs | O7: 0.035
G8: X | H8: X | I8: X | J8: X | K8: X | L8: Discount rate (Costs) | M8: 3.5% | N8: DCosts | O8: 0.035
G9: X | H9: X | I9: X | J9: X | K9: X | L9: Time horizon (years) | M9: 10 | N9: timeHorizon | O9: 10
G10: X | H10: X | I10: X | J10: X | K10: X | L10: Use half-cycle correction? | M10: =O10 -> 1 | N10: swtchHalfCycle | O10: 1
G11: X | H11: X | I11: X | J11: X | K11: X | L11: Global maximum duration of HPE (override queries) | M11: =O11 -> 1 | N11: swtchDurHPE | O11: 1
G12: X | H12: X | I12: X | J12: X | K12: X | L12: Maximum duration of HPE (years) (override queries) | M12: =O12 -> 10 | N12: maxDurHPE | O12: =timeHorizon -> 10
L13: Assume constant coefficient of variation for cost params | M13: 1 | N13: swtchCost.SEs | O13: 1
L14: Coefficient of variation | M14: =O14 -> 0.2 | N14: Cost.SEs.CoV | O14: =S14 -> 0.2 | S14: 0.2
I15: X | J15: X | K15: X | L15: NSAIDs assumed in use | M15: =O15 -> 1 | N15: swtchNSAIDsWhich | O15: 1
L16: Transition probabilities
L17: Death
L18: General population rate
L19: Men
D20: 55 | G20: X | H20: X | I20: X | K20: X | L20: =D20&"-"&D20+4 -> 55-59 | M20: =O20 -> 0.0058 | O20: =S20 -> 0.0058 | S20: =5.8/1000 -> 0.0058 | Y20: ONS (2018)
D21: =D20+5 -> 60 | G21: X | H21: X | I21: X | K21: X | L21: 60-64 | M21: 0.0091 | O21: 0.0091 | S21: =9.1/1000 -> 0.0091 | Y21: ONS (2018)
D22: 65 | G22: X | H22: X | I22: X | K22: X | L22: 65-69 | M22: 0.0146 | O22: 0.0146 | S22: =14.6/1000 -> 0.0146 | Y22: ONS (2018)
D23: 70 | G23: X | H23: X | I23: X | K23: X | L23: 70-74 | M23: 0.0225 | O23: 0.0225 | S23: =22.5/1000 -> 0.0225 | Y23: ONS (2018)
D24: 75 | G24: X | H24: X | I24: X | K24: X | L24: 75-79 | M24: 0.0392 | O24: 0.0392 | S24: =39.2/1000 -> 0.0392 | Y24: ONS (2018)
D25: 80 | G25: X | H25: X | I25: X | K25: X | L25: 80-84 | M25: 0.0682 | O25: 0.0682 | S25: =68.2/1000 -> 0.0682 | Y25: ONS (2018)
D26: 85 | G26: X | H26: X | I26: X | K26: X | L26: 85-89 | M26: 0.1251 | O26: 0.1251 | S26: =125.1/1000 -> 0.1251 | Y26: ONS (2018)
D27: 90 | G27: X | H27: X | I27: X | K27: X | L27: =D27&"+" -> 90+ | M27: 0.2351 | O27: 0.2351 | S27: =235.1/1000 -> 0.2351 | Y27: ONS (2018)
L28: Women
D29: 55 | G29: X | H29: X | I29: X | K29: X | L29: =D29&"-"&D29+4 -> 55-59 | M29: =O29 -> 0.0039 | O29: =S29 -> 0.0039 | S29: =3.9/1000 -> 0.0039 | Y29: ONS (2018)
D30: =D29+5 -> 60 | G30: X | H30: X | I30: X | K30: X | L30: 60-64 | M30: 0.006 | O30: 0.006 | S30: =6/1000 -> 0.006 | Y30: ONS (2018)
D31: 65 | G31: X | H31: X | I31: X | K31: X | L31: 65-69 | M31: 0.0094 | O31: 0.0094 | S31: =9.4/1000 -> 0.0094 | Y31: ONS (2018)
D32: 70 | G32: X | H32: X | I32: X | K32: X | L32: 70-74 | M32: 0.0151 | O32: 0.0151 | S32: =15.1/1000 -> 0.0151 | Y32: ONS (2018)
D33: 75 | G33: X | H33: X | I33: X | K33: X | L33: 75-79 | M33: 0.0274 | O33: 0.0274 | S33: =27.4/1000 -> 0.0274 | Y33: ONS (2018)
D34: 80 | G34: X | H34: X | I34: X | K34: X | L34: 80-84 | M34: 0.0502 | O34: 0.0502 | S34: =50.2/1000 -> 0.0502 | Y34: ONS (2018)
D35: 85 | G35: X | H35: X | I35: X | K35: X | L35: 85-89 | M35: 0.0977 | O35: 0.0977 | S35: =97.7/1000 -> 0.0977 | Y35: ONS (2018)
D36: 90 | G36: X | H36: X | I36: X | K36: X | L36: =D36&"+" -> 90+ | M36: 0.2152 | O36: 0.2152 | S36: =215.2/1000 -> 0.2152 | Y36: ONS (2018)
L37: Costs
L38: Unit costs
G39: X | H39: X | I39: X | J39: X | K39: X | L39: GP appointment | M39: =O39 -> £39.23 | N39: cGP | O39: =CHOOSE(swtchPSA, S39, AB39) -> £39.23 | S39: £39.23 | U39: =S39*Cost.SEs.CoV -> £7.85 | V39: =_xlfn.GAMMA.INV(0.025, AD39, AE39) -> £25.39 | X39: =_xlfn.GAMMA.INV(0.975, AD39, AE39) -> £56.04 | Y39: PSSRU 2020/21 | AA39: =RAND() -> 0.836 | AB39: =_xlfn.GAMMA.INV(AA39,AD39,AE39) -> £46.85 | AC39: Gamma | AD39: =S39^2/U39^2 -> α=25.000 | AE39: =U39^2/S39 -> β=1.569
J40: X | L40: Ambulance -- ASS02 (See and treat and convey) | M40: =O40 -> £292.09 | O40: =CHOOSE(swtchPSA, S40, AB40) -> £292.09 | S40: £292.09 | U40: =S40*Cost.SEs.CoV -> £58.42 | V40: =_xlfn.GAMMA.INV(0.025, AD40, AE40) -> £189.03 | X40: =_xlfn.GAMMA.INV(0.975, AD40, AE40) -> £417.23 | Y40: NHS Reference Costs 2019/20 | AA40: =RAND() -> 0.991 | AB40: =_xlfn.GAMMA.INV(AA40,AD40,AE40) -> £446.90 | AC40: Gamma | AD40: =S40^2/U40^2 -> α=25.000 | AE40: =U40^2/S40 -> β=11.684
J41: X | L41: Inflated to 2020/21 | M41: =O41 -> £301.09 | N41: cAmb | O41: =_fnINFLATE(M40, 2019, 2020) -> £301.09 | V41: =_fnINFLATE(V40, 2019, 2020) -> £194.85 | X41: =_fnINFLATE(X40, 2019, 2020) -> £430.08
L42: NSAIDs
L43: Celecoxib 100mg bd
I44: X | J44: X | K44: X | L44: Unit cost, 100mg 60-pack | M44: =O44 -> £2.08 | N44: c.NSAID.Pack_Cel | O44: =S44 -> £2.08 | S44: £2.08 | Y44: NHS drug tariff (March 2021)
I45: X | J45: X | K45: X | L45: Resource-use per year | M45: =O45 -> 12.17 | N45: c.NSAID.PackPerYr_Cel | O45: =S45 -> 12.17 | S45: =365.24/60*2 -> 12.17 | Y45: WHO
I46: X | J46: X | K46: X | L46: Cost per month | M46: =O46 -> £2.11 | N46: c.NSAID.PerMo_Cel | O46: =CHOOSE(swtchPSA, S46, AB46) -> £2.11 | S46: =c.NSAID.Pack_Cel*c.NSAID.PackPerYr_Cel/12 -> £2.11 | U46: =S46*Cost.SEs.CoV -> £0.42 | V46: =_xlfn.GAMMA.INV(0.025, AD46, AE46) -> £1.37 | X46: =_xlfn.GAMMA.INV(0.975, AD46, AE46) -> £3.01 | AA46: =RAND() -> 0.891 | AB46: =_xlfn.GAMMA.INV(AA46,AD46,AE46) -> £2.64 | AC46: Gamma | AD46: =S46^2/U46^2 -> α=25.000 | AE46: =U46^2/S46 -> β=0.084
L47: Diclofenac sodium 50mg bd
I48: X | J48: X | K48: X | L48: Unit cost, 50mg 28-pack | M48: =O48 -> £1.44 | N48: c.NSAID.Pack_Dic | O48: =S48 -> £1.44 | S48: £1.44 | Y48: NHS drug tariff (March 2021)
I49: X | J49: X | K49: X | L49: Resource-use per year | M49: =O49 -> 26.09 | N49: c.NSAID.PackPerYr_Dic | O49: =S49 -> 26.09 | S49: =365.24/28*2 -> 26.09 | Y49: WHO
I50: X | J50: X | K50: X | L50: Cost per month | M50: =O50 -> £3.13 | N50: c.NSAID.PerMo_Dic | O50: =CHOOSE(swtchPSA, S50, AB50) -> £3.13 | S50: =c.NSAID.Pack_Dic*c.NSAID.PackPerYr_Dic/12 -> £3.13 | U50: =S50*Cost.SEs.CoV -> £0.63 | V50: =_xlfn.GAMMA.INV(0.025, AD50, AE50) -> £2.03 | X50: =_xlfn.GAMMA.INV(0.975, AD50, AE50) -> £4.47 | AA50: =RAND() -> 0.991 | AB50: =_xlfn.GAMMA.INV(AA50,AD50,AE50) -> £4.81 | AC50: Gamma | AD50: =S50^2/U50^2 -> α=25.000 | AE50: =U50^2/S50 -> β=0.125
L51: Ibuprofen 400mg tid
I52: X | J52: X | K52: X | L52: Unit cost, 400mg 84-pack | M52: =O52 -> £7.67 | N52: c.NSAID.Pack_Ibu | O52: =S52 -> £7.67 | S52: £7.67 | Y52: NHS drug tariff (March 2021)
I53: X | J53: X | K53: X | L53: Resource-use per year | M53: =O53 -> 13.04 | N53: c.NSAID.PackPerYr_Ibu | O53: =S53 -> 13.04 | S53: =365.24/84*3 -> 13.04 | Y53: WHO
I54: X | J54: X | K54: X | L54: Cost per month | M54: =O54 -> £8.34 | N54: c.NSAID.PerMo_Ibu | O54: =CHOOSE(swtchPSA, S54, AB54) -> £8.34 | S54: =c.NSAID.Pack_Ibu*c.NSAID.PackPerYr_Ibu/12 -> £8.34 | U54: =S54*Cost.SEs.CoV -> £1.67 | V54: =_xlfn.GAMMA.INV(0.025, AD54, AE54) -> £5.40 | X54: =_xlfn.GAMMA.INV(0.975, AD54, AE54) -> £11.91 | AA54: =RAND() -> 0.774 | AB54: =_xlfn.GAMMA.INV(AA54,AD54,AE54) -> £9.53 | AC54: Gamma | AD54: =S54^2/U54^2 -> α=25.000 | AE54: =U54^2/S54 -> β=0.333
L55: Naproxen 500mg qd
I56: X | J56: X | K56: X | L56: Unit cost (pack of 28) | M56: =O56 -> £2.35 | N56: c.NSAID.Pack_Nap | O56: =S56 -> £2.35 | S56: £2.35 | Y56: NHS drug tariff (March 2021)
I57: X | J57: X | K57: X | L57: Resource-use per year | M57: =O57 -> 13.04 | N57: c.NSAID.PackPerYr_Nap | O57: =S57 -> 13.04 | S57: =365.24/28*1 -> 13.04 | Y57: WHO
I58: X | J58: X | K58: X | L58: Cost per month | M58: =O58 -> £2.55 | N58: c.NSAID.PerMo_Nap | O58: =CHOOSE(swtchPSA, S58, AB58) -> £2.55 | S58: =c.NSAID.Pack_Nap*c.NSAID.PackPerYr_Nap/12 -> £2.55 | U58: =S58*Cost.SEs.CoV -> £0.51 | V58: =_xlfn.GAMMA.INV(0.025, AD58, AE58) -> £1.65 | X58: =_xlfn.GAMMA.INV(0.975, AD58, AE58) -> £3.65 | AA58: =RAND() -> 0.547 | AB58: =_xlfn.GAMMA.INV(AA58,AD58,AE58) -> £2.58 | AC58: Gamma | AD58: =S58^2/U58^2 -> α=25.000 | AE58: =U58^2/S58 -> β=0.102
L59: Prescribing frequency for each NSAID
F60: 8 | J60: X | L60: Celecoxib | M60: =O60 -> 0.0328 | O60: =CHOOSE(swtchPSA, S60, AB60) -> 0.03280259226 | Q60: =SUM(R60:R63) -> 808,869 | R60: 26,533 | S60: =R60/Q60 -> 0.03280 | U60: =SQRT((S60*(1-S60))/Q60) -> 0.000 | V60: =_xlfn.BETA.INV(0.025, R60, Q60-R60) -> 0.03242 | X60: =_xlfn.BETA.INV(0.975, R60, Q60-R60) -> 0.03319 | Y60: Open prescribing | AA60: =_xlfn.GAMMA.INV(RAND(), R60, 1) -> 26330.186 | AB60: =AA60/SUM($AA$60:$AA$63) -> 0.033 | AC60: Dirichlet | AD60: =LN(S60) -> μ=-3.417 | AE60: =U60 -> σ=0.000
F61: 8 | J61: X | L61: Diclofenac | M61: =O61 -> 0.0790 | O61: =CHOOSE(swtchPSA, S61, AB61) -> 0.07898930482 | Q61: =$Q$60 -> 808,869 | R61: 63,892 | S61: =R61/Q61 -> 0.07899 | U61: =SQRT((S61*(1-S61))/Q61) -> 0.000 | V61: =_xlfn.BETA.INV(0.025, R61, Q61-R61) -> 0.07840 | X61: =_xlfn.BETA.INV(0.975, R61, Q61-R61) -> 0.07958 | Y61: Open prescribing | AA61: =_xlfn.GAMMA.INV(RAND(), R61, 1) -> 63715.935 | AB61: =AA61/SUM($AA$60:$AA$63) -> 0.079 | AD61: =LN(S61) -> μ=-2.538 | AE61: =U61 -> σ=0.000
F62: 8 | J62: X | L62: Ibuprofen | M62: =O62 -> 0.2282 | O62: =CHOOSE(swtchPSA, S62, AB62) -> 0.2282483319 | Q62: =$Q$60 -> 808,869 | R62: 184,623 | S62: =R62/Q62 -> 0.22825 | U62: =SQRT((S62*(1-S62))/Q62) -> 0.000 | V62: =_xlfn.BETA.INV(0.025, R62, Q62-R62) -> 0.22733 | X62: =_xlfn.BETA.INV(0.975, R62, Q62-R62) -> 0.22916 | Y62: Open prescribing | AA62: =_xlfn.GAMMA.INV(RAND(), R62, 1) -> 184786.196 | AB62: =AA62/SUM($AA$60:$AA$63) -> 0.229 | AD62: =LN(S62) -> μ=-1.477 | AE62: =U62 -> σ=0.000
F63: 8 | J63: X | L63: Naproxen | M63: =O63 -> 0.6600 | O63: =CHOOSE(swtchPSA, S63, AB63) -> 0.659959771 | Q63: =$Q$60 -> 808,869 | R63: 533,821 | S63: =R63/Q63 -> 0.65996 | U63: =SQRT((S63*(1-S63))/Q63) -> 0.001 | V63: =_xlfn.BETA.INV(0.025, R63, Q63-R63) -> 0.65893 | X63: =_xlfn.BETA.INV(0.975, R63, Q63-R63) -> 0.66099 | Y63: Open prescribing | AA63: =_xlfn.GAMMA.INV(RAND(), R63, 1) -> 533576.229 | AB63: =AA63/SUM($AA$60:$AA$63) -> 0.660 | AD63: =LN(S63) -> μ=-0.416 | AE63: =U63 -> σ=0.001
L64: Alternative painkiller
L65: Paracetamol 2x500mg tid
I66: X | J66: X | K66: X | L66: Unit cost (pack of 100) | M66: =O66 -> £3.06 | N66: c.Paracet.Pack | O66: =S66 -> £3.06 | S66: £3.06 | Y66: NHS drug tariff (March 2021)
I67: X | J67: X | K67: X | L67: Resource-use per year | M67: =O67 -> 21.91 | N67: c.Paracet.PackPerYr | O67: =S67 -> 21.9144 | S67: =365.24/100*6 -> 21.91 | Y67: WHO
I68: X | J68: X | K68: X | L68: Cost per month | M68: =O68 -> £5.59 | N68: c.Paracet.PerMo | O68: =CHOOSE(swtchPSA, S68, AB68) -> £5.59 | S68: =c.Paracet.Pack*c.Paracet.PackPerYr/12 -> £5.59 | U68: =S68*Cost.SEs.CoV -> £1.12 | V68: =_xlfn.GAMMA.INV(0.025, AD68, AE68) -> £3.62 | X68: =_xlfn.GAMMA.INV(0.975, AD68, AE68) -> £7.98 | AA68: =RAND() -> 0.275 | AB68: =_xlfn.GAMMA.INV(AA68,AD68,AE68) -> £4.88 | AC68: Gamma | AD68: =S68^2/U68^2 -> α=25.000 | AE68: =U68^2/S68 -> β=0.224
L69: Utilities
L70: General population utility
D71: 50 | E71: =D71+4 -> 54 | G71: X | H71: X | I71: X | K71: X | L71: =D71&"-"&E71 -> 50-54 | M71: =O71 -> 0.834 | N71: rngU.GenPop | O71: =CHOOSE(swtchPSA, S71, AB71) -> 0.8344 | S71: 0.83440 | U71: =(X71-V71)/2/_xlfn.NORM.S.INV(0.975) -> 0.005 | V71: 0.82400 | X71: 0.84300 | Y71: Ara & Brazier (2011) | AA71: =RAND() -> 0.136 | AB71: =_xlfn.BETA.INV(AA71, AD71, AE71) -> 0.8291 | AC71: Beta | AD71: =(S71^2*(1-S71))/U71^2-S71 -> α=4906.638 | AE71: =AD71*((1-S71)/S71) -> β=973.801
D72: =D71+5 -> 55 | E72: 59 | G72: X | H72: X | I72: X | K72: X | L72: 55-59 | M72: 0.822 | O72: 0.8222 | S72: 0.82220 | U72: 0.006 | V72: 0.81100 | X72: 0.83300 | Y72: Ara & Brazier (2011) | AA72: 0.486 | AB72: 0.8220 | AC72: Beta | AD72: α=3815.082 | AE72: β=825.008
D73: 60 | E73: 64 | G73: X | H73: X | I73: X | K73: X | L73: 60-64 | M73: 0.807 | O73: 0.8072 | S73: 0.80720 | U73: 0.007 | V73: 0.79300 | X73: 0.82100 | Y73: Ara & Brazier (2011) | AA73: 0.549 | AB73: 0.8081 | AC73: Beta | AD73: α=2461.314 | AE73: β=587.886
D74: 65 | E74: 69 | G74: X | H74: X | I74: X | K74: X | L74: 65-69 | M74: 0.804 | O74: 0.8041 | S74: 0.80410 | U74: 0.007 | V74: 0.79000 | X74: 0.81700 | Y74: Ara & Brazier (2011) | AA74: 0.722 | AB74: 0.8082 | AC74: Beta | AD74: α=2669.023 | AE74: β=650.245
D75: 70 | E75: 74 | G75: X | H75: X | I75: X | K75: X | L75: 70-74 | M75: 0.779 | O75: 0.779 | S75: 0.77900 | U75: 0.006 | V75: 0.76600 | X75: 0.79100 | Y75: Ara & Brazier (2011) | AA75: 0.626 | AB75: 0.7811 | AC75: Beta | AD75: α=3296.406 | AE75: β=935.181
D76: 75 | E76: 79 | G76: X | H76: X | I76: X | K76: X | L76: 75-79 | M76: 0.753 | O76: 0.7533 | S76: 0.75330 | U76: 0.007 | V76: 0.73900 | X76: 0.76700 | Y76: Ara & Brazier (2011) | AA76: 0.313 | AB76: 0.7498 | AC76: Beta | AD76: α=2743.001 | AE76: β=898.312
D77: 80 | E77: 84 | G77: X | H77: X | I77: X | K77: X | L77: 80-84 | M77: 0.699 | O77: 0.6985 | S77: 0.69850 | U77: 0.011 | V77: 0.67700 | X77: 0.71900 | Y77: Ara & Brazier (2011) | AA77: 0.350 | AB77: 0.6944 | AC77: Beta | AD77: α=1280.681 | AE77: β=552.792
D78: 85 | E78: 89 | G78: X | H78: X | I78: X | K78: X | L78: 85-89 | M78: 0.650 | O78: 0.6497 | S78: 0.64970 | U78: 0.013 | V78: 0.62400 | X78: 0.67500 | Y78: Ara & Brazier (2011) | AA78: 0.804 | AB78: 0.6609 | AC78: Beta | AD78: α=872.888 | AE78: β=470.637
L79: Inflators
L80: 1999/00 | M80: =O80 -> 188.6 | O80: =S80 -> 188.6 | S80: 188.60 | Y80: PSSRU 2012 (HCHS)
L81: 2000/01 | M81: 196.5 | O81: 196.5 | S81: 196.50 | Y81: PSSRU 2012 (HCHS)
L82: 2001/02 | M82: 206.5 | O82: 206.5 | S82: 206.50 | Y82: PSSRU 2012 (HCHS)
L83: 2002/03 | M83: 213.7 | O83: 213.7 | S83: 213.70 | Y83: PSSRU 2012 (HCHS)
L84: 2003/04 | M84: 224.8 | O84: 224.8 | S84: 224.80 | Y84: PSSRU 2012 (HCHS)
L85: 2004/05 | M85: 232.3 | O85: 232.3 | S85: 232.30 | Y85: PSSRU 2012 (HCHS)
L86: 2005/06 | M86: 240.9 | O86: 240.9 | S86: 240.90 | Y86: PSSRU 2012 (HCHS)
L87: 2006/07 | M87: 249.8 | O87: 249.8 | S87: 249.80 | Y87: PSSRU 2012 (HCHS)
L88: 2007/08 | M88: 257.0 | O88: 257.0 | S88: 257.00 | Y88: PSSRU 2012 (HCHS)
L89: 2008/09 | M89: =O89 -> 267.0 | O89: 267.0 | S89: 267.00 | Y89: PSSRU 2012 (HCHS)
L90: 2009/10 | M90: 268.6 | O90: 268.6 | S90: 268.60 | Y90: PSSRU 2012 (HCHS)
L91: 2010/11 | M91: 276.7 | O91: 276.7 | S91: 276.70 | Y91: PSSRU 2012 (HCHS)
D92: 1999 | L92: =D92 & "/" & RIGHT(D92+1, 2) -> 1999/00 | M92: 0.00 | O92: =(M80/M80-1)*100 -> 0.0
D93: 2000 | L93: =D93 & "/" & RIGHT(D93+1, 2) -> 2000/01 | M93: 4.19 | O93: =(M81/M80-1)*100 -> 4.2
D94: =D93+1 -> 2001 | L94: 2001/02 | M94: 5.09 | O94: 5.1
D95: 2002 | L95: 2002/03 | M95: 3.49 | O95: 3.5
D96: 2003 | L96: 2003/04 | M96: 5.19 | O96: 5.2
D97: 2004 | L97: 2004/05 | M97: 3.34 | O97: 3.3
D98: 2005 | L98: 2005/06 | M98: 3.70 | O98: 3.7
D99: 2006 | L99: 2006/07 | M99: 3.69 | O99: 3.7
D100: 2007 | L100: 2007/08 | M100: =O100 -> 2.88 | O100: 2.9
D101: 2008 | L101: 2008/09 | M101: 3.89 | O101: 3.9
D102: 2009 | L102: 2009/10 | M102: =O102 -> 0.60 | O102: 0.6
D103: 2010 | L103: 2010/11 | M103: 3.02 | O103: 3.0
D104: 2011 | L104: 2011/12 | M104: =O104 -> 2.10 | O104: =S104 -> 2.1 | S104: 2.10 | Y104: PSSRU 2020 (HCHS)
D105: 2012 | L105: 2012/13 | M105: 1.70 | O105: 1.7 | S105: 1.70 | Y105: PSSRU 2020 (HCHS)
D106: 2013 | L106: 2013/14 | M106: 1.10 | O106: 1.1 | S106: 1.10 | Y106: PSSRU 2020 (HCHS)
D107: 2014 | L107: 2014/15 | M107: 0.90 | O107: 0.9 | S107: 0.90 | Y107: PSSRU 2020 (HCHS)
D108: 2015 | L108: 2015/16 | M108: =O108 -> 1.30 | O108: 1.3 | S108: 1.30 | Y108: PSSRU 2020 (HCHS)
D109: 2016 | L109: 2016/17 | M109: =O109 -> 2.12 | O109: 2.1 | S109: 2.12 | Y109: PSSRU 2020 (NHSCII)
D110: 2017 | L110: 2017/18 | M110: =O110 -> 1.16 | O110: 1.2 | S110: 1.16 | Y110: PSSRU 2020 (NHSCII)
D111: 2018 | L111: 2018/19 | M111: 2.31 | O111: 2.3 | S111: 2.31 | Y111: PSSRU 2020 (NHSCII)
D112: 2019 | L112: 2019/20 | M112: 2.21 | O112: 2.2 | S112: 2.21 | Y112: PSSRU 2020 (NHSCII)
D113: 2020 | L113: 2020/21 | M113: =O113 -> 3.08 | O113: =S113 -> 3.1 | S113: 3.08 | Y113: PSSRU 2020 (NHSCII)
L114: GI outcomes (relevant to models A, B, & C)
L115: Switches and settings
G116: X | H116: X | I116: X | L116: Source for SMR associated with ulcer | M116: 3 | N116: swtchUlcerSMR | O116: 3
L117: Transition probabilities
L118: Death
L119: Ulcer
L120: SMR -v- general population
G121: X | H121: X | I121: X | L121: =Y121 -> Lassen et al. (2006) | M121: =O121 -> 11.600 | O121: =CHOOSE(swtchPSA, S121, AB121) -> 11.6 | S121: 11.60000 | U121: =(LN(X121)-LN(V121)) / 2/ _xlfn.NORM.S.INV(0.975) -> 0.094 | V121: 9.60000 | X121: 13.90000 | Y121: Lassen et al. (2006) | AA121: =RAND() -> 0.752 | AB121: =_xlfn.LOGNORM.INV(AA121, AD121, AE121) -> 12.37198 | AC121: Lognormal | AD121: =LN(S121) -> μ=2.451 | AE121: =U121 -> σ=0.094
G122: X | H122: X | I122: X | L122: Malmi et al. (2016) | M122: =O122 -> 2.1600 | O122: =CHOOSE(swtchPSA, S122, AB122) -> 2.16 | S122: 2.16000 | U122: =(LN(X122)-LN(V122)) / 2/ _xlfn.NORM.S.INV(0.975) -> 0.028 | V122: 2.05000 | X122: 2.29000 | Y122: Malmi et al. (2016) | AA122: =RAND() -> 0.417 | AB122: =_xlfn.LOGNORM.INV(AA122, AD122, AE122) -> 2.14721 | AC122: Lognormal | AD122: =LN(S122) -> μ=0.770 | AE122: =U122 -> σ=0.028
G123: X | H123: X | I123: X | L123: Weighted (30d Lassen; remainder Malmi) | M123: =O123 -> 5.2615 | O123: =_xlfn.LET(_xlpm.cycDays, AB.cycleLength*365.24, O121*(30/_xlpm.cycDays) + O122*(1-30/_xlpm.cycDays)) -> 5.26
L124: Costs
L125: Unit costs
L126: PPIs
G127: X | H127: X | I127: X | L127: Omeprazole 20mg x 28 | M127: =O127 -> £1.18 | N127: cPPI.Omep | O127: =S127 -> £1.18 | S127: £1.18 | Y127: NHS drug tariff (March 2021)
G128: X | H128: X | I128: X | L128: Lansoprazole 30mg x 28 | M128: =O128 -> £1.43 | N128: cPPI.Lanso | O128: =S128 -> £1.43 | S128: £1.43 | Y128: NHS drug tariff (March 2021)
L129: NHS reference costs
L130: 2019/20
G131: X | H131: X | I131: X | L131: Gastroenterology outpatient (avg of all CL/NCL activity under service code 301) | M131: =O131 -> £145.33 | N131: cGI.OP | O131: =S131 -> £145.33 | S131: £145.33 | Y131: NHS Reference Costs 2019/20
G132: X | H132: X | I132: X | L132: Diagnostic endoscopy (FE21Z / OPROC / 301) | M132: =O132 -> £376.14 | N132: cEndo | O132: =S132 -> £376.14 | S132: £376.14 | Y132: NHS Reference Costs 2019/20
G133: X | H133: X | I133: X | L133: H pylori test (DAPS07 Microbiology) | M133: =O133 -> £8.15 | N133: cHPylori | O133: =S133 -> £8.15 | S133: £8.15 | Y133: NHS Reference Costs 2019/20
L134: Inflated to 2020/21
G135: X | H135: X | I135: X | L135: Gastroenterology outpatient | M135: =O135 -> £149.81 | N135: cGI.OP | O135: =_fnINFLATE(M131, 2019, 2020) -> £149.81
G136: X | H136: X | I136: X | L136: Diagnostic endoscopy | M136: =O136 -> £387.73 | N136: cEndo | O136: =_fnINFLATE(M132, 2019, 2020) -> £387.73
G137: X | H137: X | I137: X | L137: H pylori test | M137: =O137 -> £8.40 | N137: cHPylori | O137: =_fnINFLATE(M133, 2019, 2020) -> £8.40
L138: Hospital admission for GI bleed
G139: X | H139: X | I139: X | L139: 2012/13 | M139: =O139 -> £2,850.85 | O139: =CHOOSE(swtchPSA, S139, AB139) -> £2,850.85 | S139: £2,850.85 | U139: £225.15 | V139: =_xlfn.GAMMA.INV(0.025, AD139, AE139) -> £2,426.64 | X139: =_xlfn.GAMMA.INV(0.975, AD139, AE139) -> £3,308.73 | Y139: Campbell et al. (2015) | AA139: =RAND() -> 0.549 | AB139: =_xlfn.GAMMA.INV(AA139,AD139,AE139) -> £2,872 | AC139: Gamma | AD139: =S139^2/U139^2 -> α=160.326 | AE139: =U139^2/S139 -> β=17.782
G140: X | H140: X | I140: X | L140: Inflated to 2020/21 | M140: =O140 -> £3,280.44 | N140: cGIbleed | O140: =_fnINFLATE(M139, 2012, 2020) -> £3,280.44 | U140: =_fnINFLATE(U139, 2012, 2021) -> £259.08 | V140: =_fnINFLATE(V139, 2012, 2021) -> £2,792.30 | X140: =_fnINFLATE(X139, 2012, 2021) -> £3,807.31
L141: Resource use
L142: GI discomfort
G143: X | H143: X | I143: X | L143: GP visits | M143: =O143 -> 1 | O143: =S143 -> 1 | S143: 1
G144: X | H144: X | I144: X | L144: Courses of PPIs | M144: =O144 -> 1 | O144: =S144 -> 1 | S144: 1
L145: Ulcer
G146: X | H146: X | I146: X | L146: GP visits | M146: =O146 -> 2 | O146: =S146 -> 2 | S146: 2
G147: X | H147: X | I147: X | L147: Courses of PPIs | M147: =O147 -> 2 | O147: =S147 -> 2 | S147: 2
G148: X | H148: X | I148: X | L148: Gastroenterology outpatient appts | M148: =O148 -> 1 | O148: =S148 -> 1 | S148: 1
G149: X | H149: X | I149: X | L149: Diagnostic endoscopies | M149: =O149 -> 1 | O149: =S149 -> 1 | S149: 1
G150: X | H150: X | I150: X | L150: H pylori tests | M150: =O150 -> 1 | O150: =S150 -> 1 | S150: 1
L151: Event costs (without PPIs, which vary between Qs)
G152: X | H152: X | I152: X | L152: GI discomfort | M152: =O152 -> £39.23 | N152: cEvent.GIpain_noPPI | O152: =CHOOSE(swtchPSA, S152, AB152) -> £39.23 | S152: =SUM(M143*cGP) -> £39.23 | U152: =S152*Cost.SEs.CoV -> £7.85 | V152: =_xlfn.GAMMA.INV(0.025, AD152, AE152) -> £25.39 | X152: =_xlfn.GAMMA.INV(0.975, AD152, AE152) -> £56.04 | AA152: =RAND() -> 0.580 | AB152: =_xlfn.GAMMA.INV(AA152,AD152,AE152) -> £40.30 | AC152: Gamma | AD152: =S152^2/U152^2 -> α=25.000 | AE152: =U152^2/S152 -> β=1.569
G153: X | H153: X | I153: X | L153: Ulcer | M153: =O153 -> £624.40 | N153: cEvent.Ulcer_noPPI | O153: =CHOOSE(swtchPSA, S153, AB153) -> £624.40 | S153: =SUM(M146*cGP, M148*cGI.OP, M149*cEndo, M150*cHPylori) -> £624.40 | U153: =S153*Cost.SEs.CoV -> £124.88 | V153: =_xlfn.GAMMA.INV(0.025, AD153, AE153) -> £404.08 | X153: =_xlfn.GAMMA.INV(0.975, AD153, AE153) -> £891.90 | AA153: =RAND() -> 0.071 | AB153: =_xlfn.GAMMA.INV(AA153,AD153,AE153) -> £451.82 | AC153: Gamma | AD153: =S153^2/U153^2 -> α=25.000 | AE153: =U153^2/S153 -> β=24.976
L154: Utilities
L155: Decrements
L156: GI discomfort
G157: X | H157: X | I157: X | L157: Arm1 | M157: =O157 -> 0.743 | O157: =S157 -> 0.74300 | Q157: 343 | S157: 0.74300 | T157: 0.229 | U157: =T157/SQRT(Q157) -> 0.012 | V157: =S157-U157*_xlfn.NORM.S.INV(0.975) -> 0.719 | X157: =S157+U157*_xlfn.NORM.S.INV(0.975) -> 0.767 | Y157: Delaney et al. (2008)
G158: X | H158: X | I158: X | L158: Arm2 | M158: =O158 -> 0.744 | O158: =S158 -> 0.74400 | Q158: 356 | S158: 0.74400 | T158: 0.239 | U158: =T158/SQRT(Q158) -> 0.013 | V158: =S158-U158*_xlfn.NORM.S.INV(0.975) -> 0.719 | X158: =S158+U158*_xlfn.NORM.S.INV(0.975) -> 0.769 | Y158: Delaney et al. (2008)
G159: X | H159: X | I159: X | L159: Pooled | M159: =O159 -> 0.744 | O159: =CHOOSE(swtchPSA, S159, AB159) -> 0.74351 | Q159: =Q157+Q158 -> 699 | S159: =SUMPRODUCT(S157:S158, Q157:Q158) / SUM(Q157:Q158) -> 0.74351 | T159: =SQRT((T157^2*(Q157-1)+T158^2*(Q158-1))/(Q157+Q158-2)) -> 0.234 | U159: =T159/SQRT(Q159) -> 0.009 | V159: =S159-U159*_xlfn.NORM.S.INV(0.975) -> 0.726 | X159: =S159+U159*_xlfn.NORM.S.INV(0.975) -> 0.761 | AA159: =RAND() -> 0.105 | AB159: =_xlfn.BETA.INV(AA159, AD159, AE159) -> 0.7324 | AC159: Beta | AD159: =(S159^2*(1-S159))/U159^2-S159 -> α=1807.037 | AE159: =AD159*((1-S159)/S159) -> β=623.379
D160: 55 | G160: X | H160: X | I160: X | L160: Decrement | M160: =O160 -> -0.079 | N160: uDec.GIpain | O160: =M159-_fnGENPOP.U(55) -> -0.079 | V160: =V159-_fnGENPOP.U(55) -> -0.096 | X160: =X159-_fnGENPOP.U(55) -> -0.061
L161: Symptomatic ulcer
G162: X | H162: X | I162: X | L162: People without digestive complaints | M162: =O162 -> 0.836 | O162: =CHOOSE(swtchPSA, S162, AB162) -> 0.836 | Q162: 620 | S162: 0.83600 | U162: =(X162-V162) / 2 / _xlfn.NORM.S.INV(0.975) -> 0.010 | V162: 0.81500 | X162: 0.85600 | Y162: Ara & Brazier (2011) | AA162: =RAND() -> 0.626 | AB162: =_xlfn.BETA.INV(AA162, AD162, AE162) -> 0.8395 | AC162: Beta | AD162: =(S162^2*(1-S162))/U162^2-S162 -> α=1046.883 | AE162: =AD162*((1-S162)/S162) -> β=205.369
G163: X | H163: X | I163: X | L163: People with bowel/colon complaints (age 70-74) | M163: =O163 -> 0.734 | O163: =CHOOSE(swtchPSA, S163, AB163) -> 0.734 | Q163: 666 | S163: 0.73400 | U163: =(X163-V163) / 2 / _xlfn.NORM.S.INV(0.975) -> 0.014 | V163: 0.70700 | X163: 0.76000 | Y163: Ara & Brazier (2011) | AA163: =RAND() -> 0.761 | AB163: =_xlfn.BETA.INV(AA163, AD163, AE163) -> 0.7437 | AC163: Beta | AD163: =(S163^2*(1-S163))/U163^2-S163 -> α=783.198 | AE163: =AD163*((1-S163)/S163) -> β=283.829
G164: X | H164: X | I164: X | L164: Symptomatic ulcer | M164: =O164 -> -0.102 | N164: uDec.Ulcer | O164: =M163-M162 -> -0.102 | S164: =S163-S162 -> -0.102 | U164: =SQRT(U162^2+U163^2) -> 0.017 | V164: =S164-U164*_xlfn.NORM.S.INV(0.975) -> -0.136 | X164: =S164+U164*_xlfn.NORM.S.INV(0.975) -> -0.068
L165: Serious GI event
G166: X | H166: X | I166: X | L166: Serious GI event | M166: =O166 -> -0.239 | N166: uDec.SeriousGI | O166: =CHOOSE(swtchPSA, S166, AB166) -> -0.239 | Q166: 620 | S166: -0.23900 | U166: =(X166-V166) / 2 / _xlfn.NORM.S.INV(0.975) -> 0.074 | V166: -0.38400 | X166: -0.09330 | Y166: Doble et al. (2018) | AA166: =RAND() -> 0.139 | AB166: =_xlfn.NORM.INV(AA166, AD166, AE166) -> -0.320 | AC166: Normal | AD166: =S166 -> μ=-0.239 | AE166: =U166 -> σ=0.074
L167: =INDEX(lstQs, 1) & " & " & INDEX(lstQs, 2) -> A: No gastroprotection - NSAIDs in people >65 & B: No gastroprotection - NSAIDs in people with ulcer history
L168: Switches and settings
L169: Baseline population:
G170: X | L170: Starting age (QA) | M170: =O170 -> 70 | N170: A.cohortAge | O170: =S170 -> 70 | S170: 70
H171: X | L171: Starting age (QB) | M171: =O171 -> 55 | N171: B.cohortAge | O171: =S171 -> 55 | S171: 55
G172: X | H172: X | L172: Cycles per year | M172: 4 | N172: AB.cyclesPerYear
G173: X | H173: X | L173: Maximum duration of HPE (years) | M173: =O173 -> 10 | N173: AB.maxDurHPE | O173: =CHOOSE(swtchDurHPE, maxDurHPE, S173, maxDurHPE) -> 10 | S173: 10
L174: Effects of exposure to PPIs
G175: X | H175: X | L175: RR for GI pain, PPI -v- none | M175: =O175 -> 0.3400 | O175: =CHOOSE(swtchPSA, S175, AB175) -> 0.34 | S175: 0.34000 | U175: =(LN(X175)-LN(V175)) / 2/ _xlfn.NORM.S.INV(0.975) -> 0.229 | V175: 0.22000 | X175: 0.54000 | Y175: Spiegel et al. (2006) | AA175: =RAND() -> 0.177 | AB175: =_xlfn.LOGNORM.INV(AA175, AD175, AE175) -> 0.27486 | AC175: Lognormal | AD175: =LN(S175) -> μ=-1.079 | AE175: =U175 -> σ=0.229
G176: X | H176: X | L176: OR for ulcer, PPI -v- none | M176: =O176 -> 0.2800 | O176: =CHOOSE(swtchPSA, S176, AB176) -> 0.28 | S176: 0.28000 | U176: =(LN(X176)-LN(V176)) / 2/ _xlfn.NORM.S.INV(0.975) -> 0.254 | V176: 0.17000 | X176: 0.46000 | Y176: Scally et al. (2018) | AA176: =RAND() -> 0.476 | AB176: =_xlfn.LOGNORM.INV(AA176, AD176, AE176) -> 0.27574 | AC176: Lognormal | AD176: =LN(S176) -> μ=-1.273 | AE176: =U176 -> σ=0.254
G177: X | H177: X | L177: OR for serious GI event, PPI -v- none | M177: =O177 -> 0.3500 | O177: =CHOOSE(swtchPSA, S177, AB177) -> 0.35 | S177: 0.35000 | U177: =(LN(X177)-LN(V177)) / 2/ _xlfn.NORM.S.INV(0.975) -> 0.197 | V177: 0.24000 | X177: 0.52000 | Y177: Scally et al. (2018) | AA177: =RAND() -> 0.356 | AB177: =_xlfn.LOGNORM.INV(AA177, AD177, AE177) -> 0.32535 | AC177: Lognormal | AD177: =LN(S177) -> μ=-1.050 | AE177: =U177 -> σ=0.197
L178: Natural history
L179: GI events
L180: GI pain / dyspepsia
G181: X | H181: X | L181: Rate per yr without PPI | M181: =O181 -> 0.6481 | O181: =CHOOSE(swtchPSA, S181, AB181) -> 0.6481 | S181: =6481/10000 -> 0.648 | U181: =(LN(X181)-LN(V181)) / 2/ _xlfn.NORM.S.INV(0.975) -> 0.031 | V181: =6091/10000 -> 0.609 | X181: =6883/10000 -> 0.688 | Y181: Latimer et al. (2009) | AA181: =RAND() -> 0.607 | AB181: =_xlfn.LOGNORM.INV(AA181, AD181, AE181) -> 0.65363 | AC181: Lognormal | AD181: =LN(S181) -> μ=-0.434 | AE181: =U181 -> σ=0.031
L182: Prob per cycle
G183: X | H183: X | L183: Without PPI | M183: =O183 -> 0.1496 | N183: AB.rngTP.GIpain | O183: =vbratetoprob(M181, AB.cycleLength) -> 0.1495800562
G184: X | H184: X | L184: With PPI | M184: =O184 -> 0.0509 | O184: =M183*M175 -> 0.05085721912
L185: Ulcer
G186: X | H186: X | L186: Rate per yr without PPI | M186: =O186 -> 0.0112 | O186: =CHOOSE(swtchPSA, S186, AB186) -> 0.0112 | S186: =112/10000 -> 0.0112 | U186: =(LN(X186)-LN(V186)) / 2/ _xlfn.NORM.S.INV(0.975) -> 0.2399 | V186: =66/10000 -> 0.0066 | X186: =169/10000 -> 0.0169 | Y186: Latimer et al. (2009) | AA186: =RAND() -> 0.419 | AB186: =_xlfn.LOGNORM.INV(AA186, AD186, AE186) -> 0.01066 | AC186: Lognormal | AD186: =LN(S186) -> μ=-4.492 | AE186: =U186 -> σ=0.240
L187: Prob per cycle
G188: X | H188: X | L188: Without PPI | M188: =O188 -> 0.0028 | N188: AB.rngTP.Ulcer | O188: =vbratetoprob(M186, AB.cycleLength) -> 0.002796083656
G189: X | H189: X | L189: With PPI | M189: =O189 -> 0.0008 | O189: =vbOddsToProb(vbProbToOdds(M188)*M176) -> 0.0007844827288
L190: Serious GI event
G191: X | H191: X | L191: Rate per year without PPI | M191: =O191 -> 0.0034 | O191: =CHOOSE(swtchPSA, S191, AB191) -> 0.00 | Q191: =3792396/4 -> 948,099 pt-yrs | R191: 3259 | S191: =R191/Q191 -> 0.00343740 | U191: =1/SQRT(R191) -> 0.01751692 | V191: =vbRateCILo(Q191, R191, 0) -> 0.00332039 | X191: =vbRateCIhi(Q191, R191, 0) -> 0.00355749 | Y191: NHS medication safety dashboard (Q1 2015/16 - Q3 2019/20), | AA191: =RAND() -> 0.292 | AB191: =_xlfn.LOGNORM.INV(AA191, AD191, AE191) -> 0.003 | AC191: Lognormal | AD191: =LN(S191) -> μ=-5.673 | AE191: =U191 -> σ=0.018
L192: Prob per cycle
G193: X | H193: X | L193: Without PPI | M193: =O193 -> 0.00086 | N193: AB.rngTP.SeriousGI | O193: =vbratetoprob(M191, AB.cycleLength) -> 0.0008589820494
G194: X | H194: X | L194: With PPI | M194: =O194 -> 0.0003 | O194: =vbOddsToProb(vbProbToOdds(M193)*M177) -> 0.000300811672
L195: Repeat GI events
G196: X | H196: X | L196: Rate per 3mo | M196: =O196 -> 0.1580 | O196: =CHOOSE(swtchPSA, S196, AB196) -> 0.158 | S196: 0.158 | U196: =(LN(X196)-LN(V196)) / 2/ _xlfn.NORM.S.INV(0.975) -> 0.159 | V196: 0.110 | X196: 0.205 | Y196: Lau et al. (2011) | AA196: =RAND() -> 0.626 | AB196: =_xlfn.LOGNORM.INV(AA196, AD196, AE196) -> 0.16626 | AC196: Lognormal | AD196: =LN(S196) -> μ=-1.845 | AE196: =U196 -> σ=0.159
G197: X | H197: X | L197: Prob per cycle | M197: =O197 -> 0.1462 | N197: AB.TP.unresolved | O197: =vbratetoprob(M196, AB.cycleLength/(3/12)) -> 0.146150218 | V197: =vbratetoprob(V196, AB.cycleLength/(3/12)) -> 0.104 | X197: =vbratetoprob(X196, AB.cycleLength/(3/12)) -> 0.185
L198: Death
L199: General population, prob per cycle
D200: 55 | G200: X | H200: X | L200: =D200&"-"&D200+4 -> 55-59 | M200: =O200 -> 0.0012 | N200: AB.rngPDeath.GenPop | O200: =vbratetoprob(Parameters!M20*0.5 + Parameters!M29*0.5, AB.cycleLength) -> 0.0012
... 992 more rows

Sheet Results >>>
E1: =zWorkbookTitle -> Camacho et al. (2024) Harms of hazardous prescribing of NSAIDs
F3: The following worksheets collect model results
F5: * 'Results.Summ' provides all outputs in a conveniently formatted way
F6: * The other 3 worksheets are part of the architecture of the model; users can ignore these, unless they are keen
F7: to verify the derivation of the values in 'Results.Summ' | AP7: =IF(AO7="", "", AO7&"["&AN7&"]") -> 
AP8: =IF(AO8="", "", AO8&"["&AN8&"]") -> 
AP72: =IF(AO72="", "", AO72&"["&AN72&"]") -> 
AP136: =IF(AO136="", "", AO136&"["&AN136&"]") -> 
AP200: =IF(AO200="", "", AO200&"["&AN200&"]") -> 
AP264: =IF(AO264="", "", AO264&"["&AN264&"]") -> 
AP328: =IF(AO328="", "", AO328&"["&AN328&"]") -> 
AP392: =IF(AO392="", "", AO392&"["&AN392&"]") -> 
AP456: =IF(AO456="", "", AO456&"["&AN456&"]") -> 
AP520: =IF(AO520="", "", AO520&"["&AN520&"]") -> 
AP584: =IF(AO584="", "", AO584&"["&AN584&"]") -> 
AP648: =IF(AO648="", "", AO648&"["&AN648&"]") -> 
AP712: =IF(AO712="", "", AO712&"["&AN712&"]") -> 
AP776: =IF(AO776="", "", AO776&"["&AN776&"]") -> 
AP840: =IF(AO840="", "", AO840&"["&AN840&"]") -> 
AP904: =IF(AO904="", "", AO904&"["&AN904&"]") -> 
AP968: =IF(AO968="", "", AO968&"["&AN968&"]") -> 
AP1032: =IF(AO1032="", "", AO1032&"["&AN1032&"]") -> 
AP1096: =IF(AO1096="", "", AO1096&"["&AN1096&"]") -> 
AP1160: =IF(AO1160="", "", AO1160&"["&AN1160&"]") -> 
AP1224: =IF(AO1224="", "", AO1224&"["&AN1224&"]") -> 
AP1288: =IF(AO1288="", "", AO1288&"["&AN1288&"]") -> 
AP1352: =IF(AO1352="", "", AO1352&"["&AN1352&"]") -> 
AP1416: =IF(AO1416="", "", AO1416&"["&AN1416&"]") -> 
AP1480: =IF(AO1480="", "", AO1480&"["&AN1480&"]") -> 
AP1544: =IF(AO1544="", "", AO1544&"["&AN1544&"]") -> 
AP1608: =IF(AO1608="", "", AO1608&"["&AN1608&"]") -> 
AP1672: =IF(AO1672="", "", AO1672&"["&AN1672&"]") -> 
AP1736: =IF(AO1736="", "", AO1736&"["&AN1736&"]") -> 
AP1800: =IF(AO1800="", "", AO1800&"["&AN1800&"]") -> 
AP1864: =IF(AO1864="", "", AO1864&"["&AN1864&"]") -> 
AP1928: =IF(AO1928="", "", AO1928&"["&AN1928&"]") -> 
AP1992: =IF(AO1992="", "", AO1992&"["&AN1992&"]") -> 
AP2056: =IF(AO2056="", "", AO2056&"["&AN2056&"]") -> 
AP2120: =IF(AO2120="", "", AO2120&"["&AN2120&"]") -> 
AP2184: =IF(AO2184="", "", AO2184&"["&AN2184&"]") -> 
AP2248: =IF(AO2248="", "", AO2248&"["&AN2248&"]") -> 
AP2312: =IF(AO2312="", "", AO2312&"["&AN2312&"]") -> 
AP2376: =IF(AO2376="", "", AO2376&"["&AN2376&"]") -> 
AP2440: =IF(AO2440="", "", AO2440&"["&AN2440&"]") -> 
AP2504: =IF(AO2504="", "", AO2504&"["&AN2504&"]") -> 
AP2568: =IF(AO2568="", "", AO2568&"["&AN2568&"]") -> 
AP2632: =IF(AO2632="", "", AO2632&"["&AN2632&"]") -> 
AP2696: =IF(AO2696="", "", AO2696&"["&AN2696&"]") -> 
AP2760: =IF(AO2760="", "", AO2760&"["&AN2760&"]") -> 
AP2824: =IF(AO2824="", "", AO2824&"["&AN2824&"]") -> 
AP2888: =IF(AO2888="", "", AO2888&"["&AN2888&"]") -> 
AP2952: =IF(AO2952="", "", AO2952&"["&AN2952&"]") -> 
AP3016: =IF(AO3016="", "", AO3016&"["&AN3016&"]") -> 
AP3080: =IF(AO3080="", "", AO3080&"["&AN3080&"]") -> 
AP3144: =IF(AO3144="", "", AO3144&"["&AN3144&"]") -> 
AP3208: =IF(AO3208="", "", AO3208&"["&AN3208&"]") -> 
AP3272: =IF(AO3272="", "", AO3272&"["&AN3272&"]") -> 
AP3336: =IF(AO3336="", "", AO3336&"["&AN3336&"]") -> 
AP3400: =IF(AO3400="", "", AO3400&"["&AN3400&"]") -> 
AP3464: =IF(AO3464="", "", AO3464&"["&AN3464&"]") -> 

Sheet Results.Summ
E1: =zWorkbookTitle -> Camacho et al. (2024) Harms of hazardous prescribing of NSAIDs
F2: Costs generated per person (£) | I2: QALYs generated per person
E3: Type of HPE | F3: HPE | G3: No HPE | H3: Difference (HPE minus no HPE) | I3: HPE | J3: No HPE | K3: Difference (HPE minus no HPE)
E4: ='Results.D+P'!E5 -> A: No gastroprotection - NSAIDs in people >65 | F4: ='Results.D+P'!F7 -> £258 (£197 to £339) | G4: ='Results.D+P'!G7 -> £235 (£174 to £316) | H4: ='Results.D+P'!J7 -> £24 (£7 to £44) | I4: ='Results.D+P'!H7 -> 5.835 (5.761 to 5.910) | J4: ='Results.D+P'!I7 -> 5.852 (5.777 to 5.926) | K4: ='Results.D+P'!K7 -> −0.017 (−0.021 to −0.012)
E5: ='Results.D+P'!E8 -> B: No gastroprotection - NSAIDs in people with ulcer history | F5: ='Results.D+P'!F10 -> £277 (£211 to £365) | G5: ='Results.D+P'!G10 -> £253 (£188 to £340) | H5: ='Results.D+P'!J10 -> £24 (£7 to £45) | I5: ='Results.D+P'!H10 -> 6.702 (6.633 to 6.768) | J5: ='Results.D+P'!I10 -> 6.716 (6.645 to 6.784) | K5: ='Results.D+P'!K10 -> −0.015 (−0.019 to −0.010)
E6: ='Results.D+P'!E11 -> C: NSAIDs - DOAC/warfarin | F6: ='Results.D+P'!F13 -> £2,520 (£1,427 to £4,285) | G6: ='Results.D+P'!G13 -> £1,432 (£1,002 to £1,960) | H6: ='Results.D+P'!J13 -> £1,087 (£246 to £2,571) | I6: ='Results.D+P'!H13 -> 4.813 (4.605 to 5.020) | J6: ='Results.D+P'!I13 -> 4.906 (4.710 to 5.105) | K6: ='Results.D+P'!K13 -> −0.092 (−0.175 to −0.037)
E7: ='Results.D+P'!E14 -> D: NSAIDs - HF | F7: ='Results.D+P'!F16 -> £12,597 (£8,264 to £17,706) | G7: ='Results.D+P'!G16 -> £12,585 (£8,258 to £17,664) | H7: ='Results.D+P'!J16 -> £12 (−£73 to £96) | I7: ='Results.D+P'!H16 -> 3.003 (2.795 to 3.204) | J7: ='Results.D+P'!I16 -> 3.050 (2.840 to 3.252) | K7: ='Results.D+P'!K16 -> −0.047 (−0.072 to −0.027)
E8: ='Results.D+P'!E17 -> E: NSAIDs - CKD | F8: ='Results.D+P'!F19 -> £50,259 (£48,440 to £52,251) | G8: ='Results.D+P'!G19 -> £50,056 (£48,267 to £51,902) | H8: ='Results.D+P'!J19 -> £202 (−£149 to £710) | I8: ='Results.D+P'!H19 -> 4.524 (3.849 to 5.055) | J8: ='Results.D+P'!I19 -> 4.633 (3.930 to 5.180) | K8: ='Results.D+P'!K19 -> −0.109 (−0.197 to −0.040)
E10: HPE | F10: Total cost in England | G10: Total QALY loss in England
D11: 6 | E11: =INDEX(lstQs,D11) -> Expected harm in England: query A | F11: =_xlfn.LET(_xlpm.arrInc, OFFSET(rngPSA.Samples.Costs, 0, ($D11-1)*6)-OFFSET(rngPSA.Samples.Costs, 0, ($D11-1)*6+2), _xlpm.mean, AVERAGE(_xlpm.arrInc), _xlpm.lo, PERCENTILE(_xlpm.arrInc, 0.025), _xlpm.hi, PERCENTILE(_xlpm.arrInc, 0.975), _fnSTR.CI(_xlpm.mean, _xlpm.lo, _xlpm.hi, "£0,,.00" & CHAR(34) & "m" & CHAR(34) & ";−£0,,.00" & CHAR(34) & "m" & CHAR(34), , , CHAR(10), , "")) -> £2.54m (£0.72m to £4.66m) | G11: =_xlfn.LET(_xlpm.arrInc, OFFSET(rngPSA.Samples.QALYs, 0, ($D11-1)*6)-OFFSET(rngPSA.Samples.Costs, 0, ($D11-1)*6+2), _xlpm.mean, AVERAGE(_xlpm.arrInc), _xlpm.lo, PERCENTILE(_xlpm.arrInc, 0.025), _xlpm.hi, PERCENTILE(_xlpm.arrInc, 0.975), _fnSTR.CI(_xlpm.mean, _xlpm.lo, _xlpm.hi, "#,##0;−#,##0", , , CHAR(10), , "")) -> −1,801 (−2,306 to −1,315)
D12: =D11+1 -> 7 | E12: =INDEX(lstQs,D12) -> Expected harm in England: query B | F12: =_xlfn.LET(_xlpm.arrInc, OFFSET(rngPSA.Samples.Costs, 0, ($D12-1)*6)-OFFSET(rngPSA.Samples.Costs, 0, ($D12-1)*6+2), _xlpm.mean, AVERAGE(_xlpm.arrInc), _xlpm.lo, PERCENTILE(_xlpm.arrInc, 0.025), _xlpm.hi, PERCENTILE(_xlpm.arrInc, 0.975), _fnSTR.CI(_xlpm.mean, _xlpm.lo, _xlpm.hi, "£0,,.00" & CHAR(34) & "m" & CHAR(34) & ";−£0,,.00" & CHAR(34) & "m" & CHAR(34), , , CHAR(10), , "")) -> £0.17m (£0.05m to £0.30m) | G12: =_xlfn.LET(_xlpm.arrInc, OFFSET(rngPSA.Samples.QALYs, 0, ($D12-1)*6)-OFFSET(rngPSA.Samples.Costs, 0, ($D12-1)*6+2), _xlpm.mean, AVERAGE(_xlpm.arrInc), _xlpm.lo, PERCENTILE(_xlpm.arrInc, 0.025), _xlpm.hi, PERCENTILE(_xlpm.arrInc, 0.975), _fnSTR.CI(_xlpm.mean, _xlpm.lo, _xlpm.hi, "#,##0;−#,##0", , , CHAR(10), , "")) -> −100 (−135 to −68)
D13: =D12+1 -> 8 | E13: =INDEX(lstQs,D13) -> Expected harm in England: query C | F13: =_xlfn.LET(_xlpm.arrInc, OFFSET(rngPSA.Samples.Costs, 0, ($D13-1)*6)-OFFSET(rngPSA.Samples.Costs, 0, ($D13-1)*6+2), _xlpm.mean, AVERAGE(_xlpm.arrInc), _xlpm.lo, PERCENTILE(_xlpm.arrInc, 0.025), _xlpm.hi, PERCENTILE(_xlpm.arrInc, 0.975), _fnSTR.CI(_xlpm.mean, _xlpm.lo, _xlpm.hi, "£0,,.00" & CHAR(34) & "m" & CHAR(34) & ";−£0,,.00" & CHAR(34) & "m" & CHAR(34), , , CHAR(10), , "")) -> £25.19m (£5.71m to £59.55m) | G13: =_xlfn.LET(_xlpm.arrInc, OFFSET(rngPSA.Samples.QALYs, 0, ($D13-1)*6)-OFFSET(rngPSA.Samples.Costs, 0, ($D13-1)*6+2), _xlpm.mean, AVERAGE(_xlpm.arrInc), _xlpm.lo, PERCENTILE(_xlpm.arrInc, 0.025), _xlpm.hi, PERCENTILE(_xlpm.arrInc, 0.975), _fnSTR.CI(_xlpm.mean, _xlpm.lo, _xlpm.hi, "#,##0;−#,##0", , , CHAR(10), , "")) -> −2,137 (−4,070 to −839)
D14: =D13+1 -> 9 | E14: =INDEX(lstQs,D14) -> Expected harm in England: query D | F14: =_xlfn.LET(_xlpm.arrInc, OFFSET(rngPSA.Samples.Costs, 0, ($D14-1)*6)-OFFSET(rngPSA.Samples.Costs, 0, ($D14-1)*6+2), _xlpm.mean, AVERAGE(_xlpm.arrInc), _xlpm.lo, PERCENTILE(_xlpm.arrInc, 0.025), _xlpm.hi, PERCENTILE(_xlpm.arrInc, 0.975), _fnSTR.CI(_xlpm.mean, _xlpm.lo, _xlpm.hi, "£0,,.00" & CHAR(34) & "m" & CHAR(34) & ";−£0,,.00" & CHAR(34) & "m" & CHAR(34), , , CHAR(10), , "")) -> £0.11m (−£0.66m to £0.87m) | G14: =_xlfn.LET(_xlpm.arrInc, OFFSET(rngPSA.Samples.QALYs, 0, ($D14-1)*6)-OFFSET(rngPSA.Samples.Costs, 0, ($D14-1)*6+2), _xlpm.mean, AVERAGE(_xlpm.arrInc), _xlpm.lo, PERCENTILE(_xlpm.arrInc, 0.025), _xlpm.hi, PERCENTILE(_xlpm.arrInc, 0.975), _fnSTR.CI(_xlpm.mean, _xlpm.lo, _xlpm.hi, "#,##0;−#,##0", , , CHAR(10), , "")) -> −417 (−637 to −248)
D15: =D14+1 -> 10 | E15: =INDEX(lstQs,D15) -> Expected harm in England: query E | F15: =_xlfn.LET(_xlpm.arrInc, OFFSET(rngPSA.Samples.Costs, 0, ($D15-1)*6)-OFFSET(rngPSA.Samples.Costs, 0, ($D15-1)*6+2), _xlpm.mean, AVERAGE(_xlpm.arrInc), _xlpm.lo, PERCENTILE(_xlpm.arrInc, 0.025), _xlpm.hi, PERCENTILE(_xlpm.arrInc, 0.975), _fnSTR.CI(_xlpm.mean, _xlpm.lo, _xlpm.hi, "£0,,.00" & CHAR(34) & "m" & CHAR(34) & ";−£0,,.00" & CHAR(34) & "m" & CHAR(34), , , CHAR(10), , "")) -> £3.20m (−£2.37m to £11.30m) | G15: =_xlfn.LET(_xlpm.arrInc, OFFSET(rngPSA.Samples.QALYs, 0, ($D15-1)*6)-OFFSET(rngPSA.Samples.Costs, 0, ($D15-1)*6+2), _xlpm.mean, AVERAGE(_xlpm.arrInc), _xlpm.lo, PERCENTILE(_xlpm.arrInc, 0.025), _xlpm.hi, PERCENTILE(_xlpm.arrInc, 0.975), _fnSTR.CI(_xlpm.mean, _xlpm.lo, _xlpm.hi, "#,##0;−#,##0", , , CHAR(10), , "")) -> −1,719 (−3,042 to −626)
D16: =D15+1 -> 11 | E16: =INDEX(lstQs,D16) -> Expected harm in England: total | F16: =_xlfn.LET(_xlpm.arrInc, OFFSET(rngPSA.Samples.Costs, 0, ($D16-1)*6)-OFFSET(rngPSA.Samples.Costs, 0, ($D16-1)*6+2), _xlpm.mean, AVERAGE(_xlpm.arrInc), _xlpm.lo, PERCENTILE(_xlpm.arrInc, 0.025), _xlpm.hi, PERCENTILE(_xlpm.arrInc, 0.975), _fnSTR.CI(_xlpm.mean, _xlpm.lo, _xlpm.hi, "£0,,.00" & CHAR(34) & "m" & CHAR(34) & ";−£0,,.00" & CHAR(34) & "m" & CHAR(34), , , CHAR(10), , "")) -> £31.20m (£10.20m to £68.55m) | G16: =_xlfn.LET(_xlpm.arrInc, OFFSET(rngPSA.Samples.QALYs, 0, ($D16-1)*6)-OFFSET(rngPSA.Samples.Costs, 0, ($D16-1)*6+2), _xlpm.mean, AVERAGE(_xlpm.arrInc), _xlpm.lo, PERCENTILE(_xlpm.arrInc, 0.025), _xlpm.hi, PERCENTILE(_xlpm.arrInc, 0.975), _fnSTR.CI(_xlpm.mean, _xlpm.lo, _xlpm.hi, "#,##0;−#,##0", , , CHAR(10), , "")) -> −6,175 (−8,502 to −4,299)
F19: Deaths | G19: Symptomatic ulcers | H19: Serious gastrointestinal events | I19: Strokes | J19: Acute exacerbations of heart failure | K19: Acute kidney injuries
E22: NSAID in older people without gastroprotection | F22: =Parameters!M1138:M1143 -> 65 | G22: =Parameters!M1152:M1157 -> 1,306 | H22: =Parameters!M1159:M1164 -> 356 | I22: =Parameters!M1166:M1171 -> 0 | J22: =Parameters!M1173:M1178 -> 0 | K22: =Parameters!M1180:M1185 -> 0
E23: NSAID with previous peptic ulcer without gastroprotection | F23: 1 | G23: 85 | H23: 23 | I23: 0 | J23: 0 | K23: 0
E24: NSAID with oral anticoagulant | F24: 240 | G24: 91 | H24: 1,541 | I24: 1,717 | J24: 0 | K24: 0
E25: NSAID with heart failure | F25: 24 | G25: 0 | H25: 0 | I25: 0 | J25: 6,748 | K25: 0
E26: NSAID with chronic kidney disease | F26: 405 | G26: 0 | H26: 0 | I26: 0 | J26: 0 | K26: 3,271
E27: =Parameters!L1164 -> Total | F27: 736 | G27: 1,483 | H27: 1,920 | I27: 1,717 | J27: 6,748 | K27: 3,271

Sheet Results.D+P
E1: =zWorkbookTitle -> Camacho et al. (2024) Harms of hazardous prescribing of NSAIDs
F2: 1 | G2: 2 | H2: 1 | I2: 2 | L2: 1 | M2: 2
F3: Costs generated per patient (£) | H3: QALYs generated per patient | J3: Net | L3: Expected deaths
F4: HPE | G4: no HPE | H4: HPE | I4: no HPE | J4: Cost (£) | K4: QALY | L4: HPE | M4: no HPE | N4: Net
D5: 1 | E5: =INDEX(lstQs, D6) -> A: No gastroprotection - NSAIDs in people >65
D6: 1 | E6: Determ | F6: =SUMIFS('Results.Determ'!$Y$9:$Y$99, 'Results.Determ'!$W$9:$W$99, F$2, 'Results.Determ'!$D$9:$D$99, $D6) -> £256 | G6: =SUMIFS('Results.Determ'!$Y$9:$Y$99, 'Results.Determ'!$W$9:$W$99, G$2, 'Results.Determ'!$D$9:$D$99, $D6) -> £232 | H6: =SUMIFS('Results.Determ'!$Z$9:$Z$99, 'Results.Determ'!$W$9:$W$99, F$2, 'Results.Determ'!$D$9:$D$99, $D6) -> 5.837 | I6: =SUMIFS('Results.Determ'!$Z$9:$Z$99, 'Results.Determ'!$W$9:$W$99, G$2, 'Results.Determ'!$D$9:$D$99, $D6) -> 5.853 | J6: =F6-G6 -> £24 | K6: =H6-I6 -> −0.017 | L6: =SUMIFS('Results.Determ'!$AB$9:$AB$99, 'Results.Determ'!$W$9:$W$99, L$2, 'Results.Determ'!$D$9:$D$99, $D6) -> 0.232 | M6: =SUMIFS('Results.Determ'!$AB$9:$AB$99, 'Results.Determ'!$W$9:$W$99, M$2, 'Results.Determ'!$D$9:$D$99, $D6) -> 0.232 | N6: =L6-M6 -> 0.001
D7: 1 | E7: Prob | F7: =TEXT(OFFSET('Results.Prob'!$AI$9, ($D7-1)*3+(F$2-1), 0), "£#,##0;−£#,##0") & CHAR(10) & OFFSET('Results.Prob'!$AJ$9, ($D7-1)*3+(F$2-1), 0) -> £258 (£197 to £339) | G7: =TEXT(OFFSET('Results.Prob'!$AI$9, ($D7-1)*3+(G$2-1), 0), "£#,##0;−£#,##0") & CHAR(10) & OFFSET('Results.Prob'!$AJ$9, ($D7-1)*3+(G$2-1), 0) -> £235 (£174 to £316) | H7: =TEXT(OFFSET('Results.Prob'!$AK$9, ($D7-1)*3+(H$2-1), 0), "0.000;−0.000") & CHAR(10) & OFFSET('Results.Prob'!$AL$9, ($D7-1)*3+(H$2-1), 0) -> 5.835 (5.761 to 5.910) | I7: =TEXT(OFFSET('Results.Prob'!$AK$9, ($D7-1)*3+(I$2-1), 0), "0.000;−0.000") & CHAR(10) & OFFSET('Results.Prob'!$AL$9, ($D7-1)*3+(I$2-1), 0) -> 5.852 (5.777 to 5.926) | J7: =IF('Results.Prob'!W9="-", TEXT('Results.Prob'!W10, "£#,##0;−£#,##0") & CHAR(10) & 'Results.Prob'!X10, TEXT('Results.Prob'!W9, "£#,##0;−£#,##0") & CHAR(10) & 'Results.Prob'!X9) -> £24 (£7 to £44) | K7: =IF('Results.Prob'!Y9="-", TEXT('Results.Prob'!Y10, "0.000;−0.000") & CHAR(10) & 'Results.Prob'!Z10, TEXT('Results.Prob'!Y9, "0.000;−0.000") & CHAR(10) & 'Results.Prob'!Z9) -> −0.017 (−0.021 to −0.012)
D8: =D5+1 -> 2 | E8: =INDEX(lstQs, D9) -> B: No gastroprotection - NSAIDs in people with ulcer history
D9: =D8 -> 2 | E9: Determ | F9: =SUMIFS('Results.Determ'!$Y$9:$Y$99, 'Results.Determ'!$W$9:$W$99, F$2, 'Results.Determ'!$D$9:$D$99, $D9) -> £274 | G9: =SUMIFS('Results.Determ'!$Y$9:$Y$99, 'Results.Determ'!$W$9:$W$99, G$2, 'Results.Determ'!$D$9:$D$99, $D9) -> £250 | H9: =SUMIFS('Results.Determ'!$Z$9:$Z$99, 'Results.Determ'!$W$9:$W$99, F$2, 'Results.Determ'!$D$9:$D$99, $D9) -> 6.701 | I9: =SUMIFS('Results.Determ'!$Z$9:$Z$99, 'Results.Determ'!$W$9:$W$99, G$2, 'Results.Determ'!$D$9:$D$99, $D9) -> 6.715 | J9: =F9-G9 -> £24 | K9: =H9-I9 -> −0.015 | L9: =SUMIFS('Results.Determ'!$AB$9:$AB$99, 'Results.Determ'!$W$9:$W$99, L$2, 'Results.Determ'!$D$9:$D$99, $D9) -> 0.061 | M9: =SUMIFS('Results.Determ'!$AB$9:$AB$99, 'Results.Determ'!$W$9:$W$99, M$2, 'Results.Determ'!$D$9:$D$99, $D9) -> 0.061 | N9: =L9-M9 -> 0.000
D10: =D9 -> 2 | E10: Prob | F10: =TEXT(OFFSET('Results.Prob'!$AI$9, ($D10-1)*3+(F$2-1), 0), "£#,##0;−£#,##0") & CHAR(10) & OFFSET('Results.Prob'!$AJ$9, ($D10-1)*3+(F$2-1), 0) -> £277 (£211 to £365) | G10: =TEXT(OFFSET('Results.Prob'!$AI$9, ($D10-1)*3+(G$2-1), 0), "£#,##0;−£#,##0") & CHAR(10) & OFFSET('Results.Prob'!$AJ$9, ($D10-1)*3+(G$2-1), 0) -> £253 (£188 to £340) | H10: =TEXT(OFFSET('Results.Prob'!$AK$9, ($D10-1)*3+(H$2-1), 0), "0.000;−0.000") & CHAR(10) & OFFSET('Results.Prob'!$AL$9, ($D10-1)*3+(H$2-1), 0) -> 6.702 (6.633 to 6.768) | I10: =TEXT(OFFSET('Results.Prob'!$AK$9, ($D10-1)*3+(I$2-1), 0), "0.000;−0.000") & CHAR(10) & OFFSET('Results.Prob'!$AL$9, ($D10-1)*3+(I$2-1), 0) -> 6.716 (6.645 to 6.784) | J10: =IF('Results.Prob'!W12="-", TEXT('Results.Prob'!W13, "£#,##0;−£#,##0") & CHAR(10) & 'Results.Prob'!X13, TEXT('Results.Prob'!W12, "£#,##0;−£#,##0") & CHAR(10) & 'Results.Prob'!X12) -> £24 (£7 to £45) | K10: =IF('Results.Prob'!Y12="-", TEXT('Results.Prob'!Y13, "0.000;−0.000") & CHAR(10) & 'Results.Prob'!Z13, TEXT('Results.Prob'!Y12, "0.000;−0.000") & CHAR(10) & 'Results.Prob'!Z12) -> −0.015 (−0.019 to −0.010)
D11: =D8+1 -> 3 | E11: =INDEX(lstQs, D12) -> C: NSAIDs - DOAC/warfarin
D12: =D11 -> 3 | E12: Determ | F12: =SUMIFS('Results.Determ'!$Y$9:$Y$99, 'Results.Determ'!$W$9:$W$99, F$2, 'Results.Determ'!$D$9:$D$99, $D12) -> £2,443 | G12: =SUMIFS('Results.Determ'!$Y$9:$Y$99, 'Results.Determ'!$W$9:$W$99, G$2, 'Results.Determ'!$D$9:$D$99, $D12) -> £1,423 | H12: =SUMIFS('Results.Determ'!$Z$9:$Z$99, 'Results.Determ'!$W$9:$W$99, F$2, 'Results.Determ'!$D$9:$D$99, $D12) -> 4.820 | I12: =SUMIFS('Results.Determ'!$Z$9:$Z$99, 'Results.Determ'!$W$9:$W$99, G$2, 'Results.Determ'!$D$9:$D$99, $D12) -> 4.906 | J12: =F12-G12 -> £1,020 | K12: =H12-I12 -> −0.087 | L12: =SUMIFS('Results.Determ'!$AB$9:$AB$99, 'Results.Determ'!$W$9:$W$99, L$2, 'Results.Determ'!$D$9:$D$99, $D12) -> 0.492 | M12: =SUMIFS('Results.Determ'!$AB$9:$AB$99, 'Results.Determ'!$W$9:$W$99, M$2, 'Results.Determ'!$D$9:$D$99, $D12) -> 0.482 | N12: =L12-M12 -> 0.010
D13: =D12 -> 3 | E13: Prob | F13: =TEXT(OFFSET('Results.Prob'!$AI$9, ($D13-1)*3+(F$2-1), 0), "£#,##0;−£#,##0") & CHAR(10) & OFFSET('Results.Prob'!$AJ$9, ($D13-1)*3+(F$2-1), 0) -> £2,520 (£1,427 to £4,285) | G13: =TEXT(OFFSET('Results.Prob'!$AI$9, ($D13-1)*3+(G$2-1), 0), "£#,##0;−£#,##0") & CHAR(10) & OFFSET('Results.Prob'!$AJ$9, ($D13-1)*3+(G$2-1), 0) -> £1,432 (£1,002 to £1,960) | H13: =TEXT(OFFSET('Results.Prob'!$AK$9, ($D13-1)*3+(H$2-1), 0), "0.000;−0.000") & CHAR(10) & OFFSET('Results.Prob'!$AL$9, ($D13-1)*3+(H$2-1), 0) -> 4.813 (4.605 to 5.020) | I13: =TEXT(OFFSET('Results.Prob'!$AK$9, ($D13-1)*3+(I$2-1), 0), "0.000;−0.000") & CHAR(10) & OFFSET('Results.Prob'!$AL$9, ($D13-1)*3+(I$2-1), 0) -> 4.906 (4.710 to 5.105) | J13: =IF('Results.Prob'!W15="-", TEXT('Results.Prob'!W16, "£#,##0;−£#,##0") & CHAR(10) & 'Results.Prob'!X16, TEXT('Results.Prob'!W15, "£#,##0;−£#,##0") & CHAR(10) & 'Results.Prob'!X15) -> £1,087 (£246 to £2,571) | K13: =IF('Results.Prob'!Y15="-", TEXT('Results.Prob'!Y16, "0.000;−0.000") & CHAR(10) & 'Results.Prob'!Z16, TEXT('Results.Prob'!Y15, "0.000;−0.000") & CHAR(10) & 'Results.Prob'!Z15) -> −0.092 (−0.175 to −0.037)
D14: =D11+1 -> 4 | E14: =INDEX(lstQs, D15) -> D: NSAIDs - HF
D15: =D14 -> 4 | E15: Determ | F15: =SUMIFS('Results.Determ'!$Y$9:$Y$99, 'Results.Determ'!$W$9:$W$99, F$2, 'Results.Determ'!$D$9:$D$99, $D15) -> £12,596 | G15: =SUMIFS('Results.Determ'!$Y$9:$Y$99, 'Results.Determ'!$W$9:$W$99, G$2, 'Results.Determ'!$D$9:$D$99, $D15) -> £12,581 | H15: =SUMIFS('Results.Determ'!$Z$9:$Z$99, 'Results.Determ'!$W$9:$W$99, F$2, 'Results.Determ'!$D$9:$D$99, $D15) -> 3.003 | I15: =SUMIFS('Results.Determ'!$Z$9:$Z$99, 'Results.Determ'!$W$9:$W$99, G$2, 'Results.Determ'!$D$9:$D$99, $D15) -> 3.048 | J15: =F15-G15 -> £16 | K15: =H15-I15 -> −0.046 | L15: =SUMIFS('Results.Determ'!$AB$9:$AB$99, 'Results.Determ'!$W$9:$W$99, L$2, 'Results.Determ'!$D$9:$D$99, $D15) -> 0.824 | M15: =SUMIFS('Results.Determ'!$AB$9:$AB$99, 'Results.Determ'!$W$9:$W$99, M$2, 'Results.Determ'!$D$9:$D$99, $D15) -> 0.822 | N15: =L15-M15 -> 0.003
D16: =D15 -> 4 | E16: Prob | F16: =TEXT(OFFSET('Results.Prob'!$AI$9, ($D16-1)*3+(F$2-1), 0), "£#,##0;−£#,##0") & CHAR(10) & OFFSET('Results.Prob'!$AJ$9, ($D16-1)*3+(F$2-1), 0) -> £12,597 (£8,264 to £17,706) | G16: =TEXT(OFFSET('Results.Prob'!$AI$9, ($D16-1)*3+(G$2-1), 0), "£#,##0;−£#,##0") & CHAR(10) & OFFSET('Results.Prob'!$AJ$9, ($D16-1)*3+(G$2-1), 0) -> £12,585 (£8,258 to £17,664) | H16: =TEXT(OFFSET('Results.Prob'!$AK$9, ($D16-1)*3+(H$2-1), 0), "0.000;−0.000") & CHAR(10) & OFFSET('Results.Prob'!$AL$9, ($D16-1)*3+(H$2-1), 0) -> 3.003 (2.795 to 3.204) | I16: =TEXT(OFFSET('Results.Prob'!$AK$9, ($D16-1)*3+(I$2-1), 0), "0.000;−0.000") & CHAR(10) & OFFSET('Results.Prob'!$AL$9, ($D16-1)*3+(I$2-1), 0) -> 3.050 (2.840 to 3.252) | J16: =IF('Results.Prob'!W18="-", TEXT('Results.Prob'!W19, "£#,##0;−£#,##0") & CHAR(10) & 'Results.Prob'!X19, TEXT('Results.Prob'!W18, "£#,##0;−£#,##0") & CHAR(10) & 'Results.Prob'!X18) -> £12 (−£73 to £96) | K16: =IF('Results.Prob'!Y18="-", TEXT('Results.Prob'!Y19, "0.000;−0.000") & CHAR(10) & 'Results.Prob'!Z19, TEXT('Results.Prob'!Y18, "0.000;−0.000") & CHAR(10) & 'Results.Prob'!Z18) -> −0.047 (−0.072 to −0.027)
D17: =D14+1 -> 5 | E17: =INDEX(lstQs, D18) -> E: NSAIDs - CKD
D18: =D17 -> 5 | E18: Determ | F18: =SUMIFS('Results.Determ'!$Y$9:$Y$99, 'Results.Determ'!$W$9:$W$99, F$2, 'Results.Determ'!$D$9:$D$99, $D18) -> £50,216 | G18: =SUMIFS('Results.Determ'!$Y$9:$Y$99, 'Results.Determ'!$W$9:$W$99, G$2, 'Results.Determ'!$D$9:$D$99, $D18) -> £50,005 | H18: =SUMIFS('Results.Determ'!$Z$9:$Z$99, 'Results.Determ'!$W$9:$W$99, F$2, 'Results.Determ'!$D$9:$D$99, $D18) -> 4.527 | I18: =SUMIFS('Results.Determ'!$Z$9:$Z$99, 'Results.Determ'!$W$9:$W$99, G$2, 'Results.Determ'!$D$9:$D$99, $D18) -> 4.637 | J18: =F18-G18 -> £210 | K18: =H18-I18 -> −0.110 | L18: =SUMIFS('Results.Determ'!$AB$9:$AB$99, 'Results.Determ'!$W$9:$W$99, L$2, 'Results.Determ'!$D$9:$D$99, $D18) -> 0.501 | M18: =SUMIFS('Results.Determ'!$AB$9:$AB$99, 'Results.Determ'!$W$9:$W$99, M$2, 'Results.Determ'!$D$9:$D$99, $D18) -> 0.475 | N18: =L18-M18 -> 0.026
D19: =D18 -> 5 | E19: Prob | F19: =TEXT(OFFSET('Results.Prob'!$AI$9, ($D19-1)*3+(F$2-1), 0), "£#,##0;−£#,##0") & CHAR(10) & OFFSET('Results.Prob'!$AJ$9, ($D19-1)*3+(F$2-1), 0) -> £50,259 (£48,440 to £52,251) | G19: =TEXT(OFFSET('Results.Prob'!$AI$9, ($D19-1)*3+(G$2-1), 0), "£#,##0;−£#,##0") & CHAR(10) & OFFSET('Results.Prob'!$AJ$9, ($D19-1)*3+(G$2-1), 0) -> £50,056 (£48,267 to £51,902) | H19: =TEXT(OFFSET('Results.Prob'!$AK$9, ($D19-1)*3+(H$2-1), 0), "0.000;−0.000") & CHAR(10) & OFFSET('Results.Prob'!$AL$9, ($D19-1)*3+(H$2-1), 0) -> 4.524 (3.849 to 5.055) | I19: =TEXT(OFFSET('Results.Prob'!$AK$9, ($D19-1)*3+(I$2-1), 0), "0.000;−0.000") & CHAR(10) & OFFSET('Results.Prob'!$AL$9, ($D19-1)*3+(I$2-1), 0) -> 4.633 (3.930 to 5.180) | J19: =IF('Results.Prob'!W21="-", TEXT('Results.Prob'!W22, "£#,##0;−£#,##0") & CHAR(10) & 'Results.Prob'!X22, TEXT('Results.Prob'!W21, "£#,##0;−£#,##0") & CHAR(10) & 'Results.Prob'!X21) -> £202 (−£149 to £710) | K19: =IF('Results.Prob'!Y21="-", TEXT('Results.Prob'!Y22, "0.000;−0.000") & CHAR(10) & 'Results.Prob'!Z22, TEXT('Results.Prob'!Y21, "0.000;−0.000") & CHAR(10) & 'Results.Prob'!Z21) -> −0.109 (−0.197 to −0.040)
D20: =D17+1 -> 6 | E20: =INDEX(lstQs, D21) -> Expected harm in England: query A
D21: =D20 -> 6 | E21: Determ | J21: =SUMIFS('Results.Determ'!$Y$9:$Y$99, 'Results.Determ'!$W$9:$W$99, F$2, 'Results.Determ'!$D$9:$D$99, $D21) -> £2,559,187 | K21: =SUMIFS('Results.Determ'!$Z$9:$Z$99, 'Results.Determ'!$W$9:$W$99, F$2, 'Results.Determ'!$D$9:$D$99, $D21) -> −1801.312
D22: =D21 -> 6 | E22: Prob | J22: =IF('Results.Prob'!W24="-", TEXT('Results.Prob'!W25, "£#,##0;−£#,##0") & CHAR(10) & 'Results.Prob'!X25, TEXT('Results.Prob'!W24, "£#,##0;−£#,##0") & CHAR(10) & 'Results.Prob'!X24) -> £2,535,968 (£717,761 to £4,664,682) | K22: =IF('Results.Prob'!Y24="-", TEXT('Results.Prob'!Y25, "0.000;−0.000") & CHAR(10) & 'Results.Prob'!Z25, TEXT('Results.Prob'!Y24, "0.000;−0.000") & CHAR(10) & 'Results.Prob'!Z24) -> −1801.307 (−2306.289 to −1314.913)
D23: =D20+1 -> 7 | E23: =INDEX(lstQs, D24) -> Expected harm in England: query B
D24: =D23 -> 7 | E24: Determ | J24: =SUMIFS('Results.Determ'!$Y$9:$Y$99, 'Results.Determ'!$W$9:$W$99, F$2, 'Results.Determ'!$D$9:$D$99, $D24) -> £167,486 | K24: =SUMIFS('Results.Determ'!$Z$9:$Z$99, 'Results.Determ'!$W$9:$W$99, F$2, 'Results.Determ'!$D$9:$D$99, $D24) -> −99.933
D25: =D24 -> 7 | E25: Prob | J25: =IF('Results.Prob'!W27="-", TEXT('Results.Prob'!W28, "£#,##0;−£#,##0") & CHAR(10) & 'Results.Prob'!X28, TEXT('Results.Prob'!W27, "£#,##0;−£#,##0") & CHAR(10) & 'Results.Prob'!X27) -> £165,937 (£46,395 to £303,902) | K25: =IF('Results.Prob'!Y27="-", TEXT('Results.Prob'!Y28, "0.000;−0.000") & CHAR(10) & 'Results.Prob'!Z28, TEXT('Results.Prob'!Y27, "0.000;−0.000") & CHAR(10) & 'Results.Prob'!Z27) -> −99.913 (−134.567 to −67.917)
D26: =D23+1 -> 8 | E26: =INDEX(lstQs, D27) -> Expected harm in England: query C
D27: =D26 -> 8 | E27: Determ | J27: =SUMIFS('Results.Determ'!$Y$9:$Y$99, 'Results.Determ'!$W$9:$W$99, F$2, 'Results.Determ'!$D$9:$D$99, $D27) -> £23,614,362 | K27: =SUMIFS('Results.Determ'!$Z$9:$Z$99, 'Results.Determ'!$W$9:$W$99, F$2, 'Results.Determ'!$D$9:$D$99, $D27) -> −2007.848
D28: =D27 -> 8 | E28: Prob | J28: =IF('Results.Prob'!W30="-", TEXT('Results.Prob'!W31, "£#,##0;−£#,##0") & CHAR(10) & 'Results.Prob'!X31, TEXT('Results.Prob'!W30, "£#,##0;−£#,##0") & CHAR(10) & 'Results.Prob'!X30) -> £25,192,401 (£5,712,183 to £59,553,312) | K28: =IF('Results.Prob'!Y30="-", TEXT('Results.Prob'!Y31, "0.000;−0.000") & CHAR(10) & 'Results.Prob'!Z31, TEXT('Results.Prob'!Y30, "0.000;−0.000") & CHAR(10) & 'Results.Prob'!Z30) -> −2137.133 (−4069.808 to −839.163)
D29: =D26+1 -> 9 | E29: =INDEX(lstQs, D30) -> Expected harm in England: query D
D30: =D29 -> 9 | E30: Determ | J30: =SUMIFS('Results.Determ'!$Y$9:$Y$99, 'Results.Determ'!$W$9:$W$99, F$2, 'Results.Determ'!$D$9:$D$99, $D30) -> £139,201 | K30: =SUMIFS('Results.Determ'!$Z$9:$Z$99, 'Results.Determ'!$W$9:$W$99, F$2, 'Results.Determ'!$D$9:$D$99, $D30) -> −408.751
D31: =D30 -> 9 | E31: Prob | J31: =IF('Results.Prob'!W33="-", TEXT('Results.Prob'!W34, "£#,##0;−£#,##0") & CHAR(10) & 'Results.Prob'!X34, TEXT('Results.Prob'!W33, "£#,##0;−£#,##0") & CHAR(10) & 'Results.Prob'!X33) -> £107,167 (−£657,488 to £869,546) | K31: =IF('Results.Prob'!Y33="-", TEXT('Results.Prob'!Y34, "0.000;−0.000") & CHAR(10) & 'Results.Prob'!Z34, TEXT('Results.Prob'!Y33, "0.000;−0.000") & CHAR(10) & 'Results.Prob'!Z33) -> −417.198 (−637.129 to −247.964)
D32: =D29+1 -> 10 | E32: =INDEX(lstQs, D33) -> Expected harm in England: query E
D33: =D32 -> 10 | E33: Determ | J33: =SUMIFS('Results.Determ'!$Y$9:$Y$99, 'Results.Determ'!$W$9:$W$99, F$2, 'Results.Determ'!$D$9:$D$99, $D33) -> £3,324,171 | K33: =SUMIFS('Results.Determ'!$Z$9:$Z$99, 'Results.Determ'!$W$9:$W$99, F$2, 'Results.Determ'!$D$9:$D$99, $D33) -> −1733.124
D34: =D33 -> 10 | E34: Prob | J34: =IF('Results.Prob'!W36="-", TEXT('Results.Prob'!W37, "£#,##0;−£#,##0") & CHAR(10) & 'Results.Prob'!X37, TEXT('Results.Prob'!W36, "£#,##0;−£#,##0") & CHAR(10) & 'Results.Prob'!X36) -> £3,196,029 (−£2,367,560 to £11,300,980) | K34: =IF('Results.Prob'!Y36="-", TEXT('Results.Prob'!Y37, "0.000;−0.000") & CHAR(10) & 'Results.Prob'!Z37, TEXT('Results.Prob'!Y36, "0.000;−0.000") & CHAR(10) & 'Results.Prob'!Z36) -> −1719.009 (−3041.784 to −626.271)
D35: =D32+1 -> 11 | E35: =INDEX(lstQs, D36) -> Expected harm in England: total
D36: =D35 -> 11 | E36: Determ | J36: =SUMIFS('Results.Determ'!$Y$9:$Y$99, 'Results.Determ'!$W$9:$W$99, F$2, 'Results.Determ'!$D$9:$D$99, $D36) -> £29,804,408 | K36: =SUMIFS('Results.Determ'!$Z$9:$Z$99, 'Results.Determ'!$W$9:$W$99, F$2, 'Results.Determ'!$D$9:$D$99, $D36) -> −6050.968
D37: =D36 -> 11 | E37: Prob | J37: =IF('Results.Prob'!W39="-", TEXT('Results.Prob'!W40, "£#,##0;−£#,##0") & CHAR(10) & 'Results.Prob'!X40, TEXT('Results.Prob'!W39, "£#,##0;−£#,##0") & CHAR(10) & 'Results.Prob'!X39) -> £31,197,502 (£10,200,387 to £68,554,942) | K37: =IF('Results.Prob'!Y39="-", TEXT('Results.Prob'!Y40, "0.000;−0.000") & CHAR(10) & 'Results.Prob'!Z40, TEXT('Results.Prob'!Y39, "0.000;−0.000") & CHAR(10) & 'Results.Prob'!Z39) -> −6174.559 (−8501.587 to −4299.196)
E45: A | F45: =F6 -> £256 | G45: =G6 -> £232 | H45: =J6 -> £24 | I45: =H6 -> 5.837 | J45: =I6 -> 5.853 | K45: =K6 -> −0.017
E46: B | F46: =F9 -> £274 | G46: =G9 -> £250 | H46: =J9 -> £24 | I46: =H9 -> 6.701 | J46: =I9 -> 6.715 | K46: =K9 -> −0.015
E47: D | F47: =F12 -> £2,443 | G47: =G12 -> £1,423 | H47: =J12 -> £1,020 | I47: =H12 -> 4.820 | J47: =I12 -> 4.906 | K47: =K12 -> −0.087
E48: I | F48: =F15 -> £12,596 | G48: =G15 -> £12,581 | H48: =J15 -> £16 | I48: =H15 -> 3.003 | J48: =I15 -> 3.048 | K48: =K15 -> −0.046
E49: K | F49: =F18 -> £50,216 | G49: =G18 -> £50,005 | H49: =J18 -> £210 | I49: =H18 -> 4.527 | J49: =I18 -> 4.637 | K49: =K18 -> −0.110

Sheet Results.Determ
E1: =zWorkbookTitle -> Camacho et al. (2024) Harms of hazardous prescribing of NSAIDs
D2: =COUNTIFS(K.rngShowResults, TRUE, OFFSET(#REF!, 0, 0, K.numStrats), ">0", OFFSET(#REF!, 0, 0, K.numStrats), ">0") -> 
F3: Deterministic
F4: Cohort ID | G4: Name | H4: Absolute | M4: Fully incremental analysis | Q4: Pairwise comparison | W4: Raw, unsorted results
H5: Costs | I5: QALYs | J5: Net health benefit | Q5: Compared with: | R5: No HPE | W5: # | X5: Strategy name | Y5: Costs | Z5: QALYs | AA5: LYs | AB5: Deaths | AC5: GI pain | AD5: Ulcer | AE5: Serious GI event | AF5: Stroke | AG5: HF exacerbations | AH5: AKI | AI5: RRT
J6: @£20K/QALY | K6: @£30K/QALY | M6: Costs | N6: QALYs | O6: ICER | Q6: Costs | R6: QALYs | S6: Incremental NHB | U6: ICER
S7: @£20K/QALY | T7: @£30K/QALY
D8: 1 | F8: =INDEX(lstQs, D9) -> A: No gastroprotection - NSAIDs in people >65
D9: 1 | F9: =MATCH(SMALL(Y9:Y10, W9), Y9:Y10, 0) -> 2 | G9: =INDEX(rngStrats, F9) -> No HPE | H9: =IFERROR(INDEX(Y9:Y10, F9), "") -> £232 | I9: =IFERROR(INDEX(Z9:Z10, F9), "") -> 5.853 | J9: =IF(F9="", "", I9-H9/J$6) -> 5.842 | K9: =IF(G9="", "", I9-H9/K$6) -> 5.846 | M9: =IF($W9=1, "", H9-H8) ->  | N9: =IF($W9=1, "", I9-I8) ->  | O9: =IF($W9=1, "", IF(AND(M9>0, N9<0), "dominated", M9/N9)) ->  | Q9: =IF(F9="", "", IF(F9=swtchResults.Baseline, "-", H9-_xlfn.SINGLE(INDEX(Y9:Y10, swtchResults.Baseline)))) -> - | R9: =IF(F9="", "", IF(F9=swtchResults.Baseline, "-", I9-_xlfn.SINGLE(INDEX(Z9:Z10, swtchResults.Baseline)))) -> - | S9: =IF(F9="", "", IF(F9=swtchResults.Baseline, "-", R9-Q9/S$7)) -> - | T9: =IF(F9="", "", IF(F9=swtchResults.Baseline, "-", R9-Q9/T$7)) -> - | U9: =IF(F9="", "", IF(F9=swtchResults.Baseline, "ref", IF(AND(Q9<=0, R9>0), "dominant", IF(AND(Q9>0, R9<0), "dominated", Q9/R9)))) -> ref | W9: 1 | X9: =INDEX(rngStrats, W9) -> HPE | Y9: =IFERROR(OFFSET(AB.Trace.MarkovQA.TotalDCosts.Root, 0, ('Results.Determ'!W9-1)*AB.Trace.CostsQA.NumCols), "") -> £255.59 | Z9: =IFERROR(OFFSET(AB.Trace.MarkovQA.TotalDQALYs.Root, 0, ('Results.Determ'!W9-1)*AB.Trace.QALYsQA.NumCols), "") -> 5.837 | AA9: =IFERROR(OFFSET(AB.Trace.MarkovQA.TotalLYs.Root, 0, ('Results.Determ'!W9-1)*AB.Trace.MarkovQA.NumCols), "") -> 8.977 | AB9: =IFERROR(OFFSET(AB.Trace.Markov.DeathProb.Root, 0, ('Results.Determ'!W9-1)*AB.Trace.MarkovQA.NumCols), "") -> 0.232 | AC9: =IFERROR(OFFSET(A.Markov!$J$4, 0, ('Results.Determ'!$W9-1)*AB.Trace.MarkovQA.NumCols), "") -> 2.278 | AD9: =IFERROR(OFFSET(A.Markov!$L$4, 0, ('Results.Determ'!$W9-1)*AB.Trace.MarkovQA.NumCols), "") -> 0.038 | AE9: =IFERROR(OFFSET(A.Markov!$N$4, 0, ('Results.Determ'!$W9-1)*AB.Trace.MarkovQA.NumCols), "") -> 0.013
D10: 1 | F10: =MATCH(SMALL(Y9:Y10, W10), Y9:Y10, 0) -> 1 | G10: =INDEX(rngStrats, F10) -> HPE | H10: =IFERROR(INDEX(Y9:Y10, F10), "") -> £256 | I10: =IFERROR(INDEX(Z9:Z10, F10), "") -> 5.837 | J10: =IF(F10="", "", I10-H10/J$6) -> 5.824 | K10: =IF(G10="", "", I10-H10/K$6) -> 5.828 | M10: =IF($W10=1, "", H10-H9) -> £24 | N10: =IF($W10=1, "", I10-I9) -> -0.017 | O10: =IF($W10=1, "", IF(AND(M10>0, N10<0), "dominated", M10/N10)) -> dominated | Q10: =IF(F10="", "", IF(F10=swtchResults.Baseline, "-", H10-_xlfn.SINGLE(INDEX(Y9:Y10, swtchResults.Baseline)))) -> £24 | R10: =IF(F10="", "", IF(F10=swtchResults.Baseline, "-", I10-_xlfn.SINGLE(INDEX(Z9:Z10, swtchResults.Baseline)))) -> -0.017 | S10: =IF(F10="", "", IF(F10=swtchResults.Baseline, "-", R10-Q10/S$7)) -> -0.018 | T10: =IF(F10="", "", IF(F10=swtchResults.Baseline, "-", R10-Q10/T$7)) -> -0.018 | U10: =IF(F10="", "", IF(F10=swtchResults.Baseline, "ref", IF(AND(Q10<=0, R10>0), "dominant", IF(AND(Q10>0, R10<0), "dominated", Q10/R10)))) -> dominated | W10: =W9+1 -> 2 | X10: =INDEX(rngStrats, W10) -> No HPE | Y10: =IFERROR(OFFSET(AB.Trace.MarkovQA.TotalDCosts.Root, 0, ('Results.Determ'!W10-1)*AB.Trace.CostsQA.NumCols), "") -> £231.78 | Z10: =IFERROR(OFFSET(AB.Trace.MarkovQA.TotalDQALYs.Root, 0, ('Results.Determ'!W10-1)*AB.Trace.QALYsQA.NumCols), "") -> 5.853 | AA10: =IFERROR(OFFSET(AB.Trace.MarkovQA.TotalLYs.Root, 0, ('Results.Determ'!W10-1)*AB.Trace.MarkovQA.NumCols), "") -> 8.983 | AB10: =IFERROR(OFFSET(AB.Trace.Markov.DeathProb.Root, 0, ('Results.Determ'!W10-1)*AB.Trace.MarkovQA.NumCols), "") -> 0.232 | AC10: =IFERROR(OFFSET(A.Markov!$J$4, 0, ('Results.Determ'!$W10-1)*AB.Trace.MarkovQA.NumCols), "") -> 1.690 | AD10: =IFERROR(OFFSET(A.Markov!$L$4, 0, ('Results.Determ'!$W10-1)*AB.Trace.MarkovQA.NumCols), "") -> 0.026 | AE10: =IFERROR(OFFSET(A.Markov!$N$4, 0, ('Results.Determ'!$W10-1)*AB.Trace.MarkovQA.NumCols), "") -> 0.010
D11: =D8+1 -> 2 | F11: =INDEX(lstQs, D12) -> B: No gastroprotection - NSAIDs in people with ulcer history
D12: 2 | F12: =MATCH(SMALL(Y12:Y13, W12), Y12:Y13, 0) -> 2 | G12: =INDEX(rngStrats, F12) -> No HPE | H12: =IFERROR(INDEX(Y12:Y13, F12), "") -> £250 | I12: =IFERROR(INDEX(Z12:Z13, F12), "") -> 6.715 | J12: =IF(F12="", "", I12-H12/J$6) -> 6.703 | K12: =IF(G12="", "", I12-H12/K$6) -> 6.707 | M12: =IF($W12=1, "", H12-H11) ->  | N12: =IF($W12=1, "", I12-I11) ->  | O12: =IF($W12=1, "", IF(AND(M12>0, N12<0), "dominated", M12/N12)) ->  | Q12: =IF(F12="", "", IF(F12=swtchResults.Baseline, "-", H12-_xlfn.SINGLE(INDEX(Y12:Y13, swtchResults.Baseline)))) -> - | R12: =IF(F12="", "", IF(F12=swtchResults.Baseline, "-", I12-_xlfn.SINGLE(INDEX(Z12:Z13, swtchResults.Baseline)))) -> - | S12: =IF(F12="", "", IF(F12=swtchResults.Baseline, "-", R12-Q12/S$7)) -> - | T12: =IF(F12="", "", IF(F12=swtchResults.Baseline, "-", R12-Q12/T$7)) -> - | U12: =IF(F12="", "", IF(F12=swtchResults.Baseline, "ref", IF(AND(Q12<=0, R12>0), "dominant", IF(AND(Q12>0, R12<0), "dominated", Q12/R12)))) -> ref | W12: 1 | X12: =INDEX(rngStrats, W12) -> HPE | Y12: =IFERROR(OFFSET(AB.Trace.MarkovQB.TotalDCosts.Root, 0, ('Results.Determ'!W12-1)*AB.Trace.CostsQB.NumCols), "") -> £274.29 | Z12: =IFERROR(OFFSET(AB.Trace.MarkovQB.TotalDQALYs.Root, 0, ('Results.Determ'!W12-1)*AB.Trace.QALYsQB.NumCols), "") -> 6.701 | AA12: =IFERROR(OFFSET(AB.Trace.MarkovQB.TotalLYs.Root, 0, ('Results.Determ'!W12-1)*AB.Trace.MarkovQB.NumCols), "") -> 9.732 | AB12: =IFERROR(OFFSET(B.Trace.Markov.DeathProb.Root, 0, ('Results.Determ'!W12-1)*AB.Trace.MarkovQB.NumCols), "") -> 0.061 | AC12: =IFERROR(OFFSET(B.Markov!$J$4, 0, ('Results.Determ'!$W12-1)*AB.Trace.MarkovQB.NumCols), "") -> 2.428 | AD12: =IFERROR(OFFSET(B.Markov!$L$4, 0, ('Results.Determ'!$W12-1)*AB.Trace.MarkovQB.NumCols), "") -> 0.041 | AE12: =IFERROR(OFFSET(B.Markov!$N$4, 0, ('Results.Determ'!$W12-1)*AB.Trace.MarkovQB.NumCols), "") -> 0.014
D13: 2 | F13: =MATCH(SMALL(Y12:Y13, W13), Y12:Y13, 0) -> 1 | G13: =INDEX(rngStrats, F13) -> HPE | H13: =IFERROR(INDEX(Y12:Y13, F13), "") -> £274 | I13: =IFERROR(INDEX(Z12:Z13, F13), "") -> 6.701 | J13: =IF(F13="", "", I13-H13/J$6) -> 6.687 | K13: =IF(G13="", "", I13-H13/K$6) -> 6.691 | M13: =IF($W13=1, "", H13-H12) -> £24 | N13: =IF($W13=1, "", I13-I12) -> -0.015 | O13: =IF($W13=1, "", IF(AND(M13>0, N13<0), "dominated", M13/N13)) -> dominated | Q13: =IF(F13="", "", IF(F13=swtchResults.Baseline, "-", H13-_xlfn.SINGLE(INDEX(Y12:Y13, swtchResults.Baseline)))) -> £24 | R13: =IF(F13="", "", IF(F13=swtchResults.Baseline, "-", I13-_xlfn.SINGLE(INDEX(Z12:Z13, swtchResults.Baseline)))) -> -0.015 | S13: =IF(F13="", "", IF(F13=swtchResults.Baseline, "-", R13-Q13/S$7)) -> -0.016 | T13: =IF(F13="", "", IF(F13=swtchResults.Baseline, "-", R13-Q13/T$7)) -> -0.015 | U13: =IF(F13="", "", IF(F13=swtchResults.Baseline, "ref", IF(AND(Q13<=0, R13>0), "dominant", IF(AND(Q13>0, R13<0), "dominated", Q13/R13)))) -> dominated | W13: =W12+1 -> 2 | X13: =INDEX(rngStrats, W13) -> No HPE | Y13: =IFERROR(OFFSET(AB.Trace.MarkovQB.TotalDCosts.Root, 0, ('Results.Determ'!W13-1)*AB.Trace.CostsQB.NumCols), "") -> £249.90 | Z13: =IFERROR(OFFSET(AB.Trace.MarkovQB.TotalDQALYs.Root, 0, ('Results.Determ'!W13-1)*AB.Trace.QALYsQB.NumCols), "") -> 6.715 | AA13: =IFERROR(OFFSET(AB.Trace.MarkovQB.TotalLYs.Root, 0, ('Results.Determ'!W13-1)*AB.Trace.MarkovQB.NumCols), "") -> 9.734 | AB13: =IFERROR(OFFSET(B.Trace.Markov.DeathProb.Root, 0, ('Results.Determ'!W13-1)*AB.Trace.MarkovQB.NumCols), "") -> 0.061 | AC13: =IFERROR(OFFSET(B.Markov!$J$4, 0, ('Results.Determ'!$W13-1)*AB.Trace.MarkovQB.NumCols), "") -> 1.827 | AD13: =IFERROR(OFFSET(B.Markov!$L$4, 0, ('Results.Determ'!$W13-1)*AB.Trace.MarkovQB.NumCols), "") -> 0.028 | AE13: =IFERROR(OFFSET(B.Markov!$N$4, 0, ('Results.Determ'!$W13-1)*AB.Trace.MarkovQB.NumCols), "") -> 0.011
D14: 3 | F14: =INDEX(lstQs, D15) -> C: NSAIDs - DOAC/warfarin
D15: 3 | F15: =MATCH(SMALL(Y15:Y16, W15), Y15:Y16, 0) -> 2 | G15: =INDEX(rngStrats, F15) -> No HPE | H15: =IFERROR(INDEX(Y15:Y16, F15), "") -> £1,423 | I15: =IFERROR(INDEX(Z15:Z16, F15), "") -> 4.906 | J15: =IF(F15="", "", I15-H15/J$6) -> 4.835 | K15: =IF(G15="", "", I15-H15/K$6) -> 4.859 | M15: =IF($W15=1, "", H15-H14) ->  | N15: =IF($W15=1, "", I15-I14) ->  | O15: =IF($W15=1, "", IF(AND(M15>0, N15<0), "dominated", M15/N15)) ->  | Q15: =IF(F15="", "", IF(F15=swtchResults.Baseline, "-", H15-_xlfn.SINGLE(INDEX(Y15:Y16, swtchResults.Baseline)))) -> - | R15: =IF(F15="", "", IF(F15=swtchResults.Baseline, "-", I15-_xlfn.SINGLE(INDEX(Z15:Z16, swtchResults.Baseline)))) -> - | S15: =IF(F15="", "", IF(F15=swtchResults.Baseline, "-", R15-Q15/S$7)) -> - | T15: =IF(F15="", "", IF(F15=swtchResults.Baseline, "-", R15-Q15/T$7)) -> - | U15: =IF(F15="", "", IF(F15=swtchResults.Baseline, "ref", IF(AND(Q15<=0, R15>0), "dominant", IF(AND(Q15>0, R15<0), "dominated", Q15/R15)))) -> ref | W15: 1 | X15: =INDEX(rngStrats, W15) -> HPE | Y15: =IFERROR(OFFSET(C.Trace.Markov.TotalDCosts.Root, 0, ('Results.Determ'!W15-1)*C.Trace.Costs.NumCols), "") -> £2,443.39 | Z15: =IFERROR(OFFSET(C.Trace.Markov.TotalDQALYs.Root, 0, ('Results.Determ'!W15-1)*C.Trace.QALYs.NumCols), "") -> 4.820 | AA15: =IFERROR(OFFSET(C.Trace.Markov.TotalLYs.Root, 0, ('Results.Determ'!W15-1)*C.Trace.Markov.NumCols), "") -> 7.681 | AB15: =IFERROR(OFFSET(C.Trace.Markov.DeathProb.Root, 0, ('Results.Determ'!W15-1)*C.Trace.Markov.NumCols), "") -> 0.492 | AC15: =IFERROR(OFFSET('C.Markov'!$J$4, 0, ('Results.Determ'!$W15-1)*C.Trace.Markov.NumCols), "") -> 0.359 | AD15: =IFERROR(OFFSET('C.Markov'!$L$4, 0, ('Results.Determ'!$W15-1)*C.Trace.Markov.NumCols), "") -> 0.013 | AE15: =IFERROR(OFFSET('C.Markov'!$N$4, 0, ('Results.Determ'!$W15-1)*C.Trace.Markov.NumCols), "") -> 0.117 | AF15: =IFERROR(OFFSET('C.Markov'!$W$4, 0, ('Results.Determ'!$W15-1)*C.Trace.Markov.NumCols), "") -> 0.139
D16: 3 | F16: =MATCH(SMALL(Y15:Y16, W16), Y15:Y16, 0) -> 1 | G16: =INDEX(rngStrats, F16) -> HPE | H16: =IFERROR(INDEX(Y15:Y16, F16), "") -> £2,443 | I16: =IFERROR(INDEX(Z15:Z16, F16), "") -> 4.820 | J16: =IF(F16="", "", I16-H16/J$6) -> 4.697 | K16: =IF(G16="", "", I16-H16/K$6) -> 4.738 | M16: =IF($W16=1, "", H16-H15) -> £1,020 | N16: =IF($W16=1, "", I16-I15) -> -0.087 | O16: =IF($W16=1, "", IF(AND(M16>0, N16<0), "dominated", M16/N16)) -> dominated | Q16: =IF(F16="", "", IF(F16=swtchResults.Baseline, "-", H16-_xlfn.SINGLE(INDEX(Y15:Y16, swtchResults.Baseline)))) -> £1,020 | R16: =IF(F16="", "", IF(F16=swtchResults.Baseline, "-", I16-_xlfn.SINGLE(INDEX(Z15:Z16, swtchResults.Baseline)))) -> -0.087 | S16: =IF(F16="", "", IF(F16=swtchResults.Baseline, "-", R16-Q16/S$7)) -> -0.138 | T16: =IF(F16="", "", IF(F16=swtchResults.Baseline, "-", R16-Q16/T$7)) -> -0.121 | U16: =IF(F16="", "", IF(F16=swtchResults.Baseline, "ref", IF(AND(Q16<=0, R16>0), "dominant", IF(AND(Q16>0, R16<0), "dominated", Q16/R16)))) -> dominated | W16: =W15+1 -> 2 | X16: =INDEX(rngStrats, W16) -> No HPE | Y16: =IFERROR(OFFSET(C.Trace.Markov.TotalDCosts.Root, 0, ('Results.Determ'!W16-1)*C.Trace.Costs.NumCols), "") -> £1,423.45 | Z16: =IFERROR(OFFSET(C.Trace.Markov.TotalDQALYs.Root, 0, ('Results.Determ'!W16-1)*C.Trace.QALYs.NumCols), "") -> 4.906 | AA16: =IFERROR(OFFSET(C.Trace.Markov.TotalLYs.Root, 0, ('Results.Determ'!W16-1)*C.Trace.Markov.NumCols), "") -> 7.736 | AB16: =IFERROR(OFFSET(C.Trace.Markov.DeathProb.Root, 0, ('Results.Determ'!W16-1)*C.Trace.Markov.NumCols), "") -> 0.482 | AC16: =IFERROR(OFFSET('C.Markov'!$J$4, 0, ('Results.Determ'!$W16-1)*C.Trace.Markov.NumCols), "") -> 0.210 | AD16: =IFERROR(OFFSET('C.Markov'!$L$4, 0, ('Results.Determ'!$W16-1)*C.Trace.Markov.NumCols), "") -> 0.009 | AE16: =IFERROR(OFFSET('C.Markov'!$N$4, 0, ('Results.Determ'!$W16-1)*C.Trace.Markov.NumCols), "") -> 0.050 | AF16: =IFERROR(OFFSET('C.Markov'!$W$4, 0, ('Results.Determ'!$W16-1)*C.Trace.Markov.NumCols), "") -> 0.065
D17: 4 | F17: =INDEX(lstQs, D18) -> D: NSAIDs - HF
D18: 4 | F18: =MATCH(SMALL(Y18:Y19, W18), Y18:Y19, 0) -> 2 | G18: =INDEX(rngStrats, F18) -> No HPE | H18: =IFERROR(INDEX(Y18:Y19, F18), "") -> £12,581 | I18: =IFERROR(INDEX(Z18:Z19, F18), "") -> 3.048 | J18: =IF(F18="", "", I18-H18/J$6) -> 2.419 | K18: =IF(G18="", "", I18-H18/K$6) -> 2.629 | M18: =IF($W18=1, "", H18-H17) ->  | N18: =IF($W18=1, "", I18-I17) ->  | O18: =IF($W18=1, "", IF(AND(M18>0, N18<0), "dominated", M18/N18)) ->  | Q18: =IF(F18="", "", IF(F18=swtchResults.Baseline, "-", H18-_xlfn.SINGLE(INDEX(Y18:Y19, swtchResults.Baseline)))) -> - | R18: =IF(F18="", "", IF(F18=swtchResults.Baseline, "-", I18-_xlfn.SINGLE(INDEX(Z18:Z19, swtchResults.Baseline)))) -> - | S18: =IF(F18="", "", IF(F18=swtchResults.Baseline, "-", R18-Q18/S$7)) -> - | T18: =IF(F18="", "", IF(F18=swtchResults.Baseline, "-", R18-Q18/T$7)) -> - | U18: =IF(F18="", "", IF(F18=swtchResults.Baseline, "ref", IF(AND(Q18<=0, R18>0), "dominant", IF(AND(Q18>0, R18<0), "dominated", Q18/R18)))) -> ref | W18: 1 | X18: =INDEX(rngStrats, W18) -> HPE | Y18: =IFERROR(OFFSET(D.Trace.Markov.TotalDCosts.Root, 0, ('Results.Determ'!W18-1)*D.Trace.Costs.NumCols), "") -> £12,596.47 | Z18: =IFERROR(OFFSET(D.Trace.Markov.TotalDQALYs.Root, 0, ('Results.Determ'!W18-1)*D.Trace.QALYs.NumCols), "") -> 3.003 | AA18: =IFERROR(OFFSET(D.Trace.Markov.TotalLYs.Root, 0, ('Results.Determ'!W18-1)*D.Trace.Markov.NumCols), "") -> 4.868 | AB18: =IFERROR(OFFSET(D.Trace.Markov.DeathProb.Root, 0, ('Results.Determ'!W18-1)*D.Trace.Markov.NumCols), "") -> 0.824 | AG18: =IFERROR(OFFSET(D.Markov!$V$4, 0, ('Results.Determ'!$W18-1)*D.Trace.Markov.NumCols), "") -> 9.259
D19: 4 | F19: =MATCH(SMALL(Y18:Y19, W19), Y18:Y19, 0) -> 1 | G19: =INDEX(rngStrats, F19) -> HPE | H19: =IFERROR(INDEX(Y18:Y19, F19), "") -> £12,596 | I19: =IFERROR(INDEX(Z18:Z19, F19), "") -> 3.003 | J19: =IF(F19="", "", I19-H19/J$6) -> 2.373 | K19: =IF(G19="", "", I19-H19/K$6) -> 2.583 | M19: =IF($W19=1, "", H19-H18) -> £16 | N19: =IF($W19=1, "", I19-I18) -> -0.046 | O19: =IF($W19=1, "", IF(AND(M19>0, N19<0), "dominated", M19/N19)) -> dominated | Q19: =IF(F19="", "", IF(F19=swtchResults.Baseline, "-", H19-_xlfn.SINGLE(INDEX(Y18:Y19, swtchResults.Baseline)))) -> £16 | R19: =IF(F19="", "", IF(F19=swtchResults.Baseline, "-", I19-_xlfn.SINGLE(INDEX(Z18:Z19, swtchResults.Baseline)))) -> -0.046 | S19: =IF(F19="", "", IF(F19=swtchResults.Baseline, "-", R19-Q19/S$7)) -> -0.047 | T19: =IF(F19="", "", IF(F19=swtchResults.Baseline, "-", R19-Q19/T$7)) -> -0.046 | U19: =IF(F19="", "", IF(F19=swtchResults.Baseline, "ref", IF(AND(Q19<=0, R19>0), "dominant", IF(AND(Q19>0, R19<0), "dominated", Q19/R19)))) -> dominated | W19: =W18+1 -> 2 | X19: =INDEX(rngStrats, W19) -> No HPE | Y19: =IFERROR(OFFSET(D.Trace.Markov.TotalDCosts.Root, 0, ('Results.Determ'!W19-1)*D.Trace.Costs.NumCols), "") -> £12,580.87 | Z19: =IFERROR(OFFSET(D.Trace.Markov.TotalDQALYs.Root, 0, ('Results.Determ'!W19-1)*D.Trace.QALYs.NumCols), "") -> 3.048 | AA19: =IFERROR(OFFSET(D.Trace.Markov.TotalLYs.Root, 0, ('Results.Determ'!W19-1)*D.Trace.Markov.NumCols), "") -> 4.935 | AB19: =IFERROR(OFFSET(D.Trace.Markov.DeathProb.Root, 0, ('Results.Determ'!W19-1)*D.Trace.Markov.NumCols), "") -> 0.822 | AG19: =IFERROR(OFFSET(D.Markov!$V$4, 0, ('Results.Determ'!$W19-1)*D.Trace.Markov.NumCols), "") -> 8.503
D20: 5 | F20: =INDEX(lstQs, D21) -> E: NSAIDs - CKD
D21: 5 | F21: =MATCH(SMALL(Y21:Y22, W21), Y21:Y22, 0) -> 2 | G21: =INDEX(rngStrats, F21) -> No HPE | H21: =IFERROR(INDEX(Y21:Y22, F21), "") -> £50,005 | I21: =IFERROR(INDEX(Z21:Z22, F21), "") -> 4.637 | J21: =IF(F21="", "", I21-H21/J$6) -> 2.137 | K21: =IF(G21="", "", I21-H21/K$6) -> 2.970 | M21: =IF($W21=1, "", H21-H20) ->  | N21: =IF($W21=1, "", I21-I20) ->  | O21: =IF($W21=1, "", IF(AND(M21>0, N21<0), "dominated", M21/N21)) ->  | Q21: =IF(F21="", "", IF(F21=swtchResults.Baseline, "-", H21-_xlfn.SINGLE(INDEX(Y21:Y22, swtchResults.Baseline)))) -> - | R21: =IF(F21="", "", IF(F21=swtchResults.Baseline, "-", I21-_xlfn.SINGLE(INDEX(Z21:Z22, swtchResults.Baseline)))) -> - | S21: =IF(F21="", "", IF(F21=swtchResults.Baseline, "-", R21-Q21/S$7)) -> - | T21: =IF(F21="", "", IF(F21=swtchResults.Baseline, "-", R21-Q21/T$7)) -> - | U21: =IF(F21="", "", IF(F21=swtchResults.Baseline, "ref", IF(AND(Q21<=0, R21>0), "dominant", IF(AND(Q21>0, R21<0), "dominated", Q21/R21)))) -> ref | W21: 1 | X21: =INDEX(rngStrats, W21) -> HPE | Y21: =IFERROR(OFFSET(E.Trace.Markov.TotalDCosts.Root, 0, ('Results.Determ'!W21-1)*E.Trace.Costs.NumCols), "") -> £50,215.77 | Z21: =IFERROR(OFFSET(E.Trace.Markov.TotalDQALYs.Root, 0, ('Results.Determ'!W21-1)*E.Trace.QALYs.NumCols), "") -> 4.527 | AA21: =IFERROR(OFFSET(E.Trace.Markov.TotalLYs.Root, 0, ('Results.Determ'!W21-1)*E.Trace.Markov.NumCols), "") -> 7.581 | AB21: =IFERROR(OFFSET(E.Trace.Markov.DeathProb.Root, 0, ('Results.Determ'!W21-1)*E.Trace.Markov.NumCols), "") -> 0.501 | AH21: =IFERROR(OFFSET(E.Markov!$X$4, 0, ('Results.Determ'!$W21-1)*E.Trace.Markov.NumCols), "") -> 0.809 | AI21: =IFERROR(OFFSET(E.Markov!$Z$4, 0, ('Results.Determ'!$W21-1)*E.Trace.Markov.NumCols), "") -> 0.289
D22: 5 | F22: =MATCH(SMALL(Y21:Y22, W22), Y21:Y22, 0) -> 1 | G22: =INDEX(rngStrats, F22) -> HPE | H22: =IFERROR(INDEX(Y21:Y22, F22), "") -> £50,216 | I22: =IFERROR(INDEX(Z21:Z22, F22), "") -> 4.527 | J22: =IF(F22="", "", I22-H22/J$6) -> 2.017 | K22: =IF(G22="", "", I22-H22/K$6) -> 2.854 | M22: =IF($W22=1, "", H22-H21) -> £210 | N22: =IF($W22=1, "", I22-I21) -> -0.110 | O22: =IF($W22=1, "", IF(AND(M22>0, N22<0), "dominated", M22/N22)) -> dominated | Q22: =IF(F22="", "", IF(F22=swtchResults.Baseline, "-", H22-_xlfn.SINGLE(INDEX(Y21:Y22, swtchResults.Baseline)))) -> £210 | R22: =IF(F22="", "", IF(F22=swtchResults.Baseline, "-", I22-_xlfn.SINGLE(INDEX(Z21:Z22, swtchResults.Baseline)))) -> -0.110 | S22: =IF(F22="", "", IF(F22=swtchResults.Baseline, "-", R22-Q22/S$7)) -> -0.120 | T22: =IF(F22="", "", IF(F22=swtchResults.Baseline, "-", R22-Q22/T$7)) -> -0.117 | U22: =IF(F22="", "", IF(F22=swtchResults.Baseline, "ref", IF(AND(Q22<=0, R22>0), "dominant", IF(AND(Q22>0, R22<0), "dominated", Q22/R22)))) -> dominated | W22: =W21+1 -> 2 | X22: =INDEX(rngStrats, W22) -> No HPE | Y22: =IFERROR(OFFSET(E.Trace.Markov.TotalDCosts.Root, 0, ('Results.Determ'!W22-1)*E.Trace.Costs.NumCols), "") -> £50,005.37 | Z22: =IFERROR(OFFSET(E.Trace.Markov.TotalDQALYs.Root, 0, ('Results.Determ'!W22-1)*E.Trace.QALYs.NumCols), "") -> 4.637 | AA22: =IFERROR(OFFSET(E.Trace.Markov.TotalLYs.Root, 0, ('Results.Determ'!W22-1)*E.Trace.Markov.NumCols), "") -> 7.768 | AB22: =IFERROR(OFFSET(E.Trace.Markov.DeathProb.Root, 0, ('Results.Determ'!W22-1)*E.Trace.Markov.NumCols), "") -> 0.475 | AH22: =IFERROR(OFFSET(E.Markov!$X$4, 0, ('Results.Determ'!$W22-1)*E.Trace.Markov.NumCols), "") -> 0.602 | AI22: =IFERROR(OFFSET(E.Markov!$Z$4, 0, ('Results.Determ'!$W22-1)*E.Trace.Markov.NumCols), "") -> 0.291
D23: 6 | F23: =INDEX(lstQs, D24) -> Expected harm in England: query A
D24: 6 | F24: =MATCH(SMALL(Y24:Y25, W24), Y24:Y25, 0) -> 2 | G24: =INDEX(rngStrats, F24) -> No HPE | H24: =IFERROR(INDEX(Y24:Y25, F24), "") -> £0 | I24: =IFERROR(INDEX(Z24:Z25, F24), "") -> 0.000 | J24: =IF(F24="", "", I24-H24/J$6) -> 0.000 | K24: =IF(G24="", "", I24-H24/K$6) -> 0.000 | M24: =IF($W24=1, "", H24-H23) ->  | N24: =IF($W24=1, "", I24-I23) ->  | O24: =IF($W24=1, "", IF(AND(M24>0, N24<0), "dominated", M24/N24)) ->  | Q24: =IF(F24="", "", IF(F24=swtchResults.Baseline, "-", H24-_xlfn.SINGLE(INDEX(Y24:Y25, swtchResults.Baseline)))) -> - | R24: =IF(F24="", "", IF(F24=swtchResults.Baseline, "-", I24-_xlfn.SINGLE(INDEX(Z24:Z25, swtchResults.Baseline)))) -> - | S24: =IF(F24="", "", IF(F24=swtchResults.Baseline, "-", R24-Q24/S$7)) -> - | T24: =IF(F24="", "", IF(F24=swtchResults.Baseline, "-", R24-Q24/T$7)) -> - | U24: =IF(F24="", "", IF(F24=swtchResults.Baseline, "ref", IF(AND(Q24<=0, R24>0), "dominant", IF(AND(Q24>0, R24<0), "dominated", Q24/R24)))) -> ref | W24: 1 | X24: =INDEX(rngStrats, W24) -> HPE | Y24: =IFERROR(INDEX(rngNSAIDsHarm.NationalCosts, $D24-5), "") -> £2,559,187.23 | Z24: =IFERROR(INDEX(rngNSAIDsHarm.NationalQALYs, $D24-5), "") -> -1801.312
D25: 6 | F25: =MATCH(SMALL(Y24:Y25, W25), Y24:Y25, 0) -> 1 | G25: =INDEX(rngStrats, F25) -> HPE | H25: =IFERROR(INDEX(Y24:Y25, F25), "") -> £2,559,187 | I25: =IFERROR(INDEX(Z24:Z25, F25), "") -> -1801.312 | J25: =IF(F25="", "", I25-H25/J$6) -> -1929.271 | K25: =IF(G25="", "", I25-H25/K$6) -> -1886.618 | M25: =IF($W25=1, "", H25-H24) -> £2,559,187 | N25: =IF($W25=1, "", I25-I24) -> -1801.312 | O25: =IF($W25=1, "", IF(AND(M25>0, N25<0), "dominated", M25/N25)) -> dominated | Q25: =IF(F25="", "", IF(F25=swtchResults.Baseline, "-", H25-_xlfn.SINGLE(INDEX(Y24:Y25, swtchResults.Baseline)))) -> £2,559,187 | R25: =IF(F25="", "", IF(F25=swtchResults.Baseline, "-", I25-_xlfn.SINGLE(INDEX(Z24:Z25, swtchResults.Baseline)))) -> -1801.312 | S25: =IF(F25="", "", IF(F25=swtchResults.Baseline, "-", R25-Q25/S$7)) -> -1929.27100 | T25: =IF(F25="", "", IF(F25=swtchResults.Baseline, "-", R25-Q25/T$7)) -> -1886.61788 | U25: =IF(F25="", "", IF(F25=swtchResults.Baseline, "ref", IF(AND(Q25<=0, R25>0), "dominant", IF(AND(Q25>0, R25<0), "dominated", Q25/R25)))) -> dominated | W25: =W24+1 -> 2 | X25: =INDEX(rngStrats, W25) -> No HPE | Y25: £0.00 | Z25: 0.000
D26: 7 | F26: =INDEX(lstQs, D27) -> Expected harm in England: query B
D27: 7 | F27: =MATCH(SMALL(Y27:Y28, W27), Y27:Y28, 0) -> 2 | G27: =INDEX(rngStrats, F27) -> No HPE | H27: =IFERROR(INDEX(Y27:Y28, F27), "") -> £0 | I27: =IFERROR(INDEX(Z27:Z28, F27), "") -> 0.000 | J27: =IF(F27="", "", I27-H27/J$6) -> 0.000 | K27: =IF(G27="", "", I27-H27/K$6) -> 0.000 | M27: =IF($W27=1, "", H27-H26) ->  | N27: =IF($W27=1, "", I27-I26) ->  | O27: =IF($W27=1, "", IF(AND(M27>0, N27<0), "dominated", M27/N27)) ->  | Q27: =IF(F27="", "", IF(F27=swtchResults.Baseline, "-", H27-_xlfn.SINGLE(INDEX(Y27:Y28, swtchResults.Baseline)))) -> - | R27: =IF(F27="", "", IF(F27=swtchResults.Baseline, "-", I27-_xlfn.SINGLE(INDEX(Z27:Z28, swtchResults.Baseline)))) -> - | S27: =IF(F27="", "", IF(F27=swtchResults.Baseline, "-", R27-Q27/S$7)) -> - | T27: =IF(F27="", "", IF(F27=swtchResults.Baseline, "-", R27-Q27/T$7)) -> - | U27: =IF(F27="", "", IF(F27=swtchResults.Baseline, "ref", IF(AND(Q27<=0, R27>0), "dominant", IF(AND(Q27>0, R27<0), "dominated", Q27/R27)))) -> ref | W27: 1 | X27: =INDEX(rngStrats, W27) -> HPE | Y27: =IFERROR(INDEX(rngNSAIDsHarm.NationalCosts, $D27-5), "") -> £167,486.43 | Z27: =IFERROR(INDEX(rngNSAIDsHarm.NationalQALYs, $D27-5), "") -> -99.933
D28: 7 | F28: =MATCH(SMALL(Y27:Y28, W28), Y27:Y28, 0) -> 1 | G28: =INDEX(rngStrats, F28) -> HPE | H28: =IFERROR(INDEX(Y27:Y28, F28), "") -> £167,486 | I28: =IFERROR(INDEX(Z27:Z28, F28), "") -> -99.933 | J28: =IF(F28="", "", I28-H28/J$6) -> -108.307 | K28: =IF(G28="", "", I28-H28/K$6) -> -105.515 | M28: =IF($W28=1, "", H28-H27) -> £167,486 | N28: =IF($W28=1, "", I28-I27) -> -99.933 | O28: =IF($W28=1, "", IF(AND(M28>0, N28<0), "dominated", M28/N28)) -> dominated | Q28: =IF(F28="", "", IF(F28=swtchResults.Baseline, "-", H28-_xlfn.SINGLE(INDEX(Y27:Y28, swtchResults.Baseline)))) -> £167,486 | R28: =IF(F28="", "", IF(F28=swtchResults.Baseline, "-", I28-_xlfn.SINGLE(INDEX(Z27:Z28, swtchResults.Baseline)))) -> -99.933 | S28: =IF(F28="", "", IF(F28=swtchResults.Baseline, "-", R28-Q28/S$7)) -> -108.307 | T28: =IF(F28="", "", IF(F28=swtchResults.Baseline, "-", R28-Q28/T$7)) -> -105.515 | U28: =IF(F28="", "", IF(F28=swtchResults.Baseline, "ref", IF(AND(Q28<=0, R28>0), "dominant", IF(AND(Q28>0, R28<0), "dominated", Q28/R28)))) -> dominated | W28: =W27+1 -> 2 | X28: =INDEX(rngStrats, W28) -> No HPE | Y28: £0.00 | Z28: 0.000
D29: 8 | F29: =INDEX(lstQs, D30) -> Expected harm in England: query C
D30: 8 | F30: =MATCH(SMALL(Y30:Y31, W30), Y30:Y31, 0) -> 2 | G30: =INDEX(rngStrats, F30) -> No HPE | H30: =IFERROR(INDEX(Y30:Y31, F30), "") -> £0 | I30: =IFERROR(INDEX(Z30:Z31, F30), "") -> 0.000 | J30: =IF(F30="", "", I30-H30/J$6) -> 0.000 | K30: =IF(G30="", "", I30-H30/K$6) -> 0.000 | M30: =IF($W30=1, "", H30-H29) ->  | N30: =IF($W30=1, "", I30-I29) ->  | O30: =IF($W30=1, "", IF(AND(M30>0, N30<0), "dominated", M30/N30)) ->  | Q30: =IF(F30="", "", IF(F30=swtchResults.Baseline, "-", H30-_xlfn.SINGLE(INDEX(Y30:Y31, swtchResults.Baseline)))) -> - | R30: =IF(F30="", "", IF(F30=swtchResults.Baseline, "-", I30-_xlfn.SINGLE(INDEX(Z30:Z31, swtchResults.Baseline)))) -> - | S30: =IF(F30="", "", IF(F30=swtchResults.Baseline, "-", R30-Q30/S$7)) -> - | T30: =IF(F30="", "", IF(F30=swtchResults.Baseline, "-", R30-Q30/T$7)) -> - | U30: =IF(F30="", "", IF(F30=swtchResults.Baseline, "ref", IF(AND(Q30<=0, R30>0), "dominant", IF(AND(Q30>0, R30<0), "dominated", Q30/R30)))) -> ref | W30: 1 | X30: =INDEX(rngStrats, W30) -> HPE | Y30: =IFERROR(INDEX(rngNSAIDsHarm.NationalCosts, $D30-5), "") -> £23,614,361.83 | Z30: =IFERROR(INDEX(rngNSAIDsHarm.NationalQALYs, $D30-5), "") -> -2007.848
D31: 8 | F31: =MATCH(SMALL(Y30:Y31, W31), Y30:Y31, 0) -> 1 | G31: =INDEX(rngStrats, F31) -> HPE | H31: =IFERROR(INDEX(Y30:Y31, F31), "") -> £23,614,362 | I31: =IFERROR(INDEX(Z30:Z31, F31), "") -> -2007.848 | J31: =IF(F31="", "", I31-H31/J$6) -> -3188.567 | K31: =IF(G31="", "", I31-H31/K$6) -> -2794.994 | M31: =IF($W31=1, "", H31-H30) -> £23,614,362 | N31: =IF($W31=1, "", I31-I30) -> -2007.848 | O31: =IF($W31=1, "", IF(AND(M31>0, N31<0), "dominated", M31/N31)) -> dominated | Q31: =IF(F31="", "", IF(F31=swtchResults.Baseline, "-", H31-_xlfn.SINGLE(INDEX(Y30:Y31, swtchResults.Baseline)))) -> £23,614,362 | R31: =IF(F31="", "", IF(F31=swtchResults.Baseline, "-", I31-_xlfn.SINGLE(INDEX(Z30:Z31, swtchResults.Baseline)))) -> -2007.848 | S31: =IF(F31="", "", IF(F31=swtchResults.Baseline, "-", R31-Q31/S$7)) -> -3188.567 | T31: =IF(F31="", "", IF(F31=swtchResults.Baseline, "-", R31-Q31/T$7)) -> -2794.994 | U31: =IF(F31="", "", IF(F31=swtchResults.Baseline, "ref", IF(AND(Q31<=0, R31>0), "dominant", IF(AND(Q31>0, R31<0), "dominated", Q31/R31)))) -> dominated | W31: =W30+1 -> 2 | X31: =INDEX(rngStrats, W31) -> No HPE | Y31: £0.00 | Z31: 0.000
D32: 9 | F32: =INDEX(lstQs, D33) -> Expected harm in England: query D
D33: 9 | F33: =MATCH(SMALL(Y33:Y34, W33), Y33:Y34, 0) -> 2 | G33: =INDEX(rngStrats, F33) -> No HPE | H33: =IFERROR(INDEX(Y33:Y34, F33), "") -> £0 | I33: =IFERROR(INDEX(Z33:Z34, F33), "") -> 0.000 | J33: =IF(F33="", "", I33-H33/J$6) -> 0.000 | K33: =IF(G33="", "", I33-H33/K$6) -> 0.000 | M33: =IF($W33=1, "", H33-H32) ->  | N33: =IF($W33=1, "", I33-I32) ->  | O33: =IF($W33=1, "", IF(AND(M33>0, N33<0), "dominated", M33/N33)) ->  | Q33: =IF(F33="", "", IF(F33=swtchResults.Baseline, "-", H33-_xlfn.SINGLE(INDEX(Y33:Y34, swtchResults.Baseline)))) -> - | R33: =IF(F33="", "", IF(F33=swtchResults.Baseline, "-", I33-_xlfn.SINGLE(INDEX(Z33:Z34, swtchResults.Baseline)))) -> - | S33: =IF(F33="", "", IF(F33=swtchResults.Baseline, "-", R33-Q33/S$7)) -> - | T33: =IF(F33="", "", IF(F33=swtchResults.Baseline, "-", R33-Q33/T$7)) -> - | U33: =IF(F33="", "", IF(F33=swtchResults.Baseline, "ref", IF(AND(Q33<=0, R33>0), "dominant", IF(AND(Q33>0, R33<0), "dominated", Q33/R33)))) -> ref | W33: 1 | X33: =INDEX(rngStrats, W33) -> HPE | Y33: =IFERROR(INDEX(rngNSAIDsHarm.NationalCosts, $D33-5), "") -> £139,201.28 | Z33: =IFERROR(INDEX(rngNSAIDsHarm.NationalQALYs, $D33-5), "") -> -408.751
D34: 9 | F34: =MATCH(SMALL(Y33:Y34, W34), Y33:Y34, 0) -> 1 | G34: =INDEX(rngStrats, F34) -> HPE | H34: =IFERROR(INDEX(Y33:Y34, F34), "") -> £139,201 | I34: =IFERROR(INDEX(Z33:Z34, F34), "") -> -408.751 | J34: =IF(F34="", "", I34-H34/J$6) -> -415.711 | K34: =IF(G34="", "", I34-H34/K$6) -> -413.391 | M34: =IF($W34=1, "", H34-H33) -> £139,201 | N34: =IF($W34=1, "", I34-I33) -> -408.751 | O34: =IF($W34=1, "", IF(AND(M34>0, N34<0), "dominated", M34/N34)) -> dominated | Q34: =IF(F34="", "", IF(F34=swtchResults.Baseline, "-", H34-_xlfn.SINGLE(INDEX(Y33:Y34, swtchResults.Baseline)))) -> £139,201 | R34: =IF(F34="", "", IF(F34=swtchResults.Baseline, "-", I34-_xlfn.SINGLE(INDEX(Z33:Z34, swtchResults.Baseline)))) -> -408.751 | S34: =IF(F34="", "", IF(F34=swtchResults.Baseline, "-", R34-Q34/S$7)) -> -415.711 | T34: =IF(F34="", "", IF(F34=swtchResults.Baseline, "-", R34-Q34/T$7)) -> -413.391 | U34: =IF(F34="", "", IF(F34=swtchResults.Baseline, "ref", IF(AND(Q34<=0, R34>0), "dominant", IF(AND(Q34>0, R34<0), "dominated", Q34/R34)))) -> dominated | W34: =W33+1 -> 2 | X34: =INDEX(rngStrats, W34) -> No HPE | Y34: £0.00 | Z34: 0.000
D35: 10 | F35: =INDEX(lstQs, D36) -> Expected harm in England: query E
D36: 10 | F36: =MATCH(SMALL(Y36:Y37, W36), Y36:Y37, 0) -> 2 | G36: =INDEX(rngStrats, F36) -> No HPE | H36: =IFERROR(INDEX(Y36:Y37, F36), "") -> £0 | I36: =IFERROR(INDEX(Z36:Z37, F36), "") -> 0.000 | J36: =IF(F36="", "", I36-H36/J$6) -> 0.000 | K36: =IF(G36="", "", I36-H36/K$6) -> 0.000 | M36: =IF($W36=1, "", H36-H35) ->  | N36: =IF($W36=1, "", I36-I35) ->  | O36: =IF($W36=1, "", IF(AND(M36>0, N36<0), "dominated", M36/N36)) ->  | Q36: =IF(F36="", "", IF(F36=swtchResults.Baseline, "-", H36-_xlfn.SINGLE(INDEX(Y36:Y37, swtchResults.Baseline)))) -> - | R36: =IF(F36="", "", IF(F36=swtchResults.Baseline, "-", I36-_xlfn.SINGLE(INDEX(Z36:Z37, swtchResults.Baseline)))) -> - | S36: =IF(F36="", "", IF(F36=swtchResults.Baseline, "-", R36-Q36/S$7)) -> - | T36: =IF(F36="", "", IF(F36=swtchResults.Baseline, "-", R36-Q36/T$7)) -> - | U36: =IF(F36="", "", IF(F36=swtchResults.Baseline, "ref", IF(AND(Q36<=0, R36>0), "dominant", IF(AND(Q36>0, R36<0), "dominated", Q36/R36)))) -> ref | W36: 1 | X36: =INDEX(rngStrats, W36) -> HPE | Y36: =IFERROR(INDEX(rngNSAIDsHarm.NationalCosts, $D36-5), "") -> £3,324,171.27 | Z36: =IFERROR(INDEX(rngNSAIDsHarm.NationalQALYs, $D36-5), "") -> -1733.124
D37: 10 | F37: =MATCH(SMALL(Y36:Y37, W37), Y36:Y37, 0) -> 1 | G37: =INDEX(rngStrats, F37) -> HPE | H37: =IFERROR(INDEX(Y36:Y37, F37), "") -> £3,324,171 | I37: =IFERROR(INDEX(Z36:Z37, F37), "") -> -1733.124 | J37: =IF(F37="", "", I37-H37/J$6) -> -1899.333 | K37: =IF(G37="", "", I37-H37/K$6) -> -1843.930 | M37: =IF($W37=1, "", H37-H36) -> £3,324,171 | N37: =IF($W37=1, "", I37-I36) -> -1733.124 | O37: =IF($W37=1, "", IF(AND(M37>0, N37<0), "dominated", M37/N37)) -> dominated | Q37: =IF(F37="", "", IF(F37=swtchResults.Baseline, "-", H37-_xlfn.SINGLE(INDEX(Y36:Y37, swtchResults.Baseline)))) -> £3,324,171 | R37: =IF(F37="", "", IF(F37=swtchResults.Baseline, "-", I37-_xlfn.SINGLE(INDEX(Z36:Z37, swtchResults.Baseline)))) -> -1733.124 | S37: =IF(F37="", "", IF(F37=swtchResults.Baseline, "-", R37-Q37/S$7)) -> -1899.333 | T37: =IF(F37="", "", IF(F37=swtchResults.Baseline, "-", R37-Q37/T$7)) -> -1843.930 | U37: =IF(F37="", "", IF(F37=swtchResults.Baseline, "ref", IF(AND(Q37<=0, R37>0), "dominant", IF(AND(Q37>0, R37<0), "dominated", Q37/R37)))) -> dominated | W37: =W36+1 -> 2 | X37: =INDEX(rngStrats, W37) -> No HPE | Y37: £0.00 | Z37: 0.000
D38: 11 | F38: =INDEX(lstQs, D39) -> Expected harm in England: total
D39: 11 | F39: =MATCH(SMALL(Y39:Y40, W39), Y39:Y40, 0) -> 2 | G39: =INDEX(rngStrats, F39) -> No HPE | H39: =IFERROR(INDEX(Y39:Y40, F39), "") -> £0 | I39: =IFERROR(INDEX(Z39:Z40, F39), "") -> 0.000 | J39: =IF(F39="", "", I39-H39/J$6) -> 0.000 | K39: =IF(G39="", "", I39-H39/K$6) -> 0.000 | M39: =IF($W39=1, "", H39-H38) ->  | N39: =IF($W39=1, "", I39-I38) ->  | O39: =IF($W39=1, "", IF(AND(M39>0, N39<0), "dominated", M39/N39)) ->  | Q39: =IF(F39="", "", IF(F39=swtchResults.Baseline, "-", H39-_xlfn.SINGLE(INDEX(Y39:Y40, swtchResults.Baseline)))) -> - | R39: =IF(F39="", "", IF(F39=swtchResults.Baseline, "-", I39-_xlfn.SINGLE(INDEX(Z39:Z40, swtchResults.Baseline)))) -> - | S39: =IF(F39="", "", IF(F39=swtchResults.Baseline, "-", R39-Q39/S$7)) -> - | T39: =IF(F39="", "", IF(F39=swtchResults.Baseline, "-", R39-Q39/T$7)) -> - | U39: =IF(F39="", "", IF(F39=swtchResults.Baseline, "ref", IF(AND(Q39<=0, R39>0), "dominant", IF(AND(Q39>0, R39<0), "dominated", Q39/R39)))) -> ref | W39: 1 | X39: =INDEX(rngStrats, W39) -> HPE | Y39: =IFERROR(INDEX(rngNSAIDsHarm.NationalCosts, $D39-5), "") -> £29,804,408.04 | Z39: =IFERROR(INDEX(rngNSAIDsHarm.NationalQALYs, $D39-5), "") -> -6050.968
D40: 11 | F40: =MATCH(SMALL(Y39:Y40, W40), Y39:Y40, 0) -> 1 | G40: =INDEX(rngStrats, F40) -> HPE | H40: =IFERROR(INDEX(Y39:Y40, F40), "") -> £29,804,408 | I40: =IFERROR(INDEX(Z39:Z40, F40), "") -> -6050.968 | J40: =IF(F40="", "", I40-H40/J$6) -> -7541.188 | K40: =IF(G40="", "", I40-H40/K$6) -> -7044.448 | M40: =IF($W40=1, "", H40-H39) -> £29,804,408 | N40: =IF($W40=1, "", I40-I39) -> -6050.968 | O40: =IF($W40=1, "", IF(AND(M40>0, N40<0), "dominated", M40/N40)) -> dominated | Q40: =IF(F40="", "", IF(F40=swtchResults.Baseline, "-", H40-_xlfn.SINGLE(INDEX(Y39:Y40, swtchResults.Baseline)))) -> £29,804,408 | R40: =IF(F40="", "", IF(F40=swtchResults.Baseline, "-", I40-_xlfn.SINGLE(INDEX(Z39:Z40, swtchResults.Baseline)))) -> -6050.968 | S40: =IF(F40="", "", IF(F40=swtchResults.Baseline, "-", R40-Q40/S$7)) -> -7541.188 | T40: =IF(F40="", "", IF(F40=swtchResults.Baseline, "-", R40-Q40/T$7)) -> -7044.448 | U40: =IF(F40="", "", IF(F40=swtchResults.Baseline, "ref", IF(AND(Q40<=0, R40>0), "dominant", IF(AND(Q40>0, R40<0), "dominated", Q40/R40)))) -> dominated | W40: =W39+1 -> 2 | X40: =INDEX(rngStrats, W40) -> No HPE | Y40: £0.00 | Z40: 0.000

Sheet Results.Prob
E1: =zWorkbookTitle -> Camacho et al. (2024) Harms of hazardous prescribing of NSAIDs
F3: Probabilistic
F4: Cohort ID | G4: Name | H4: Absolute | Q4: Fully incremental analysis | W4: Pairwise comparison | AG4: Raw, unsorted results
H5: Costs | I5: (95%CI) | J5: QALYs | K5: (95%CI) | L5: Net health benefit | W5: Compared with: | Y5: No HPE | AG5: # | AH5: Strategy name | AI5: Costs | AK5: QALYs | AM5: LYs
L6: @£20K/QALY | M6: (95%CI) | N6: @£30K/QALY | O6: (95%CI) | Q6: Costs | R6: (95%CI) | S6: QALYs | T6: (95%CI) | U6: ICER | W6: Costs | X6: (95%CI) | Y6: QALYs | Z6: (95%CI) | AA6: Incremental net health benefit | AE6: ICER
AA7: @£20K/QALY | AB7: (95%CI) | AC7: @£30K/QALY | AD7: (95%CI)
D8: 1 | F8: =INDEX(lstQs, D8) -> A: No gastroprotection - NSAIDs in people >65
D9: 1 | F9: =MATCH(SMALL(AI9:AI10, AG9), AI9:AI10, 0) -> 2 | G9: =INDEX(rngStrats, F9) -> No HPE | H9: =IFERROR(INDEX(AI9:AI10, F9), "") -> £235 | I9: =_xlfn.LET(_xlpm.arrCosts, OFFSET(rngPSA.Samples.Costs, 0, (D9-1)*6 + F9-1), "(" & TEXT(PERCENTILE(_xlpm.arrCosts, 0.025), "£#,##0;−£#,##0") & " to " & TEXT(PERCENTILE(_xlpm.arrCosts, 0.975), "£#,##0;−£#,##0") & ")") -> (£174 to £316) | J9: =IFERROR(INDEX(AK9:AK10, F9), "") -> 5.852 | K9: =_xlfn.LET(_xlpm.arrQALYs, OFFSET(rngPSA.Samples.QALYs, 0, (D9-1)*6 + F9-1), "(" & TEXT(PERCENTILE(_xlpm.arrQALYs, 0.025), "0.000") & " to " & TEXT(PERCENTILE(_xlpm.arrQALYs, 0.975), "0.000") & ")") -> (5.777 to 5.926) | L9: =IF(F9="", "", J9-H9/L$6) -> 5.840 | M9: =_xlfn.LET(_xlpm.arrNHB, OFFSET(rngPSA.Samples.QALYs, 0, (D9-1)*6 + F9-1) - OFFSET(rngPSA.Samples.Costs, 0, (D9-1)*6 + F9-1)/L$6, "(" & TEXT(PERCENTILE(_xlpm.arrNHB, 0.025), "0.000") & " to " & TEXT(PERCENTILE(_xlpm.arrNHB, 0.975), "0.000") & ")") -> (5.765 to 5.914) | N9: =IF(F9="", "", J9-H9/N$6) -> 5.844 | O9: =_xlfn.LET(_xlpm.arrNHB, OFFSET(rngPSA.Samples.QALYs, 0, (D9-1)*6 + F9-1) - OFFSET(rngPSA.Samples.Costs, 0, (D9-1)*6 + F9-1)/N$6, "(" & TEXT(PERCENTILE(_xlpm.arrNHB, 0.025), "0.000") & " to " & TEXT(PERCENTILE(_xlpm.arrNHB, 0.975), "0.000") & ")") -> (5.769 to 5.918) | Q9: =IF($AG9=1, "", H9-H7) ->  | R9: =_xlfn.LET(_xlpm.arrIncCosts, OFFSET(rngPSA.Samples.Costs, 0, ($D9-1)*6 + $F9-1)-OFFSET(rngPSA.Samples.Costs, 0, ($D9-1)*6 + $F7-1), IF(AG9=1, "", "(" & TEXT(PERCENTILE(_xlpm.arrIncCosts, 0.025), "£#,##0;−£#,##0") & " to " & TEXT(PERCENTILE(_xlpm.arrIncCosts, 0.975), "£#,##0;−£#,##0") & ")")) ->  | S9: =IF($AG9=1, "", J9-J7) ->  | T9: =_xlfn.LET(_xlpm.arrIncQALYs, OFFSET(rngPSA.Samples.QALYs, 0, ($D9-1)*6 + $F9-1)-OFFSET(rngPSA.Samples.QALYs, 0, ($D9-1)*6 + $F7-1), IF($AG9=1, "", "(" & TEXT(PERCENTILE(_xlpm.arrIncQALYs, 0.025), "0.000;−0.000") & " to " & TEXT(PERCENTILE(_xlpm.arrIncQALYs, 0.975), "0.000;−0.000") & ")")) ->  | U9: =IF($AG9=1, "", IF(AND(Q9>0, S9<0), "dominated", Q9/S9)) ->  | W9: =IF(F9=swtchResults.PSA.Baseline, "-", H9-INDEX(AI9:AI10, swtchResults.PSA.Baseline)) -> - | X9: =IF(F9=swtchResults.PSA.Baseline, "-", "(" & TEXT(PERCENTILE(OFFSET(rngPSA.Samples.Costs, 0, (D9-1)*6 + F9-1)-OFFSET(rngPSA.Samples.Costs, 0, (D9-1)*6 + swtchResults.PSA.Baseline-1), 0.025), "£#,##0;−£#,##0") & " to " & TEXT(PERCENTILE(OFFSET(rngPSA.Samples.Costs, 0, (D9-1)*6 + F9-1)-OFFSET(rngPSA.Samples.Costs, 0, (D9-1)*6 + swtchResults.PSA.Baseline-1), 0.975), "£#,##0;−£#,##0") & ")") -> - | Y9: =IF(F9=swtchResults.PSA.Baseline, "-", J9-INDEX(AK9:AK10, swtchResults.PSA.Baseline)) -> - | Z9: =IF(F9=swtchResults.PSA.Baseline, "-", "(" & TEXT(PERCENTILE(OFFSET(rngPSA.Samples.QALYs, 0, (D9-1)*6 + F9-1)-OFFSET(rngPSA.Samples.QALYs, 0, (D9-1)*6 + swtchResults.PSA.Baseline-1), 0.025), "0.000;−0.000") & " to " & TEXT(PERCENTILE(OFFSET(rngPSA.Samples.QALYs, 0, (D9-1)*6 + F9-1)-OFFSET(rngPSA.Samples.QALYs, 0, (D9-1)*6 + swtchResults.PSA.Baseline-1), 0.975), "0.000;−0.000") & ")") -> - | AA9: =IF(F9=swtchResults.PSA.Baseline, "-", Y9-W9/AA$7) -> - | AB9: =_xlfn.LET(_xlpm.arrNHB, (OFFSET(rngPSA.Samples.QALYs, 0, (D9-1)*6 + F9-1)-OFFSET(rngPSA.Samples.QALYs, 0, (D9-1)*6 + swtchResults.PSA.Baseline-1)) - (OFFSET(rngPSA.Samples.Costs, 0, (D9-1)*6 + F9-1)-OFFSET(rngPSA.Samples.Costs, 0, (D9-1)*6 + swtchResults.PSA.Baseline-1))/AA$7, IF(F9=swtchResults.PSA.Baseline, "-", "(" & TEXT(PERCENTILE(_xlpm.arrNHB, 0.025), "0.000;−0.000") & " to " & TEXT(PERCENTILE(_xlpm.arrNHB, 0.975), "0.000;−0.000") & ")")) -> - | AC9: =IF(F9=swtchResults.PSA.Baseline, "-", Y9-W9/AC$7) -> - | AD9: =_xlfn.LET(_xlpm.arrNHB, (OFFSET(rngPSA.Samples.QALYs, 0, (D9-1)*6 + F9-1)-OFFSET(rngPSA.Samples.QALYs, 0, (D9-1)*6 + swtchResults.PSA.Baseline-1)) - (OFFSET(rngPSA.Samples.Costs, 0, (D9-1)*6 + F9-1)-OFFSET(rngPSA.Samples.Costs, 0, (D9-1)*6 + swtchResults.PSA.Baseline-1))/AC$7, IF(F9=swtchResults.PSA.Baseline, "-", "(" & TEXT(PERCENTILE(_xlpm.arrNHB, 0.025), "0.000;−0.000") & " to " & TEXT(PERCENTILE(_xlpm.arrNHB, 0.975), "0.000;−0.000") & ")")) -> - | AE9: =IF(F9=swtchResults.PSA.Baseline, "ref", IF(AND(W9<=0, Y9>0), "dominant", IF(AND(W9>0, Y9<0), "dominated", W9/Y9))) -> ref | AG9: 1 | AH9: =INDEX(rngStrats, AG9) -> HPE | AI9: =INDEX(OFFSET(rngPSA.MeanCosts.Root, 0, (D9-1)*6), AG9) -> £258.29 | AJ9: =_xlfn.LET(_xlpm.arrCosts, OFFSET(rngPSA.Samples.Costs, 0, ($D9-1)*6 + $AG9-1), "(" & TEXT(PERCENTILE(_xlpm.arrCosts, 0.025), "£#,##0;−£#,##0") & " to " & TEXT(PERCENTILE(_xlpm.arrCosts, 0.975), "£#,##0;−£#,##0") & ")") -> (£197 to £339) | AK9: =INDEX(OFFSET(rngPSA.MeanQALYs.Root, 0, (D9-1)*6), AG9) -> 5.835 | AL9: =_xlfn.LET(_xlpm.arrQALYs, OFFSET(rngPSA.Samples.QALYs, 0, ($D9-1)*6 + $AG9-1), "(" & TEXT(PERCENTILE(_xlpm.arrQALYs, 0.025), "0.000") & " to " & TEXT(PERCENTILE(_xlpm.arrQALYs, 0.975), "0.000") & ")") -> (5.761 to 5.910) | AM9: =IFERROR(INDEX(rngPSA.MeanLYs, AG9), "") -> 
D10: 1 | F10: =MATCH(SMALL(AI9:AI10, AG10), AI9:AI10, 0) -> 1 | G10: =INDEX(rngStrats, F10) -> HPE | H10: =IFERROR(INDEX(AI9:AI10, F10), "") -> £258 | I10: =_xlfn.LET(_xlpm.arrCosts, OFFSET(rngPSA.Samples.Costs, 0, (D10-1)*6 + F10-1), "(" & TEXT(PERCENTILE(_xlpm.arrCosts, 0.025), "£#,##0;−£#,##0") & " to " & TEXT(PERCENTILE(_xlpm.arrCosts, 0.975), "£#,##0;−£#,##0") & ")") -> (£197 to £339) | J10: =IFERROR(INDEX(AK9:AK10, F10), "") -> 5.835 | K10: =_xlfn.LET(_xlpm.arrQALYs, OFFSET(rngPSA.Samples.QALYs, 0, (D10-1)*6 + F10-1), "(" & TEXT(PERCENTILE(_xlpm.arrQALYs, 0.025), "0.000") & " to " & TEXT(PERCENTILE(_xlpm.arrQALYs, 0.975), "0.000") & ")") -> (5.761 to 5.910) | L10: =IF(F10="", "", J10-H10/L$6) -> 5.822 | M10: =_xlfn.LET(_xlpm.arrNHB, OFFSET(rngPSA.Samples.QALYs, 0, (D10-1)*6 + F10-1) - OFFSET(rngPSA.Samples.Costs, 0, (D10-1)*6 + F10-1)/L$6, "(" & TEXT(PERCENTILE(_xlpm.arrNHB, 0.025), "0.000") & " to " & TEXT(PERCENTILE(_xlpm.arrNHB, 0.975), "0.000") & ")") -> (5.748 to 5.897) | N10: =IF(F10="", "", J10-H10/N$6) -> 5.826 | O10: =_xlfn.LET(_xlpm.arrNHB, OFFSET(rngPSA.Samples.QALYs, 0, (D10-1)*6 + F10-1) - OFFSET(rngPSA.Samples.Costs, 0, (D10-1)*6 + F10-1)/N$6, "(" & TEXT(PERCENTILE(_xlpm.arrNHB, 0.025), "0.000") & " to " & TEXT(PERCENTILE(_xlpm.arrNHB, 0.975), "0.000") & ")") -> (5.752 to 5.901) | Q10: =IF($AG10=1, "", H10-H9) -> £24 | R10: =_xlfn.LET(_xlpm.arrIncCosts, OFFSET(rngPSA.Samples.Costs, 0, ($D10-1)*6 + $F10-1)-OFFSET(rngPSA.Samples.Costs, 0, ($D10-1)*6 + $F9-1), IF(AG10=1, "", "(" & TEXT(PERCENTILE(_xlpm.arrIncCosts, 0.025), "£#,##0;−£#,##0") & " to " & TEXT(PERCENTILE(_xlpm.arrIncCosts, 0.975), "£#,##0;−£#,##0") & ")")) -> (£7 to £44) | S10: =IF($AG10=1, "", J10-J9) -> -0.017 | T10: =_xlfn.LET(_xlpm.arrIncQALYs, OFFSET(rngPSA.Samples.QALYs, 0, ($D10-1)*6 + $F10-1)-OFFSET(rngPSA.Samples.QALYs, 0, ($D10-1)*6 + $F9-1), IF($AG10=1, "", "(" & TEXT(PERCENTILE(_xlpm.arrIncQALYs, 0.025), "0.000;−0.000") & " to " & TEXT(PERCENTILE(_xlpm.arrIncQALYs, 0.975), "0.000;−0.000") & ")")) -> (−0.021 to −0.012) | U10: =IF($AG10=1, "", IF(AND(Q10>0, S10<0), "dominated", Q10/S10)) -> dominated | W10: =IF(F10=swtchResults.PSA.Baseline, "-", H10-INDEX(AI9:AI10, swtchResults.PSA.Baseline)) -> £24 | X10: =IF(F10=swtchResults.PSA.Baseline, "-", "(" & TEXT(PERCENTILE(OFFSET(rngPSA.Samples.Costs, 0, (D10-1)*6 + F10-1)-OFFSET(rngPSA.Samples.Costs, 0, (D10-1)*6 + swtchResults.PSA.Baseline-1), 0.025), "£#,##0;−£#,##0") & " to " & TEXT(PERCENTILE(OFFSET(rngPSA.Samples.Costs, 0, (D10-1)*6 + F10-1)-OFFSET(rngPSA.Samples.Costs, 0, (D10-1)*6 + swtchResults.PSA.Baseline-1), 0.975), "£#,##0;−£#,##0") & ")") -> (£7 to £44) | Y10: =IF(F10=swtchResults.PSA.Baseline, "-", J10-INDEX(AK9:AK10, swtchResults.PSA.Baseline)) -> -0.017 | Z10: =IF(F10=swtchResults.PSA.Baseline, "-", "(" & TEXT(PERCENTILE(OFFSET(rngPSA.Samples.QALYs, 0, (D10-1)*6 + F10-1)-OFFSET(rngPSA.Samples.QALYs, 0, (D10-1)*6 + swtchResults.PSA.Baseline-1), 0.025), "0.000;−0.000") & " to " & TEXT(PERCENTILE(OFFSET(rngPSA.Samples.QALYs, 0, (D10-1)*6 + F10-1)-OFFSET(rngPSA.Samples.QALYs, 0, (D10-1)*6 + swtchResults.PSA.Baseline-1), 0.975), "0.000;−0.000") & ")") -> (−0.021 to −0.012) | AA10: =IF(F10=swtchResults.PSA.Baseline, "-", Y10-W10/AA$7) -> -0.018 | AB10: =_xlfn.LET(_xlpm.arrNHB, (OFFSET(rngPSA.Samples.QALYs, 0, (D10-1)*6 + F10-1)-OFFSET(rngPSA.Samples.QALYs, 0, (D10-1)*6 + swtchResults.PSA.Baseline-1)) - (OFFSET(rngPSA.Samples.Costs, 0, (D10-1)*6 + F10-1)-OFFSET(rngPSA.Samples.Costs, 0, (D10-1)*6 + swtchResults.PSA.Baseline-1))/AA$7, IF(F10=swtchResults.PSA.Baseline, "-", "(" & TEXT(PERCENTILE(_xlpm.arrNHB, 0.025), "0.000;−0.000") & " to " & TEXT(PERCENTILE(_xlpm.arrNHB, 0.975), "0.000;−0.000") & ")")) -> (−0.023 to −0.013) | AC10: =IF(F10=swtchResults.PSA.Baseline, "-", Y10-W10/AC$7) -> -0.018 | AD10: =_xlfn.LET(_xlpm.arrNHB, (OFFSET(rngPSA.Samples.QALYs, 0, (D10-1)*6 + F10-1)-OFFSET(rngPSA.Samples.QALYs, 0, (D10-1)*6 + swtchResults.PSA.Baseline-1)) - (OFFSET(rngPSA.Samples.Costs, 0, (D10-1)*6 + F10-1)-OFFSET(rngPSA.Samples.Costs, 0, (D10-1)*6 + swtchResults.PSA.Baseline-1))/AC$7, IF(F10=swtchResults.PSA.Baseline, "-", "(" & TEXT(PERCENTILE(_xlpm.arrNHB, 0.025), "0.000;−0.000") & " to " & TEXT(PERCENTILE(_xlpm.arrNHB, 0.975), "0.000;−0.000") & ")")) -> (−0.022 to −0.013) | AE10: =IF(F10=swtchResults.PSA.Baseline, "ref", IF(AND(W10<=0, Y10>0), "dominant", IF(AND(W10>0, Y10<0), "dominated", W10/Y10))) -> dominated | AG10: 2 | AH10: No HPE | AI10: =INDEX(OFFSET(rngPSA.MeanCosts.Root, 0, (D10-1)*6), AG10) -> £234.69 | AJ10: =_xlfn.LET(_xlpm.arrCosts, OFFSET(rngPSA.Samples.Costs, 0, ($D10-1)*6 + $AG10-1), "(" & TEXT(PERCENTILE(_xlpm.arrCosts, 0.025), "£#,##0;−£#,##0") & " to " & TEXT(PERCENTILE(_xlpm.arrCosts, 0.975), "£#,##0;−£#,##0") & ")") -> (£174 to £316) | AK10: =INDEX(OFFSET(rngPSA.MeanQALYs.Root, 0, (D10-1)*6), AG10) -> 5.852 | AL10: =_xlfn.LET(_xlpm.arrQALYs, OFFSET(rngPSA.Samples.QALYs, 0, ($D10-1)*6 + $AG10-1), "(" & TEXT(PERCENTILE(_xlpm.arrQALYs, 0.025), "0.000") & " to " & TEXT(PERCENTILE(_xlpm.arrQALYs, 0.975), "0.000") & ")") -> (5.777 to 5.926) | AM10: =IFERROR(INDEX(rngPSA.MeanLYs, AG10), "") -> 
D11: =D8+1 -> 2 | F11: =INDEX(lstQs, D11) -> B: No gastroprotection - NSAIDs in people with ulcer history
D12: 2 | F12: =MATCH(SMALL(AI12:AI13, AG12), AI12:AI13, 0) -> 2 | G12: =INDEX(rngStrats, F12) -> No HPE | H12: =IFERROR(INDEX(AI12:AI13, F12), "") -> £253 | I12: =_xlfn.LET(_xlpm.arrCosts, OFFSET(rngPSA.Samples.Costs, 0, (D12-1)*6 + F12-1), "(" & TEXT(PERCENTILE(_xlpm.arrCosts, 0.025), "£#,##0;−£#,##0") & " to " & TEXT(PERCENTILE(_xlpm.arrCosts, 0.975), "£#,##0;−£#,##0") & ")") -> (£188 to £340) | J12: =IFERROR(INDEX(AK12:AK13, F12), "") -> 6.716 | K12: =_xlfn.LET(_xlpm.arrQALYs, OFFSET(rngPSA.Samples.QALYs, 0, (D12-1)*6 + F12-1), "(" & TEXT(PERCENTILE(_xlpm.arrQALYs, 0.025), "0.000") & " to " & TEXT(PERCENTILE(_xlpm.arrQALYs, 0.975), "0.000") & ")") -> (6.645 to 6.784) | L12: =IF(F12="", "", J12-H12/L$6) -> 6.703 | M12: =_xlfn.LET(_xlpm.arrNHB, OFFSET(rngPSA.Samples.QALYs, 0, (D12-1)*6 + F12-1) - OFFSET(rngPSA.Samples.Costs, 0, (D12-1)*6 + F12-1)/L$6, "(" & TEXT(PERCENTILE(_xlpm.arrNHB, 0.025), "0.000") & " to " & TEXT(PERCENTILE(_xlpm.arrNHB, 0.975), "0.000") & ")") -> (6.632 to 6.773) | N12: =IF(F12="", "", J12-H12/N$6) -> 6.708 | O12: =_xlfn.LET(_xlpm.arrNHB, OFFSET(rngPSA.Samples.QALYs, 0, (D12-1)*6 + F12-1) - OFFSET(rngPSA.Samples.Costs, 0, (D12-1)*6 + F12-1)/N$6, "(" & TEXT(PERCENTILE(_xlpm.arrNHB, 0.025), "0.000") & " to " & TEXT(PERCENTILE(_xlpm.arrNHB, 0.975), "0.000") & ")") -> (6.637 to 6.776) | Q12: =IF($AG12=1, "", H12-H10) ->  | R12: =_xlfn.LET(_xlpm.arrIncCosts, OFFSET(rngPSA.Samples.Costs, 0, ($D12-1)*6 + $F12-1)-OFFSET(rngPSA.Samples.Costs, 0, ($D12-1)*6 + $F10-1), IF(AG12=1, "", "(" & TEXT(PERCENTILE(_xlpm.arrIncCosts, 0.025), "£#,##0;−£#,##0") & " to " & TEXT(PERCENTILE(_xlpm.arrIncCosts, 0.975), "£#,##0;−£#,##0") & ")")) ->  | S12: =IF($AG12=1, "", J12-J10) ->  | T12: =_xlfn.LET(_xlpm.arrIncQALYs, OFFSET(rngPSA.Samples.QALYs, 0, ($D12-1)*6 + $F12-1)-OFFSET(rngPSA.Samples.QALYs, 0, ($D12-1)*6 + $F10-1), IF($AG12=1, "", "(" & TEXT(PERCENTILE(_xlpm.arrIncQALYs, 0.025), "0.000;−0.000") & " to " & TEXT(PERCENTILE(_xlpm.arrIncQALYs, 0.975), "0.000;−0.000") & ")")) ->  | U12: =IF($AG12=1, "", IF(AND(Q12>0, S12<0), "dominated", Q12/S12)) ->  | W12: =IF(F12=swtchResults.PSA.Baseline, "-", H12-INDEX(AI12:AI13, swtchResults.PSA.Baseline)) -> - | X12: =IF(F12=swtchResults.PSA.Baseline, "-", "(" & TEXT(PERCENTILE(OFFSET(rngPSA.Samples.Costs, 0, (D12-1)*6 + F12-1)-OFFSET(rngPSA.Samples.Costs, 0, (D12-1)*6 + swtchResults.PSA.Baseline-1), 0.025), "£#,##0;−£#,##0") & " to " & TEXT(PERCENTILE(OFFSET(rngPSA.Samples.Costs, 0, (D12-1)*6 + F12-1)-OFFSET(rngPSA.Samples.Costs, 0, (D12-1)*6 + swtchResults.PSA.Baseline-1), 0.975), "£#,##0;−£#,##0") & ")") -> - | Y12: =IF(F12=swtchResults.PSA.Baseline, "-", J12-INDEX(AK12:AK13, swtchResults.PSA.Baseline)) -> - | Z12: =IF(F12=swtchResults.PSA.Baseline, "-", "(" & TEXT(PERCENTILE(OFFSET(rngPSA.Samples.QALYs, 0, (D12-1)*6 + F12-1)-OFFSET(rngPSA.Samples.QALYs, 0, (D12-1)*6 + swtchResults.PSA.Baseline-1), 0.025), "0.000;−0.000") & " to " & TEXT(PERCENTILE(OFFSET(rngPSA.Samples.QALYs, 0, (D12-1)*6 + F12-1)-OFFSET(rngPSA.Samples.QALYs, 0, (D12-1)*6 + swtchResults.PSA.Baseline-1), 0.975), "0.000;−0.000") & ")") -> - | AA12: =IF(F12=swtchResults.PSA.Baseline, "-", Y12-W12/AA$7) -> - | AB12: =_xlfn.LET(_xlpm.arrNHB, (OFFSET(rngPSA.Samples.QALYs, 0, (D12-1)*6 + F12-1)-OFFSET(rngPSA.Samples.QALYs, 0, (D12-1)*6 + swtchResults.PSA.Baseline-1)) - (OFFSET(rngPSA.Samples.Costs, 0, (D12-1)*6 + F12-1)-OFFSET(rngPSA.Samples.Costs, 0, (D12-1)*6 + swtchResults.PSA.Baseline-1))/AA$7, IF(F12=swtchResults.PSA.Baseline, "-", "(" & TEXT(PERCENTILE(_xlpm.arrNHB, 0.025), "0.000;−0.000") & " to " & TEXT(PERCENTILE(_xlpm.arrNHB, 0.975), "0.000;−0.000") & ")")) -> - | AC12: =IF(F12=swtchResults.PSA.Baseline, "-", Y12-W12/AC$7) -> - | AD12: =_xlfn.LET(_xlpm.arrNHB, (OFFSET(rngPSA.Samples.QALYs, 0, (D12-1)*6 + F12-1)-OFFSET(rngPSA.Samples.QALYs, 0, (D12-1)*6 + swtchResults.PSA.Baseline-1)) - (OFFSET(rngPSA.Samples.Costs, 0, (D12-1)*6 + F12-1)-OFFSET(rngPSA.Samples.Costs, 0, (D12-1)*6 + swtchResults.PSA.Baseline-1))/AC$7, IF(F12=swtchResults.PSA.Baseline, "-", "(" & TEXT(PERCENTILE(_xlpm.arrNHB, 0.025), "0.000;−0.000") & " to " & TEXT(PERCENTILE(_xlpm.arrNHB, 0.975), "0.000;−0.000") & ")")) -> - | AE12: =IF(F12=swtchResults.PSA.Baseline, "ref", IF(AND(W12<=0, Y12>0), "dominant", IF(AND(W12>0, Y12<0), "dominated", W12/Y12))) -> ref | AG12: 1 | AH12: HPE | AI12: =INDEX(OFFSET(rngPSA.MeanCosts.Root, 0, (D12-1)*6), AG12) -> £277.22 | AJ12: =_xlfn.LET(_xlpm.arrCosts, OFFSET(rngPSA.Samples.Costs, 0, ($D12-1)*6 + $AG12-1), "(" & TEXT(PERCENTILE(_xlpm.arrCosts, 0.025), "£#,##0;−£#,##0") & " to " & TEXT(PERCENTILE(_xlpm.arrCosts, 0.975), "£#,##0;−£#,##0") & ")") -> (£211 to £365) | AK12: =INDEX(OFFSET(rngPSA.MeanQALYs.Root, 0, (D12-1)*6), AG12) -> 6.702 | AL12: =_xlfn.LET(_xlpm.arrQALYs, OFFSET(rngPSA.Samples.QALYs, 0, ($D12-1)*6 + $AG12-1), "(" & TEXT(PERCENTILE(_xlpm.arrQALYs, 0.025), "0.000") & " to " & TEXT(PERCENTILE(_xlpm.arrQALYs, 0.975), "0.000") & ")") -> (6.633 to 6.768) | AM12: =IFERROR(INDEX(rngPSA.MeanLYs, AG12), "") -> 
D13: 2 | F13: =MATCH(SMALL(AI12:AI13, AG13), AI12:AI13, 0) -> 1 | G13: =INDEX(rngStrats, F13) -> HPE | H13: =IFERROR(INDEX(AI12:AI13, F13), "") -> £277 | I13: =_xlfn.LET(_xlpm.arrCosts, OFFSET(rngPSA.Samples.Costs, 0, (D13-1)*6 + F13-1), "(" & TEXT(PERCENTILE(_xlpm.arrCosts, 0.025), "£#,##0;−£#,##0") & " to " & TEXT(PERCENTILE(_xlpm.arrCosts, 0.975), "£#,##0;−£#,##0") & ")") -> (£211 to £365) | J13: =IFERROR(INDEX(AK12:AK13, F13), "") -> 6.702 | K13: =_xlfn.LET(_xlpm.arrQALYs, OFFSET(rngPSA.Samples.QALYs, 0, (D13-1)*6 + F13-1), "(" & TEXT(PERCENTILE(_xlpm.arrQALYs, 0.025), "0.000") & " to " & TEXT(PERCENTILE(_xlpm.arrQALYs, 0.975), "0.000") & ")") -> (6.633 to 6.768) | L13: 6.688 | M13: =_xlfn.LET(_xlpm.arrNHB, OFFSET(rngPSA.Samples.QALYs, 0, (D13-1)*6 + F13-1) - OFFSET(rngPSA.Samples.Costs, 0, (D13-1)*6 + F13-1)/L$6, "(" & TEXT(PERCENTILE(_xlpm.arrNHB, 0.025), "0.000") & " to " & TEXT(PERCENTILE(_xlpm.arrNHB, 0.975), "0.000") & ")") -> (6.617 to 6.754) | N13: 6.692 | O13: =_xlfn.LET(_xlpm.arrNHB, OFFSET(rngPSA.Samples.QALYs, 0, (D13-1)*6 + F13-1) - OFFSET(rngPSA.Samples.Costs, 0, (D13-1)*6 + F13-1)/N$6, "(" & TEXT(PERCENTILE(_xlpm.arrNHB, 0.025), "0.000") & " to " & TEXT(PERCENTILE(_xlpm.arrNHB, 0.975), "0.000") & ")") -> (6.623 to 6.759) | Q13: =IF($AG13=1, "", H13-H12) -> £24 | R13: =_xlfn.LET(_xlpm.arrIncCosts, OFFSET(rngPSA.Samples.Costs, 0, ($D13-1)*6 + $F13-1)-OFFSET(rngPSA.Samples.Costs, 0, ($D13-1)*6 + $F12-1), IF(AG13=1, "", "(" & TEXT(PERCENTILE(_xlpm.arrIncCosts, 0.025), "£#,##0;−£#,##0") & " to " & TEXT(PERCENTILE(_xlpm.arrIncCosts, 0.975), "£#,##0;−£#,##0") & ")")) -> (£7 to £45) | S13: =IF($AG13=1, "", J13-J12) -> -0.015 | T13: =_xlfn.LET(_xlpm.arrIncQALYs, OFFSET(rngPSA.Samples.QALYs, 0, ($D13-1)*6 + $F13-1)-OFFSET(rngPSA.Samples.QALYs, 0, ($D13-1)*6 + $F12-1), IF($AG13=1, "", "(" & TEXT(PERCENTILE(_xlpm.arrIncQALYs, 0.025), "0.000;−0.000") & " to " & TEXT(PERCENTILE(_xlpm.arrIncQALYs, 0.975), "0.000;−0.000") & ")")) -> (−0.019 to −0.010) | U13: =IF($AG13=1, "", IF(AND(Q13>0, S13<0), "dominated", Q13/S13)) -> dominated | W13: =IF(F13=swtchResults.PSA.Baseline, "-", H13-INDEX(AI12:AI13, swtchResults.PSA.Baseline)) -> £24 | X13: =IF(F13=swtchResults.PSA.Baseline, "-", "(" & TEXT(PERCENTILE(OFFSET(rngPSA.Samples.Costs, 0, (D13-1)*6 + F13-1)-OFFSET(rngPSA.Samples.Costs, 0, (D13-1)*6 + swtchResults.PSA.Baseline-1), 0.025), "£#,##0;−£#,##0") & " to " & TEXT(PERCENTILE(OFFSET(rngPSA.Samples.Costs, 0, (D13-1)*6 + F13-1)-OFFSET(rngPSA.Samples.Costs, 0, (D13-1)*6 + swtchResults.PSA.Baseline-1), 0.975), "£#,##0;−£#,##0") & ")") -> (£7 to £45) | Y13: =IF(F13=swtchResults.PSA.Baseline, "-", J13-INDEX(AK12:AK13, swtchResults.PSA.Baseline)) -> -0.015 | Z13: =IF(F13=swtchResults.PSA.Baseline, "-", "(" & TEXT(PERCENTILE(OFFSET(rngPSA.Samples.QALYs, 0, (D13-1)*6 + F13-1)-OFFSET(rngPSA.Samples.QALYs, 0, (D13-1)*6 + swtchResults.PSA.Baseline-1), 0.025), "0.000;−0.000") & " to " & TEXT(PERCENTILE(OFFSET(rngPSA.Samples.QALYs, 0, (D13-1)*6 + F13-1)-OFFSET(rngPSA.Samples.QALYs, 0, (D13-1)*6 + swtchResults.PSA.Baseline-1), 0.975), "0.000;−0.000") & ")") -> (−0.019 to −0.010) | AA13: =IF(F13=swtchResults.PSA.Baseline, "-", Y13-W13/AA$7) -> -0.016 | AB13: =_xlfn.LET(_xlpm.arrNHB, (OFFSET(rngPSA.Samples.QALYs, 0, (D13-1)*6 + F13-1)-OFFSET(rngPSA.Samples.QALYs, 0, (D13-1)*6 + swtchResults.PSA.Baseline-1)) - (OFFSET(rngPSA.Samples.Costs, 0, (D13-1)*6 + F13-1)-OFFSET(rngPSA.Samples.Costs, 0, (D13-1)*6 + swtchResults.PSA.Baseline-1))/AA$7, IF(F13=swtchResults.PSA.Baseline, "-", "(" & TEXT(PERCENTILE(_xlpm.arrNHB, 0.025), "0.000;−0.000") & " to " & TEXT(PERCENTILE(_xlpm.arrNHB, 0.975), "0.000;−0.000") & ")")) -> (−0.021 to −0.011) | AC13: =IF(F13=swtchResults.PSA.Baseline, "-", Y13-W13/AC$7) -> -0.015 | AD13: =_xlfn.LET(_xlpm.arrNHB, (OFFSET(rngPSA.Samples.QALYs, 0, (D13-1)*6 + F13-1)-OFFSET(rngPSA.Samples.QALYs, 0, (D13-1)*6 + swtchResults.PSA.Baseline-1)) - (OFFSET(rngPSA.Samples.Costs, 0, (D13-1)*6 + F13-1)-OFFSET(rngPSA.Samples.Costs, 0, (D13-1)*6 + swtchResults.PSA.Baseline-1))/AC$7, IF(F13=swtchResults.PSA.Baseline, "-", "(" & TEXT(PERCENTILE(_xlpm.arrNHB, 0.025), "0.000;−0.000") & " to " & TEXT(PERCENTILE(_xlpm.arrNHB, 0.975), "0.000;−0.000") & ")")) -> (−0.020 to −0.010) | AE13: =IF(F13=swtchResults.PSA.Baseline, "ref", IF(AND(W13<=0, Y13>0), "dominant", IF(AND(W13>0, Y13<0), "dominated", W13/Y13))) -> dominated | AG13: 2 | AH13: No HPE | AI13: =INDEX(OFFSET(rngPSA.MeanCosts.Root, 0, (D13-1)*6), AG13) -> £253.05 | AJ13: =_xlfn.LET(_xlpm.arrCosts, OFFSET(rngPSA.Samples.Costs, 0, ($D13-1)*6 + $AG13-1), "(" & TEXT(PERCENTILE(_xlpm.arrCosts, 0.025), "£#,##0;−£#,##0") & " to " & TEXT(PERCENTILE(_xlpm.arrCosts, 0.975), "£#,##0;−£#,##0") & ")") -> (£188 to £340) | AK13: =INDEX(OFFSET(rngPSA.MeanQALYs.Root, 0, (D13-1)*6), AG13) -> 6.716 | AL13: =_xlfn.LET(_xlpm.arrQALYs, OFFSET(rngPSA.Samples.QALYs, 0, ($D13-1)*6 + $AG13-1), "(" & TEXT(PERCENTILE(_xlpm.arrQALYs, 0.025), "0.000") & " to " & TEXT(PERCENTILE(_xlpm.arrQALYs, 0.975), "0.000") & ")") -> (6.645 to 6.784) | AM13: =IFERROR(INDEX(rngPSA.MeanLYs, AG13), "") -> 
D14: 3 | F14: =INDEX(lstQs, D14) -> C: NSAIDs - DOAC/warfarin
D15: 3 | F15: =MATCH(SMALL(AI15:AI16, AG15), AI15:AI16, 0) -> 2 | G15: =INDEX(rngStrats, F15) -> No HPE | H15: =IFERROR(INDEX(AI15:AI16, F15), "") -> £1,432 | I15: =_xlfn.LET(_xlpm.arrCosts, OFFSET(rngPSA.Samples.Costs, 0, (D15-1)*6 + F15-1), "(" & TEXT(PERCENTILE(_xlpm.arrCosts, 0.025), "£#,##0;−£#,##0") & " to " & TEXT(PERCENTILE(_xlpm.arrCosts, 0.975), "£#,##0;−£#,##0") & ")") -> (£1,002 to £1,960) | J15: =IFERROR(INDEX(AK15:AK16, F15), "") -> 4.906 | K15: =_xlfn.LET(_xlpm.arrQALYs, OFFSET(rngPSA.Samples.QALYs, 0, (D15-1)*6 + F15-1), "(" & TEXT(PERCENTILE(_xlpm.arrQALYs, 0.025), "0.000") & " to " & TEXT(PERCENTILE(_xlpm.arrQALYs, 0.975), "0.000") & ")") -> (4.710 to 5.105) | L15: 4.834 | M15: =_xlfn.LET(_xlpm.arrNHB, OFFSET(rngPSA.Samples.QALYs, 0, (D15-1)*6 + F15-1) - OFFSET(rngPSA.Samples.Costs, 0, (D15-1)*6 + F15-1)/L$6, "(" & TEXT(PERCENTILE(_xlpm.arrNHB, 0.025), "0.000") & " to " & TEXT(PERCENTILE(_xlpm.arrNHB, 0.975), "0.000") & ")") -> (4.635 to 5.036) | N15: 4.858 | O15: =_xlfn.LET(_xlpm.arrNHB, OFFSET(rngPSA.Samples.QALYs, 0, (D15-1)*6 + F15-1) - OFFSET(rngPSA.Samples.Costs, 0, (D15-1)*6 + F15-1)/N$6, "(" & TEXT(PERCENTILE(_xlpm.arrNHB, 0.025), "0.000") & " to " & TEXT(PERCENTILE(_xlpm.arrNHB, 0.975), "0.000") & ")") -> (4.662 to 5.056) | Q15: =IF($AG15=1, "", H15-H13) ->  | R15: =_xlfn.LET(_xlpm.arrIncCosts, OFFSET(rngPSA.Samples.Costs, 0, ($D15-1)*6 + $F15-1)-OFFSET(rngPSA.Samples.Costs, 0, ($D15-1)*6 + $F13-1), IF(AG15=1, "", "(" & TEXT(PERCENTILE(_xlpm.arrIncCosts, 0.025), "£#,##0;−£#,##0") & " to " & TEXT(PERCENTILE(_xlpm.arrIncCosts, 0.975), "£#,##0;−£#,##0") & ")")) ->  | S15: =IF($AG15=1, "", J15-J13) ->  | T15: =_xlfn.LET(_xlpm.arrIncQALYs, OFFSET(rngPSA.Samples.QALYs, 0, ($D15-1)*6 + $F15-1)-OFFSET(rngPSA.Samples.QALYs, 0, ($D15-1)*6 + $F13-1), IF($AG15=1, "", "(" & TEXT(PERCENTILE(_xlpm.arrIncQALYs, 0.025), "0.000;−0.000") & " to " & TEXT(PERCENTILE(_xlpm.arrIncQALYs, 0.975), "0.000;−0.000") & ")")) ->  | U15: =IF($AG15=1, "", IF(AND(Q15>0, S15<0), "dominated", Q15/S15)) ->  | W15: =IF(F15=swtchResults.PSA.Baseline, "-", H15-INDEX(AI15:AI16, swtchResults.PSA.Baseline)) -> - | X15: =IF(F15=swtchResults.PSA.Baseline, "-", "(" & TEXT(PERCENTILE(OFFSET(rngPSA.Samples.Costs, 0, (D15-1)*6 + F15-1)-OFFSET(rngPSA.Samples.Costs, 0, (D15-1)*6 + swtchResults.PSA.Baseline-1), 0.025), "£#,##0;−£#,##0") & " to " & TEXT(PERCENTILE(OFFSET(rngPSA.Samples.Costs, 0, (D15-1)*6 + F15-1)-OFFSET(rngPSA.Samples.Costs, 0, (D15-1)*6 + swtchResults.PSA.Baseline-1), 0.975), "£#,##0;−£#,##0") & ")") -> - | Y15: =IF(F15=swtchResults.PSA.Baseline, "-", J15-INDEX(AK15:AK16, swtchResults.PSA.Baseline)) -> - | Z15: =IF(F15=swtchResults.PSA.Baseline, "-", "(" & TEXT(PERCENTILE(OFFSET(rngPSA.Samples.QALYs, 0, (D15-1)*6 + F15-1)-OFFSET(rngPSA.Samples.QALYs, 0, (D15-1)*6 + swtchResults.PSA.Baseline-1), 0.025), "0.000;−0.000") & " to " & TEXT(PERCENTILE(OFFSET(rngPSA.Samples.QALYs, 0, (D15-1)*6 + F15-1)-OFFSET(rngPSA.Samples.QALYs, 0, (D15-1)*6 + swtchResults.PSA.Baseline-1), 0.975), "0.000;−0.000") & ")") -> - | AA15: =IF(F15=swtchResults.PSA.Baseline, "-", Y15-W15/AA$7) -> - | AB15: =_xlfn.LET(_xlpm.arrNHB, (OFFSET(rngPSA.Samples.QALYs, 0, (D15-1)*6 + F15-1)-OFFSET(rngPSA.Samples.QALYs, 0, (D15-1)*6 + swtchResults.PSA.Baseline-1)) - (OFFSET(rngPSA.Samples.Costs, 0, (D15-1)*6 + F15-1)-OFFSET(rngPSA.Samples.Costs, 0, (D15-1)*6 + swtchResults.PSA.Baseline-1))/AA$7, IF(F15=swtchResults.PSA.Baseline, "-", "(" & TEXT(PERCENTILE(_xlpm.arrNHB, 0.025), "0.000;−0.000") & " to " & TEXT(PERCENTILE(_xlpm.arrNHB, 0.975), "0.000;−0.000") & ")")) -> - | AC15: =IF(F15=swtchResults.PSA.Baseline, "-", Y15-W15/AC$7) -> - | AD15: =_xlfn.LET(_xlpm.arrNHB, (OFFSET(rngPSA.Samples.QALYs, 0, (D15-1)*6 + F15-1)-OFFSET(rngPSA.Samples.QALYs, 0, (D15-1)*6 + swtchResults.PSA.Baseline-1)) - (OFFSET(rngPSA.Samples.Costs, 0, (D15-1)*6 + F15-1)-OFFSET(rngPSA.Samples.Costs, 0, (D15-1)*6 + swtchResults.PSA.Baseline-1))/AC$7, IF(F15=swtchResults.PSA.Baseline, "-", "(" & TEXT(PERCENTILE(_xlpm.arrNHB, 0.025), "0.000;−0.000") & " to " & TEXT(PERCENTILE(_xlpm.arrNHB, 0.975), "0.000;−0.000") & ")")) -> - | AE15: =IF(F15=swtchResults.PSA.Baseline, "ref", IF(AND(W15<=0, Y15>0), "dominant", IF(AND(W15>0, Y15<0), "dominated", W15/Y15))) -> ref | AG15: 1 | AH15: HPE | AI15: =INDEX(OFFSET(rngPSA.MeanCosts.Root, 0, (D15-1)*6), AG15) -> £2,519.64 | AJ15: =_xlfn.LET(_xlpm.arrCosts, OFFSET(rngPSA.Samples.Costs, 0, ($D15-1)*6 + $AG15-1), "(" & TEXT(PERCENTILE(_xlpm.arrCosts, 0.025), "£#,##0;−£#,##0") & " to " & TEXT(PERCENTILE(_xlpm.arrCosts, 0.975), "£#,##0;−£#,##0") & ")") -> (£1,427 to £4,285) | AK15: =INDEX(OFFSET(rngPSA.MeanQALYs.Root, 0, (D15-1)*6), AG15) -> 4.813 | AL15: =_xlfn.LET(_xlpm.arrQALYs, OFFSET(rngPSA.Samples.QALYs, 0, ($D15-1)*6 + $AG15-1), "(" & TEXT(PERCENTILE(_xlpm.arrQALYs, 0.025), "0.000") & " to " & TEXT(PERCENTILE(_xlpm.arrQALYs, 0.975), "0.000") & ")") -> (4.605 to 5.020) | AM15: =IFERROR(INDEX(rngPSA.MeanLYs, AG15), "") -> 
D16: 3 | F16: =MATCH(SMALL(AI15:AI16, AG16), AI15:AI16, 0) -> 1 | G16: =INDEX(rngStrats, F16) -> HPE | H16: =IFERROR(INDEX(AI15:AI16, F16), "") -> £2,520 | I16: =_xlfn.LET(_xlpm.arrCosts, OFFSET(rngPSA.Samples.Costs, 0, (D16-1)*6 + F16-1), "(" & TEXT(PERCENTILE(_xlpm.arrCosts, 0.025), "£#,##0;−£#,##0") & " to " & TEXT(PERCENTILE(_xlpm.arrCosts, 0.975), "£#,##0;−£#,##0") & ")") -> (£1,427 to £4,285) | J16: =IFERROR(INDEX(AK15:AK16, F16), "") -> 4.813 | K16: =_xlfn.LET(_xlpm.arrQALYs, OFFSET(rngPSA.Samples.QALYs, 0, (D16-1)*6 + F16-1), "(" & TEXT(PERCENTILE(_xlpm.arrQALYs, 0.025), "0.000") & " to " & TEXT(PERCENTILE(_xlpm.arrQALYs, 0.975), "0.000") & ")") -> (4.605 to 5.020) | L16: 4.687 | M16: =_xlfn.LET(_xlpm.arrNHB, OFFSET(rngPSA.Samples.QALYs, 0, (D16-1)*6 + F16-1) - OFFSET(rngPSA.Samples.Costs, 0, (D16-1)*6 + F16-1)/L$6, "(" & TEXT(PERCENTILE(_xlpm.arrNHB, 0.025), "0.000") & " to " & TEXT(PERCENTILE(_xlpm.arrNHB, 0.975), "0.000") & ")") -> (4.448 to 4.915) | N16: 4.729 | O16: =_xlfn.LET(_xlpm.arrNHB, OFFSET(rngPSA.Samples.QALYs, 0, (D16-1)*6 + F16-1) - OFFSET(rngPSA.Samples.Costs, 0, (D16-1)*6 + F16-1)/N$6, "(" & TEXT(PERCENTILE(_xlpm.arrNHB, 0.025), "0.000") & " to " & TEXT(PERCENTILE(_xlpm.arrNHB, 0.975), "0.000") & ")") -> (4.511 to 4.949) | Q16: =IF($AG16=1, "", H16-H15) -> £1,087 | R16: =_xlfn.LET(_xlpm.arrIncCosts, OFFSET(rngPSA.Samples.Costs, 0, ($D16-1)*6 + $F16-1)-OFFSET(rngPSA.Samples.Costs, 0, ($D16-1)*6 + $F15-1), IF(AG16=1, "", "(" & TEXT(PERCENTILE(_xlpm.arrIncCosts, 0.025), "£#,##0;−£#,##0") & " to " & TEXT(PERCENTILE(_xlpm.arrIncCosts, 0.975), "£#,##0;−£#,##0") & ")")) -> (£246 to £2,571) | S16: =IF($AG16=1, "", J16-J15) -> -0.092 | T16: =_xlfn.LET(_xlpm.arrIncQALYs, OFFSET(rngPSA.Samples.QALYs, 0, ($D16-1)*6 + $F16-1)-OFFSET(rngPSA.Samples.QALYs, 0, ($D16-1)*6 + $F15-1), IF($AG16=1, "", "(" & TEXT(PERCENTILE(_xlpm.arrIncQALYs, 0.025), "0.000;−0.000") & " to " & TEXT(PERCENTILE(_xlpm.arrIncQALYs, 0.975), "0.000;−0.000") & ")")) -> (−0.175 to −0.037) | U16: =IF($AG16=1, "", IF(AND(Q16>0, S16<0), "dominated", Q16/S16)) -> dominated | W16: =IF(F16=swtchResults.PSA.Baseline, "-", H16-INDEX(AI15:AI16, swtchResults.PSA.Baseline)) -> £1,087 | X16: =IF(F16=swtchResults.PSA.Baseline, "-", "(" & TEXT(PERCENTILE(OFFSET(rngPSA.Samples.Costs, 0, (D16-1)*6 + F16-1)-OFFSET(rngPSA.Samples.Costs, 0, (D16-1)*6 + swtchResults.PSA.Baseline-1), 0.025), "£#,##0;−£#,##0") & " to " & TEXT(PERCENTILE(OFFSET(rngPSA.Samples.Costs, 0, (D16-1)*6 + F16-1)-OFFSET(rngPSA.Samples.Costs, 0, (D16-1)*6 + swtchResults.PSA.Baseline-1), 0.975), "£#,##0;−£#,##0") & ")") -> (£246 to £2,571) | Y16: =IF(F16=swtchResults.PSA.Baseline, "-", J16-INDEX(AK15:AK16, swtchResults.PSA.Baseline)) -> -0.092 | Z16: =IF(F16=swtchResults.PSA.Baseline, "-", "(" & TEXT(PERCENTILE(OFFSET(rngPSA.Samples.QALYs, 0, (D16-1)*6 + F16-1)-OFFSET(rngPSA.Samples.QALYs, 0, (D16-1)*6 + swtchResults.PSA.Baseline-1), 0.025), "0.000;−0.000") & " to " & TEXT(PERCENTILE(OFFSET(rngPSA.Samples.QALYs, 0, (D16-1)*6 + F16-1)-OFFSET(rngPSA.Samples.QALYs, 0, (D16-1)*6 + swtchResults.PSA.Baseline-1), 0.975), "0.000;−0.000") & ")") -> (−0.175 to −0.037) | AA16: =IF(F16=swtchResults.PSA.Baseline, "-", Y16-W16/AA$7) -> -0.147 | AB16: =_xlfn.LET(_xlpm.arrNHB, (OFFSET(rngPSA.Samples.QALYs, 0, (D16-1)*6 + F16-1)-OFFSET(rngPSA.Samples.QALYs, 0, (D16-1)*6 + swtchResults.PSA.Baseline-1)) - (OFFSET(rngPSA.Samples.Costs, 0, (D16-1)*6 + F16-1)-OFFSET(rngPSA.Samples.Costs, 0, (D16-1)*6 + swtchResults.PSA.Baseline-1))/AA$7, IF(F16=swtchResults.PSA.Baseline, "-", "(" & TEXT(PERCENTILE(_xlpm.arrNHB, 0.025), "0.000;−0.000") & " to " & TEXT(PERCENTILE(_xlpm.arrNHB, 0.975), "0.000;−0.000") & ")")) -> (−0.303 to −0.050) | AC16: =IF(F16=swtchResults.PSA.Baseline, "-", Y16-W16/AC$7) -> -0.128 | AD16: =_xlfn.LET(_xlpm.arrNHB, (OFFSET(rngPSA.Samples.QALYs, 0, (D16-1)*6 + F16-1)-OFFSET(rngPSA.Samples.QALYs, 0, (D16-1)*6 + swtchResults.PSA.Baseline-1)) - (OFFSET(rngPSA.Samples.Costs, 0, (D16-1)*6 + F16-1)-OFFSET(rngPSA.Samples.Costs, 0, (D16-1)*6 + swtchResults.PSA.Baseline-1))/AC$7, IF(F16=swtchResults.PSA.Baseline, "-", "(" & TEXT(PERCENTILE(_xlpm.arrNHB, 0.025), "0.000;−0.000") & " to " & TEXT(PERCENTILE(_xlpm.arrNHB, 0.975), "0.000;−0.000") & ")")) -> (−0.262 to −0.045) | AE16: =IF(F16=swtchResults.PSA.Baseline, "ref", IF(AND(W16<=0, Y16>0), "dominant", IF(AND(W16>0, Y16<0), "dominated", W16/Y16))) -> dominated | AG16: 2 | AH16: No HPE | AI16: =INDEX(OFFSET(rngPSA.MeanCosts.Root, 0, (D16-1)*6), AG16) -> £1,432.36 | AJ16: =_xlfn.LET(_xlpm.arrCosts, OFFSET(rngPSA.Samples.Costs, 0, ($D16-1)*6 + $AG16-1), "(" & TEXT(PERCENTILE(_xlpm.arrCosts, 0.025), "£#,##0;−£#,##0") & " to " & TEXT(PERCENTILE(_xlpm.arrCosts, 0.975), "£#,##0;−£#,##0") & ")") -> (£1,002 to £1,960) | AK16: =INDEX(OFFSET(rngPSA.MeanQALYs.Root, 0, (D16-1)*6), AG16) -> 4.906 | AL16: =_xlfn.LET(_xlpm.arrQALYs, OFFSET(rngPSA.Samples.QALYs, 0, ($D16-1)*6 + $AG16-1), "(" & TEXT(PERCENTILE(_xlpm.arrQALYs, 0.025), "0.000") & " to " & TEXT(PERCENTILE(_xlpm.arrQALYs, 0.975), "0.000") & ")") -> (4.710 to 5.105) | AM16: =IFERROR(INDEX(rngPSA.MeanLYs, AG16), "") -> 
D17: 4 | F17: =INDEX(lstQs, D17) -> D: NSAIDs - HF
D18: 4 | F18: =MATCH(SMALL(AI18:AI19, AG18), AI18:AI19, 0) -> 2 | G18: =INDEX(rngStrats, F18) -> No HPE | H18: =IFERROR(INDEX(AI18:AI19, F18), "") -> £12,585 | I18: =_xlfn.LET(_xlpm.arrCosts, OFFSET(rngPSA.Samples.Costs, 0, (D18-1)*6 + F18-1), "(" & TEXT(PERCENTILE(_xlpm.arrCosts, 0.025), "£#,##0;−£#,##0") & " to " & TEXT(PERCENTILE(_xlpm.arrCosts, 0.975), "£#,##0;−£#,##0") & ")") -> (£8,258 to £17,664) | J18: =IFERROR(INDEX(AK18:AK19, F18), "") -> 3.050 | K18: =_xlfn.LET(_xlpm.arrQALYs, OFFSET(rngPSA.Samples.QALYs, 0, (D18-1)*6 + F18-1), "(" & TEXT(PERCENTILE(_xlpm.arrQALYs, 0.025), "0.000") & " to " & TEXT(PERCENTILE(_xlpm.arrQALYs, 0.975), "0.000") & ")") -> (2.840 to 3.252) | L18: 2.421 | M18: =_xlfn.LET(_xlpm.arrNHB, OFFSET(rngPSA.Samples.QALYs, 0, (D18-1)*6 + F18-1) - OFFSET(rngPSA.Samples.Costs, 0, (D18-1)*6 + F18-1)/L$6, "(" & TEXT(PERCENTILE(_xlpm.arrNHB, 0.025), "0.000") & " to " & TEXT(PERCENTILE(_xlpm.arrNHB, 0.975), "0.000") & ")") -> (2.094 to 2.708) | N18: 2.631 | O18: =_xlfn.LET(_xlpm.arrNHB, OFFSET(rngPSA.Samples.QALYs, 0, (D18-1)*6 + F18-1) - OFFSET(rngPSA.Samples.Costs, 0, (D18-1)*6 + F18-1)/N$6, "(" & TEXT(PERCENTILE(_xlpm.arrNHB, 0.025), "0.000") & " to " & TEXT(PERCENTILE(_xlpm.arrNHB, 0.975), "0.000") & ")") -> (2.363 to 2.885) | Q18: =IF($AG18=1, "", H18-H16) ->  | R18: =_xlfn.LET(_xlpm.arrIncCosts, OFFSET(rngPSA.Samples.Costs, 0, ($D18-1)*6 + $F18-1)-OFFSET(rngPSA.Samples.Costs, 0, ($D18-1)*6 + $F16-1), IF(AG18=1, "", "(" & TEXT(PERCENTILE(_xlpm.arrIncCosts, 0.025), "£#,##0;−£#,##0") & " to " & TEXT(PERCENTILE(_xlpm.arrIncCosts, 0.975), "£#,##0;−£#,##0") & ")")) ->  | S18: =IF($AG18=1, "", J18-J16) ->  | T18: =_xlfn.LET(_xlpm.arrIncQALYs, OFFSET(rngPSA.Samples.QALYs, 0, ($D18-1)*6 + $F18-1)-OFFSET(rngPSA.Samples.QALYs, 0, ($D18-1)*6 + $F16-1), IF($AG18=1, "", "(" & TEXT(PERCENTILE(_xlpm.arrIncQALYs, 0.025), "0.000;−0.000") & " to " & TEXT(PERCENTILE(_xlpm.arrIncQALYs, 0.975), "0.000;−0.000") & ")")) ->  | U18: =IF($AG18=1, "", IF(AND(Q18>0, S18<0), "dominated", Q18/S18)) ->  | W18: =IF(F18=swtchResults.PSA.Baseline, "-", H18-INDEX(AI18:AI19, swtchResults.PSA.Baseline)) -> - | X18: =IF(F18=swtchResults.PSA.Baseline, "-", "(" & TEXT(PERCENTILE(OFFSET(rngPSA.Samples.Costs, 0, (D18-1)*6 + F18-1)-OFFSET(rngPSA.Samples.Costs, 0, (D18-1)*6 + swtchResults.PSA.Baseline-1), 0.025), "£#,##0;−£#,##0") & " to " & TEXT(PERCENTILE(OFFSET(rngPSA.Samples.Costs, 0, (D18-1)*6 + F18-1)-OFFSET(rngPSA.Samples.Costs, 0, (D18-1)*6 + swtchResults.PSA.Baseline-1), 0.975), "£#,##0;−£#,##0") & ")") -> - | Y18: =IF(F18=swtchResults.PSA.Baseline, "-", J18-INDEX(AK18:AK19, swtchResults.PSA.Baseline)) -> - | Z18: =IF(F18=swtchResults.PSA.Baseline, "-", "(" & TEXT(PERCENTILE(OFFSET(rngPSA.Samples.QALYs, 0, (D18-1)*6 + F18-1)-OFFSET(rngPSA.Samples.QALYs, 0, (D18-1)*6 + swtchResults.PSA.Baseline-1), 0.025), "0.000;−0.000") & " to " & TEXT(PERCENTILE(OFFSET(rngPSA.Samples.QALYs, 0, (D18-1)*6 + F18-1)-OFFSET(rngPSA.Samples.QALYs, 0, (D18-1)*6 + swtchResults.PSA.Baseline-1), 0.975), "0.000;−0.000") & ")") -> - | AA18: =IF(F18=swtchResults.PSA.Baseline, "-", Y18-W18/AA$7) -> - | AB18: =_xlfn.LET(_xlpm.arrNHB, (OFFSET(rngPSA.Samples.QALYs, 0, (D18-1)*6 + F18-1)-OFFSET(rngPSA.Samples.QALYs, 0, (D18-1)*6 + swtchResults.PSA.Baseline-1)) - (OFFSET(rngPSA.Samples.Costs, 0, (D18-1)*6 + F18-1)-OFFSET(rngPSA.Samples.Costs, 0, (D18-1)*6 + swtchResults.PSA.Baseline-1))/AA$7, IF(F18=swtchResults.PSA.Baseline, "-", "(" & TEXT(PERCENTILE(_xlpm.arrNHB, 0.025), "0.000;−0.000") & " to " & TEXT(PERCENTILE(_xlpm.arrNHB, 0.975), "0.000;−0.000") & ")")) -> - | AC18: =IF(F18=swtchResults.PSA.Baseline, "-", Y18-W18/AC$7) -> - | AD18: =_xlfn.LET(_xlpm.arrNHB, (OFFSET(rngPSA.Samples.QALYs, 0, (D18-1)*6 + F18-1)-OFFSET(rngPSA.Samples.QALYs, 0, (D18-1)*6 + swtchResults.PSA.Baseline-1)) - (OFFSET(rngPSA.Samples.Costs, 0, (D18-1)*6 + F18-1)-OFFSET(rngPSA.Samples.Costs, 0, (D18-1)*6 + swtchResults.PSA.Baseline-1))/AC$7, IF(F18=swtchResults.PSA.Baseline, "-", "(" & TEXT(PERCENTILE(_xlpm.arrNHB, 0.025), "0.000;−0.000") & " to " & TEXT(PERCENTILE(_xlpm.arrNHB, 0.975), "0.000;−0.000") & ")")) -> - | AE18: =IF(F18=swtchResults.PSA.Baseline, "ref", IF(AND(W18<=0, Y18>0), "dominant", IF(AND(W18>0, Y18<0), "dominated", W18/Y18))) -> ref | AG18: 1 | AH18: HPE | AI18: =INDEX(OFFSET(rngPSA.MeanCosts.Root, 0, (D18-1)*6), AG18) -> £12,596.92 | AJ18: =_xlfn.LET(_xlpm.arrCosts, OFFSET(rngPSA.Samples.Costs, 0, ($D18-1)*6 + $AG18-1), "(" & TEXT(PERCENTILE(_xlpm.arrCosts, 0.025), "£#,##0;−£#,##0") & " to " & TEXT(PERCENTILE(_xlpm.arrCosts, 0.975), "£#,##0;−£#,##0") & ")") -> (£8,264 to £17,706) | AK18: =INDEX(OFFSET(rngPSA.MeanQALYs.Root, 0, (D18-1)*6), AG18) -> 3.003 | AL18: =_xlfn.LET(_xlpm.arrQALYs, OFFSET(rngPSA.Samples.QALYs, 0, ($D18-1)*6 + $AG18-1), "(" & TEXT(PERCENTILE(_xlpm.arrQALYs, 0.025), "0.000") & " to " & TEXT(PERCENTILE(_xlpm.arrQALYs, 0.975), "0.000") & ")") -> (2.795 to 3.204) | AM18: =IFERROR(INDEX(rngPSA.MeanLYs, AG18), "") -> 
D19: 4 | F19: =MATCH(SMALL(AI18:AI19, AG19), AI18:AI19, 0) -> 1 | G19: =INDEX(rngStrats, F19) -> HPE | H19: =IFERROR(INDEX(AI18:AI19, F19), "") -> £12,597 | I19: =_xlfn.LET(_xlpm.arrCosts, OFFSET(rngPSA.Samples.Costs, 0, (D19-1)*6 + F19-1), "(" & TEXT(PERCENTILE(_xlpm.arrCosts, 0.025), "£#,##0;−£#,##0") & " to " & TEXT(PERCENTILE(_xlpm.arrCosts, 0.975), "£#,##0;−£#,##0") & ")") -> (£8,264 to £17,706) | J19: =IFERROR(INDEX(AK18:AK19, F19), "") -> 3.003 | K19: =_xlfn.LET(_xlpm.arrQALYs, OFFSET(rngPSA.Samples.QALYs, 0, (D19-1)*6 + F19-1), "(" & TEXT(PERCENTILE(_xlpm.arrQALYs, 0.025), "0.000") & " to " & TEXT(PERCENTILE(_xlpm.arrQALYs, 0.975), "0.000") & ")") -> (2.795 to 3.204) | L19: 2.374 | M19: =_xlfn.LET(_xlpm.arrNHB, OFFSET(rngPSA.Samples.QALYs, 0, (D19-1)*6 + F19-1) - OFFSET(rngPSA.Samples.Costs, 0, (D19-1)*6 + F19-1)/L$6, "(" & TEXT(PERCENTILE(_xlpm.arrNHB, 0.025), "0.000") & " to " & TEXT(PERCENTILE(_xlpm.arrNHB, 0.975), "0.000") & ")") -> (2.048 to 2.667) | N19: 2.584 | O19: =_xlfn.LET(_xlpm.arrNHB, OFFSET(rngPSA.Samples.QALYs, 0, (D19-1)*6 + F19-1) - OFFSET(rngPSA.Samples.Costs, 0, (D19-1)*6 + F19-1)/N$6, "(" & TEXT(PERCENTILE(_xlpm.arrNHB, 0.025), "0.000") & " to " & TEXT(PERCENTILE(_xlpm.arrNHB, 0.975), "0.000") & ")") -> (2.315 to 2.837) | Q19: =IF($AG19=1, "", H19-H18) -> £12 | R19: =_xlfn.LET(_xlpm.arrIncCosts, OFFSET(rngPSA.Samples.Costs, 0, ($D19-1)*6 + $F19-1)-OFFSET(rngPSA.Samples.Costs, 0, ($D19-1)*6 + $F18-1), IF(AG19=1, "", "(" & TEXT(PERCENTILE(_xlpm.arrIncCosts, 0.025), "£#,##0;−£#,##0") & " to " & TEXT(PERCENTILE(_xlpm.arrIncCosts, 0.975), "£#,##0;−£#,##0") & ")")) -> (−£73 to £96) | S19: =IF($AG19=1, "", J19-J18) -> -0.047 | T19: =_xlfn.LET(_xlpm.arrIncQALYs, OFFSET(rngPSA.Samples.QALYs, 0, ($D19-1)*6 + $F19-1)-OFFSET(rngPSA.Samples.QALYs, 0, ($D19-1)*6 + $F18-1), IF($AG19=1, "", "(" & TEXT(PERCENTILE(_xlpm.arrIncQALYs, 0.025), "0.000;−0.000") & " to " & TEXT(PERCENTILE(_xlpm.arrIncQALYs, 0.975), "0.000;−0.000") & ")")) -> (−0.072 to −0.027) | U19: =IF($AG19=1, "", IF(AND(Q19>0, S19<0), "dominated", Q19/S19)) -> dominated | W19: =IF(F19=swtchResults.PSA.Baseline, "-", H19-INDEX(AI18:AI19, swtchResults.PSA.Baseline)) -> £12 | X19: =IF(F19=swtchResults.PSA.Baseline, "-", "(" & TEXT(PERCENTILE(OFFSET(rngPSA.Samples.Costs, 0, (D19-1)*6 + F19-1)-OFFSET(rngPSA.Samples.Costs, 0, (D19-1)*6 + swtchResults.PSA.Baseline-1), 0.025), "£#,##0;−£#,##0") & " to " & TEXT(PERCENTILE(OFFSET(rngPSA.Samples.Costs, 0, (D19-1)*6 + F19-1)-OFFSET(rngPSA.Samples.Costs, 0, (D19-1)*6 + swtchResults.PSA.Baseline-1), 0.975), "£#,##0;−£#,##0") & ")") -> (−£73 to £96) | Y19: =IF(F19=swtchResults.PSA.Baseline, "-", J19-INDEX(AK18:AK19, swtchResults.PSA.Baseline)) -> -0.047 | Z19: =IF(F19=swtchResults.PSA.Baseline, "-", "(" & TEXT(PERCENTILE(OFFSET(rngPSA.Samples.QALYs, 0, (D19-1)*6 + F19-1)-OFFSET(rngPSA.Samples.QALYs, 0, (D19-1)*6 + swtchResults.PSA.Baseline-1), 0.025), "0.000;−0.000") & " to " & TEXT(PERCENTILE(OFFSET(rngPSA.Samples.QALYs, 0, (D19-1)*6 + F19-1)-OFFSET(rngPSA.Samples.QALYs, 0, (D19-1)*6 + swtchResults.PSA.Baseline-1), 0.975), "0.000;−0.000") & ")") -> (−0.072 to −0.027) | AA19: =IF(F19=swtchResults.PSA.Baseline, "-", Y19-W19/AA$7) -> -0.047 | AB19: =_xlfn.LET(_xlpm.arrNHB, (OFFSET(rngPSA.Samples.QALYs, 0, (D19-1)*6 + F19-1)-OFFSET(rngPSA.Samples.QALYs, 0, (D19-1)*6 + swtchResults.PSA.Baseline-1)) - (OFFSET(rngPSA.Samples.Costs, 0, (D19-1)*6 + F19-1)-OFFSET(rngPSA.Samples.Costs, 0, (D19-1)*6 + swtchResults.PSA.Baseline-1))/AA$7, IF(F19=swtchResults.PSA.Baseline, "-", "(" & TEXT(PERCENTILE(_xlpm.arrNHB, 0.025), "0.000;−0.000") & " to " & TEXT(PERCENTILE(_xlpm.arrNHB, 0.975), "0.000;−0.000") & ")")) -> (−0.069 to −0.030) | AC19: =IF(F19=swtchResults.PSA.Baseline, "-", Y19-W19/AC$7) -> -0.047 | AD19: =_xlfn.LET(_xlpm.arrNHB, (OFFSET(rngPSA.Samples.QALYs, 0, (D19-1)*6 + F19-1)-OFFSET(rngPSA.Samples.QALYs, 0, (D19-1)*6 + swtchResults.PSA.Baseline-1)) - (OFFSET(rngPSA.Samples.Costs, 0, (D19-1)*6 + F19-1)-OFFSET(rngPSA.Samples.Costs, 0, (D19-1)*6 + swtchResults.PSA.Baseline-1))/AC$7, IF(F19=swtchResults.PSA.Baseline, "-", "(" & TEXT(PERCENTILE(_xlpm.arrNHB, 0.025), "0.000;−0.000") & " to " & TEXT(PERCENTILE(_xlpm.arrNHB, 0.975), "0.000;−0.000") & ")")) -> (−0.070 to −0.030) | AE19: =IF(F19=swtchResults.PSA.Baseline, "ref", IF(AND(W19<=0, Y19>0), "dominant", IF(AND(W19>0, Y19<0), "dominated", W19/Y19))) -> dominated | AG19: 2 | AH19: No HPE | AI19: =INDEX(OFFSET(rngPSA.MeanCosts.Root, 0, (D19-1)*6), AG19) -> £12,584.91 | AJ19: =_xlfn.LET(_xlpm.arrCosts, OFFSET(rngPSA.Samples.Costs, 0, ($D19-1)*6 + $AG19-1), "(" & TEXT(PERCENTILE(_xlpm.arrCosts, 0.025), "£#,##0;−£#,##0") & " to " & TEXT(PERCENTILE(_xlpm.arrCosts, 0.975), "£#,##0;−£#,##0") & ")") -> (£8,258 to £17,664) | AK19: =INDEX(OFFSET(rngPSA.MeanQALYs.Root, 0, (D19-1)*6), AG19) -> 3.050 | AL19: =_xlfn.LET(_xlpm.arrQALYs, OFFSET(rngPSA.Samples.QALYs, 0, ($D19-1)*6 + $AG19-1), "(" & TEXT(PERCENTILE(_xlpm.arrQALYs, 0.025), "0.000") & " to " & TEXT(PERCENTILE(_xlpm.arrQALYs, 0.975), "0.000") & ")") -> (2.840 to 3.252) | AM19: =IFERROR(INDEX(rngPSA.MeanLYs, AG19), "") -> 
D20: 5 | F20: =INDEX(lstQs, D20) -> E: NSAIDs - CKD
D21: 5 | F21: =MATCH(SMALL(AI21:AI22, AG21), AI21:AI22, 0) -> 2 | G21: =INDEX(rngStrats, F21) -> No HPE | H21: =IFERROR(INDEX(AI21:AI22, F21), "") -> £50,056 | I21: =_xlfn.LET(_xlpm.arrCosts, OFFSET(rngPSA.Samples.Costs, 0, (D21-1)*6 + F21-1), "(" & TEXT(PERCENTILE(_xlpm.arrCosts, 0.025), "£#,##0;−£#,##0") & " to " & TEXT(PERCENTILE(_xlpm.arrCosts, 0.975), "£#,##0;−£#,##0") & ")") -> (£48,267 to £51,902) | J21: =IFERROR(INDEX(AK21:AK22, F21), "") -> 4.633 | K21: =_xlfn.LET(_xlpm.arrQALYs, OFFSET(rngPSA.Samples.QALYs, 0, (D21-1)*6 + F21-1), "(" & TEXT(PERCENTILE(_xlpm.arrQALYs, 0.025), "0.000") & " to " & TEXT(PERCENTILE(_xlpm.arrQALYs, 0.975), "0.000") & ")") -> (3.930 to 5.180) | L21: 2.130 | M21: =_xlfn.LET(_xlpm.arrNHB, OFFSET(rngPSA.Samples.QALYs, 0, (D21-1)*6 + F21-1) - OFFSET(rngPSA.Samples.Costs, 0, (D21-1)*6 + F21-1)/L$6, "(" & TEXT(PERCENTILE(_xlpm.arrNHB, 0.025), "0.000") & " to " & TEXT(PERCENTILE(_xlpm.arrNHB, 0.975), "0.000") & ")") -> (1.390 to 2.679) | N21: 2.964 | O21: =_xlfn.LET(_xlpm.arrNHB, OFFSET(rngPSA.Samples.QALYs, 0, (D21-1)*6 + F21-1) - OFFSET(rngPSA.Samples.Costs, 0, (D21-1)*6 + F21-1)/N$6, "(" & TEXT(PERCENTILE(_xlpm.arrNHB, 0.025), "0.000") & " to " & TEXT(PERCENTILE(_xlpm.arrNHB, 0.975), "0.000") & ")") -> (2.245 to 3.514) | Q21: =IF($AG21=1, "", H21-H19) ->  | R21: =_xlfn.LET(_xlpm.arrIncCosts, OFFSET(rngPSA.Samples.Costs, 0, ($D21-1)*6 + $F21-1)-OFFSET(rngPSA.Samples.Costs, 0, ($D21-1)*6 + $F19-1), IF(AG21=1, "", "(" & TEXT(PERCENTILE(_xlpm.arrIncCosts, 0.025), "£#,##0;−£#,##0") & " to " & TEXT(PERCENTILE(_xlpm.arrIncCosts, 0.975), "£#,##0;−£#,##0") & ")")) ->  | S21: =IF($AG21=1, "", J21-J19) ->  | T21: =_xlfn.LET(_xlpm.arrIncQALYs, OFFSET(rngPSA.Samples.QALYs, 0, ($D21-1)*6 + $F21-1)-OFFSET(rngPSA.Samples.QALYs, 0, ($D21-1)*6 + $F19-1), IF($AG21=1, "", "(" & TEXT(PERCENTILE(_xlpm.arrIncQALYs, 0.025), "0.000;−0.000") & " to " & TEXT(PERCENTILE(_xlpm.arrIncQALYs, 0.975), "0.000;−0.000") & ")")) ->  | U21: =IF($AG21=1, "", IF(AND(Q21>0, S21<0), "dominated", Q21/S21)) ->  | W21: =IF(F21=swtchResults.PSA.Baseline, "-", H21-INDEX(AI21:AI22, swtchResults.PSA.Baseline)) -> - | X21: =IF(F21=swtchResults.PSA.Baseline, "-", "(" & TEXT(PERCENTILE(OFFSET(rngPSA.Samples.Costs, 0, (D21-1)*6 + F21-1)-OFFSET(rngPSA.Samples.Costs, 0, (D21-1)*6 + swtchResults.PSA.Baseline-1), 0.025), "£#,##0;−£#,##0") & " to " & TEXT(PERCENTILE(OFFSET(rngPSA.Samples.Costs, 0, (D21-1)*6 + F21-1)-OFFSET(rngPSA.Samples.Costs, 0, (D21-1)*6 + swtchResults.PSA.Baseline-1), 0.975), "£#,##0;−£#,##0") & ")") -> - | Y21: =IF(F21=swtchResults.PSA.Baseline, "-", J21-INDEX(AK21:AK22, swtchResults.PSA.Baseline)) -> - | Z21: =IF(F21=swtchResults.PSA.Baseline, "-", "(" & TEXT(PERCENTILE(OFFSET(rngPSA.Samples.QALYs, 0, (D21-1)*6 + F21-1)-OFFSET(rngPSA.Samples.QALYs, 0, (D21-1)*6 + swtchResults.PSA.Baseline-1), 0.025), "0.000;−0.000") & " to " & TEXT(PERCENTILE(OFFSET(rngPSA.Samples.QALYs, 0, (D21-1)*6 + F21-1)-OFFSET(rngPSA.Samples.QALYs, 0, (D21-1)*6 + swtchResults.PSA.Baseline-1), 0.975), "0.000;−0.000") & ")") -> - | AA21: =IF(F21=swtchResults.PSA.Baseline, "-", Y21-W21/AA$7) -> - | AB21: =_xlfn.LET(_xlpm.arrNHB, (OFFSET(rngPSA.Samples.QALYs, 0, (D21-1)*6 + F21-1)-OFFSET(rngPSA.Samples.QALYs, 0, (D21-1)*6 + swtchResults.PSA.Baseline-1)) - (OFFSET(rngPSA.Samples.Costs, 0, (D21-1)*6 + F21-1)-OFFSET(rngPSA.Samples.Costs, 0, (D21-1)*6 + swtchResults.PSA.Baseline-1))/AA$7, IF(F21=swtchResults.PSA.Baseline, "-", "(" & TEXT(PERCENTILE(_xlpm.arrNHB, 0.025), "0.000;−0.000") & " to " & TEXT(PERCENTILE(_xlpm.arrNHB, 0.975), "0.000;−0.000") & ")")) -> - | AC21: =IF(F21=swtchResults.PSA.Baseline, "-", Y21-W21/AC$7) -> - | AD21: =_xlfn.LET(_xlpm.arrNHB, (OFFSET(rngPSA.Samples.QALYs, 0, (D21-1)*6 + F21-1)-OFFSET(rngPSA.Samples.QALYs, 0, (D21-1)*6 + swtchResults.PSA.Baseline-1)) - (OFFSET(rngPSA.Samples.Costs, 0, (D21-1)*6 + F21-1)-OFFSET(rngPSA.Samples.Costs, 0, (D21-1)*6 + swtchResults.PSA.Baseline-1))/AC$7, IF(F21=swtchResults.PSA.Baseline, "-", "(" & TEXT(PERCENTILE(_xlpm.arrNHB, 0.025), "0.000;−0.000") & " to " & TEXT(PERCENTILE(_xlpm.arrNHB, 0.975), "0.000;−0.000") & ")")) -> - | AE21: =IF(F21=swtchResults.PSA.Baseline, "ref", IF(AND(W21<=0, Y21>0), "dominant", IF(AND(W21>0, Y21<0), "dominated", W21/Y21))) -> ref | AG21: 1 | AH21: HPE | AI21: =INDEX(OFFSET(rngPSA.MeanCosts.Root, 0, (D21-1)*6), AG21) -> £50,258.73 | AJ21: =_xlfn.LET(_xlpm.arrCosts, OFFSET(rngPSA.Samples.Costs, 0, ($D21-1)*6 + $AG21-1), "(" & TEXT(PERCENTILE(_xlpm.arrCosts, 0.025), "£#,##0;−£#,##0") & " to " & TEXT(PERCENTILE(_xlpm.arrCosts, 0.975), "£#,##0;−£#,##0") & ")") -> (£48,440 to £52,251) | AK21: =INDEX(OFFSET(rngPSA.MeanQALYs.Root, 0, (D21-1)*6), AG21) -> 4.524 | AL21: =_xlfn.LET(_xlpm.arrQALYs, OFFSET(rngPSA.Samples.QALYs, 0, ($D21-1)*6 + $AG21-1), "(" & TEXT(PERCENTILE(_xlpm.arrQALYs, 0.025), "0.000") & " to " & TEXT(PERCENTILE(_xlpm.arrQALYs, 0.975), "0.000") & ")") -> (3.849 to 5.055) | AM21: =IFERROR(INDEX(rngPSA.MeanLYs, AG21), "") -> 
D22: 5 | F22: =MATCH(SMALL(AI21:AI22, AG22), AI21:AI22, 0) -> 1 | G22: =INDEX(rngStrats, F22) -> HPE | H22: =IFERROR(INDEX(AI21:AI22, F22), "") -> £50,259 | I22: =_xlfn.LET(_xlpm.arrCosts, OFFSET(rngPSA.Samples.Costs, 0, (D22-1)*6 + F22-1), "(" & TEXT(PERCENTILE(_xlpm.arrCosts, 0.025), "£#,##0;−£#,##0") & " to " & TEXT(PERCENTILE(_xlpm.arrCosts, 0.975), "£#,##0;−£#,##0") & ")") -> (£48,440 to £52,251) | J22: =IFERROR(INDEX(AK21:AK22, F22), "") -> 4.524 | K22: =_xlfn.LET(_xlpm.arrQALYs, OFFSET(rngPSA.Samples.QALYs, 0, (D22-1)*6 + F22-1), "(" & TEXT(PERCENTILE(_xlpm.arrQALYs, 0.025), "0.000") & " to " & TEXT(PERCENTILE(_xlpm.arrQALYs, 0.975), "0.000") & ")") -> (3.849 to 5.055) | L22: 2.011 | M22: =_xlfn.LET(_xlpm.arrNHB, OFFSET(rngPSA.Samples.QALYs, 0, (D22-1)*6 + F22-1) - OFFSET(rngPSA.Samples.Costs, 0, (D22-1)*6 + F22-1)/L$6, "(" & TEXT(PERCENTILE(_xlpm.arrNHB, 0.025), "0.000") & " to " & TEXT(PERCENTILE(_xlpm.arrNHB, 0.975), "0.000") & ")") -> (1.313 to 2.546) | N22: 2.849 | O22: =_xlfn.LET(_xlpm.arrNHB, OFFSET(rngPSA.Samples.QALYs, 0, (D22-1)*6 + F22-1) - OFFSET(rngPSA.Samples.Costs, 0, (D22-1)*6 + F22-1)/N$6, "(" & TEXT(PERCENTILE(_xlpm.arrNHB, 0.025), "0.000") & " to " & TEXT(PERCENTILE(_xlpm.arrNHB, 0.975), "0.000") & ")") -> (2.163 to 3.376) | Q22: =IF($AG22=1, "", H22-H21) -> £202 | R22: =_xlfn.LET(_xlpm.arrIncCosts, OFFSET(rngPSA.Samples.Costs, 0, ($D22-1)*6 + $F22-1)-OFFSET(rngPSA.Samples.Costs, 0, ($D22-1)*6 + $F21-1), IF(AG22=1, "", "(" & TEXT(PERCENTILE(_xlpm.arrIncCosts, 0.025), "£#,##0;−£#,##0") & " to " & TEXT(PERCENTILE(_xlpm.arrIncCosts, 0.975), "£#,##0;−£#,##0") & ")")) -> (−£149 to £710) | S22: =IF($AG22=1, "", J22-J21) -> -0.109 | T22: =_xlfn.LET(_xlpm.arrIncQALYs, OFFSET(rngPSA.Samples.QALYs, 0, ($D22-1)*6 + $F22-1)-OFFSET(rngPSA.Samples.QALYs, 0, ($D22-1)*6 + $F21-1), IF($AG22=1, "", "(" & TEXT(PERCENTILE(_xlpm.arrIncQALYs, 0.025), "0.000;−0.000") & " to " & TEXT(PERCENTILE(_xlpm.arrIncQALYs, 0.975), "0.000;−0.000") & ")")) -> (−0.197 to −0.040) | U22: =IF($AG22=1, "", IF(AND(Q22>0, S22<0), "dominated", Q22/S22)) -> dominated | W22: =IF(F22=swtchResults.PSA.Baseline, "-", H22-INDEX(AI21:AI22, swtchResults.PSA.Baseline)) -> £202 | X22: =IF(F22=swtchResults.PSA.Baseline, "-", "(" & TEXT(PERCENTILE(OFFSET(rngPSA.Samples.Costs, 0, (D22-1)*6 + F22-1)-OFFSET(rngPSA.Samples.Costs, 0, (D22-1)*6 + swtchResults.PSA.Baseline-1), 0.025), "£#,##0;−£#,##0") & " to " & TEXT(PERCENTILE(OFFSET(rngPSA.Samples.Costs, 0, (D22-1)*6 + F22-1)-OFFSET(rngPSA.Samples.Costs, 0, (D22-1)*6 + swtchResults.PSA.Baseline-1), 0.975), "£#,##0;−£#,##0") & ")") -> (−£149 to £710) | Y22: =IF(F22=swtchResults.PSA.Baseline, "-", J22-INDEX(AK21:AK22, swtchResults.PSA.Baseline)) -> -0.109 | Z22: =IF(F22=swtchResults.PSA.Baseline, "-", "(" & TEXT(PERCENTILE(OFFSET(rngPSA.Samples.QALYs, 0, (D22-1)*6 + F22-1)-OFFSET(rngPSA.Samples.QALYs, 0, (D22-1)*6 + swtchResults.PSA.Baseline-1), 0.025), "0.000;−0.000") & " to " & TEXT(PERCENTILE(OFFSET(rngPSA.Samples.QALYs, 0, (D22-1)*6 + F22-1)-OFFSET(rngPSA.Samples.QALYs, 0, (D22-1)*6 + swtchResults.PSA.Baseline-1), 0.975), "0.000;−0.000") & ")") -> (−0.197 to −0.040) | AA22: =IF(F22=swtchResults.PSA.Baseline, "-", Y22-W22/AA$7) -> -0.119 | AB22: =_xlfn.LET(_xlpm.arrNHB, (OFFSET(rngPSA.Samples.QALYs, 0, (D22-1)*6 + F22-1)-OFFSET(rngPSA.Samples.QALYs, 0, (D22-1)*6 + swtchResults.PSA.Baseline-1)) - (OFFSET(rngPSA.Samples.Costs, 0, (D22-1)*6 + F22-1)-OFFSET(rngPSA.Samples.Costs, 0, (D22-1)*6 + swtchResults.PSA.Baseline-1))/AA$7, IF(F22=swtchResults.PSA.Baseline, "-", "(" & TEXT(PERCENTILE(_xlpm.arrNHB, 0.025), "0.000;−0.000") & " to " & TEXT(PERCENTILE(_xlpm.arrNHB, 0.975), "0.000;−0.000") & ")")) -> (−0.216 to −0.042) | AC22: =IF(F22=swtchResults.PSA.Baseline, "-", Y22-W22/AC$7) -> -0.115 | AD22: =_xlfn.LET(_xlpm.arrNHB, (OFFSET(rngPSA.Samples.QALYs, 0, (D22-1)*6 + F22-1)-OFFSET(rngPSA.Samples.QALYs, 0, (D22-1)*6 + swtchResults.PSA.Baseline-1)) - (OFFSET(rngPSA.Samples.Costs, 0, (D22-1)*6 + F22-1)-OFFSET(rngPSA.Samples.Costs, 0, (D22-1)*6 + swtchResults.PSA.Baseline-1))/AC$7, IF(F22=swtchResults.PSA.Baseline, "-", "(" & TEXT(PERCENTILE(_xlpm.arrNHB, 0.025), "0.000;−0.000") & " to " & TEXT(PERCENTILE(_xlpm.arrNHB, 0.975), "0.000;−0.000") & ")")) -> (−0.210 to −0.041) | AE22: =IF(F22=swtchResults.PSA.Baseline, "ref", IF(AND(W22<=0, Y22>0), "dominant", IF(AND(W22>0, Y22<0), "dominated", W22/Y22))) -> dominated | AG22: 2 | AH22: No HPE | AI22: =INDEX(OFFSET(rngPSA.MeanCosts.Root, 0, (D22-1)*6), AG22) -> £50,056.46 | AJ22: =_xlfn.LET(_xlpm.arrCosts, OFFSET(rngPSA.Samples.Costs, 0, ($D22-1)*6 + $AG22-1), "(" & TEXT(PERCENTILE(_xlpm.arrCosts, 0.025), "£#,##0;−£#,##0") & " to " & TEXT(PERCENTILE(_xlpm.arrCosts, 0.975), "£#,##0;−£#,##0") & ")") -> (£48,267 to £51,902) | AK22: =INDEX(OFFSET(rngPSA.MeanQALYs.Root, 0, (D22-1)*6), AG22) -> 4.633 | AL22: =_xlfn.LET(_xlpm.arrQALYs, OFFSET(rngPSA.Samples.QALYs, 0, ($D22-1)*6 + $AG22-1), "(" & TEXT(PERCENTILE(_xlpm.arrQALYs, 0.025), "0.000") & " to " & TEXT(PERCENTILE(_xlpm.arrQALYs, 0.975), "0.000") & ")") -> (3.930 to 5.180) | AM22: =IFERROR(INDEX(rngPSA.MeanLYs, AG22), "") -> 
D23: 6 | F23: =INDEX(lstQs, D23) -> Expected harm in England: query A
D24: 6 | F24: =MATCH(SMALL(AI24:AI25, AG24), AI24:AI25, 0) -> 2 | G24: =INDEX(rngStrats, F24) -> No HPE | H24: =IFERROR(INDEX(AI24:AI25, F24), "") -> £0 | I24: =_xlfn.LET(_xlpm.arrCosts, OFFSET(rngPSA.Samples.Costs, 0, (D24-1)*6 + F24-1), "(" & TEXT(PERCENTILE(_xlpm.arrCosts, 0.025), "£#,##0;−£#,##0") & " to " & TEXT(PERCENTILE(_xlpm.arrCosts, 0.975), "£#,##0;−£#,##0") & ")") -> (£0 to £0) | J24: =IFERROR(INDEX(AK24:AK25, F24), "") -> 0.000 | K24: =_xlfn.LET(_xlpm.arrQALYs, OFFSET(rngPSA.Samples.QALYs, 0, (D24-1)*6 + F24-1), "(" & TEXT(PERCENTILE(_xlpm.arrQALYs, 0.025), "0.000") & " to " & TEXT(PERCENTILE(_xlpm.arrQALYs, 0.975), "0.000") & ")") -> (0.000 to 0.000) | L24: 0.000 | M24: =_xlfn.LET(_xlpm.arrNHB, OFFSET(rngPSA.Samples.QALYs, 0, (D24-1)*6 + F24-1) - OFFSET(rngPSA.Samples.Costs, 0, (D24-1)*6 + F24-1)/L$6, "(" & TEXT(PERCENTILE(_xlpm.arrNHB, 0.025), "0.000") & " to " & TEXT(PERCENTILE(_xlpm.arrNHB, 0.975), "0.000") & ")") -> (0.000 to 0.000) | N24: 0.000 | O24: =_xlfn.LET(_xlpm.arrNHB, OFFSET(rngPSA.Samples.QALYs, 0, (D24-1)*6 + F24-1) - OFFSET(rngPSA.Samples.Costs, 0, (D24-1)*6 + F24-1)/N$6, "(" & TEXT(PERCENTILE(_xlpm.arrNHB, 0.025), "0.000") & " to " & TEXT(PERCENTILE(_xlpm.arrNHB, 0.975), "0.000") & ")") -> (0.000 to 0.000) | Q24: =IF($AG24=1, "", H24-H22) ->  | R24: =_xlfn.LET(_xlpm.arrIncCosts, OFFSET(rngPSA.Samples.Costs, 0, ($D24-1)*6 + $F24-1)-OFFSET(rngPSA.Samples.Costs, 0, ($D24-1)*6 + $F22-1), IF(AG24=1, "", "(" & TEXT(PERCENTILE(_xlpm.arrIncCosts, 0.025), "£#,##0;−£#,##0") & " to " & TEXT(PERCENTILE(_xlpm.arrIncCosts, 0.975), "£#,##0;−£#,##0") & ")")) ->  | S24: =IF($AG24=1, "", J24-J22) ->  | T24: =_xlfn.LET(_xlpm.arrIncQALYs, OFFSET(rngPSA.Samples.QALYs, 0, ($D24-1)*6 + $F24-1)-OFFSET(rngPSA.Samples.QALYs, 0, ($D24-1)*6 + $F22-1), IF($AG24=1, "", "(" & TEXT(PERCENTILE(_xlpm.arrIncQALYs, 0.025), "0.000;−0.000") & " to " & TEXT(PERCENTILE(_xlpm.arrIncQALYs, 0.975), "0.000;−0.000") & ")")) ->  | U24: =IF($AG24=1, "", IF(AND(Q24>0, S24<0), "dominated", Q24/S24)) ->  | W24: =IF(F24=swtchResults.PSA.Baseline, "-", H24-INDEX(AI24:AI25, swtchResults.PSA.Baseline)) -> - | X24: =IF(F24=swtchResults.PSA.Baseline, "-", "(" & TEXT(PERCENTILE(OFFSET(rngPSA.Samples.Costs, 0, (D24-1)*6 + F24-1)-OFFSET(rngPSA.Samples.Costs, 0, (D24-1)*6 + swtchResults.PSA.Baseline-1), 0.025), "£#,##0;−£#,##0") & " to " & TEXT(PERCENTILE(OFFSET(rngPSA.Samples.Costs, 0, (D24-1)*6 + F24-1)-OFFSET(rngPSA.Samples.Costs, 0, (D24-1)*6 + swtchResults.PSA.Baseline-1), 0.975), "£#,##0;−£#,##0") & ")") -> - | Y24: =IF(F24=swtchResults.PSA.Baseline, "-", J24-INDEX(AK24:AK25, swtchResults.PSA.Baseline)) -> - | Z24: =IF(F24=swtchResults.PSA.Baseline, "-", "(" & TEXT(PERCENTILE(OFFSET(rngPSA.Samples.QALYs, 0, (D24-1)*6 + F24-1)-OFFSET(rngPSA.Samples.QALYs, 0, (D24-1)*6 + swtchResults.PSA.Baseline-1), 0.025), "0.000;−0.000") & " to " & TEXT(PERCENTILE(OFFSET(rngPSA.Samples.QALYs, 0, (D24-1)*6 + F24-1)-OFFSET(rngPSA.Samples.QALYs, 0, (D24-1)*6 + swtchResults.PSA.Baseline-1), 0.975), "0.000;−0.000") & ")") -> - | AA24: =IF(F24=swtchResults.PSA.Baseline, "-", Y24-W24/AA$7) -> - | AB24: =_xlfn.LET(_xlpm.arrNHB, (OFFSET(rngPSA.Samples.QALYs, 0, (D24-1)*6 + F24-1)-OFFSET(rngPSA.Samples.QALYs, 0, (D24-1)*6 + swtchResults.PSA.Baseline-1)) - (OFFSET(rngPSA.Samples.Costs, 0, (D24-1)*6 + F24-1)-OFFSET(rngPSA.Samples.Costs, 0, (D24-1)*6 + swtchResults.PSA.Baseline-1))/AA$7, IF(F24=swtchResults.PSA.Baseline, "-", "(" & TEXT(PERCENTILE(_xlpm.arrNHB, 0.025), "0.000;−0.000") & " to " & TEXT(PERCENTILE(_xlpm.arrNHB, 0.975), "0.000;−0.000") & ")")) -> - | AC24: =IF(F24=swtchResults.PSA.Baseline, "-", Y24-W24/AC$7) -> - | AD24: =_xlfn.LET(_xlpm.arrNHB, (OFFSET(rngPSA.Samples.QALYs, 0, (D24-1)*6 + F24-1)-OFFSET(rngPSA.Samples.QALYs, 0, (D24-1)*6 + swtchResults.PSA.Baseline-1)) - (OFFSET(rngPSA.Samples.Costs, 0, (D24-1)*6 + F24-1)-OFFSET(rngPSA.Samples.Costs, 0, (D24-1)*6 + swtchResults.PSA.Baseline-1))/AC$7, IF(F24=swtchResults.PSA.Baseline, "-", "(" & TEXT(PERCENTILE(_xlpm.arrNHB, 0.025), "0.000;−0.000") & " to " & TEXT(PERCENTILE(_xlpm.arrNHB, 0.975), "0.000;−0.000") & ")")) -> - | AE24: =IF(F24=swtchResults.PSA.Baseline, "ref", IF(AND(W24<=0, Y24>0), "dominant", IF(AND(W24>0, Y24<0), "dominated", W24/Y24))) -> ref | AG24: 1 | AH24: HPE | AI24: =INDEX(OFFSET(rngPSA.MeanCosts.Root, 0, (D24-1)*6), AG24) -> £2,535,968.06 | AJ24: =_xlfn.LET(_xlpm.arrCosts, OFFSET(rngPSA.Samples.Costs, 0, ($D24-1)*6 + $AG24-1), "(" & TEXT(PERCENTILE(_xlpm.arrCosts, 0.025), "£#,##0;−£#,##0") & " to " & TEXT(PERCENTILE(_xlpm.arrCosts, 0.975), "£#,##0;−£#,##0") & ")") -> (£717,761 to £4,664,682) | AK24: =INDEX(OFFSET(rngPSA.MeanQALYs.Root, 0, (D24-1)*6), AG24) -> -1801.307 | AL24: =_xlfn.LET(_xlpm.arrQALYs, OFFSET(rngPSA.Samples.QALYs, 0, ($D24-1)*6 + $AG24-1), "(" & TEXT(PERCENTILE(_xlpm.arrQALYs, 0.025), "0.000") & " to " & TEXT(PERCENTILE(_xlpm.arrQALYs, 0.975), "0.000") & ")") -> (-2306.289 to -1314.913) | AM24: =IFERROR(INDEX(rngPSA.MeanLYs, AG24), "") -> 
D25: 6 | F25: =MATCH(SMALL(AI24:AI25, AG25), AI24:AI25, 0) -> 1 | G25: =INDEX(rngStrats, F25) -> HPE | H25: =IFERROR(INDEX(AI24:AI25, F25), "") -> £2,535,968 | I25: =_xlfn.LET(_xlpm.arrCosts, OFFSET(rngPSA.Samples.Costs, 0, (D25-1)*6 + F25-1), "(" & TEXT(PERCENTILE(_xlpm.arrCosts, 0.025), "£#,##0;−£#,##0") & " to " & TEXT(PERCENTILE(_xlpm.arrCosts, 0.975), "£#,##0;−£#,##0") & ")") -> (£717,761 to £4,664,682) | J25: =IFERROR(INDEX(AK24:AK25, F25), "") -> -1801.307 | K25: =_xlfn.LET(_xlpm.arrQALYs, OFFSET(rngPSA.Samples.QALYs, 0, (D25-1)*6 + F25-1), "(" & TEXT(PERCENTILE(_xlpm.arrQALYs, 0.025), "0.000") & " to " & TEXT(PERCENTILE(_xlpm.arrQALYs, 0.975), "0.000") & ")") -> (-2306.289 to -1314.913) | L25: -1928.105 | M25: =_xlfn.LET(_xlpm.arrNHB, OFFSET(rngPSA.Samples.QALYs, 0, (D25-1)*6 + F25-1) - OFFSET(rngPSA.Samples.Costs, 0, (D25-1)*6 + F25-1)/L$6, "(" & TEXT(PERCENTILE(_xlpm.arrNHB, 0.025), "0.000") & " to " & TEXT(PERCENTILE(_xlpm.arrNHB, 0.975), "0.000") & ")") -> (-2459.522 to -1396.756) | N25: -1885.839 | O25: =_xlfn.LET(_xlpm.arrNHB, OFFSET(rngPSA.Samples.QALYs, 0, (D25-1)*6 + F25-1) - OFFSET(rngPSA.Samples.Costs, 0, (D25-1)*6 + F25-1)/N$6, "(" & TEXT(PERCENTILE(_xlpm.arrNHB, 0.025), "0.000") & " to " & TEXT(PERCENTILE(_xlpm.arrNHB, 0.975), "0.000") & ")") -> (-2417.061 to -1369.429) | Q25: =IF($AG25=1, "", H25-H24) -> £2,535,968 | R25: =_xlfn.LET(_xlpm.arrIncCosts, OFFSET(rngPSA.Samples.Costs, 0, ($D25-1)*6 + $F25-1)-OFFSET(rngPSA.Samples.Costs, 0, ($D25-1)*6 + $F24-1), IF(AG25=1, "", "(" & TEXT(PERCENTILE(_xlpm.arrIncCosts, 0.025), "£#,##0;−£#,##0") & " to " & TEXT(PERCENTILE(_xlpm.arrIncCosts, 0.975), "£#,##0;−£#,##0") & ")")) -> (£717,761 to £4,664,682) | S25: =IF($AG25=1, "", J25-J24) -> -1801.307 | T25: =_xlfn.LET(_xlpm.arrIncQALYs, OFFSET(rngPSA.Samples.QALYs, 0, ($D25-1)*6 + $F25-1)-OFFSET(rngPSA.Samples.QALYs, 0, ($D25-1)*6 + $F24-1), IF($AG25=1, "", "(" & TEXT(PERCENTILE(_xlpm.arrIncQALYs, 0.025), "0.000;−0.000") & " to " & TEXT(PERCENTILE(_xlpm.arrIncQALYs, 0.975), "0.000;−0.000") & ")")) -> (−2306.289 to −1314.913) | U25: =IF($AG25=1, "", IF(AND(Q25>0, S25<0), "dominated", Q25/S25)) -> dominated | W25: =IF(F25=swtchResults.PSA.Baseline, "-", H25-INDEX(AI24:AI25, swtchResults.PSA.Baseline)) -> £2,535,968 | X25: =IF(F25=swtchResults.PSA.Baseline, "-", "(" & TEXT(PERCENTILE(OFFSET(rngPSA.Samples.Costs, 0, (D25-1)*6 + F25-1)-OFFSET(rngPSA.Samples.Costs, 0, (D25-1)*6 + swtchResults.PSA.Baseline-1), 0.025), "£#,##0;−£#,##0") & " to " & TEXT(PERCENTILE(OFFSET(rngPSA.Samples.Costs, 0, (D25-1)*6 + F25-1)-OFFSET(rngPSA.Samples.Costs, 0, (D25-1)*6 + swtchResults.PSA.Baseline-1), 0.975), "£#,##0;−£#,##0") & ")") -> (£717,761 to £4,664,682) | Y25: =IF(F25=swtchResults.PSA.Baseline, "-", J25-INDEX(AK24:AK25, swtchResults.PSA.Baseline)) -> -1801.307 | Z25: =IF(F25=swtchResults.PSA.Baseline, "-", "(" & TEXT(PERCENTILE(OFFSET(rngPSA.Samples.QALYs, 0, (D25-1)*6 + F25-1)-OFFSET(rngPSA.Samples.QALYs, 0, (D25-1)*6 + swtchResults.PSA.Baseline-1), 0.025), "0.000;−0.000") & " to " & TEXT(PERCENTILE(OFFSET(rngPSA.Samples.QALYs, 0, (D25-1)*6 + F25-1)-OFFSET(rngPSA.Samples.QALYs, 0, (D25-1)*6 + swtchResults.PSA.Baseline-1), 0.975), "0.000;−0.000") & ")") -> (−2306.289 to −1314.913) | AA25: =IF(F25=swtchResults.PSA.Baseline, "-", Y25-W25/AA$7) -> -1928.105 | AB25: =_xlfn.LET(_xlpm.arrNHB, (OFFSET(rngPSA.Samples.QALYs, 0, (D25-1)*6 + F25-1)-OFFSET(rngPSA.Samples.QALYs, 0, (D25-1)*6 + swtchResults.PSA.Baseline-1)) - (OFFSET(rngPSA.Samples.Costs, 0, (D25-1)*6 + F25-1)-OFFSET(rngPSA.Samples.Costs, 0, (D25-1)*6 + swtchResults.PSA.Baseline-1))/AA$7, IF(F25=swtchResults.PSA.Baseline, "-", "(" & TEXT(PERCENTILE(_xlpm.arrNHB, 0.025), "0.000;−0.000") & " to " & TEXT(PERCENTILE(_xlpm.arrNHB, 0.975), "0.000;−0.000") & ")")) -> (−2459.522 to −1396.756) | AC25: =IF(F25=swtchResults.PSA.Baseline, "-", Y25-W25/AC$7) -> -1885.839 | AD25: =_xlfn.LET(_xlpm.arrNHB, (OFFSET(rngPSA.Samples.QALYs, 0, (D25-1)*6 + F25-1)-OFFSET(rngPSA.Samples.QALYs, 0, (D25-1)*6 + swtchResults.PSA.Baseline-1)) - (OFFSET(rngPSA.Samples.Costs, 0, (D25-1)*6 + F25-1)-OFFSET(rngPSA.Samples.Costs, 0, (D25-1)*6 + swtchResults.PSA.Baseline-1))/AC$7, IF(F25=swtchResults.PSA.Baseline, "-", "(" & TEXT(PERCENTILE(_xlpm.arrNHB, 0.025), "0.000;−0.000") & " to " & TEXT(PERCENTILE(_xlpm.arrNHB, 0.975), "0.000;−0.000") & ")")) -> (−2417.061 to −1369.429) | AE25: =IF(F25=swtchResults.PSA.Baseline, "ref", IF(AND(W25<=0, Y25>0), "dominant", IF(AND(W25>0, Y25<0), "dominated", W25/Y25))) -> dominated | AG25: 2 | AH25: No HPE | AI25: =INDEX(OFFSET(rngPSA.MeanCosts.Root, 0, (D25-1)*6), AG25) -> £0.00 | AJ25: =_xlfn.LET(_xlpm.arrCosts, OFFSET(rngPSA.Samples.Costs, 0, ($D25-1)*6 + $AG25-1), "(" & TEXT(PERCENTILE(_xlpm.arrCosts, 0.025), "£#,##0;−£#,##0") & " to " & TEXT(PERCENTILE(_xlpm.arrCosts, 0.975), "£#,##0;−£#,##0") & ")") -> (£0 to £0) | AK25: =INDEX(OFFSET(rngPSA.MeanQALYs.Root, 0, (D25-1)*6), AG25) -> 0.000 | AL25: =_xlfn.LET(_xlpm.arrQALYs, OFFSET(rngPSA.Samples.QALYs, 0, ($D25-1)*6 + $AG25-1), "(" & TEXT(PERCENTILE(_xlpm.arrQALYs, 0.025), "0.000") & " to " & TEXT(PERCENTILE(_xlpm.arrQALYs, 0.975), "0.000") & ")") -> (0.000 to 0.000) | AM25: =IFERROR(INDEX(rngPSA.MeanLYs, AG25), "") -> 
D26: 7 | F26: =INDEX(lstQs, D26) -> Expected harm in England: query B
D27: 7 | F27: =MATCH(SMALL(AI27:AI28, AG27), AI27:AI28, 0) -> 2 | G27: =INDEX(rngStrats, F27) -> No HPE | H27: =IFERROR(INDEX(AI27:AI28, F27), "") -> £0 | I27: =_xlfn.LET(_xlpm.arrCosts, OFFSET(rngPSA.Samples.Costs, 0, (D27-1)*6 + F27-1), "(" & TEXT(PERCENTILE(_xlpm.arrCosts, 0.025), "£#,##0;−£#,##0") & " to " & TEXT(PERCENTILE(_xlpm.arrCosts, 0.975), "£#,##0;−£#,##0") & ")") -> (£0 to £0) | J27: =IFERROR(INDEX(AK27:AK28, F27), "") -> 0.000 | K27: =_xlfn.LET(_xlpm.arrQALYs, OFFSET(rngPSA.Samples.QALYs, 0, (D27-1)*6 + F27-1), "(" & TEXT(PERCENTILE(_xlpm.arrQALYs, 0.025), "0.000") & " to " & TEXT(PERCENTILE(_xlpm.arrQALYs, 0.975), "0.000") & ")") -> (0.000 to 0.000) | L27: 0.000 | M27: =_xlfn.LET(_xlpm.arrNHB, OFFSET(rngPSA.Samples.QALYs, 0, (D27-1)*6 + F27-1) - OFFSET(rngPSA.Samples.Costs, 0, (D27-1)*6 + F27-1)/L$6, "(" & TEXT(PERCENTILE(_xlpm.arrNHB, 0.025), "0.000") & " to " & TEXT(PERCENTILE(_xlpm.arrNHB, 0.975), "0.000") & ")") -> (0.000 to 0.000) | N27: 0.000 | O27: =_xlfn.LET(_xlpm.arrNHB, OFFSET(rngPSA.Samples.QALYs, 0, (D27-1)*6 + F27-1) - OFFSET(rngPSA.Samples.Costs, 0, (D27-1)*6 + F27-1)/N$6, "(" & TEXT(PERCENTILE(_xlpm.arrNHB, 0.025), "0.000") & " to " & TEXT(PERCENTILE(_xlpm.arrNHB, 0.975), "0.000") & ")") -> (0.000 to 0.000) | Q27: =IF($AG27=1, "", H27-H25) ->  | R27: =_xlfn.LET(_xlpm.arrIncCosts, OFFSET(rngPSA.Samples.Costs, 0, ($D27-1)*6 + $F27-1)-OFFSET(rngPSA.Samples.Costs, 0, ($D27-1)*6 + $F25-1), IF(AG27=1, "", "(" & TEXT(PERCENTILE(_xlpm.arrIncCosts, 0.025), "£#,##0;−£#,##0") & " to " & TEXT(PERCENTILE(_xlpm.arrIncCosts, 0.975), "£#,##0;−£#,##0") & ")")) ->  | S27: =IF($AG27=1, "", J27-J25) ->  | T27: =_xlfn.LET(_xlpm.arrIncQALYs, OFFSET(rngPSA.Samples.QALYs, 0, ($D27-1)*6 + $F27-1)-OFFSET(rngPSA.Samples.QALYs, 0, ($D27-1)*6 + $F25-1), IF($AG27=1, "", "(" & TEXT(PERCENTILE(_xlpm.arrIncQALYs, 0.025), "0.000;−0.000") & " to " & TEXT(PERCENTILE(_xlpm.arrIncQALYs, 0.975), "0.000;−0.000") & ")")) ->  | U27: =IF($AG27=1, "", IF(AND(Q27>0, S27<0), "dominated", Q27/S27)) ->  | W27: =IF(F27=swtchResults.PSA.Baseline, "-", H27-INDEX(AI27:AI28, swtchResults.PSA.Baseline)) -> - | X27: =IF(F27=swtchResults.PSA.Baseline, "-", "(" & TEXT(PERCENTILE(OFFSET(rngPSA.Samples.Costs, 0, (D27-1)*6 + F27-1)-OFFSET(rngPSA.Samples.Costs, 0, (D27-1)*6 + swtchResults.PSA.Baseline-1), 0.025), "£#,##0;−£#,##0") & " to " & TEXT(PERCENTILE(OFFSET(rngPSA.Samples.Costs, 0, (D27-1)*6 + F27-1)-OFFSET(rngPSA.Samples.Costs, 0, (D27-1)*6 + swtchResults.PSA.Baseline-1), 0.975), "£#,##0;−£#,##0") & ")") -> - | Y27: =IF(F27=swtchResults.PSA.Baseline, "-", J27-INDEX(AK27:AK28, swtchResults.PSA.Baseline)) -> - | Z27: =IF(F27=swtchResults.PSA.Baseline, "-", "(" & TEXT(PERCENTILE(OFFSET(rngPSA.Samples.QALYs, 0, (D27-1)*6 + F27-1)-OFFSET(rngPSA.Samples.QALYs, 0, (D27-1)*6 + swtchResults.PSA.Baseline-1), 0.025), "0.000;−0.000") & " to " & TEXT(PERCENTILE(OFFSET(rngPSA.Samples.QALYs, 0, (D27-1)*6 + F27-1)-OFFSET(rngPSA.Samples.QALYs, 0, (D27-1)*6 + swtchResults.PSA.Baseline-1), 0.975), "0.000;−0.000") & ")") -> - | AA27: =IF(F27=swtchResults.PSA.Baseline, "-", Y27-W27/AA$7) -> - | AB27: =_xlfn.LET(_xlpm.arrNHB, (OFFSET(rngPSA.Samples.QALYs, 0, (D27-1)*6 + F27-1)-OFFSET(rngPSA.Samples.QALYs, 0, (D27-1)*6 + swtchResults.PSA.Baseline-1)) - (OFFSET(rngPSA.Samples.Costs, 0, (D27-1)*6 + F27-1)-OFFSET(rngPSA.Samples.Costs, 0, (D27-1)*6 + swtchResults.PSA.Baseline-1))/AA$7, IF(F27=swtchResults.PSA.Baseline, "-", "(" & TEXT(PERCENTILE(_xlpm.arrNHB, 0.025), "0.000;−0.000") & " to " & TEXT(PERCENTILE(_xlpm.arrNHB, 0.975), "0.000;−0.000") & ")")) -> - | AC27: =IF(F27=swtchResults.PSA.Baseline, "-", Y27-W27/AC$7) -> - | AD27: =_xlfn.LET(_xlpm.arrNHB, (OFFSET(rngPSA.Samples.QALYs, 0, (D27-1)*6 + F27-1)-OFFSET(rngPSA.Samples.QALYs, 0, (D27-1)*6 + swtchResults.PSA.Baseline-1)) - (OFFSET(rngPSA.Samples.Costs, 0, (D27-1)*6 + F27-1)-OFFSET(rngPSA.Samples.Costs, 0, (D27-1)*6 + swtchResults.PSA.Baseline-1))/AC$7, IF(F27=swtchResults.PSA.Baseline, "-", "(" & TEXT(PERCENTILE(_xlpm.arrNHB, 0.025), "0.000;−0.000") & " to " & TEXT(PERCENTILE(_xlpm.arrNHB, 0.975), "0.000;−0.000") & ")")) -> - | AE27: =IF(F27=swtchResults.PSA.Baseline, "ref", IF(AND(W27<=0, Y27>0), "dominant", IF(AND(W27>0, Y27<0), "dominated", W27/Y27))) -> ref | AG27: 1 | AH27: HPE | AI27: =INDEX(OFFSET(rngPSA.MeanCosts.Root, 0, (D27-1)*6), AG27) -> £165,936.90 | AJ27: =_xlfn.LET(_xlpm.arrCosts, OFFSET(rngPSA.Samples.Costs, 0, ($D27-1)*6 + $AG27-1), "(" & TEXT(PERCENTILE(_xlpm.arrCosts, 0.025), "£#,##0;−£#,##0") & " to " & TEXT(PERCENTILE(_xlpm.arrCosts, 0.975), "£#,##0;−£#,##0") & ")") -> (£46,395 to £303,902) | AK27: =INDEX(OFFSET(rngPSA.MeanQALYs.Root, 0, (D27-1)*6), AG27) -> -99.913 | AL27: =_xlfn.LET(_xlpm.arrQALYs, OFFSET(rngPSA.Samples.QALYs, 0, ($D27-1)*6 + $AG27-1), "(" & TEXT(PERCENTILE(_xlpm.arrQALYs, 0.025), "0.000") & " to " & TEXT(PERCENTILE(_xlpm.arrQALYs, 0.975), "0.000") & ")") -> (-134.567 to -67.917) | AM27: =IFERROR(INDEX(rngPSA.MeanLYs, AG27), "") -> 
D28: 7 | F28: =MATCH(SMALL(AI27:AI28, AG28), AI27:AI28, 0) -> 1 | G28: =INDEX(rngStrats, F28) -> HPE | H28: =IFERROR(INDEX(AI27:AI28, F28), "") -> £165,937 | I28: =_xlfn.LET(_xlpm.arrCosts, OFFSET(rngPSA.Samples.Costs, 0, (D28-1)*6 + F28-1), "(" & TEXT(PERCENTILE(_xlpm.arrCosts, 0.025), "£#,##0;−£#,##0") & " to " & TEXT(PERCENTILE(_xlpm.arrCosts, 0.975), "£#,##0;−£#,##0") & ")") -> (£46,395 to £303,902) | J28: =IFERROR(INDEX(AK27:AK28, F28), "") -> -99.913 | K28: =_xlfn.LET(_xlpm.arrQALYs, OFFSET(rngPSA.Samples.QALYs, 0, (D28-1)*6 + F28-1), "(" & TEXT(PERCENTILE(_xlpm.arrQALYs, 0.025), "0.000") & " to " & TEXT(PERCENTILE(_xlpm.arrQALYs, 0.975), "0.000") & ")") -> (-134.567 to -67.917) | L28: -108.210 | M28: =_xlfn.LET(_xlpm.arrNHB, OFFSET(rngPSA.Samples.QALYs, 0, (D28-1)*6 + F28-1) - OFFSET(rngPSA.Samples.Costs, 0, (D28-1)*6 + F28-1)/L$6, "(" & TEXT(PERCENTILE(_xlpm.arrNHB, 0.025), "0.000") & " to " & TEXT(PERCENTILE(_xlpm.arrNHB, 0.975), "0.000") & ")") -> (-143.651 to -74.351) | N28: -105.445 | O28: =_xlfn.LET(_xlpm.arrNHB, OFFSET(rngPSA.Samples.QALYs, 0, (D28-1)*6 + F28-1) - OFFSET(rngPSA.Samples.Costs, 0, (D28-1)*6 + F28-1)/N$6, "(" & TEXT(PERCENTILE(_xlpm.arrNHB, 0.025), "0.000") & " to " & TEXT(PERCENTILE(_xlpm.arrNHB, 0.975), "0.000") & ")") -> (-140.893 to -71.750) | Q28: =IF($AG28=1, "", H28-H27) -> £165,937 | R28: =_xlfn.LET(_xlpm.arrIncCosts, OFFSET(rngPSA.Samples.Costs, 0, ($D28-1)*6 + $F28-1)-OFFSET(rngPSA.Samples.Costs, 0, ($D28-1)*6 + $F27-1), IF(AG28=1, "", "(" & TEXT(PERCENTILE(_xlpm.arrIncCosts, 0.025), "£#,##0;−£#,##0") & " to " & TEXT(PERCENTILE(_xlpm.arrIncCosts, 0.975), "£#,##0;−£#,##0") & ")")) -> (£46,395 to £303,902) | S28: =IF($AG28=1, "", J28-J27) -> -99.913 | T28: =_xlfn.LET(_xlpm.arrIncQALYs, OFFSET(rngPSA.Samples.QALYs, 0, ($D28-1)*6 + $F28-1)-OFFSET(rngPSA.Samples.QALYs, 0, ($D28-1)*6 + $F27-1), IF($AG28=1, "", "(" & TEXT(PERCENTILE(_xlpm.arrIncQALYs, 0.025), "0.000;−0.000") & " to " & TEXT(PERCENTILE(_xlpm.arrIncQALYs, 0.975), "0.000;−0.000") & ")")) -> (−134.567 to −67.917) | U28: =IF($AG28=1, "", IF(AND(Q28>0, S28<0), "dominated", Q28/S28)) -> dominated | W28: =IF(F28=swtchResults.PSA.Baseline, "-", H28-INDEX(AI27:AI28, swtchResults.PSA.Baseline)) -> £165,937 | X28: =IF(F28=swtchResults.PSA.Baseline, "-", "(" & TEXT(PERCENTILE(OFFSET(rngPSA.Samples.Costs, 0, (D28-1)*6 + F28-1)-OFFSET(rngPSA.Samples.Costs, 0, (D28-1)*6 + swtchResults.PSA.Baseline-1), 0.025), "£#,##0;−£#,##0") & " to " & TEXT(PERCENTILE(OFFSET(rngPSA.Samples.Costs, 0, (D28-1)*6 + F28-1)-OFFSET(rngPSA.Samples.Costs, 0, (D28-1)*6 + swtchResults.PSA.Baseline-1), 0.975), "£#,##0;−£#,##0") & ")") -> (£46,395 to £303,902) | Y28: =IF(F28=swtchResults.PSA.Baseline, "-", J28-INDEX(AK27:AK28, swtchResults.PSA.Baseline)) -> -99.913 | Z28: =IF(F28=swtchResults.PSA.Baseline, "-", "(" & TEXT(PERCENTILE(OFFSET(rngPSA.Samples.QALYs, 0, (D28-1)*6 + F28-1)-OFFSET(rngPSA.Samples.QALYs, 0, (D28-1)*6 + swtchResults.PSA.Baseline-1), 0.025), "0.000;−0.000") & " to " & TEXT(PERCENTILE(OFFSET(rngPSA.Samples.QALYs, 0, (D28-1)*6 + F28-1)-OFFSET(rngPSA.Samples.QALYs, 0, (D28-1)*6 + swtchResults.PSA.Baseline-1), 0.975), "0.000;−0.000") & ")") -> (−134.567 to −67.917) | AA28: =IF(F28=swtchResults.PSA.Baseline, "-", Y28-W28/AA$7) -> -108.210 | AB28: =_xlfn.LET(_xlpm.arrNHB, (OFFSET(rngPSA.Samples.QALYs, 0, (D28-1)*6 + F28-1)-OFFSET(rngPSA.Samples.QALYs, 0, (D28-1)*6 + swtchResults.PSA.Baseline-1)) - (OFFSET(rngPSA.Samples.Costs, 0, (D28-1)*6 + F28-1)-OFFSET(rngPSA.Samples.Costs, 0, (D28-1)*6 + swtchResults.PSA.Baseline-1))/AA$7, IF(F28=swtchResults.PSA.Baseline, "-", "(" & TEXT(PERCENTILE(_xlpm.arrNHB, 0.025), "0.000;−0.000") & " to " & TEXT(PERCENTILE(_xlpm.arrNHB, 0.975), "0.000;−0.000") & ")")) -> (−143.651 to −74.351) | AC28: =IF(F28=swtchResults.PSA.Baseline, "-", Y28-W28/AC$7) -> -105.445 | AD28: =_xlfn.LET(_xlpm.arrNHB, (OFFSET(rngPSA.Samples.QALYs, 0, (D28-1)*6 + F28-1)-OFFSET(rngPSA.Samples.QALYs, 0, (D28-1)*6 + swtchResults.PSA.Baseline-1)) - (OFFSET(rngPSA.Samples.Costs, 0, (D28-1)*6 + F28-1)-OFFSET(rngPSA.Samples.Costs, 0, (D28-1)*6 + swtchResults.PSA.Baseline-1))/AC$7, IF(F28=swtchResults.PSA.Baseline, "-", "(" & TEXT(PERCENTILE(_xlpm.arrNHB, 0.025), "0.000;−0.000") & " to " & TEXT(PERCENTILE(_xlpm.arrNHB, 0.975), "0.000;−0.000") & ")")) -> (−140.893 to −71.750) | AE28: =IF(F28=swtchResults.PSA.Baseline, "ref", IF(AND(W28<=0, Y28>0), "dominant", IF(AND(W28>0, Y28<0), "dominated", W28/Y28))) -> dominated | AG28: 2 | AH28: No HPE | AI28: =INDEX(OFFSET(rngPSA.MeanCosts.Root, 0, (D28-1)*6), AG28) -> £0.00 | AJ28: =_xlfn.LET(_xlpm.arrCosts, OFFSET(rngPSA.Samples.Costs, 0, ($D28-1)*6 + $AG28-1), "(" & TEXT(PERCENTILE(_xlpm.arrCosts, 0.025), "£#,##0;−£#,##0") & " to " & TEXT(PERCENTILE(_xlpm.arrCosts, 0.975), "£#,##0;−£#,##0") & ")") -> (£0 to £0) | AK28: =INDEX(OFFSET(rngPSA.MeanQALYs.Root, 0, (D28-1)*6), AG28) -> 0.000 | AL28: =_xlfn.LET(_xlpm.arrQALYs, OFFSET(rngPSA.Samples.QALYs, 0, ($D28-1)*6 + $AG28-1), "(" & TEXT(PERCENTILE(_xlpm.arrQALYs, 0.025), "0.000") & " to " & TEXT(PERCENTILE(_xlpm.arrQALYs, 0.975), "0.000") & ")") -> (0.000 to 0.000) | AM28: =IFERROR(INDEX(rngPSA.MeanLYs, AG28), "") -> 
D29: 8 | F29: =INDEX(lstQs, D29) -> Expected harm in England: query C
D30: 8 | F30: =MATCH(SMALL(AI30:AI31, AG30), AI30:AI31, 0) -> 2 | G30: =INDEX(rngStrats, F30) -> No HPE | H30: =IFERROR(INDEX(AI30:AI31, F30), "") -> £0 | I30: =_xlfn.LET(_xlpm.arrCosts, OFFSET(rngPSA.Samples.Costs, 0, (D30-1)*6 + F30-1), "(" & TEXT(PERCENTILE(_xlpm.arrCosts, 0.025), "£#,##0;−£#,##0") & " to " & TEXT(PERCENTILE(_xlpm.arrCosts, 0.975), "£#,##0;−£#,##0") & ")") -> (£0 to £0) | J30: =IFERROR(INDEX(AK30:AK31, F30), "") -> 0.000 | K30: =_xlfn.LET(_xlpm.arrQALYs, OFFSET(rngPSA.Samples.QALYs, 0, (D30-1)*6 + F30-1), "(" & TEXT(PERCENTILE(_xlpm.arrQALYs, 0.025), "0.000") & " to " & TEXT(PERCENTILE(_xlpm.arrQALYs, 0.975), "0.000") & ")") -> (0.000 to 0.000) | L30: 0.000 | M30: =_xlfn.LET(_xlpm.arrNHB, OFFSET(rngPSA.Samples.QALYs, 0, (D30-1)*6 + F30-1) - OFFSET(rngPSA.Samples.Costs, 0, (D30-1)*6 + F30-1)/L$6, "(" & TEXT(PERCENTILE(_xlpm.arrNHB, 0.025), "0.000") & " to " & TEXT(PERCENTILE(_xlpm.arrNHB, 0.975), "0.000") & ")") -> (0.000 to 0.000) | N30: 0.000 | O30: =_xlfn.LET(_xlpm.arrNHB, OFFSET(rngPSA.Samples.QALYs, 0, (D30-1)*6 + F30-1) - OFFSET(rngPSA.Samples.Costs, 0, (D30-1)*6 + F30-1)/N$6, "(" & TEXT(PERCENTILE(_xlpm.arrNHB, 0.025), "0.000") & " to " & TEXT(PERCENTILE(_xlpm.arrNHB, 0.975), "0.000") & ")") -> (0.000 to 0.000) | Q30: =IF($AG30=1, "", H30-H28) ->  | R30: =_xlfn.LET(_xlpm.arrIncCosts, OFFSET(rngPSA.Samples.Costs, 0, ($D30-1)*6 + $F30-1)-OFFSET(rngPSA.Samples.Costs, 0, ($D30-1)*6 + $F28-1), IF(AG30=1, "", "(" & TEXT(PERCENTILE(_xlpm.arrIncCosts, 0.025), "£#,##0;−£#,##0") & " to " & TEXT(PERCENTILE(_xlpm.arrIncCosts, 0.975), "£#,##0;−£#,##0") & ")")) ->  | S30: =IF($AG30=1, "", J30-J28) ->  | T30: =_xlfn.LET(_xlpm.arrIncQALYs, OFFSET(rngPSA.Samples.QALYs, 0, ($D30-1)*6 + $F30-1)-OFFSET(rngPSA.Samples.QALYs, 0, ($D30-1)*6 + $F28-1), IF($AG30=1, "", "(" & TEXT(PERCENTILE(_xlpm.arrIncQALYs, 0.025), "0.000;−0.000") & " to " & TEXT(PERCENTILE(_xlpm.arrIncQALYs, 0.975), "0.000;−0.000") & ")")) ->  | U30: =IF($AG30=1, "", IF(AND(Q30>0, S30<0), "dominated", Q30/S30)) ->  | W30: =IF(F30=swtchResults.PSA.Baseline, "-", H30-INDEX(AI30:AI31, swtchResults.PSA.Baseline)) -> - | X30: =IF(F30=swtchResults.PSA.Baseline, "-", "(" & TEXT(PERCENTILE(OFFSET(rngPSA.Samples.Costs, 0, (D30-1)*6 + F30-1)-OFFSET(rngPSA.Samples.Costs, 0, (D30-1)*6 + swtchResults.PSA.Baseline-1), 0.025), "£#,##0;−£#,##0") & " to " & TEXT(PERCENTILE(OFFSET(rngPSA.Samples.Costs, 0, (D30-1)*6 + F30-1)-OFFSET(rngPSA.Samples.Costs, 0, (D30-1)*6 + swtchResults.PSA.Baseline-1), 0.975), "£#,##0;−£#,##0") & ")") -> - | Y30: =IF(F30=swtchResults.PSA.Baseline, "-", J30-INDEX(AK30:AK31, swtchResults.PSA.Baseline)) -> - | Z30: =IF(F30=swtchResults.PSA.Baseline, "-", "(" & TEXT(PERCENTILE(OFFSET(rngPSA.Samples.QALYs, 0, (D30-1)*6 + F30-1)-OFFSET(rngPSA.Samples.QALYs, 0, (D30-1)*6 + swtchResults.PSA.Baseline-1), 0.025), "0.000;−0.000") & " to " & TEXT(PERCENTILE(OFFSET(rngPSA.Samples.QALYs, 0, (D30-1)*6 + F30-1)-OFFSET(rngPSA.Samples.QALYs, 0, (D30-1)*6 + swtchResults.PSA.Baseline-1), 0.975), "0.000;−0.000") & ")") -> - | AA30: =IF(F30=swtchResults.PSA.Baseline, "-", Y30-W30/AA$7) -> - | AB30: =_xlfn.LET(_xlpm.arrNHB, (OFFSET(rngPSA.Samples.QALYs, 0, (D30-1)*6 + F30-1)-OFFSET(rngPSA.Samples.QALYs, 0, (D30-1)*6 + swtchResults.PSA.Baseline-1)) - (OFFSET(rngPSA.Samples.Costs, 0, (D30-1)*6 + F30-1)-OFFSET(rngPSA.Samples.Costs, 0, (D30-1)*6 + swtchResults.PSA.Baseline-1))/AA$7, IF(F30=swtchResults.PSA.Baseline, "-", "(" & TEXT(PERCENTILE(_xlpm.arrNHB, 0.025), "0.000;−0.000") & " to " & TEXT(PERCENTILE(_xlpm.arrNHB, 0.975), "0.000;−0.000") & ")")) -> - | AC30: =IF(F30=swtchResults.PSA.Baseline, "-", Y30-W30/AC$7) -> - | AD30: =_xlfn.LET(_xlpm.arrNHB, (OFFSET(rngPSA.Samples.QALYs, 0, (D30-1)*6 + F30-1)-OFFSET(rngPSA.Samples.QALYs, 0, (D30-1)*6 + swtchResults.PSA.Baseline-1)) - (OFFSET(rngPSA.Samples.Costs, 0, (D30-1)*6 + F30-1)-OFFSET(rngPSA.Samples.Costs, 0, (D30-1)*6 + swtchResults.PSA.Baseline-1))/AC$7, IF(F30=swtchResults.PSA.Baseline, "-", "(" & TEXT(PERCENTILE(_xlpm.arrNHB, 0.025), "0.000;−0.000") & " to " & TEXT(PERCENTILE(_xlpm.arrNHB, 0.975), "0.000;−0.000") & ")")) -> - | AE30: =IF(F30=swtchResults.PSA.Baseline, "ref", IF(AND(W30<=0, Y30>0), "dominant", IF(AND(W30>0, Y30<0), "dominated", W30/Y30))) -> ref | AG30: 1 | AH30: HPE | AI30: =INDEX(OFFSET(rngPSA.MeanCosts.Root, 0, (D30-1)*6), AG30) -> £25,192,401.23 | AJ30: =_xlfn.LET(_xlpm.arrCosts, OFFSET(rngPSA.Samples.Costs, 0, ($D30-1)*6 + $AG30-1), "(" & TEXT(PERCENTILE(_xlpm.arrCosts, 0.025), "£#,##0;−£#,##0") & " to " & TEXT(PERCENTILE(_xlpm.arrCosts, 0.975), "£#,##0;−£#,##0") & ")") -> (£5,712,183 to £59,553,312) | AK30: =INDEX(OFFSET(rngPSA.MeanQALYs.Root, 0, (D30-1)*6), AG30) -> -2137.133 | AL30: =_xlfn.LET(_xlpm.arrQALYs, OFFSET(rngPSA.Samples.QALYs, 0, ($D30-1)*6 + $AG30-1), "(" & TEXT(PERCENTILE(_xlpm.arrQALYs, 0.025), "0.000") & " to " & TEXT(PERCENTILE(_xlpm.arrQALYs, 0.975), "0.000") & ")") -> (-4069.808 to -839.163) | AM30: =IFERROR(INDEX(rngPSA.MeanLYs, AG30), "") -> 
D31: 8 | F31: =MATCH(SMALL(AI30:AI31, AG31), AI30:AI31, 0) -> 1 | G31: =INDEX(rngStrats, F31) -> HPE | H31: =IFERROR(INDEX(AI30:AI31, F31), "") -> £25,192,401 | I31: =_xlfn.LET(_xlpm.arrCosts, OFFSET(rngPSA.Samples.Costs, 0, (D31-1)*6 + F31-1), "(" & TEXT(PERCENTILE(_xlpm.arrCosts, 0.025), "£#,##0;−£#,##0") & " to " & TEXT(PERCENTILE(_xlpm.arrCosts, 0.975), "£#,##0;−£#,##0") & ")") -> (£5,712,183 to £59,553,312) | J31: =IFERROR(INDEX(AK30:AK31, F31), "") -> -2137.133 | K31: =_xlfn.LET(_xlpm.arrQALYs, OFFSET(rngPSA.Samples.QALYs, 0, (D31-1)*6 + F31-1), "(" & TEXT(PERCENTILE(_xlpm.arrQALYs, 0.025), "0.000") & " to " & TEXT(PERCENTILE(_xlpm.arrQALYs, 0.975), "0.000") & ")") -> (-4069.808 to -839.163) | L31: -3396.753 | M31: =_xlfn.LET(_xlpm.arrNHB, OFFSET(rngPSA.Samples.QALYs, 0, (D31-1)*6 + F31-1) - OFFSET(rngPSA.Samples.Costs, 0, (D31-1)*6 + F31-1)/L$6, "(" & TEXT(PERCENTILE(_xlpm.arrNHB, 0.025), "0.000") & " to " & TEXT(PERCENTILE(_xlpm.arrNHB, 0.975), "0.000") & ")") -> (-6916.249 to -1148.319) | N31: -2976.879 | O31: =_xlfn.LET(_xlpm.arrNHB, OFFSET(rngPSA.Samples.QALYs, 0, (D31-1)*6 + F31-1) - OFFSET(rngPSA.Samples.Costs, 0, (D31-1)*6 + F31-1)/N$6, "(" & TEXT(PERCENTILE(_xlpm.arrNHB, 0.025), "0.000") & " to " & TEXT(PERCENTILE(_xlpm.arrNHB, 0.975), "0.000") & ")") -> (-5990.680 to -1049.606) | Q31: =IF($AG31=1, "", H31-H30) -> £25,192,401 | R31: =_xlfn.LET(_xlpm.arrIncCosts, OFFSET(rngPSA.Samples.Costs, 0, ($D31-1)*6 + $F31-1)-OFFSET(rngPSA.Samples.Costs, 0, ($D31-1)*6 + $F30-1), IF(AG31=1, "", "(" & TEXT(PERCENTILE(_xlpm.arrIncCosts, 0.025), "£#,##0;−£#,##0") & " to " & TEXT(PERCENTILE(_xlpm.arrIncCosts, 0.975), "£#,##0;−£#,##0") & ")")) -> (£5,712,183 to £59,553,312) | S31: =IF($AG31=1, "", J31-J30) -> -2137.133 | T31: =_xlfn.LET(_xlpm.arrIncQALYs, OFFSET(rngPSA.Samples.QALYs, 0, ($D31-1)*6 + $F31-1)-OFFSET(rngPSA.Samples.QALYs, 0, ($D31-1)*6 + $F30-1), IF($AG31=1, "", "(" & TEXT(PERCENTILE(_xlpm.arrIncQALYs, 0.025), "0.000;−0.000") & " to " & TEXT(PERCENTILE(_xlpm.arrIncQALYs, 0.975), "0.000;−0.000") & ")")) -> (−4069.808 to −839.163) | U31: =IF($AG31=1, "", IF(AND(Q31>0, S31<0), "dominated", Q31/S31)) -> dominated | W31: =IF(F31=swtchResults.PSA.Baseline, "-", H31-INDEX(AI30:AI31, swtchResults.PSA.Baseline)) -> £25,192,401 | X31: =IF(F31=swtchResults.PSA.Baseline, "-", "(" & TEXT(PERCENTILE(OFFSET(rngPSA.Samples.Costs, 0, (D31-1)*6 + F31-1)-OFFSET(rngPSA.Samples.Costs, 0, (D31-1)*6 + swtchResults.PSA.Baseline-1), 0.025), "£#,##0;−£#,##0") & " to " & TEXT(PERCENTILE(OFFSET(rngPSA.Samples.Costs, 0, (D31-1)*6 + F31-1)-OFFSET(rngPSA.Samples.Costs, 0, (D31-1)*6 + swtchResults.PSA.Baseline-1), 0.975), "£#,##0;−£#,##0") & ")") -> (£5,712,183 to £59,553,312) | Y31: =IF(F31=swtchResults.PSA.Baseline, "-", J31-INDEX(AK30:AK31, swtchResults.PSA.Baseline)) -> -2137.133 | Z31: =IF(F31=swtchResults.PSA.Baseline, "-", "(" & TEXT(PERCENTILE(OFFSET(rngPSA.Samples.QALYs, 0, (D31-1)*6 + F31-1)-OFFSET(rngPSA.Samples.QALYs, 0, (D31-1)*6 + swtchResults.PSA.Baseline-1), 0.025), "0.000;−0.000") & " to " & TEXT(PERCENTILE(OFFSET(rngPSA.Samples.QALYs, 0, (D31-1)*6 + F31-1)-OFFSET(rngPSA.Samples.QALYs, 0, (D31-1)*6 + swtchResults.PSA.Baseline-1), 0.975), "0.000;−0.000") & ")") -> (−4069.808 to −839.163) | AA31: =IF(F31=swtchResults.PSA.Baseline, "-", Y31-W31/AA$7) -> -3396.753 | AB31: =_xlfn.LET(_xlpm.arrNHB, (OFFSET(rngPSA.Samples.QALYs, 0, (D31-1)*6 + F31-1)-OFFSET(rngPSA.Samples.QALYs, 0, (D31-1)*6 + swtchResults.PSA.Baseline-1)) - (OFFSET(rngPSA.Samples.Costs, 0, (D31-1)*6 + F31-1)-OFFSET(rngPSA.Samples.Costs, 0, (D31-1)*6 + swtchResults.PSA.Baseline-1))/AA$7, IF(F31=swtchResults.PSA.Baseline, "-", "(" & TEXT(PERCENTILE(_xlpm.arrNHB, 0.025), "0.000;−0.000") & " to " & TEXT(PERCENTILE(_xlpm.arrNHB, 0.975), "0.000;−0.000") & ")")) -> (−6916.249 to −1148.319) | AC31: =IF(F31=swtchResults.PSA.Baseline, "-", Y31-W31/AC$7) -> -2976.879 | AD31: =_xlfn.LET(_xlpm.arrNHB, (OFFSET(rngPSA.Samples.QALYs, 0, (D31-1)*6 + F31-1)-OFFSET(rngPSA.Samples.QALYs, 0, (D31-1)*6 + swtchResults.PSA.Baseline-1)) - (OFFSET(rngPSA.Samples.Costs, 0, (D31-1)*6 + F31-1)-OFFSET(rngPSA.Samples.Costs, 0, (D31-1)*6 + swtchResults.PSA.Baseline-1))/AC$7, IF(F31=swtchResults.PSA.Baseline, "-", "(" & TEXT(PERCENTILE(_xlpm.arrNHB, 0.025), "0.000;−0.000") & " to " & TEXT(PERCENTILE(_xlpm.arrNHB, 0.975), "0.000;−0.000") & ")")) -> (−5990.680 to −1049.606) | AE31: =IF(F31=swtchResults.PSA.Baseline, "ref", IF(AND(W31<=0, Y31>0), "dominant", IF(AND(W31>0, Y31<0), "dominated", W31/Y31))) -> dominated | AG31: 2 | AH31: No HPE | AI31: =INDEX(OFFSET(rngPSA.MeanCosts.Root, 0, (D31-1)*6), AG31) -> £0.00 | AJ31: =_xlfn.LET(_xlpm.arrCosts, OFFSET(rngPSA.Samples.Costs, 0, ($D31-1)*6 + $AG31-1), "(" & TEXT(PERCENTILE(_xlpm.arrCosts, 0.025), "£#,##0;−£#,##0") & " to " & TEXT(PERCENTILE(_xlpm.arrCosts, 0.975), "£#,##0;−£#,##0") & ")") -> (£0 to £0) | AK31: =INDEX(OFFSET(rngPSA.MeanQALYs.Root, 0, (D31-1)*6), AG31) -> 0.000 | AL31: =_xlfn.LET(_xlpm.arrQALYs, OFFSET(rngPSA.Samples.QALYs, 0, ($D31-1)*6 + $AG31-1), "(" & TEXT(PERCENTILE(_xlpm.arrQALYs, 0.025), "0.000") & " to " & TEXT(PERCENTILE(_xlpm.arrQALYs, 0.975), "0.000") & ")") -> (0.000 to 0.000) | AM31: =IFERROR(INDEX(rngPSA.MeanLYs, AG31), "") -> 
D32: 9 | F32: =INDEX(lstQs, D32) -> Expected harm in England: query D
D33: 9 | F33: =MATCH(SMALL(AI33:AI34, AG33), AI33:AI34, 0) -> 2 | G33: =INDEX(rngStrats, F33) -> No HPE | H33: =IFERROR(INDEX(AI33:AI34, F33), "") -> £0 | I33: =_xlfn.LET(_xlpm.arrCosts, OFFSET(rngPSA.Samples.Costs, 0, (D33-1)*6 + F33-1), "(" & TEXT(PERCENTILE(_xlpm.arrCosts, 0.025), "£#,##0;−£#,##0") & " to " & TEXT(PERCENTILE(_xlpm.arrCosts, 0.975), "£#,##0;−£#,##0") & ")") -> (£0 to £0) | J33: =IFERROR(INDEX(AK33:AK34, F33), "") -> 0.000 | K33: =_xlfn.LET(_xlpm.arrQALYs, OFFSET(rngPSA.Samples.QALYs, 0, (D33-1)*6 + F33-1), "(" & TEXT(PERCENTILE(_xlpm.arrQALYs, 0.025), "0.000") & " to " & TEXT(PERCENTILE(_xlpm.arrQALYs, 0.975), "0.000") & ")") -> (0.000 to 0.000) | L33: 0.000 | M33: =_xlfn.LET(_xlpm.arrNHB, OFFSET(rngPSA.Samples.QALYs, 0, (D33-1)*6 + F33-1) - OFFSET(rngPSA.Samples.Costs, 0, (D33-1)*6 + F33-1)/L$6, "(" & TEXT(PERCENTILE(_xlpm.arrNHB, 0.025), "0.000") & " to " & TEXT(PERCENTILE(_xlpm.arrNHB, 0.975), "0.000") & ")") -> (0.000 to 0.000) | N33: 0.000 | O33: =_xlfn.LET(_xlpm.arrNHB, OFFSET(rngPSA.Samples.QALYs, 0, (D33-1)*6 + F33-1) - OFFSET(rngPSA.Samples.Costs, 0, (D33-1)*6 + F33-1)/N$6, "(" & TEXT(PERCENTILE(_xlpm.arrNHB, 0.025), "0.000") & " to " & TEXT(PERCENTILE(_xlpm.arrNHB, 0.975), "0.000") & ")") -> (0.000 to 0.000) | Q33: =IF($AG33=1, "", H33-H31) ->  | R33: =_xlfn.LET(_xlpm.arrIncCosts, OFFSET(rngPSA.Samples.Costs, 0, ($D33-1)*6 + $F33-1)-OFFSET(rngPSA.Samples.Costs, 0, ($D33-1)*6 + $F31-1), IF(AG33=1, "", "(" & TEXT(PERCENTILE(_xlpm.arrIncCosts, 0.025), "£#,##0;−£#,##0") & " to " & TEXT(PERCENTILE(_xlpm.arrIncCosts, 0.975), "£#,##0;−£#,##0") & ")")) ->  | S33: =IF($AG33=1, "", J33-J31) ->  | T33: =_xlfn.LET(_xlpm.arrIncQALYs, OFFSET(rngPSA.Samples.QALYs, 0, ($D33-1)*6 + $F33-1)-OFFSET(rngPSA.Samples.QALYs, 0, ($D33-1)*6 + $F31-1), IF($AG33=1, "", "(" & TEXT(PERCENTILE(_xlpm.arrIncQALYs, 0.025), "0.000;−0.000") & " to " & TEXT(PERCENTILE(_xlpm.arrIncQALYs, 0.975), "0.000;−0.000") & ")")) ->  | U33: =IF($AG33=1, "", IF(AND(Q33>0, S33<0), "dominated", Q33/S33)) ->  | W33: =IF(F33=swtchResults.PSA.Baseline, "-", H33-INDEX(AI33:AI34, swtchResults.PSA.Baseline)) -> - | X33: =IF(F33=swtchResults.PSA.Baseline, "-", "(" & TEXT(PERCENTILE(OFFSET(rngPSA.Samples.Costs, 0, (D33-1)*6 + F33-1)-OFFSET(rngPSA.Samples.Costs, 0, (D33-1)*6 + swtchResults.PSA.Baseline-1), 0.025), "£#,##0;−£#,##0") & " to " & TEXT(PERCENTILE(OFFSET(rngPSA.Samples.Costs, 0, (D33-1)*6 + F33-1)-OFFSET(rngPSA.Samples.Costs, 0, (D33-1)*6 + swtchResults.PSA.Baseline-1), 0.975), "£#,##0;−£#,##0") & ")") -> - | Y33: =IF(F33=swtchResults.PSA.Baseline, "-", J33-INDEX(AK33:AK34, swtchResults.PSA.Baseline)) -> - | Z33: =IF(F33=swtchResults.PSA.Baseline, "-", "(" & TEXT(PERCENTILE(OFFSET(rngPSA.Samples.QALYs, 0, (D33-1)*6 + F33-1)-OFFSET(rngPSA.Samples.QALYs, 0, (D33-1)*6 + swtchResults.PSA.Baseline-1), 0.025), "0.000;−0.000") & " to " & TEXT(PERCENTILE(OFFSET(rngPSA.Samples.QALYs, 0, (D33-1)*6 + F33-1)-OFFSET(rngPSA.Samples.QALYs, 0, (D33-1)*6 + swtchResults.PSA.Baseline-1), 0.975), "0.000;−0.000") & ")") -> - | AA33: =IF(F33=swtchResults.PSA.Baseline, "-", Y33-W33/AA$7) -> - | AB33: =_xlfn.LET(_xlpm.arrNHB, (OFFSET(rngPSA.Samples.QALYs, 0, (D33-1)*6 + F33-1)-OFFSET(rngPSA.Samples.QALYs, 0, (D33-1)*6 + swtchResults.PSA.Baseline-1)) - (OFFSET(rngPSA.Samples.Costs, 0, (D33-1)*6 + F33-1)-OFFSET(rngPSA.Samples.Costs, 0, (D33-1)*6 + swtchResults.PSA.Baseline-1))/AA$7, IF(F33=swtchResults.PSA.Baseline, "-", "(" & TEXT(PERCENTILE(_xlpm.arrNHB, 0.025), "0.000;−0.000") & " to " & TEXT(PERCENTILE(_xlpm.arrNHB, 0.975), "0.000;−0.000") & ")")) -> - | AC33: =IF(F33=swtchResults.PSA.Baseline, "-", Y33-W33/AC$7) -> - | AD33: =_xlfn.LET(_xlpm.arrNHB, (OFFSET(rngPSA.Samples.QALYs, 0, (D33-1)*6 + F33-1)-OFFSET(rngPSA.Samples.QALYs, 0, (D33-1)*6 + swtchResults.PSA.Baseline-1)) - (OFFSET(rngPSA.Samples.Costs, 0, (D33-1)*6 + F33-1)-OFFSET(rngPSA.Samples.Costs, 0, (D33-1)*6 + swtchResults.PSA.Baseline-1))/AC$7, IF(F33=swtchResults.PSA.Baseline, "-", "(" & TEXT(PERCENTILE(_xlpm.arrNHB, 0.025), "0.000;−0.000") & " to " & TEXT(PERCENTILE(_xlpm.arrNHB, 0.975), "0.000;−0.000") & ")")) -> - | AE33: =IF(F33=swtchResults.PSA.Baseline, "ref", IF(AND(W33<=0, Y33>0), "dominant", IF(AND(W33>0, Y33<0), "dominated", W33/Y33))) -> ref | AG33: 1 | AH33: HPE | AI33: =INDEX(OFFSET(rngPSA.MeanCosts.Root, 0, (D33-1)*6), AG33) -> £107,166.91 | AJ33: =_xlfn.LET(_xlpm.arrCosts, OFFSET(rngPSA.Samples.Costs, 0, ($D33-1)*6 + $AG33-1), "(" & TEXT(PERCENTILE(_xlpm.arrCosts, 0.025), "£#,##0;−£#,##0") & " to " & TEXT(PERCENTILE(_xlpm.arrCosts, 0.975), "£#,##0;−£#,##0") & ")") -> (−£657,488 to £869,546) | AK33: =INDEX(OFFSET(rngPSA.MeanQALYs.Root, 0, (D33-1)*6), AG33) -> -417.198 | AL33: =_xlfn.LET(_xlpm.arrQALYs, OFFSET(rngPSA.Samples.QALYs, 0, ($D33-1)*6 + $AG33-1), "(" & TEXT(PERCENTILE(_xlpm.arrQALYs, 0.025), "0.000") & " to " & TEXT(PERCENTILE(_xlpm.arrQALYs, 0.975), "0.000") & ")") -> (-637.129 to -247.964) | AM33: =IFERROR(INDEX(rngPSA.MeanLYs, AG33), "") -> 
D34: 9 | F34: =MATCH(SMALL(AI33:AI34, AG34), AI33:AI34, 0) -> 1 | G34: =INDEX(rngStrats, F34) -> HPE | H34: =IFERROR(INDEX(AI33:AI34, F34), "") -> £107,167 | I34: =_xlfn.LET(_xlpm.arrCosts, OFFSET(rngPSA.Samples.Costs, 0, (D34-1)*6 + F34-1), "(" & TEXT(PERCENTILE(_xlpm.arrCosts, 0.025), "£#,##0;−£#,##0") & " to " & TEXT(PERCENTILE(_xlpm.arrCosts, 0.975), "£#,##0;−£#,##0") & ")") -> (−£657,488 to £869,546) | J34: =IFERROR(INDEX(AK33:AK34, F34), "") -> -417.198 | K34: =_xlfn.LET(_xlpm.arrQALYs, OFFSET(rngPSA.Samples.QALYs, 0, (D34-1)*6 + F34-1), "(" & TEXT(PERCENTILE(_xlpm.arrQALYs, 0.025), "0.000") & " to " & TEXT(PERCENTILE(_xlpm.arrQALYs, 0.975), "0.000") & ")") -> (-637.129 to -247.964) | L34: -422.556 | M34: =_xlfn.LET(_xlpm.arrNHB, OFFSET(rngPSA.Samples.QALYs, 0, (D34-1)*6 + F34-1) - OFFSET(rngPSA.Samples.Costs, 0, (D34-1)*6 + F34-1)/L$6, "(" & TEXT(PERCENTILE(_xlpm.arrNHB, 0.025), "0.000") & " to " & TEXT(PERCENTILE(_xlpm.arrNHB, 0.975), "0.000") & ")") -> (-624.682 to -267.653) | N34: -420.770 | O34: =_xlfn.LET(_xlpm.arrNHB, OFFSET(rngPSA.Samples.QALYs, 0, (D34-1)*6 + F34-1) - OFFSET(rngPSA.Samples.Costs, 0, (D34-1)*6 + F34-1)/N$6, "(" & TEXT(PERCENTILE(_xlpm.arrNHB, 0.025), "0.000") & " to " & TEXT(PERCENTILE(_xlpm.arrNHB, 0.975), "0.000") & ")") -> (-631.670 to -262.391) | Q34: =IF($AG34=1, "", H34-H33) -> £107,167 | R34: =_xlfn.LET(_xlpm.arrIncCosts, OFFSET(rngPSA.Samples.Costs, 0, ($D34-1)*6 + $F34-1)-OFFSET(rngPSA.Samples.Costs, 0, ($D34-1)*6 + $F33-1), IF(AG34=1, "", "(" & TEXT(PERCENTILE(_xlpm.arrIncCosts, 0.025), "£#,##0;−£#,##0") & " to " & TEXT(PERCENTILE(_xlpm.arrIncCosts, 0.975), "£#,##0;−£#,##0") & ")")) -> (−£657,488 to £869,546) | S34: =IF($AG34=1, "", J34-J33) -> -417.198 | T34: =_xlfn.LET(_xlpm.arrIncQALYs, OFFSET(rngPSA.Samples.QALYs, 0, ($D34-1)*6 + $F34-1)-OFFSET(rngPSA.Samples.QALYs, 0, ($D34-1)*6 + $F33-1), IF($AG34=1, "", "(" & TEXT(PERCENTILE(_xlpm.arrIncQALYs, 0.025), "0.000;−0.000") & " to " & TEXT(PERCENTILE(_xlpm.arrIncQALYs, 0.975), "0.000;−0.000") & ")")) -> (−637.129 to −247.964) | U34: =IF($AG34=1, "", IF(AND(Q34>0, S34<0), "dominated", Q34/S34)) -> dominated | W34: =IF(F34=swtchResults.PSA.Baseline, "-", H34-INDEX(AI33:AI34, swtchResults.PSA.Baseline)) -> £107,167 | X34: =IF(F34=swtchResults.PSA.Baseline, "-", "(" & TEXT(PERCENTILE(OFFSET(rngPSA.Samples.Costs, 0, (D34-1)*6 + F34-1)-OFFSET(rngPSA.Samples.Costs, 0, (D34-1)*6 + swtchResults.PSA.Baseline-1), 0.025), "£#,##0;−£#,##0") & " to " & TEXT(PERCENTILE(OFFSET(rngPSA.Samples.Costs, 0, (D34-1)*6 + F34-1)-OFFSET(rngPSA.Samples.Costs, 0, (D34-1)*6 + swtchResults.PSA.Baseline-1), 0.975), "£#,##0;−£#,##0") & ")") -> (−£657,488 to £869,546) | Y34: =IF(F34=swtchResults.PSA.Baseline, "-", J34-INDEX(AK33:AK34, swtchResults.PSA.Baseline)) -> -417.198 | Z34: =IF(F34=swtchResults.PSA.Baseline, "-", "(" & TEXT(PERCENTILE(OFFSET(rngPSA.Samples.QALYs, 0, (D34-1)*6 + F34-1)-OFFSET(rngPSA.Samples.QALYs, 0, (D34-1)*6 + swtchResults.PSA.Baseline-1), 0.025), "0.000;−0.000") & " to " & TEXT(PERCENTILE(OFFSET(rngPSA.Samples.QALYs, 0, (D34-1)*6 + F34-1)-OFFSET(rngPSA.Samples.QALYs, 0, (D34-1)*6 + swtchResults.PSA.Baseline-1), 0.975), "0.000;−0.000") & ")") -> (−637.129 to −247.964) | AA34: =IF(F34=swtchResults.PSA.Baseline, "-", Y34-W34/AA$7) -> -422.556 | AB34: =_xlfn.LET(_xlpm.arrNHB, (OFFSET(rngPSA.Samples.QALYs, 0, (D34-1)*6 + F34-1)-OFFSET(rngPSA.Samples.QALYs, 0, (D34-1)*6 + swtchResults.PSA.Baseline-1)) - (OFFSET(rngPSA.Samples.Costs, 0, (D34-1)*6 + F34-1)-OFFSET(rngPSA.Samples.Costs, 0, (D34-1)*6 + swtchResults.PSA.Baseline-1))/AA$7, IF(F34=swtchResults.PSA.Baseline, "-", "(" & TEXT(PERCENTILE(_xlpm.arrNHB, 0.025), "0.000;−0.000") & " to " & TEXT(PERCENTILE(_xlpm.arrNHB, 0.975), "0.000;−0.000") & ")")) -> (−624.682 to −267.653) | AC34: =IF(F34=swtchResults.PSA.Baseline, "-", Y34-W34/AC$7) -> -420.770 | AD34: =_xlfn.LET(_xlpm.arrNHB, (OFFSET(rngPSA.Samples.QALYs, 0, (D34-1)*6 + F34-1)-OFFSET(rngPSA.Samples.QALYs, 0, (D34-1)*6 + swtchResults.PSA.Baseline-1)) - (OFFSET(rngPSA.Samples.Costs, 0, (D34-1)*6 + F34-1)-OFFSET(rngPSA.Samples.Costs, 0, (D34-1)*6 + swtchResults.PSA.Baseline-1))/AC$7, IF(F34=swtchResults.PSA.Baseline, "-", "(" & TEXT(PERCENTILE(_xlpm.arrNHB, 0.025), "0.000;−0.000") & " to " & TEXT(PERCENTILE(_xlpm.arrNHB, 0.975), "0.000;−0.000") & ")")) -> (−631.670 to −262.391) | AE34: =IF(F34=swtchResults.PSA.Baseline, "ref", IF(AND(W34<=0, Y34>0), "dominant", IF(AND(W34>0, Y34<0), "dominated", W34/Y34))) -> dominated | AG34: 2 | AH34: No HPE | AI34: =INDEX(OFFSET(rngPSA.MeanCosts.Root, 0, (D34-1)*6), AG34) -> £0.00 | AJ34: =_xlfn.LET(_xlpm.arrCosts, OFFSET(rngPSA.Samples.Costs, 0, ($D34-1)*6 + $AG34-1), "(" & TEXT(PERCENTILE(_xlpm.arrCosts, 0.025), "£#,##0;−£#,##0") & " to " & TEXT(PERCENTILE(_xlpm.arrCosts, 0.975), "£#,##0;−£#,##0") & ")") -> (£0 to £0) | AK34: =INDEX(OFFSET(rngPSA.MeanQALYs.Root, 0, (D34-1)*6), AG34) -> 0.000 | AL34: =_xlfn.LET(_xlpm.arrQALYs, OFFSET(rngPSA.Samples.QALYs, 0, ($D34-1)*6 + $AG34-1), "(" & TEXT(PERCENTILE(_xlpm.arrQALYs, 0.025), "0.000") & " to " & TEXT(PERCENTILE(_xlpm.arrQALYs, 0.975), "0.000") & ")") -> (0.000 to 0.000) | AM34: =IFERROR(INDEX(rngPSA.MeanLYs, AG34), "") -> 
D35: 10 | F35: =INDEX(lstQs, D35) -> Expected harm in England: query E
D36: 10 | F36: =MATCH(SMALL(AI36:AI37, AG36), AI36:AI37, 0) -> 2 | G36: =INDEX(rngStrats, F36) -> No HPE | H36: =IFERROR(INDEX(AI36:AI37, F36), "") -> £0 | I36: =_xlfn.LET(_xlpm.arrCosts, OFFSET(rngPSA.Samples.Costs, 0, (D36-1)*6 + F36-1), "(" & TEXT(PERCENTILE(_xlpm.arrCosts, 0.025), "£#,##0;−£#,##0") & " to " & TEXT(PERCENTILE(_xlpm.arrCosts, 0.975), "£#,##0;−£#,##0") & ")") -> (£0 to £0) | J36: =IFERROR(INDEX(AK36:AK37, F36), "") -> 0.000 | K36: =_xlfn.LET(_xlpm.arrQALYs, OFFSET(rngPSA.Samples.QALYs, 0, (D36-1)*6 + F36-1), "(" & TEXT(PERCENTILE(_xlpm.arrQALYs, 0.025), "0.000") & " to " & TEXT(PERCENTILE(_xlpm.arrQALYs, 0.975), "0.000") & ")") -> (0.000 to 0.000) | L36: 0.000 | M36: =_xlfn.LET(_xlpm.arrNHB, OFFSET(rngPSA.Samples.QALYs, 0, (D36-1)*6 + F36-1) - OFFSET(rngPSA.Samples.Costs, 0, (D36-1)*6 + F36-1)/L$6, "(" & TEXT(PERCENTILE(_xlpm.arrNHB, 0.025), "0.000") & " to " & TEXT(PERCENTILE(_xlpm.arrNHB, 0.975), "0.000") & ")") -> (0.000 to 0.000) | N36: 0.000 | O36: =_xlfn.LET(_xlpm.arrNHB, OFFSET(rngPSA.Samples.QALYs, 0, (D36-1)*6 + F36-1) - OFFSET(rngPSA.Samples.Costs, 0, (D36-1)*6 + F36-1)/N$6, "(" & TEXT(PERCENTILE(_xlpm.arrNHB, 0.025), "0.000") & " to " & TEXT(PERCENTILE(_xlpm.arrNHB, 0.975), "0.000") & ")") -> (0.000 to 0.000) | Q36: =IF($AG36=1, "", H36-H34) ->  | R36: =_xlfn.LET(_xlpm.arrIncCosts, OFFSET(rngPSA.Samples.Costs, 0, ($D36-1)*6 + $F36-1)-OFFSET(rngPSA.Samples.Costs, 0, ($D36-1)*6 + $F34-1), IF(AG36=1, "", "(" & TEXT(PERCENTILE(_xlpm.arrIncCosts, 0.025), "£#,##0;−£#,##0") & " to " & TEXT(PERCENTILE(_xlpm.arrIncCosts, 0.975), "£#,##0;−£#,##0") & ")")) ->  | S36: =IF($AG36=1, "", J36-J34) ->  | T36: =_xlfn.LET(_xlpm.arrIncQALYs, OFFSET(rngPSA.Samples.QALYs, 0, ($D36-1)*6 + $F36-1)-OFFSET(rngPSA.Samples.QALYs, 0, ($D36-1)*6 + $F34-1), IF($AG36=1, "", "(" & TEXT(PERCENTILE(_xlpm.arrIncQALYs, 0.025), "0.000;−0.000") & " to " & TEXT(PERCENTILE(_xlpm.arrIncQALYs, 0.975), "0.000;−0.000") & ")")) ->  | U36: =IF($AG36=1, "", IF(AND(Q36>0, S36<0), "dominated", Q36/S36)) ->  | W36: =IF(F36=swtchResults.PSA.Baseline, "-", H36-INDEX(AI36:AI37, swtchResults.PSA.Baseline)) -> - | X36: =IF(F36=swtchResults.PSA.Baseline, "-", "(" & TEXT(PERCENTILE(OFFSET(rngPSA.Samples.Costs, 0, (D36-1)*6 + F36-1)-OFFSET(rngPSA.Samples.Costs, 0, (D36-1)*6 + swtchResults.PSA.Baseline-1), 0.025), "£#,##0;−£#,##0") & " to " & TEXT(PERCENTILE(OFFSET(rngPSA.Samples.Costs, 0, (D36-1)*6 + F36-1)-OFFSET(rngPSA.Samples.Costs, 0, (D36-1)*6 + swtchResults.PSA.Baseline-1), 0.975), "£#,##0;−£#,##0") & ")") -> - | Y36: =IF(F36=swtchResults.PSA.Baseline, "-", J36-INDEX(AK36:AK37, swtchResults.PSA.Baseline)) -> - | Z36: =IF(F36=swtchResults.PSA.Baseline, "-", "(" & TEXT(PERCENTILE(OFFSET(rngPSA.Samples.QALYs, 0, (D36-1)*6 + F36-1)-OFFSET(rngPSA.Samples.QALYs, 0, (D36-1)*6 + swtchResults.PSA.Baseline-1), 0.025), "0.000;−0.000") & " to " & TEXT(PERCENTILE(OFFSET(rngPSA.Samples.QALYs, 0, (D36-1)*6 + F36-1)-OFFSET(rngPSA.Samples.QALYs, 0, (D36-1)*6 + swtchResults.PSA.Baseline-1), 0.975), "0.000;−0.000") & ")") -> - | AA36: =IF(F36=swtchResults.PSA.Baseline, "-", Y36-W36/AA$7) -> - | AB36: =_xlfn.LET(_xlpm.arrNHB, (OFFSET(rngPSA.Samples.QALYs, 0, (D36-1)*6 + F36-1)-OFFSET(rngPSA.Samples.QALYs, 0, (D36-1)*6 + swtchResults.PSA.Baseline-1)) - (OFFSET(rngPSA.Samples.Costs, 0, (D36-1)*6 + F36-1)-OFFSET(rngPSA.Samples.Costs, 0, (D36-1)*6 + swtchResults.PSA.Baseline-1))/AA$7, IF(F36=swtchResults.PSA.Baseline, "-", "(" & TEXT(PERCENTILE(_xlpm.arrNHB, 0.025), "0.000;−0.000") & " to " & TEXT(PERCENTILE(_xlpm.arrNHB, 0.975), "0.000;−0.000") & ")")) -> - | AC36: =IF(F36=swtchResults.PSA.Baseline, "-", Y36-W36/AC$7) -> - | AD36: =_xlfn.LET(_xlpm.arrNHB, (OFFSET(rngPSA.Samples.QALYs, 0, (D36-1)*6 + F36-1)-OFFSET(rngPSA.Samples.QALYs, 0, (D36-1)*6 + swtchResults.PSA.Baseline-1)) - (OFFSET(rngPSA.Samples.Costs, 0, (D36-1)*6 + F36-1)-OFFSET(rngPSA.Samples.Costs, 0, (D36-1)*6 + swtchResults.PSA.Baseline-1))/AC$7, IF(F36=swtchResults.PSA.Baseline, "-", "(" & TEXT(PERCENTILE(_xlpm.arrNHB, 0.025), "0.000;−0.000") & " to " & TEXT(PERCENTILE(_xlpm.arrNHB, 0.975), "0.000;−0.000") & ")")) -> - | AE36: =IF(F36=swtchResults.PSA.Baseline, "ref", IF(AND(W36<=0, Y36>0), "dominant", IF(AND(W36>0, Y36<0), "dominated", W36/Y36))) -> ref | AG36: 1 | AH36: HPE | AI36: =INDEX(OFFSET(rngPSA.MeanCosts.Root, 0, (D36-1)*6), AG36) -> £3,196,029.24 | AJ36: =_xlfn.LET(_xlpm.arrCosts, OFFSET(rngPSA.Samples.Costs, 0, ($D36-1)*6 + $AG36-1), "(" & TEXT(PERCENTILE(_xlpm.arrCosts, 0.025), "£#,##0;−£#,##0") & " to " & TEXT(PERCENTILE(_xlpm.arrCosts, 0.975), "£#,##0;−£#,##0") & ")") -> (−£2,367,560 to £11,300,980) | AK36: =INDEX(OFFSET(rngPSA.MeanQALYs.Root, 0, (D36-1)*6), AG36) -> -1719.009 | AL36: =_xlfn.LET(_xlpm.arrQALYs, OFFSET(rngPSA.Samples.QALYs, 0, ($D36-1)*6 + $AG36-1), "(" & TEXT(PERCENTILE(_xlpm.arrQALYs, 0.025), "0.000") & " to " & TEXT(PERCENTILE(_xlpm.arrQALYs, 0.975), "0.000") & ")") -> (-3041.784 to -626.271) | AM36: =IFERROR(INDEX(rngPSA.MeanLYs, AG36), "") -> 
D37: 10 | F37: =MATCH(SMALL(AI36:AI37, AG37), AI36:AI37, 0) -> 1 | G37: =INDEX(rngStrats, F37) -> HPE | H37: =IFERROR(INDEX(AI36:AI37, F37), "") -> £3,196,029 | I37: =_xlfn.LET(_xlpm.arrCosts, OFFSET(rngPSA.Samples.Costs, 0, (D37-1)*6 + F37-1), "(" & TEXT(PERCENTILE(_xlpm.arrCosts, 0.025), "£#,##0;−£#,##0") & " to " & TEXT(PERCENTILE(_xlpm.arrCosts, 0.975), "£#,##0;−£#,##0") & ")") -> (−£2,367,560 to £11,300,980) | J37: =IFERROR(INDEX(AK36:AK37, F37), "") -> -1719.009 | K37: =_xlfn.LET(_xlpm.arrQALYs, OFFSET(rngPSA.Samples.QALYs, 0, (D37-1)*6 + F37-1), "(" & TEXT(PERCENTILE(_xlpm.arrQALYs, 0.025), "0.000") & " to " & TEXT(PERCENTILE(_xlpm.arrQALYs, 0.975), "0.000") & ")") -> (-3041.784 to -626.271) | L37: -1878.810 | M37: =_xlfn.LET(_xlpm.arrNHB, OFFSET(rngPSA.Samples.QALYs, 0, (D37-1)*6 + F37-1) - OFFSET(rngPSA.Samples.Costs, 0, (D37-1)*6 + F37-1)/L$6, "(" & TEXT(PERCENTILE(_xlpm.arrNHB, 0.025), "0.000") & " to " & TEXT(PERCENTILE(_xlpm.arrNHB, 0.975), "0.000") & ")") -> (-3410.721 to -664.963) | N37: -1825.543 | O37: =_xlfn.LET(_xlpm.arrNHB, OFFSET(rngPSA.Samples.QALYs, 0, (D37-1)*6 + F37-1) - OFFSET(rngPSA.Samples.Costs, 0, (D37-1)*6 + F37-1)/N$6, "(" & TEXT(PERCENTILE(_xlpm.arrNHB, 0.025), "0.000") & " to " & TEXT(PERCENTILE(_xlpm.arrNHB, 0.975), "0.000") & ")") -> (-3264.582 to -652.461) | Q37: =IF($AG37=1, "", H37-H36) -> £3,196,029 | R37: =_xlfn.LET(_xlpm.arrIncCosts, OFFSET(rngPSA.Samples.Costs, 0, ($D37-1)*6 + $F37-1)-OFFSET(rngPSA.Samples.Costs, 0, ($D37-1)*6 + $F36-1), IF(AG37=1, "", "(" & TEXT(PERCENTILE(_xlpm.arrIncCosts, 0.025), "£#,##0;−£#,##0") & " to " & TEXT(PERCENTILE(_xlpm.arrIncCosts, 0.975), "£#,##0;−£#,##0") & ")")) -> (−£2,367,560 to £11,300,980) | S37: =IF($AG37=1, "", J37-J36) -> -1719.009 | T37: =_xlfn.LET(_xlpm.arrIncQALYs, OFFSET(rngPSA.Samples.QALYs, 0, ($D37-1)*6 + $F37-1)-OFFSET(rngPSA.Samples.QALYs, 0, ($D37-1)*6 + $F36-1), IF($AG37=1, "", "(" & TEXT(PERCENTILE(_xlpm.arrIncQALYs, 0.025), "0.000;−0.000") & " to " & TEXT(PERCENTILE(_xlpm.arrIncQALYs, 0.975), "0.000;−0.000") & ")")) -> (−3041.784 to −626.271) | U37: =IF($AG37=1, "", IF(AND(Q37>0, S37<0), "dominated", Q37/S37)) -> dominated | W37: =IF(F37=swtchResults.PSA.Baseline, "-", H37-INDEX(AI36:AI37, swtchResults.PSA.Baseline)) -> £3,196,029 | X37: =IF(F37=swtchResults.PSA.Baseline, "-", "(" & TEXT(PERCENTILE(OFFSET(rngPSA.Samples.Costs, 0, (D37-1)*6 + F37-1)-OFFSET(rngPSA.Samples.Costs, 0, (D37-1)*6 + swtchResults.PSA.Baseline-1), 0.025), "£#,##0;−£#,##0") & " to " & TEXT(PERCENTILE(OFFSET(rngPSA.Samples.Costs, 0, (D37-1)*6 + F37-1)-OFFSET(rngPSA.Samples.Costs, 0, (D37-1)*6 + swtchResults.PSA.Baseline-1), 0.975), "£#,##0;−£#,##0") & ")") -> (−£2,367,560 to £11,300,980) | Y37: =IF(F37=swtchResults.PSA.Baseline, "-", J37-INDEX(AK36:AK37, swtchResults.PSA.Baseline)) -> -1719.009 | Z37: =IF(F37=swtchResults.PSA.Baseline, "-", "(" & TEXT(PERCENTILE(OFFSET(rngPSA.Samples.QALYs, 0, (D37-1)*6 + F37-1)-OFFSET(rngPSA.Samples.QALYs, 0, (D37-1)*6 + swtchResults.PSA.Baseline-1), 0.025), "0.000;−0.000") & " to " & TEXT(PERCENTILE(OFFSET(rngPSA.Samples.QALYs, 0, (D37-1)*6 + F37-1)-OFFSET(rngPSA.Samples.QALYs, 0, (D37-1)*6 + swtchResults.PSA.Baseline-1), 0.975), "0.000;−0.000") & ")") -> (−3041.784 to −626.271) | AA37: =IF(F37=swtchResults.PSA.Baseline, "-", Y37-W37/AA$7) -> -1878.810 | AB37: =_xlfn.LET(_xlpm.arrNHB, (OFFSET(rngPSA.Samples.QALYs, 0, (D37-1)*6 + F37-1)-OFFSET(rngPSA.Samples.QALYs, 0, (D37-1)*6 + swtchResults.PSA.Baseline-1)) - (OFFSET(rngPSA.Samples.Costs, 0, (D37-1)*6 + F37-1)-OFFSET(rngPSA.Samples.Costs, 0, (D37-1)*6 + swtchResults.PSA.Baseline-1))/AA$7, IF(F37=swtchResults.PSA.Baseline, "-", "(" & TEXT(PERCENTILE(_xlpm.arrNHB, 0.025), "0.000;−0.000") & " to " & TEXT(PERCENTILE(_xlpm.arrNHB, 0.975), "0.000;−0.000") & ")")) -> (−3410.721 to −664.963) | AC37: =IF(F37=swtchResults.PSA.Baseline, "-", Y37-W37/AC$7) -> -1825.543 | AD37: =_xlfn.LET(_xlpm.arrNHB, (OFFSET(rngPSA.Samples.QALYs, 0, (D37-1)*6 + F37-1)-OFFSET(rngPSA.Samples.QALYs, 0, (D37-1)*6 + swtchResults.PSA.Baseline-1)) - (OFFSET(rngPSA.Samples.Costs, 0, (D37-1)*6 + F37-1)-OFFSET(rngPSA.Samples.Costs, 0, (D37-1)*6 + swtchResults.PSA.Baseline-1))/AC$7, IF(F37=swtchResults.PSA.Baseline, "-", "(" & TEXT(PERCENTILE(_xlpm.arrNHB, 0.025), "0.000;−0.000") & " to " & TEXT(PERCENTILE(_xlpm.arrNHB, 0.975), "0.000;−0.000") & ")")) -> (−3264.582 to −652.461) | AE37: =IF(F37=swtchResults.PSA.Baseline, "ref", IF(AND(W37<=0, Y37>0), "dominant", IF(AND(W37>0, Y37<0), "dominated", W37/Y37))) -> dominated | AG37: 2 | AH37: No HPE | AI37: =INDEX(OFFSET(rngPSA.MeanCosts.Root, 0, (D37-1)*6), AG37) -> £0.00 | AJ37: =_xlfn.LET(_xlpm.arrCosts, OFFSET(rngPSA.Samples.Costs, 0, ($D37-1)*6 + $AG37-1), "(" & TEXT(PERCENTILE(_xlpm.arrCosts, 0.025), "£#,##0;−£#,##0") & " to " & TEXT(PERCENTILE(_xlpm.arrCosts, 0.975), "£#,##0;−£#,##0") & ")") -> (£0 to £0) | AK37: =INDEX(OFFSET(rngPSA.MeanQALYs.Root, 0, (D37-1)*6), AG37) -> 0.000 | AL37: =_xlfn.LET(_xlpm.arrQALYs, OFFSET(rngPSA.Samples.QALYs, 0, ($D37-1)*6 + $AG37-1), "(" & TEXT(PERCENTILE(_xlpm.arrQALYs, 0.025), "0.000") & " to " & TEXT(PERCENTILE(_xlpm.arrQALYs, 0.975), "0.000") & ")") -> (0.000 to 0.000) | AM37: =IFERROR(INDEX(rngPSA.MeanLYs, AG37), "") -> 
D38: 11 | F38: =INDEX(lstQs, D38) -> Expected harm in England: total
D39: 11 | F39: =MATCH(SMALL(AI39:AI40, AG39), AI39:AI40, 0) -> 2 | G39: =INDEX(rngStrats, F39) -> No HPE | H39: =IFERROR(INDEX(AI39:AI40, F39), "") -> £0 | I39: =_xlfn.LET(_xlpm.arrCosts, OFFSET(rngPSA.Samples.Costs, 0, (D39-1)*6 + F39-1), "(" & TEXT(PERCENTILE(_xlpm.arrCosts, 0.025), "£#,##0;−£#,##0") & " to " & TEXT(PERCENTILE(_xlpm.arrCosts, 0.975), "£#,##0;−£#,##0") & ")") -> (£0 to £0) | J39: =IFERROR(INDEX(AK39:AK40, F39), "") -> 0.000 | K39: =_xlfn.LET(_xlpm.arrQALYs, OFFSET(rngPSA.Samples.QALYs, 0, (D39-1)*6 + F39-1), "(" & TEXT(PERCENTILE(_xlpm.arrQALYs, 0.025), "0.000") & " to " & TEXT(PERCENTILE(_xlpm.arrQALYs, 0.975), "0.000") & ")") -> (0.000 to 0.000) | L39: 0.000 | M39: =_xlfn.LET(_xlpm.arrNHB, OFFSET(rngPSA.Samples.QALYs, 0, (D39-1)*6 + F39-1) - OFFSET(rngPSA.Samples.Costs, 0, (D39-1)*6 + F39-1)/L$6, "(" & TEXT(PERCENTILE(_xlpm.arrNHB, 0.025), "0.000") & " to " & TEXT(PERCENTILE(_xlpm.arrNHB, 0.975), "0.000") & ")") -> (0.000 to 0.000) | N39: 0.000 | O39: =_xlfn.LET(_xlpm.arrNHB, OFFSET(rngPSA.Samples.QALYs, 0, (D39-1)*6 + F39-1) - OFFSET(rngPSA.Samples.Costs, 0, (D39-1)*6 + F39-1)/N$6, "(" & TEXT(PERCENTILE(_xlpm.arrNHB, 0.025), "0.000") & " to " & TEXT(PERCENTILE(_xlpm.arrNHB, 0.975), "0.000") & ")") -> (0.000 to 0.000) | Q39: =IF($AG39=1, "", H39-H37) ->  | R39: =_xlfn.LET(_xlpm.arrIncCosts, OFFSET(rngPSA.Samples.Costs, 0, ($D39-1)*6 + $F39-1)-OFFSET(rngPSA.Samples.Costs, 0, ($D39-1)*6 + $F37-1), IF(AG39=1, "", "(" & TEXT(PERCENTILE(_xlpm.arrIncCosts, 0.025), "£#,##0;−£#,##0") & " to " & TEXT(PERCENTILE(_xlpm.arrIncCosts, 0.975), "£#,##0;−£#,##0") & ")")) ->  | S39: =IF($AG39=1, "", J39-J37) ->  | T39: =_xlfn.LET(_xlpm.arrIncQALYs, OFFSET(rngPSA.Samples.QALYs, 0, ($D39-1)*6 + $F39-1)-OFFSET(rngPSA.Samples.QALYs, 0, ($D39-1)*6 + $F37-1), IF($AG39=1, "", "(" & TEXT(PERCENTILE(_xlpm.arrIncQALYs, 0.025), "0.000;−0.000") & " to " & TEXT(PERCENTILE(_xlpm.arrIncQALYs, 0.975), "0.000;−0.000") & ")")) ->  | U39: =IF($AG39=1, "", IF(AND(Q39>0, S39<0), "dominated", Q39/S39)) ->  | W39: =IF(F39=swtchResults.PSA.Baseline, "-", H39-INDEX(AI39:AI40, swtchResults.PSA.Baseline)) -> - | X39: =IF(F39=swtchResults.PSA.Baseline, "-", "(" & TEXT(PERCENTILE(OFFSET(rngPSA.Samples.Costs, 0, (D39-1)*6 + F39-1)-OFFSET(rngPSA.Samples.Costs, 0, (D39-1)*6 + swtchResults.PSA.Baseline-1), 0.025), "£#,##0;−£#,##0") & " to " & TEXT(PERCENTILE(OFFSET(rngPSA.Samples.Costs, 0, (D39-1)*6 + F39-1)-OFFSET(rngPSA.Samples.Costs, 0, (D39-1)*6 + swtchResults.PSA.Baseline-1), 0.975), "£#,##0;−£#,##0") & ")") -> - | Y39: =IF(F39=swtchResults.PSA.Baseline, "-", J39-INDEX(AK39:AK40, swtchResults.PSA.Baseline)) -> - | Z39: =IF(F39=swtchResults.PSA.Baseline, "-", "(" & TEXT(PERCENTILE(OFFSET(rngPSA.Samples.QALYs, 0, (D39-1)*6 + F39-1)-OFFSET(rngPSA.Samples.QALYs, 0, (D39-1)*6 + swtchResults.PSA.Baseline-1), 0.025), "0.000;−0.000") & " to " & TEXT(PERCENTILE(OFFSET(rngPSA.Samples.QALYs, 0, (D39-1)*6 + F39-1)-OFFSET(rngPSA.Samples.QALYs, 0, (D39-1)*6 + swtchResults.PSA.Baseline-1), 0.975), "0.000;−0.000") & ")") -> - | AA39: =IF(F39=swtchResults.PSA.Baseline, "-", Y39-W39/AA$7) -> - | AB39: =_xlfn.LET(_xlpm.arrNHB, (OFFSET(rngPSA.Samples.QALYs, 0, (D39-1)*6 + F39-1)-OFFSET(rngPSA.Samples.QALYs, 0, (D39-1)*6 + swtchResults.PSA.Baseline-1)) - (OFFSET(rngPSA.Samples.Costs, 0, (D39-1)*6 + F39-1)-OFFSET(rngPSA.Samples.Costs, 0, (D39-1)*6 + swtchResults.PSA.Baseline-1))/AA$7, IF(F39=swtchResults.PSA.Baseline, "-", "(" & TEXT(PERCENTILE(_xlpm.arrNHB, 0.025), "0.000;−0.000") & " to " & TEXT(PERCENTILE(_xlpm.arrNHB, 0.975), "0.000;−0.000") & ")")) -> - | AC39: =IF(F39=swtchResults.PSA.Baseline, "-", Y39-W39/AC$7) -> - | AD39: =_xlfn.LET(_xlpm.arrNHB, (OFFSET(rngPSA.Samples.QALYs, 0, (D39-1)*6 + F39-1)-OFFSET(rngPSA.Samples.QALYs, 0, (D39-1)*6 + swtchResults.PSA.Baseline-1)) - (OFFSET(rngPSA.Samples.Costs, 0, (D39-1)*6 + F39-1)-OFFSET(rngPSA.Samples.Costs, 0, (D39-1)*6 + swtchResults.PSA.Baseline-1))/AC$7, IF(F39=swtchResults.PSA.Baseline, "-", "(" & TEXT(PERCENTILE(_xlpm.arrNHB, 0.025), "0.000;−0.000") & " to " & TEXT(PERCENTILE(_xlpm.arrNHB, 0.975), "0.000;−0.000") & ")")) -> - | AE39: =IF(F39=swtchResults.PSA.Baseline, "ref", IF(AND(W39<=0, Y39>0), "dominant", IF(AND(W39>0, Y39<0), "dominated", W39/Y39))) -> ref | AG39: 1 | AH39: HPE | AI39: =INDEX(OFFSET(rngPSA.MeanCosts.Root, 0, (D39-1)*6), AG39) -> £31,197,502.33 | AJ39: =_xlfn.LET(_xlpm.arrCosts, OFFSET(rngPSA.Samples.Costs, 0, ($D39-1)*6 + $AG39-1), "(" & TEXT(PERCENTILE(_xlpm.arrCosts, 0.025), "£#,##0;−£#,##0") & " to " & TEXT(PERCENTILE(_xlpm.arrCosts, 0.975), "£#,##0;−£#,##0") & ")") -> (£10,200,387 to £68,554,942) | AK39: =INDEX(OFFSET(rngPSA.MeanQALYs.Root, 0, (D39-1)*6), AG39) -> -6174.559 | AL39: =_xlfn.LET(_xlpm.arrQALYs, OFFSET(rngPSA.Samples.QALYs, 0, ($D39-1)*6 + $AG39-1), "(" & TEXT(PERCENTILE(_xlpm.arrQALYs, 0.025), "0.000") & " to " & TEXT(PERCENTILE(_xlpm.arrQALYs, 0.975), "0.000") & ")") -> (-8501.587 to -4299.196) | AM39: =IFERROR(INDEX(rngPSA.MeanLYs, AG39), "") -> 
D40: 11 | F40: =MATCH(SMALL(AI39:AI40, AG40), AI39:AI40, 0) -> 1 | G40: =INDEX(rngStrats, F40) -> HPE | H40: =IFERROR(INDEX(AI39:AI40, F40), "") -> £31,197,502 | I40: =_xlfn.LET(_xlpm.arrCosts, OFFSET(rngPSA.Samples.Costs, 0, (D40-1)*6 + F40-1), "(" & TEXT(PERCENTILE(_xlpm.arrCosts, 0.025), "£#,##0;−£#,##0") & " to " & TEXT(PERCENTILE(_xlpm.arrCosts, 0.975), "£#,##0;−£#,##0") & ")") -> (£10,200,387 to £68,554,942) | J40: =IFERROR(INDEX(AK39:AK40, F40), "") -> -6174.559 | K40: =_xlfn.LET(_xlpm.arrQALYs, OFFSET(rngPSA.Samples.QALYs, 0, (D40-1)*6 + F40-1), "(" & TEXT(PERCENTILE(_xlpm.arrQALYs, 0.025), "0.000") & " to " & TEXT(PERCENTILE(_xlpm.arrQALYs, 0.975), "0.000") & ")") -> (-8501.587 to -4299.196) | L40: -7734.435 | M40: =_xlfn.LET(_xlpm.arrNHB, OFFSET(rngPSA.Samples.QALYs, 0, (D40-1)*6 + F40-1) - OFFSET(rngPSA.Samples.Costs, 0, (D40-1)*6 + F40-1)/L$6, "(" & TEXT(PERCENTILE(_xlpm.arrNHB, 0.025), "0.000") & " to " & TEXT(PERCENTILE(_xlpm.arrNHB, 0.975), "0.000") & ")") -> (-11597.781 to -5015.457) | N40: -7214.476 | O40: =_xlfn.LET(_xlpm.arrNHB, OFFSET(rngPSA.Samples.QALYs, 0, (D40-1)*6 + F40-1) - OFFSET(rngPSA.Samples.Costs, 0, (D40-1)*6 + F40-1)/N$6, "(" & TEXT(PERCENTILE(_xlpm.arrNHB, 0.025), "0.000") & " to " & TEXT(PERCENTILE(_xlpm.arrNHB, 0.975), "0.000") & ")") -> (-10590.687 to -4722.167) | Q40: =IF($AG40=1, "", H40-H39) -> £31,197,502 | R40: =_xlfn.LET(_xlpm.arrIncCosts, OFFSET(rngPSA.Samples.Costs, 0, ($D40-1)*6 + $F40-1)-OFFSET(rngPSA.Samples.Costs, 0, ($D40-1)*6 + $F39-1), IF(AG40=1, "", "(" & TEXT(PERCENTILE(_xlpm.arrIncCosts, 0.025), "£#,##0;−£#,##0") & " to " & TEXT(PERCENTILE(_xlpm.arrIncCosts, 0.975), "£#,##0;−£#,##0") & ")")) -> (£10,200,387 to £68,554,942) | S40: =IF($AG40=1, "", J40-J39) -> -6174.559 | T40: =_xlfn.LET(_xlpm.arrIncQALYs, OFFSET(rngPSA.Samples.QALYs, 0, ($D40-1)*6 + $F40-1)-OFFSET(rngPSA.Samples.QALYs, 0, ($D40-1)*6 + $F39-1), IF($AG40=1, "", "(" & TEXT(PERCENTILE(_xlpm.arrIncQALYs, 0.025), "0.000;−0.000") & " to " & TEXT(PERCENTILE(_xlpm.arrIncQALYs, 0.975), "0.000;−0.000") & ")")) -> (−8501.587 to −4299.196) | U40: =IF($AG40=1, "", IF(AND(Q40>0, S40<0), "dominated", Q40/S40)) -> dominated | W40: =IF(F40=swtchResults.PSA.Baseline, "-", H40-INDEX(AI39:AI40, swtchResults.PSA.Baseline)) -> £31,197,502 | X40: =IF(F40=swtchResults.PSA.Baseline, "-", "(" & TEXT(PERCENTILE(OFFSET(rngPSA.Samples.Costs, 0, (D40-1)*6 + F40-1)-OFFSET(rngPSA.Samples.Costs, 0, (D40-1)*6 + swtchResults.PSA.Baseline-1), 0.025), "£#,##0;−£#,##0") & " to " & TEXT(PERCENTILE(OFFSET(rngPSA.Samples.Costs, 0, (D40-1)*6 + F40-1)-OFFSET(rngPSA.Samples.Costs, 0, (D40-1)*6 + swtchResults.PSA.Baseline-1), 0.975), "£#,##0;−£#,##0") & ")") -> (£10,200,387 to £68,554,942) | Y40: =IF(F40=swtchResults.PSA.Baseline, "-", J40-INDEX(AK39:AK40, swtchResults.PSA.Baseline)) -> -6174.559 | Z40: =IF(F40=swtchResults.PSA.Baseline, "-", "(" & TEXT(PERCENTILE(OFFSET(rngPSA.Samples.QALYs, 0, (D40-1)*6 + F40-1)-OFFSET(rngPSA.Samples.QALYs, 0, (D40-1)*6 + swtchResults.PSA.Baseline-1), 0.025), "0.000;−0.000") & " to " & TEXT(PERCENTILE(OFFSET(rngPSA.Samples.QALYs, 0, (D40-1)*6 + F40-1)-OFFSET(rngPSA.Samples.QALYs, 0, (D40-1)*6 + swtchResults.PSA.Baseline-1), 0.975), "0.000;−0.000") & ")") -> (−8501.587 to −4299.196) | AA40: =IF(F40=swtchResults.PSA.Baseline, "-", Y40-W40/AA$7) -> -7734.435 | AB40: =_xlfn.LET(_xlpm.arrNHB, (OFFSET(rngPSA.Samples.QALYs, 0, (D40-1)*6 + F40-1)-OFFSET(rngPSA.Samples.QALYs, 0, (D40-1)*6 + swtchResults.PSA.Baseline-1)) - (OFFSET(rngPSA.Samples.Costs, 0, (D40-1)*6 + F40-1)-OFFSET(rngPSA.Samples.Costs, 0, (D40-1)*6 + swtchResults.PSA.Baseline-1))/AA$7, IF(F40=swtchResults.PSA.Baseline, "-", "(" & TEXT(PERCENTILE(_xlpm.arrNHB, 0.025), "0.000;−0.000") & " to " & TEXT(PERCENTILE(_xlpm.arrNHB, 0.975), "0.000;−0.000") & ")")) -> (−11597.781 to −5015.457) | AC40: =IF(F40=swtchResults.PSA.Baseline, "-", Y40-W40/AC$7) -> -7214.476 | AD40: =_xlfn.LET(_xlpm.arrNHB, (OFFSET(rngPSA.Samples.QALYs, 0, (D40-1)*6 + F40-1)-OFFSET(rngPSA.Samples.QALYs, 0, (D40-1)*6 + swtchResults.PSA.Baseline-1)) - (OFFSET(rngPSA.Samples.Costs, 0, (D40-1)*6 + F40-1)-OFFSET(rngPSA.Samples.Costs, 0, (D40-1)*6 + swtchResults.PSA.Baseline-1))/AC$7, IF(F40=swtchResults.PSA.Baseline, "-", "(" & TEXT(PERCENTILE(_xlpm.arrNHB, 0.025), "0.000;−0.000") & " to " & TEXT(PERCENTILE(_xlpm.arrNHB, 0.975), "0.000;−0.000") & ")")) -> (−10590.687 to −4722.167) | AE40: =IF(F40=swtchResults.PSA.Baseline, "ref", IF(AND(W40<=0, Y40>0), "dominant", IF(AND(W40>0, Y40<0), "dominated", W40/Y40))) -> dominated | AG40: 2 | AH40: No HPE | AI40: =INDEX(OFFSET(rngPSA.MeanCosts.Root, 0, (D40-1)*6), AG40) -> £0.00 | AJ40: =_xlfn.LET(_xlpm.arrCosts, OFFSET(rngPSA.Samples.Costs, 0, ($D40-1)*6 + $AG40-1), "(" & TEXT(PERCENTILE(_xlpm.arrCosts, 0.025), "£#,##0;−£#,##0") & " to " & TEXT(PERCENTILE(_xlpm.arrCosts, 0.975), "£#,##0;−£#,##0") & ")") -> (£0 to £0) | AK40: =INDEX(OFFSET(rngPSA.MeanQALYs.Root, 0, (D40-1)*6), AG40) -> 0.000 | AL40: =_xlfn.LET(_xlpm.arrQALYs, OFFSET(rngPSA.Samples.QALYs, 0, ($D40-1)*6 + $AG40-1), "(" & TEXT(PERCENTILE(_xlpm.arrQALYs, 0.025), "0.000") & " to " & TEXT(PERCENTILE(_xlpm.arrQALYs, 0.975), "0.000") & ")") -> (0.000 to 0.000) | AM40: =IFERROR(INDEX(rngPSA.MeanLYs, AG40), "") -> 

Sheet SensitivityAnalysis >>>
E1: =zWorkbookTitle -> Camacho et al. (2024) Harms of hazardous prescribing of NSAIDs
F3: The following worksheets contain sensitivity analyses
F5: * 'PSA.Data' contains relevant outputs from each iteration of a probabilistic (Monte-Carlo) simulation
F6: * 'PSA.Outputs' gives relevant probabilistic outputs -- in this case, the key output is a scatter-plot
F7: showing incremental differences between people who are and are not exposed to individual hazardous
F8: prescribing events (or the sum across all). Users can select the comparison of interest in the
F9: dropdown box in the top-left of the screen
F10: * 'OSA' contains the results of deterministic one-way sensitivity analysis, with all parameters varied
F11: from a lower to an upper bound
F12: * 'Thresholds' gives the results of deterministic sensitivity analyses in which selected parameters
F13: are varied across a full range of values of interest

Sheet PSA.Data
D1: =zWorkbookTitle -> Camacho et al. (2024) Harms of hazardous prescribing of NSAIDs
E2: 1 | F2: =E2 -> 1 | H2: =F2 -> 1 | I2: =H2 -> 1 | K2: =E2+1 -> 2 | L2: =K2 -> 2 | N2: =L2 -> 2 | O2: =N2 -> 2 | Q2: =K2+1 -> 3 | R2: =Q2 -> 3 | T2: =R2 -> 3 | U2: =T2 -> 3 | W2: =Q2+1 -> 4 | X2: =W2 -> 4 | Z2: =X2 -> 4 | AA2: =Z2 -> 4 | AC2: =W2+1 -> 5 | AD2: =AC2 -> 5 | AF2: =AD2 -> 5 | AG2: =AF2 -> 5 | AI2: =AC2+1 -> 6 | AJ2: =AI2 -> 6 | AL2: =AJ2 -> 6 | AM2: =AL2 -> 6 | AO2: =AI2+1 -> 7 | AP2: =AO2 -> 7 | AR2: =AP2 -> 7 | AS2: =AR2 -> 7 | AU2: =AO2+1 -> 8 | AV2: =AU2 -> 8 | AX2: =AR2+1 -> 8 | AY2: =AX2 -> 8 | BA2: =AU2+1 -> 9 | BB2: =BA2 -> 9 | BD2: =AX2+1 -> 9 | BE2: =BD2 -> 9 | BG2: =BA2+1 -> 10 | BH2: =BG2 -> 10 | BJ2: =BD2+1 -> 10 | BK2: =BJ2 -> 10 | BM2: =BG2+1 -> 11 | BN2: =BM2 -> 11 | BP2: =BJ2+1 -> 11 | BQ2: =BP2 -> 11
E3: =D2+1 -> 1 | F3: =E3+1 -> 2 | H3: =G3+1 -> 1 | I3: =H3+1 -> 2 | K3: =J3+1 -> 1 | L3: =K3+1 -> 2 | N3: =M3+1 -> 1 | O3: =N3+1 -> 2 | Q3: =P3+1 -> 1 | R3: =Q3+1 -> 2 | T3: =S3+1 -> 1 | U3: =T3+1 -> 2 | W3: =V3+1 -> 1 | X3: =W3+1 -> 2 | Z3: =Y3+1 -> 1 | AA3: =Z3+1 -> 2 | AC3: =AB3+1 -> 1 | AD3: =AC3+1 -> 2 | AF3: =AE3+1 -> 1 | AG3: =AF3+1 -> 2 | AI3: =AH3+1 -> 1 | AJ3: =AI3+1 -> 2 | AL3: =AK3+1 -> 1 | AM3: =AL3+1 -> 2 | AO3: =AN3+1 -> 1 | AP3: =AO3+1 -> 2 | AR3: =AQ3+1 -> 1 | AS3: =AR3+1 -> 2 | AU3: =AT3+1 -> 1 | AV3: =AU3+1 -> 2 | AX3: =AW3+1 -> 1 | AY3: =AX3+1 -> 2 | BA3: =AZ3+1 -> 1 | BB3: =BA3+1 -> 2 | BD3: =BC3+1 -> 1 | BE3: =BD3+1 -> 2 | BG3: =BF3+1 -> 1 | BH3: =BG3+1 -> 2 | BJ3: =BI3+1 -> 1 | BK3: =BJ3+1 -> 2 | BM3: =BL3+1 -> 1 | BN3: =BM3+1 -> 2 | BP3: =BO3+1 -> 1 | BQ3: =BP3+1 -> 2 | BS3: =#REF!+1 ->  | BT3: =BS3+1 ->  | BV3: =BU3+1 -> 1 | BW3: =BV3+1 -> 2 | BY3: =BX3+1 -> 1 | BZ3: =BY3+1 -> 2 | CB3: =CA3+1 -> 1 | CC3: =CB3+1 -> 2 | CE3: =CD3+1 -> 1 | CF3: =CE3+1 -> 2 | CH3: =CG3+1 -> 1 | CI3: =CH3+1 -> 2 | CK3: =CJ3+1 -> 1 | CL3: =CK3+1 -> 2 | CN3: =CM3+1 -> 1 | CO3: =CN3+1 -> 2 | CQ3: =CP3+1 -> 1 | CR3: =CQ3+1 -> 2 | CT3: =CS3+1 -> 1 | CU3: =CT3+1 -> 2 | CW3: =CV3+1 -> 1 | CX3: =CW3+1 -> 2 | CZ3: =CY3+1 -> 1 | DA3: =CZ3+1 -> 2 | DC3: =DB3+1 -> 1 | DD3: =DC3+1 -> 2 | DF3: =DE3+1 -> 1 | DG3: =DF3+1 -> 2 | DI3: =DH3+1 -> 1 | DJ3: =DI3+1 -> 2 | DL3: =DK3+1 -> 1 | DM3: =DL3+1 -> 2 | DO3: =DN3+1 -> 1 | DP3: =DO3+1 -> 2 | DR3: =DQ3+1 -> 1 | DS3: =DR3+1 -> 2 | DU3: =DT3+1 -> 1 | DV3: =DU3+1 -> 2 | DX3: =DW3+1 -> 1 | DY3: =DX3+1 -> 2 | EA3: =DZ3+1 -> 1 | EB3: =EA3+1 -> 2 | ED3: =EC3+1 -> 1 | EE3: =ED3+1 -> 2
E4: =INDEX(lstQs, E$2) -> A: No gastroprotection - NSAIDs in people >65 | K4: =INDEX(lstQs, K$2) -> B: No gastroprotection - NSAIDs in people with ulcer history | Q4: =INDEX(lstQs, Q$2) -> C: NSAIDs - DOAC/warfarin | W4: =INDEX(lstQs, W$2) -> D: NSAIDs - HF | AC4: =INDEX(lstQs, AC$2) -> E: NSAIDs - CKD | AI4: =INDEX(lstQs, AI$2) -> Expected harm in England: query A | AO4: =INDEX(lstQs, AO$2) -> Expected harm in England: query B | AU4: =INDEX(lstQs, AU$2) -> Expected harm in England: query C | BA4: =INDEX(lstQs, BA$2) -> Expected harm in England: query D | BG4: =INDEX(lstQs, BG$2) -> Expected harm in England: query E | BM4: =INDEX(lstQs, BM$2) -> Expected harm in England: total | BS4: =E4 -> A: No gastroprotection - NSAIDs in people >65 | BY4: =K4 -> B: No gastroprotection - NSAIDs in people with ulcer history | CE4: =Q4 -> C: NSAIDs - DOAC/warfarin | CK4: =W4 -> D: NSAIDs - HF | CQ4: =AC4 -> E: NSAIDs - CKD | CW4: =AI4 -> Expected harm in England: query A | DC4: =AO4 -> Expected harm in England: query B | DI4: =AU4 -> Expected harm in England: query C | DO4: =BA4 -> Expected harm in England: query D | DU4: =BG4 -> Expected harm in England: query E | EA4: =BM4 -> Expected harm in England: total
E5: Costs | H5: QALYs | K5: Costs | N5: QALYs | Q5: Costs | T5: QALYs | W5: Costs | Z5: QALYs | AC5: Costs | AF5: QALYs | AI5: Costs | AL5: QALYs | AO5: Costs | AR5: QALYs | AU5: Costs | AX5: QALYs | BA5: Costs | BD5: QALYs | BG5: Costs | BJ5: QALYs | BM5: Costs | BP5: QALYs | BS5: NMB @ £20,000 / QALY | BV5: Rank | BY5: =WTP -> NMB @ £20,000 / QALY | CB5: Rank | CE5: =WTP -> NMB @ £20,000 / QALY | CH5: Rank | CK5: =WTP -> NMB @ £20,000 / QALY | CN5: Rank | CQ5: =WTP -> NMB @ £20,000 / QALY | CT5: Rank | CW5: =WTP -> NMB @ £20,000 / QALY | CZ5: Rank | DC5: =WTP -> NMB @ £20,000 / QALY | DF5: Rank | DI5: =WTP -> NMB @ £20,000 / QALY | DL5: Rank | DO5: =WTP -> NMB @ £20,000 / QALY | DR5: Rank | DU5: =WTP -> NMB @ £20,000 / QALY | DX5: Rank | EA5: =WTP -> NMB @ £20,000 / QALY | ED5: Rank
D6: mean | E6: =IF(E$17="", "", AVERAGE(OFFSET(E$17, 0, 0, numSims))) -> £258 | F6: =IF(F$17="", "", AVERAGE(OFFSET(F$17, 0, 0, numSims))) -> £235 | H6: =IF(H$17="", "", AVERAGE(OFFSET(H$17, 0, 0, numSims))) -> 5.835 | I6: =IF(I$17="", "", AVERAGE(OFFSET(I$17, 0, 0, numSims))) -> 5.852 | K6: =IF(K$17="", "", AVERAGE(OFFSET(K$17, 0, 0, numSims))) -> £277 | L6: =IF(L$17="", "", AVERAGE(OFFSET(L$17, 0, 0, numSims))) -> £253 | N6: =IF(N$17="", "", AVERAGE(OFFSET(N$17, 0, 0, numSims))) -> 6.702 | O6: =IF(O$17="", "", AVERAGE(OFFSET(O$17, 0, 0, numSims))) -> 6.716 | Q6: =IF(Q$17="", "", AVERAGE(OFFSET(Q$17, 0, 0, numSims))) -> £2,520 | R6: =IF(R$17="", "", AVERAGE(OFFSET(R$17, 0, 0, numSims))) -> £1,432 | T6: =IF(T$17="", "", AVERAGE(OFFSET(T$17, 0, 0, numSims))) -> 4.813 | U6: =IF(U$17="", "", AVERAGE(OFFSET(U$17, 0, 0, numSims))) -> 4.906 | W6: =IF(W$17="", "", AVERAGE(OFFSET(W$17, 0, 0, numSims))) -> £12,597 | X6: =IF(X$17="", "", AVERAGE(OFFSET(X$17, 0, 0, numSims))) -> £12,585 | Z6: =IF(Z$17="", "", AVERAGE(OFFSET(Z$17, 0, 0, numSims))) -> 3.003 | AA6: =IF(AA$17="", "", AVERAGE(OFFSET(AA$17, 0, 0, numSims))) -> 3.050 | AC6: =IF(AC$17="", "", AVERAGE(OFFSET(AC$17, 0, 0, numSims))) -> £50,259 | AD6: =IF(AD$17="", "", AVERAGE(OFFSET(AD$17, 0, 0, numSims))) -> £50,056 | AF6: =IF(AF$17="", "", AVERAGE(OFFSET(AF$17, 0, 0, numSims))) -> 4.524 | AG6: =IF(AG$17="", "", AVERAGE(OFFSET(AG$17, 0, 0, numSims))) -> 4.633 | AI6: =IF(AI$17="", "", AVERAGE(OFFSET(AI$17, 0, 0, numSims))) -> £2,535,968 | AJ6: =IF(AJ$17="", "", AVERAGE(OFFSET(AJ$17, 0, 0, numSims))) -> £0 | AL6: =IF(AL$17="", "", AVERAGE(OFFSET(AL$17, 0, 0, numSims))) -> -1801.307 | AM6: =IF(AM$17="", "", AVERAGE(OFFSET(AM$17, 0, 0, numSims))) -> 0.000 | AO6: =IF(AO$17="", "", AVERAGE(OFFSET(AO$17, 0, 0, numSims))) -> £165,937 | AP6: =IF(AP$17="", "", AVERAGE(OFFSET(AP$17, 0, 0, numSims))) -> £0 | AR6: =IF(AR$17="", "", AVERAGE(OFFSET(AR$17, 0, 0, numSims))) -> -99.913 | AS6: =IF(AS$17="", "", AVERAGE(OFFSET(AS$17, 0, 0, numSims))) -> 0.000 | AU6: =IF(AU$17="", "", AVERAGE(OFFSET(AU$17, 0, 0, numSims))) -> £25,192,401 | AV6: =IF(AV$17="", "", AVERAGE(OFFSET(AV$17, 0, 0, numSims))) -> £0 | AX6: =IF(AX$17="", "", AVERAGE(OFFSET(AX$17, 0, 0, numSims))) -> -2137.133 | AY6: =IF(AY$17="", "", AVERAGE(OFFSET(AY$17, 0, 0, numSims))) -> 0.000 | BA6: =IF(BA$17="", "", AVERAGE(OFFSET(BA$17, 0, 0, numSims))) -> £107,167 | BB6: =IF(BB$17="", "", AVERAGE(OFFSET(BB$17, 0, 0, numSims))) -> £0 | BD6: =IF(BD$17="", "", AVERAGE(OFFSET(BD$17, 0, 0, numSims))) -> -417.198 | BE6: =IF(BE$17="", "", AVERAGE(OFFSET(BE$17, 0, 0, numSims))) -> 0.000 | BG6: =IF(BG$17="", "", AVERAGE(OFFSET(BG$17, 0, 0, numSims))) -> £3,196,029 | BH6: =IF(BH$17="", "", AVERAGE(OFFSET(BH$17, 0, 0, numSims))) -> £0 | BJ6: =IF(BJ$17="", "", AVERAGE(OFFSET(BJ$17, 0, 0, numSims))) -> -1719.009 | BK6: =IF(BK$17="", "", AVERAGE(OFFSET(BK$17, 0, 0, numSims))) -> 0.000 | BM6: =IF(BM$17="", "", AVERAGE(OFFSET(BM$17, 0, 0, numSims))) -> £31,197,502 | BN6: =IF(BN$17="", "", AVERAGE(OFFSET(BN$17, 0, 0, numSims))) -> £0 | BP6: =IF(BP$17="", "", AVERAGE(OFFSET(BP$17, 0, 0, numSims))) -> -6174.559 | BQ6: =IF(BQ$17="", "", AVERAGE(OFFSET(BQ$17, 0, 0, numSims))) -> 0.000 | BS6: =IF(BS$17="", "", AVERAGE(OFFSET(BS$17, 0, 0, numSims))) -> £116,441 | BT6: =IF(BT$17="", "", AVERAGE(OFFSET(BT$17, 0, 0, numSims))) -> £116,800 | BV6: =AVERAGE(IF(OFFSET(BV$17, 0, 0, numSims)=1, 1, 0)) -> 0 | BW6: =AVERAGE(IF(OFFSET(BW$17, 0, 0, numSims)=1, 1, 0)) -> 1 | BY6: =IF(BY$17="", "", AVERAGE(OFFSET(BY$17, 0, 0, numSims))) -> £133,754 | BZ6: =IF(BZ$17="", "", AVERAGE(OFFSET(BZ$17, 0, 0, numSims))) -> £134,069 | CB6: =AVERAGE(IF(OFFSET(CB$17, 0, 0, numSims)=1, 1, 0)) -> 0 | CC6: =AVERAGE(IF(OFFSET(CC$17, 0, 0, numSims)=1, 1, 0)) -> 1 | CE6: =IF(CE$17="", "", AVERAGE(OFFSET(CE$17, 0, 0, numSims))) -> £93,746 | CF6: =IF(CF$17="", "", AVERAGE(OFFSET(CF$17, 0, 0, numSims))) -> £96,678 | CH6: =AVERAGE(IF(OFFSET(CH$17, 0, 0, numSims)=1, 1, 0)) -> 0 | CI6: =AVERAGE(IF(OFFSET(CI$17, 0, 0, numSims)=1, 1, 0)) -> 1 | CK6: =IF(CK$17="", "", AVERAGE(OFFSET(CK$17, 0, 0, numSims))) -> £47,472 | CL6: =IF(CL$17="", "", AVERAGE(OFFSET(CL$17, 0, 0, numSims))) -> £48,419 | CN6: =AVERAGE(IF(OFFSET(CN$17, 0, 0, numSims)=1, 1, 0)) -> 0 | CO6: =AVERAGE(IF(OFFSET(CO$17, 0, 0, numSims)=1, 1, 0)) -> 1 | CQ6: =IF(CQ$17="", "", AVERAGE(OFFSET(CQ$17, 0, 0, numSims))) -> £40,224 | CR6: =IF(CR$17="", "", AVERAGE(OFFSET(CR$17, 0, 0, numSims))) -> £42,601 | CT6: =AVERAGE(IF(OFFSET(CT$17, 0, 0, numSims)=1, 1, 0)) -> 0.002 | CU6: =AVERAGE(IF(OFFSET(CU$17, 0, 0, numSims)=1, 1, 0)) -> 0.998 | CW6: =IF(CW$17="", "", AVERAGE(OFFSET(CW$17, 0, 0, numSims))) -> -£38,562,102 | CX6: =IF(CX$17="", "", AVERAGE(OFFSET(CX$17, 0, 0, numSims))) -> £0 | CZ6: =AVERAGE(IF(OFFSET(CZ$17, 0, 0, numSims)=1, 1, 0)) -> 0 | DA6: =AVERAGE(IF(OFFSET(DA$17, 0, 0, numSims)=1, 1, 0)) -> 1 | DC6: =IF(DC$17="", "", AVERAGE(OFFSET(DC$17, 0, 0, numSims))) -> -£2,164,203 | DD6: =IF(DD$17="", "", AVERAGE(OFFSET(DD$17, 0, 0, numSims))) -> £0 | DF6: =AVERAGE(IF(OFFSET(DF$17, 0, 0, numSims)=1, 1, 0)) -> 0 | DG6: =AVERAGE(IF(OFFSET(DG$17, 0, 0, numSims)=1, 1, 0)) -> 1 | DI6: =IF(DI$17="", "", AVERAGE(OFFSET(DI$17, 0, 0, numSims))) -> -£67,935,054 | DJ6: =IF(DJ$17="", "", AVERAGE(OFFSET(DJ$17, 0, 0, numSims))) -> £0 | DL6: =AVERAGE(IF(OFFSET(DL$17, 0, 0, numSims)=1, 1, 0)) -> 0 | DM6: =AVERAGE(IF(OFFSET(DM$17, 0, 0, numSims)=1, 1, 0)) -> 1 | DO6: =IF(DO$17="", "", AVERAGE(OFFSET(DO$17, 0, 0, numSims))) -> -£8,451,129 | DP6: =IF(DP$17="", "", AVERAGE(OFFSET(DP$17, 0, 0, numSims))) -> £0 | DR6: =AVERAGE(IF(OFFSET(DR$17, 0, 0, numSims)=1, 1, 0)) -> 0 | DS6: =AVERAGE(IF(OFFSET(DS$17, 0, 0, numSims)=1, 1, 0)) -> 1 | DU6: =IF(DU$17="", "", AVERAGE(OFFSET(DU$17, 0, 0, numSims))) -> -£37,576,203 | DV6: =IF(DV$17="", "", AVERAGE(OFFSET(DV$17, 0, 0, numSims))) -> £0 | DX6: =AVERAGE(IF(OFFSET(DX$17, 0, 0, numSims)=1, 1, 0)) -> 0.002 | DY6: =AVERAGE(IF(OFFSET(DY$17, 0, 0, numSims)=1, 1, 0)) -> 0.998 | EA6: =IF(EA$17="", "", AVERAGE(OFFSET(EA$17, 0, 0, numSims))) -> -£154,688,691 | EB6: =IF(EB$17="", "", AVERAGE(OFFSET(EB$17, 0, 0, numSims))) -> £0 | ED6: =AVERAGE(IF(OFFSET(ED$17, 0, 0, numSims)=1, 1, 0)) -> 0 | EE6: =AVERAGE(IF(OFFSET(EE$17, 0, 0, numSims)=1, 1, 0)) -> 1
D7: SD | E7: =IF(E$17="", "", _xlfn.STDEV.S(OFFSET(E$17, 0, 0, numSims))) -> £35 | F7: =IF(F$17="", "", _xlfn.STDEV.S(OFFSET(F$17, 0, 0, numSims))) -> £34 | H7: =IF(H$17="", "", _xlfn.STDEV.S(OFFSET(H$17, 0, 0, numSims))) -> 0.038 | I7: =IF(I$17="", "", _xlfn.STDEV.S(OFFSET(I$17, 0, 0, numSims))) -> 0.038 | K7: =IF(K$17="", "", _xlfn.STDEV.S(OFFSET(K$17, 0, 0, numSims))) -> £38 | L7: =IF(L$17="", "", _xlfn.STDEV.S(OFFSET(L$17, 0, 0, numSims))) -> £37 | N7: =IF(N$17="", "", _xlfn.STDEV.S(OFFSET(N$17, 0, 0, numSims))) -> 0.034 | O7: =IF(O$17="", "", _xlfn.STDEV.S(OFFSET(O$17, 0, 0, numSims))) -> 0.035 | Q7: =IF(Q$17="", "", _xlfn.STDEV.S(OFFSET(Q$17, 0, 0, numSims))) -> £756 | R7: =IF(R$17="", "", _xlfn.STDEV.S(OFFSET(R$17, 0, 0, numSims))) -> £251 | T7: =IF(T$17="", "", _xlfn.STDEV.S(OFFSET(T$17, 0, 0, numSims))) -> 0.106 | U7: =IF(U$17="", "", _xlfn.STDEV.S(OFFSET(U$17, 0, 0, numSims))) -> 0.102 | W7: =IF(W$17="", "", _xlfn.STDEV.S(OFFSET(W$17, 0, 0, numSims))) -> £2,380 | X7: =IF(X$17="", "", _xlfn.STDEV.S(OFFSET(X$17, 0, 0, numSims))) -> £2,374 | Z7: =IF(Z$17="", "", _xlfn.STDEV.S(OFFSET(Z$17, 0, 0, numSims))) -> 0.105 | AA7: =IF(AA$17="", "", _xlfn.STDEV.S(OFFSET(AA$17, 0, 0, numSims))) -> 0.107 | AC7: =IF(AC$17="", "", _xlfn.STDEV.S(OFFSET(AC$17, 0, 0, numSims))) -> £978 | AD7: =IF(AD$17="", "", _xlfn.STDEV.S(OFFSET(AD$17, 0, 0, numSims))) -> £900 | AF7: =IF(AF$17="", "", _xlfn.STDEV.S(OFFSET(AF$17, 0, 0, numSims))) -> 0.307 | AG7: =IF(AG$17="", "", _xlfn.STDEV.S(OFFSET(AG$17, 0, 0, numSims))) -> 0.317 | AI7: =IF(AI$17="", "", _xlfn.STDEV.S(OFFSET(AI$17, 0, 0, numSims))) -> £1,026,954 | AJ7: =IF(AJ$17="", "", _xlfn.STDEV.S(OFFSET(AJ$17, 0, 0, numSims))) -> £0 | AL7: =IF(AL$17="", "", _xlfn.STDEV.S(OFFSET(AL$17, 0, 0, numSims))) -> 260.029 | AM7: =IF(AM$17="", "", _xlfn.STDEV.S(OFFSET(AM$17, 0, 0, numSims))) -> 0.000 | AO7: =IF(AO$17="", "", _xlfn.STDEV.S(OFFSET(AO$17, 0, 0, numSims))) -> £67,298 | AP7: =IF(AP$17="", "", _xlfn.STDEV.S(OFFSET(AP$17, 0, 0, numSims))) -> £0 | AR7: =IF(AR$17="", "", _xlfn.STDEV.S(OFFSET(AR$17, 0, 0, numSims))) -> 16.923 | AS7: =IF(AS$17="", "", _xlfn.STDEV.S(OFFSET(AS$17, 0, 0, numSims))) -> 0.000 | AU7: =IF(AU$17="", "", _xlfn.STDEV.S(OFFSET(AU$17, 0, 0, numSims))) -> £14,187,363 | AV7: =IF(AV$17="", "", _xlfn.STDEV.S(OFFSET(AV$17, 0, 0, numSims))) -> £0 | AX7: =IF(AX$17="", "", _xlfn.STDEV.S(OFFSET(AX$17, 0, 0, numSims))) -> 831.316 | AY7: =IF(AY$17="", "", _xlfn.STDEV.S(OFFSET(AY$17, 0, 0, numSims))) -> 0.000 | BA7: =IF(BA$17="", "", _xlfn.STDEV.S(OFFSET(BA$17, 0, 0, numSims))) -> £375,565 | BB7: =IF(BB$17="", "", _xlfn.STDEV.S(OFFSET(BB$17, 0, 0, numSims))) -> £0 | BD7: =IF(BD$17="", "", _xlfn.STDEV.S(OFFSET(BD$17, 0, 0, numSims))) -> 101.644 | BE7: =IF(BE$17="", "", _xlfn.STDEV.S(OFFSET(BE$17, 0, 0, numSims))) -> 0.000 | BG7: =IF(BG$17="", "", _xlfn.STDEV.S(OFFSET(BG$17, 0, 0, numSims))) -> £3,440,045 | BH7: =IF(BH$17="", "", _xlfn.STDEV.S(OFFSET(BH$17, 0, 0, numSims))) -> £0 | BJ7: =IF(BJ$17="", "", _xlfn.STDEV.S(OFFSET(BJ$17, 0, 0, numSims))) -> 622.982 | BK7: =IF(BK$17="", "", _xlfn.STDEV.S(OFFSET(BK$17, 0, 0, numSims))) -> 0.000 | BM7: =IF(BM$17="", "", _xlfn.STDEV.S(OFFSET(BM$17, 0, 0, numSims))) -> £14,708,240 | BN7: =IF(BN$17="", "", _xlfn.STDEV.S(OFFSET(BN$17, 0, 0, numSims))) -> £0 | BP7: =IF(BP$17="", "", _xlfn.STDEV.S(OFFSET(BP$17, 0, 0, numSims))) -> 1072.306 | BQ7: =IF(BQ$17="", "", _xlfn.STDEV.S(OFFSET(BQ$17, 0, 0, numSims))) -> 0.000 | BS7: =IF(BS$17="", "", _xlfn.STDEV.S(OFFSET(BS$17, 0, 0, numSims))) -> £753 | BT7: =IF(BT$17="", "", _xlfn.STDEV.S(OFFSET(BT$17, 0, 0, numSims))) -> £757 | BY7: =IF(BY$17="", "", _xlfn.STDEV.S(OFFSET(BY$17, 0, 0, numSims))) -> £693 | BZ7: =IF(BZ$17="", "", _xlfn.STDEV.S(OFFSET(BZ$17, 0, 0, numSims))) -> £708 | CE7: =IF(CE$17="", "", _xlfn.STDEV.S(OFFSET(CE$17, 0, 0, numSims))) -> £2,389 | CF7: =IF(CF$17="", "", _xlfn.STDEV.S(OFFSET(CF$17, 0, 0, numSims))) -> £2,056 | CK7: =IF(CK$17="", "", _xlfn.STDEV.S(OFFSET(CK$17, 0, 0, numSims))) -> £3,099 | CL7: =IF(CL$17="", "", _xlfn.STDEV.S(OFFSET(CL$17, 0, 0, numSims))) -> £3,132 | CQ7: =IF(CQ$17="", "", _xlfn.STDEV.S(OFFSET(CQ$17, 0, 0, numSims))) -> £6,206 | CR7: =IF(CR$17="", "", _xlfn.STDEV.S(OFFSET(CR$17, 0, 0, numSims))) -> £6,392 | CW7: =IF(CW$17="", "", _xlfn.STDEV.S(OFFSET(CW$17, 0, 0, numSims))) -> £5,640,737 | CX7: =IF(CX$17="", "", _xlfn.STDEV.S(OFFSET(CX$17, 0, 0, numSims))) -> £0 | DC7: =IF(DC$17="", "", _xlfn.STDEV.S(OFFSET(DC$17, 0, 0, numSims))) -> £365,957 | DD7: =IF(DD$17="", "", _xlfn.STDEV.S(OFFSET(DD$17, 0, 0, numSims))) -> £0 | DI7: =IF(DI$17="", "", _xlfn.STDEV.S(OFFSET(DI$17, 0, 0, numSims))) -> £29,484,443 | DJ7: =IF(DJ$17="", "", _xlfn.STDEV.S(OFFSET(DJ$17, 0, 0, numSims))) -> £0 | DO7: =IF(DO$17="", "", _xlfn.STDEV.S(OFFSET(DO$17, 0, 0, numSims))) -> £1,794,748 | DP7: =IF(DP$17="", "", _xlfn.STDEV.S(OFFSET(DP$17, 0, 0, numSims))) -> £0 | DU7: =IF(DU$17="", "", _xlfn.STDEV.S(OFFSET(DU$17, 0, 0, numSims))) -> £14,360,096 | DV7: =IF(DV$17="", "", _xlfn.STDEV.S(OFFSET(DV$17, 0, 0, numSims))) -> £0 | EA7: =IF(EA$17="", "", _xlfn.STDEV.S(OFFSET(EA$17, 0, 0, numSims))) -> £32,961,509 | EB7: =IF(EB$17="", "", _xlfn.STDEV.S(OFFSET(EB$17, 0, 0, numSims))) -> £0
D8: min | E8: =IF(E$17="", "", MIN(OFFSET(E$17, 0, 0, numSims))) -> £169 | F8: =IF(F$17="", "", MIN(OFFSET(F$17, 0, 0, numSims))) -> £149 | H8: =IF(H$17="", "", MIN(OFFSET(H$17, 0, 0, numSims))) -> 5.721 | I8: =IF(I$17="", "", MIN(OFFSET(I$17, 0, 0, numSims))) -> 5.736 | K8: =IF(K$17="", "", MIN(OFFSET(K$17, 0, 0, numSims))) -> £181 | L8: =IF(L$17="", "", MIN(OFFSET(L$17, 0, 0, numSims))) -> £161 | N8: =IF(N$17="", "", MIN(OFFSET(N$17, 0, 0, numSims))) -> 6.595 | O8: =IF(O$17="", "", MIN(OFFSET(O$17, 0, 0, numSims))) -> 6.608 | Q8: =IF(Q$17="", "", MIN(OFFSET(Q$17, 0, 0, numSims))) -> £667 | R8: =IF(R$17="", "", MIN(OFFSET(R$17, 0, 0, numSims))) -> £678 | T8: =IF(T$17="", "", MIN(OFFSET(T$17, 0, 0, numSims))) -> 4.471 | U8: =IF(U$17="", "", MIN(OFFSET(U$17, 0, 0, numSims))) -> 4.611 | W8: =IF(W$17="", "", MIN(OFFSET(W$17, 0, 0, numSims))) -> £6,714 | X8: =IF(X$17="", "", MIN(OFFSET(X$17, 0, 0, numSims))) -> £6,690 | Z8: =IF(Z$17="", "", MIN(OFFSET(Z$17, 0, 0, numSims))) -> 2.559 | AA8: =IF(AA$17="", "", MIN(OFFSET(AA$17, 0, 0, numSims))) -> 2.590 | AC8: =IF(AC$17="", "", MIN(OFFSET(AC$17, 0, 0, numSims))) -> £47,688 | AD8: =IF(AD$17="", "", MIN(OFFSET(AD$17, 0, 0, numSims))) -> £47,674 | AF8: =IF(AF$17="", "", MIN(OFFSET(AF$17, 0, 0, numSims))) -> 3.434 | AG8: =IF(AG$17="", "", MIN(OFFSET(AG$17, 0, 0, numSims))) -> 3.497 | AI8: =IF(AI$17="", "", MIN(OFFSET(AI$17, 0, 0, numSims))) -> -£351,487 | AJ8: =IF(AJ$17="", "", MIN(OFFSET(AJ$17, 0, 0, numSims))) -> £0 | AL8: =IF(AL$17="", "", MIN(OFFSET(AL$17, 0, 0, numSims))) -> -2631.791 | AM8: =IF(AM$17="", "", MIN(OFFSET(AM$17, 0, 0, numSims))) -> 0.000 | AO8: =IF(AO$17="", "", MIN(OFFSET(AO$17, 0, 0, numSims))) -> -£22,101 | AP8: =IF(AP$17="", "", MIN(OFFSET(AP$17, 0, 0, numSims))) -> £0 | AR8: =IF(AR$17="", "", MIN(OFFSET(AR$17, 0, 0, numSims))) -> -155.227 | AS8: =IF(AS$17="", "", MIN(OFFSET(AS$17, 0, 0, numSims))) -> 0.000 | AU8: =IF(AU$17="", "", MIN(OFFSET(AU$17, 0, 0, numSims))) -> -£334,794 | AV8: =IF(AV$17="", "", MIN(OFFSET(AV$17, 0, 0, numSims))) -> £0 | AX8: =IF(AX$17="", "", MIN(OFFSET(AX$17, 0, 0, numSims))) -> -7145.070 | AY8: =IF(AY$17="", "", MIN(OFFSET(AY$17, 0, 0, numSims))) -> 0.000 | BA8: =IF(BA$17="", "", MIN(OFFSET(BA$17, 0, 0, numSims))) -> -£1,538,097 | BB8: =IF(BB$17="", "", MIN(OFFSET(BB$17, 0, 0, numSims))) -> £0 | BD8: =IF(BD$17="", "", MIN(OFFSET(BD$17, 0, 0, numSims))) -> -837.646 | BE8: =IF(BE$17="", "", MIN(OFFSET(BE$17, 0, 0, numSims))) -> 0.000 | BG8: =IF(BG$17="", "", MIN(OFFSET(BG$17, 0, 0, numSims))) -> -£4,374,193 | BH8: =IF(BH$17="", "", MIN(OFFSET(BH$17, 0, 0, numSims))) -> £0 | BJ8: =IF(BJ$17="", "", MIN(OFFSET(BJ$17, 0, 0, numSims))) -> -3764.672 | BK8: =IF(BK$17="", "", MIN(OFFSET(BK$17, 0, 0, numSims))) -> 0.000 | BM8: =IF(BM$17="", "", MIN(OFFSET(BM$17, 0, 0, numSims))) -> £2,948,223 | BN8: =IF(BN$17="", "", MIN(OFFSET(BN$17, 0, 0, numSims))) -> £0 | BP8: =IF(BP$17="", "", MIN(OFFSET(BP$17, 0, 0, numSims))) -> -10604.482 | BQ8: =IF(BQ$17="", "", MIN(OFFSET(BQ$17, 0, 0, numSims))) -> 0.000 | BS8: =IF(BS$17="", "", MIN(OFFSET(BS$17, 0, 0, numSims))) -> £114,175 | BT8: =IF(BT$17="", "", MIN(OFFSET(BT$17, 0, 0, numSims))) -> £114,488 | BY8: =IF(BY$17="", "", MIN(OFFSET(BY$17, 0, 0, numSims))) -> £131,572 | BZ8: =IF(BZ$17="", "", MIN(OFFSET(BZ$17, 0, 0, numSims))) -> £131,838 | CE8: =IF(CE$17="", "", MIN(OFFSET(CE$17, 0, 0, numSims))) -> £83,160 | CF8: =IF(CF$17="", "", MIN(OFFSET(CF$17, 0, 0, numSims))) -> £91,013 | CK8: =IF(CK$17="", "", MIN(OFFSET(CK$17, 0, 0, numSims))) -> £38,162 | CL8: =IF(CL$17="", "", MIN(OFFSET(CL$17, 0, 0, numSims))) -> £39,270 | CQ8: =IF(CQ$17="", "", MIN(OFFSET(CQ$17, 0, 0, numSims))) -> £20,139 | CR8: =IF(CR$17="", "", MIN(OFFSET(CR$17, 0, 0, numSims))) -> £21,006 | CW8: =IF(CW$17="", "", MIN(OFFSET(CW$17, 0, 0, numSims))) -> -£56,518,415 | CX8: =IF(CX$17="", "", MIN(OFFSET(CX$17, 0, 0, numSims))) -> £0 | DC8: =IF(DC$17="", "", MIN(OFFSET(DC$17, 0, 0, numSims))) -> -£3,347,505 | DD8: =IF(DD$17="", "", MIN(OFFSET(DD$17, 0, 0, numSims))) -> £0 | DI8: =IF(DI$17="", "", MIN(OFFSET(DI$17, 0, 0, numSims))) -> -£289,756,535 | DJ8: =IF(DJ$17="", "", MIN(OFFSET(DJ$17, 0, 0, numSims))) -> £0 | DO8: =IF(DO$17="", "", MIN(OFFSET(DO$17, 0, 0, numSims))) -> -£15,902,297 | DP8: =IF(DP$17="", "", MIN(OFFSET(DP$17, 0, 0, numSims))) -> £0 | DU8: =IF(DU$17="", "", MIN(OFFSET(DU$17, 0, 0, numSims))) -> -£84,315,565 | DV8: =IF(DV$17="", "", MIN(OFFSET(DV$17, 0, 0, numSims))) -> £0 | EA8: =IF(EA$17="", "", MIN(OFFSET(EA$17, 0, 0, numSims))) -> -£367,196,559 | EB8: =IF(EB$17="", "", MIN(OFFSET(EB$17, 0, 0, numSims))) -> £0
D9: 0.025 | E9: =IF(E$17="", "", PERCENTILE(OFFSET(E$17, 0, 0, numSims), $D9)) -> £197 | F9: £174 | H9: =IF(H$17="", "", PERCENTILE(OFFSET(H$17, 0, 0, numSims), $D9)) -> 5.761 | I9: 5.777 | K9: =IF(K$17="", "", PERCENTILE(OFFSET(K$17, 0, 0, numSims), $D9)) -> £211 | L9: £188 | N9: =IF(N$17="", "", PERCENTILE(OFFSET(N$17, 0, 0, numSims), $D9)) -> 6.633 | O9: 6.645 | Q9: =IF(Q$17="", "", PERCENTILE(OFFSET(Q$17, 0, 0, numSims), $D9)) -> £1,427 | R9: £1,002 | T9: =IF(T$17="", "", PERCENTILE(OFFSET(T$17, 0, 0, numSims), $D9)) -> 4.605 | U9: 4.710 | W9: =IF(W$17="", "", PERCENTILE(OFFSET(W$17, 0, 0, numSims), $D9)) -> £8,264 | X9: £8,258 | Z9: =IF(Z$17="", "", PERCENTILE(OFFSET(Z$17, 0, 0, numSims), $D9)) -> 2.795 | AA9: 2.840 | AC9: =IF(AC$17="", "", PERCENTILE(OFFSET(AC$17, 0, 0, numSims), $D9)) -> £48,440 | AD9: £48,267 | AF9: =IF(AF$17="", "", PERCENTILE(OFFSET(AF$17, 0, 0, numSims), $D9)) -> 3.849 | AG9: 3.930 | AI9: =IF(AI$17="", "", PERCENTILE(OFFSET(AI$17, 0, 0, numSims), $D9)) -> £717,761 | AJ9: £0 | AL9: =IF(AL$17="", "", PERCENTILE(OFFSET(AL$17, 0, 0, numSims), $D9)) -> -2306.289 | AM9: 0.000 | AO9: =IF(AO$17="", "", PERCENTILE(OFFSET(AO$17, 0, 0, numSims), $D9)) -> £46,395 | AP9: £0 | AR9: =IF(AR$17="", "", PERCENTILE(OFFSET(AR$17, 0, 0, numSims), $D9)) -> -134.567 | AS9: 0.000 | AU9: =IF(AU$17="", "", PERCENTILE(OFFSET(AU$17, 0, 0, numSims), $D9)) -> £5,712,183 | AV9: £0 | AX9: =IF(AX$17="", "", PERCENTILE(OFFSET(AX$17, 0, 0, numSims), $D9)) -> -4069.808 | AY9: 0.000 | BA9: =IF(BA$17="", "", PERCENTILE(OFFSET(BA$17, 0, 0, numSims), $D9)) -> -£657,488 | BB9: £0 | BD9: =IF(BD$17="", "", PERCENTILE(OFFSET(BD$17, 0, 0, numSims), $D9)) -> -637.129 | BE9: 0.000 | BG9: =IF(BG$17="", "", PERCENTILE(OFFSET(BG$17, 0, 0, numSims), $D9)) -> -£2,367,560 | BH9: £0 | BJ9: =IF(BJ$17="", "", PERCENTILE(OFFSET(BJ$17, 0, 0, numSims), $D9)) -> -3041.784 | BK9: 0.000 | BM9: =IF(BM$17="", "", PERCENTILE(OFFSET(BM$17, 0, 0, numSims), $D9)) -> £10,200,387 | BN9: £0 | BP9: =IF(BP$17="", "", PERCENTILE(OFFSET(BP$17, 0, 0, numSims), $D9)) -> -8501.587 | BQ9: 0.000 | BS9: =IF(BS$17="", "", PERCENTILE(OFFSET(BS$17, 0, 0, numSims), $D9)) -> £114,953 | BT9: £115,299 | BY9: =IF(BY$17="", "", PERCENTILE(OFFSET(BY$17, 0, 0, numSims), $D9)) -> £132,346 | BZ9: £132,635 | CE9: =IF(CE$17="", "", PERCENTILE(OFFSET(CE$17, 0, 0, numSims), $D9)) -> £88,961 | CF9: £92,708 | CK9: =IF(CK$17="", "", PERCENTILE(OFFSET(CK$17, 0, 0, numSims), $D9)) -> £40,967 | CL9: £41,872 | CQ9: =IF(CQ$17="", "", PERCENTILE(OFFSET(CQ$17, 0, 0, numSims), $D9)) -> £26,266 | CR9: £27,802 | CW9: =IF(CW$17="", "", PERCENTILE(OFFSET(CW$17, 0, 0, numSims), $D9)) -> -£49,190,437 | CX9: £0 | DC9: =IF(DC$17="", "", PERCENTILE(OFFSET(DC$17, 0, 0, numSims), $D9)) -> -£2,873,025 | DD9: £0 | DI9: =IF(DI$17="", "", PERCENTILE(OFFSET(DI$17, 0, 0, numSims), $D9)) -> -£138,324,987 | DJ9: £0 | DO9: =IF(DO$17="", "", PERCENTILE(OFFSET(DO$17, 0, 0, numSims), $D9)) -> -£12,493,643 | DP9: £0 | DU9: =IF(DU$17="", "", PERCENTILE(OFFSET(DU$17, 0, 0, numSims), $D9)) -> -£68,214,427 | DV9: £0 | EA9: =IF(EA$17="", "", PERCENTILE(OFFSET(EA$17, 0, 0, numSims), $D9)) -> -£231,955,615 | EB9: £0
D10: 0.5 | E10: £256 | F10: £232 | H10: 5.835 | I10: 5.851 | K10: £274 | L10: £250 | N10: 6.701 | O10: 6.716 | Q10: £2,383 | R10: £1,417 | T10: 4.816 | U10: 4.907 | W10: £12,405 | X10: £12,401 | Z10: 3.007 | AA10: 3.055 | AC10: £50,258 | AD10: £50,039 | AF10: 4.552 | AG10: 4.664 | AI10: £2,429,611 | AJ10: £0 | AL10: -1802.718 | AM10: 0.000 | AO10: £159,430 | AP10: £0 | AR10: -100.405 | AS10: 0.000 | AU10: £22,588,116 | AV10: £0 | AX10: -2040.185 | AY10: 0.000 | BA10: £99,484 | BB10: £0 | BD10: -407.695 | BE10: 0.000 | BG10: £2,661,408 | BH10: £0 | BJ10: -1677.674 | BK10: 0.000 | BM10: £29,018,517 | BN10: £0 | BP10: -6093.802 | BQ10: 0.000 | BS10: £116,427 | BT10: £116,781 | BY10: £133,746 | BZ10: £134,063 | CE10: £93,771 | CF10: £96,722 | CK10: £47,615 | CL10: £48,571 | CQ10: £40,730 | CR10: £43,169 | CW10: -£38,684,556 | CX10: £0 | DC10: -£2,179,560 | DD10: £0 | DI10: -£64,130,293 | DJ10: £0 | DO10: -£8,257,611 | DP10: £0 | DU10: -£36,642,790 | DV10: £0 | EA10: -£151,616,753 | EB10: £0
D11: 0.975 | E11: £339 | F11: £316 | H11: 5.910 | I11: 5.926 | K11: £365 | L11: £340 | N11: 6.768 | O11: 6.784 | Q11: £4,285 | R11: £1,960 | T11: 5.020 | U11: 5.105 | W11: £17,706 | X11: £17,664 | Z11: 3.204 | AA11: 3.252 | AC11: £52,251 | AD11: £51,902 | AF11: 5.055 | AG11: 5.180 | AI11: £4,664,682 | AJ11: £0 | AL11: -1314.913 | AM11: 0.000 | AO11: £303,902 | AP11: £0 | AR11: -67.917 | AS11: 0.000 | AU11: £59,553,312 | AV11: £0 | AX11: -839.163 | AY11: 0.000 | BA11: £869,546 | BB11: £0 | BD11: -247.964 | BE11: 0.000 | BG11: £11,300,980 | BH11: £0 | BJ11: -626.271 | BK11: 0.000 | BM11: £68,554,942 | BN11: £0 | BP11: -4299.196 | BQ11: 0.000 | BS11: £117,932 | BT11: £118,281 | BY11: £135,086 | BZ11: £135,456 | CE11: £98,293 | CF11: £100,729 | CK11: £53,345 | CL11: £54,162 | CQ11: £50,913 | CR11: £53,586 | CW11: -£27,935,130 | CX11: £0 | DC11: -£1,487,011 | DD11: £0 | DI11: -£22,966,387 | DJ11: £0 | DO11: -£5,353,058 | DP11: £0 | DU11: -£13,299,260 | DV11: £0 | EA11: -£100,309,141 | EB11: £0
B12: 1000 | D12: max | E12: =IF(E$17="", "", MAX(OFFSET(E$17, 0, 0, numSims))) -> £378 | F12: =IF(F$17="", "", MAX(OFFSET(F$17, 0, 0, numSims))) -> £365 | H12: =IF(H$17="", "", MAX(OFFSET(H$17, 0, 0, numSims))) -> 5.960 | I12: =IF(I$17="", "", MAX(OFFSET(I$17, 0, 0, numSims))) -> 5.979 | K12: =IF(K$17="", "", MAX(OFFSET(K$17, 0, 0, numSims))) -> £407 | L12: =IF(L$17="", "", MAX(OFFSET(L$17, 0, 0, numSims))) -> £393 | N12: =IF(N$17="", "", MAX(OFFSET(N$17, 0, 0, numSims))) -> 6.815 | O12: =IF(O$17="", "", MAX(OFFSET(O$17, 0, 0, numSims))) -> 6.829 | Q12: =IF(Q$17="", "", MAX(OFFSET(Q$17, 0, 0, numSims))) -> £8,391 | R12: =IF(R$17="", "", MAX(OFFSET(R$17, 0, 0, numSims))) -> £2,201 | T12: =IF(T$17="", "", MAX(OFFSET(T$17, 0, 0, numSims))) -> 5.119 | U12: =IF(U$17="", "", MAX(OFFSET(U$17, 0, 0, numSims))) -> 5.235 | W12: =IF(W$17="", "", MAX(OFFSET(W$17, 0, 0, numSims))) -> £20,446 | X12: =IF(X$17="", "", MAX(OFFSET(X$17, 0, 0, numSims))) -> £20,376 | Z12: =IF(Z$17="", "", MAX(OFFSET(Z$17, 0, 0, numSims))) -> 3.305 | AA12: =IF(AA$17="", "", MAX(OFFSET(AA$17, 0, 0, numSims))) -> 3.346 | AC12: =IF(AC$17="", "", MAX(OFFSET(AC$17, 0, 0, numSims))) -> £53,290 | AD12: =IF(AD$17="", "", MAX(OFFSET(AD$17, 0, 0, numSims))) -> £52,661 | AF12: =IF(AF$17="", "", MAX(OFFSET(AF$17, 0, 0, numSims))) -> 5.293 | AG12: =IF(AG$17="", "", MAX(OFFSET(AG$17, 0, 0, numSims))) -> 5.367 | AI12: =IF(AI$17="", "", MAX(OFFSET(AI$17, 0, 0, numSims))) -> £6,389,640 | AJ12: =IF(AJ$17="", "", MAX(OFFSET(AJ$17, 0, 0, numSims))) -> £0 | AL12: =IF(AL$17="", "", MAX(OFFSET(AL$17, 0, 0, numSims))) -> -1009.776 | AM12: =IF(AM$17="", "", MAX(OFFSET(AM$17, 0, 0, numSims))) -> 0.000 | AO12: =IF(AO$17="", "", MAX(OFFSET(AO$17, 0, 0, numSims))) -> £426,183 | AP12: =IF(AP$17="", "", MAX(OFFSET(AP$17, 0, 0, numSims))) -> £0 | AR12: =IF(AR$17="", "", MAX(OFFSET(AR$17, 0, 0, numSims))) -> -53.470 | AS12: =IF(AS$17="", "", MAX(OFFSET(AS$17, 0, 0, numSims))) -> 0.000 | AU12: =IF(AU$17="", "", MAX(OFFSET(AU$17, 0, 0, numSims))) -> £146,855,126 | AV12: =IF(AV$17="", "", MAX(OFFSET(AV$17, 0, 0, numSims))) -> £0 | AX12: =IF(AX$17="", "", MAX(OFFSET(AX$17, 0, 0, numSims))) -> -446.149 | AY12: =IF(AY$17="", "", MAX(OFFSET(AY$17, 0, 0, numSims))) -> 0.000 | BA12: =IF(BA$17="", "", MAX(OFFSET(BA$17, 0, 0, numSims))) -> £1,501,896 | BB12: =IF(BB$17="", "", MAX(OFFSET(BB$17, 0, 0, numSims))) -> £0 | BD12: =IF(BD$17="", "", MAX(OFFSET(BD$17, 0, 0, numSims))) -> -138.500 | BE12: =IF(BE$17="", "", MAX(OFFSET(BE$17, 0, 0, numSims))) -> 0.000 | BG12: =IF(BG$17="", "", MAX(OFFSET(BG$17, 0, 0, numSims))) -> £19,146,927 | BH12: =IF(BH$17="", "", MAX(OFFSET(BH$17, 0, 0, numSims))) -> £0 | BJ12: =IF(BJ$17="", "", MAX(OFFSET(BJ$17, 0, 0, numSims))) -> 217.052 | BK12: =IF(BK$17="", "", MAX(OFFSET(BK$17, 0, 0, numSims))) -> 0.000 | BM12: =IF(BM$17="", "", MAX(OFFSET(BM$17, 0, 0, numSims))) -> £155,106,920 | BN12: =IF(BN$17="", "", MAX(OFFSET(BN$17, 0, 0, numSims))) -> £0 | BP12: =IF(BP$17="", "", MAX(OFFSET(BP$17, 0, 0, numSims))) -> -3164.703 | BQ12: =IF(BQ$17="", "", MAX(OFFSET(BQ$17, 0, 0, numSims))) -> 0.000 | BS12: =IF(BS$17="", "", MAX(OFFSET(BS$17, 0, 0, numSims))) -> £118,942 | BT12: =IF(BT$17="", "", MAX(OFFSET(BT$17, 0, 0, numSims))) -> £119,355 | BY12: =IF(BY$17="", "", MAX(OFFSET(BY$17, 0, 0, numSims))) -> £136,069 | BZ12: =IF(BZ$17="", "", MAX(OFFSET(BZ$17, 0, 0, numSims))) -> £136,376 | CE12: =IF(CE$17="", "", MAX(OFFSET(CE$17, 0, 0, numSims))) -> £100,516 | CF12: =IF(CF$17="", "", MAX(OFFSET(CF$17, 0, 0, numSims))) -> £103,312 | CK12: =IF(CK$17="", "", MAX(OFFSET(CK$17, 0, 0, numSims))) -> £55,478 | CL12: =IF(CL$17="", "", MAX(OFFSET(CL$17, 0, 0, numSims))) -> £56,561 | CQ12: =IF(CQ$17="", "", MAX(OFFSET(CQ$17, 0, 0, numSims))) -> £56,156 | CR12: =IF(CR$17="", "", MAX(OFFSET(CR$17, 0, 0, numSims))) -> £57,452 | CW12: =IF(CW$17="", "", MAX(OFFSET(CW$17, 0, 0, numSims))) -> -£21,386,771 | CX12: =IF(CX$17="", "", MAX(OFFSET(CX$17, 0, 0, numSims))) -> £0 | DC12: =IF(DC$17="", "", MAX(OFFSET(DC$17, 0, 0, numSims))) -> -£1,137,605 | DD12: =IF(DD$17="", "", MAX(OFFSET(DD$17, 0, 0, numSims))) -> £0 | DI12: =IF(DI$17="", "", MAX(OFFSET(DI$17, 0, 0, numSims))) -> -£12,249,632 | DJ12: =IF(DJ$17="", "", MAX(OFFSET(DJ$17, 0, 0, numSims))) -> £0 | DO12: =IF(DO$17="", "", MAX(OFFSET(DO$17, 0, 0, numSims))) -> -£3,286,823 | DP12: =IF(DP$17="", "", MAX(OFFSET(DP$17, 0, 0, numSims))) -> £0 | DU12: =IF(DU$17="", "", MAX(OFFSET(DU$17, 0, 0, numSims))) -> £8,437,169 | DV12: =IF(DV$17="", "", MAX(OFFSET(DV$17, 0, 0, numSims))) -> £0 | EA12: =IF(EA$17="", "", MAX(OFFSET(EA$17, 0, 0, numSims))) -> -£66,242,287 | EB12: =IF(EB$17="", "", MAX(OFFSET(EB$17, 0, 0, numSims))) -> £0
E13: =IFERROR(INDEX(rngStrats, E$3), "") -> HPE | F13: =IFERROR(INDEX(rngStrats, F$3), "") -> No HPE | H13: =IFERROR(INDEX(rngStrats, H$3), "") -> HPE | I13: =IFERROR(INDEX(rngStrats, I$3), "") -> No HPE | K13: =IFERROR(INDEX(rngStrats, K$3), "") -> HPE | L13: =IFERROR(INDEX(rngStrats, L$3), "") -> No HPE | N13: =IFERROR(INDEX(rngStrats, N$3), "") -> HPE | O13: =IFERROR(INDEX(rngStrats, O$3), "") -> No HPE | Q13: =IFERROR(INDEX(rngStrats, Q$3), "") -> HPE | R13: =IFERROR(INDEX(rngStrats, R$3), "") -> No HPE | T13: =IFERROR(INDEX(rngStrats, T$3), "") -> HPE | U13: =IFERROR(INDEX(rngStrats, U$3), "") -> No HPE | W13: =IFERROR(INDEX(rngStrats, W$3), "") -> HPE | X13: =IFERROR(INDEX(rngStrats, X$3), "") -> No HPE | Z13: =IFERROR(INDEX(rngStrats, Z$3), "") -> HPE | AA13: =IFERROR(INDEX(rngStrats, AA$3), "") -> No HPE | AC13: =IFERROR(INDEX(rngStrats, AC$3), "") -> HPE | AD13: =IFERROR(INDEX(rngStrats, AD$3), "") -> No HPE | AF13: =IFERROR(INDEX(rngStrats, AF$3), "") -> HPE | AG13: =IFERROR(INDEX(rngStrats, AG$3), "") -> No HPE | AI13: =IFERROR(INDEX(rngStrats, AI$3), "") -> HPE | AJ13: =IFERROR(INDEX(rngStrats, AJ$3), "") -> No HPE | AL13: =IFERROR(INDEX(rngStrats, AL$3), "") -> HPE | AM13: =IFERROR(INDEX(rngStrats, AM$3), "") -> No HPE | AO13: =IFERROR(INDEX(rngStrats, AO$3), "") -> HPE | AP13: =IFERROR(INDEX(rngStrats, AP$3), "") -> No HPE | AR13: =IFERROR(INDEX(rngStrats, AR$3), "") -> HPE | AS13: =IFERROR(INDEX(rngStrats, AS$3), "") -> No HPE | AU13: =IFERROR(INDEX(rngStrats, AU$3), "") -> HPE | AV13: =IFERROR(INDEX(rngStrats, AV$3), "") -> No HPE | AX13: =IFERROR(INDEX(rngStrats, AX$3), "") -> HPE | AY13: =IFERROR(INDEX(rngStrats, AY$3), "") -> No HPE | BA13: =IFERROR(INDEX(rngStrats, BA$3), "") -> HPE | BB13: =IFERROR(INDEX(rngStrats, BB$3), "") -> No HPE | BD13: =IFERROR(INDEX(rngStrats, BD$3), "") -> HPE | BE13: =IFERROR(INDEX(rngStrats, BE$3), "") -> No HPE | BG13: =IFERROR(INDEX(rngStrats, BG$3), "") -> HPE | BH13: =IFERROR(INDEX(rngStrats, BH$3), "") -> No HPE | BJ13: =IFERROR(INDEX(rngStrats, BJ$3), "") -> HPE | BK13: =IFERROR(INDEX(rngStrats, BK$3), "") -> No HPE | BM13: =IFERROR(INDEX(rngStrats, BM$3), "") -> HPE | BN13: =IFERROR(INDEX(rngStrats, BN$3), "") -> No HPE | BP13: =IFERROR(INDEX(rngStrats, BP$3), "") -> HPE | BQ13: =IFERROR(INDEX(rngStrats, BQ$3), "") -> No HPE | BS13: =IFERROR(INDEX(rngStrats, BS$3), "") ->  | BT13: =IFERROR(INDEX(rngStrats, BT$3), "") ->  | BV13: =IFERROR(INDEX(rngStrats, BV$3), "") -> HPE | BW13: =IFERROR(INDEX(rngStrats, BW$3), "") -> No HPE | BY13: =IFERROR(INDEX(rngStrats, BY$3), "") -> HPE | BZ13: =IFERROR(INDEX(rngStrats, BZ$3), "") -> No HPE | CB13: =IFERROR(INDEX(rngStrats, CB$3), "") -> HPE | CC13: =IFERROR(INDEX(rngStrats, CC$3), "") -> No HPE | CE13: =IFERROR(INDEX(rngStrats, CE$3), "") -> HPE | CF13: =IFERROR(INDEX(rngStrats, CF$3), "") -> No HPE | CH13: =IFERROR(INDEX(rngStrats, CH$3), "") -> HPE | CI13: =IFERROR(INDEX(rngStrats, CI$3), "") -> No HPE | CK13: =IFERROR(INDEX(rngStrats, CK$3), "") -> HPE | CL13: =IFERROR(INDEX(rngStrats, CL$3), "") -> No HPE | CN13: =IFERROR(INDEX(rngStrats, CN$3), "") -> HPE | CO13: =IFERROR(INDEX(rngStrats, CO$3), "") -> No HPE | CQ13: =IFERROR(INDEX(rngStrats, CQ$3), "") -> HPE | CR13: =IFERROR(INDEX(rngStrats, CR$3), "") -> No HPE | CT13: =IFERROR(INDEX(rngStrats, CT$3), "") -> HPE | CU13: =IFERROR(INDEX(rngStrats, CU$3), "") -> No HPE | CW13: =IFERROR(INDEX(rngStrats, CW$3), "") -> HPE | CX13: =IFERROR(INDEX(rngStrats, CX$3), "") -> No HPE | CZ13: =IFERROR(INDEX(rngStrats, CZ$3), "") -> HPE | DA13: =IFERROR(INDEX(rngStrats, DA$3), "") -> No HPE | DC13: =IFERROR(INDEX(rngStrats, DC$3), "") -> HPE | DD13: =IFERROR(INDEX(rngStrats, DD$3), "") -> No HPE | DF13: =IFERROR(INDEX(rngStrats, DF$3), "") -> HPE | DG13: =IFERROR(INDEX(rngStrats, DG$3), "") -> No HPE | DI13: =IFERROR(INDEX(rngStrats, DI$3), "") -> HPE | DJ13: =IFERROR(INDEX(rngStrats, DJ$3), "") -> No HPE | DL13: =IFERROR(INDEX(rngStrats, DL$3), "") -> HPE | DM13: =IFERROR(INDEX(rngStrats, DM$3), "") -> No HPE | DO13: =IFERROR(INDEX(rngStrats, DO$3), "") -> HPE | DP13: =IFERROR(INDEX(rngStrats, DP$3), "") -> No HPE | DR13: =IFERROR(INDEX(rngStrats, DR$3), "") -> HPE | DS13: =IFERROR(INDEX(rngStrats, DS$3), "") -> No HPE | DU13: =IFERROR(INDEX(rngStrats, DU$3), "") -> HPE | DV13: =IFERROR(INDEX(rngStrats, DV$3), "") -> No HPE | DX13: =IFERROR(INDEX(rngStrats, DX$3), "") -> HPE | DY13: =IFERROR(INDEX(rngStrats, DY$3), "") -> No HPE | EA13: =IFERROR(INDEX(rngStrats, EA$3), "") -> HPE | EB13: =IFERROR(INDEX(rngStrats, EB$3), "") -> No HPE | ED13: =IFERROR(INDEX(rngStrats, ED$3), "") -> HPE | EE13: =IFERROR(INDEX(rngStrats, EE$3), "") -> No HPE
E16: =INDEX(rngRawResults.Costs.Total, (E$2-1)*3+E$3) -> £255.59 | F16: =INDEX(rngRawResults.Costs.Total, (F$2-1)*3+F$3) -> £231.78 | H16: =INDEX(rngRawResults.QALYs.Total, (H$2-1)*3+H$3) -> 5.837 | I16: =INDEX(rngRawResults.QALYs.Total, (I$2-1)*3+I$3) -> 5.853 | K16: =INDEX(rngRawResults.Costs.Total, (K$2-1)*3+K$3) -> £274.29 | L16: =INDEX(rngRawResults.Costs.Total, (L$2-1)*3+L$3) -> £249.90 | N16: =INDEX(rngRawResults.QALYs.Total, (N$2-1)*3+N$3) -> 6.701 | O16: =INDEX(rngRawResults.QALYs.Total, (O$2-1)*3+O$3) -> 6.715 | Q16: =INDEX(rngRawResults.Costs.Total, (Q$2-1)*3+Q$3) -> £2,443.39 | R16: =INDEX(rngRawResults.Costs.Total, (R$2-1)*3+R$3) -> £1,423.45 | T16: =INDEX(rngRawResults.QALYs.Total, (T$2-1)*3+T$3) -> 4.820 | U16: =INDEX(rngRawResults.QALYs.Total, (U$2-1)*3+U$3) -> 4.906 | W16: =INDEX(rngRawResults.Costs.Total, (W$2-1)*3+W$3) -> £12,596.47 | X16: =INDEX(rngRawResults.Costs.Total, (X$2-1)*3+X$3) -> £12,580.87 | Z16: =INDEX(rngRawResults.QALYs.Total, (Z$2-1)*3+Z$3) -> 3.003 | AA16: =INDEX(rngRawResults.QALYs.Total, (AA$2-1)*3+AA$3) -> 3.048 | AC16: =INDEX(rngRawResults.Costs.Total, (AC$2-1)*3+AC$3) -> £50,215.77 | AD16: =INDEX(rngRawResults.Costs.Total, (AD$2-1)*3+AD$3) -> £50,005.37 | AF16: =INDEX(rngRawResults.QALYs.Total, (AF$2-1)*3+AF$3) -> 4.527 | AG16: =INDEX(rngRawResults.QALYs.Total, (AG$2-1)*3+AG$3) -> 4.637 | AI16: =INDEX(rngRawResults.Costs.Total, (AI$2-1)*3+AI$3) -> £2,559,187.23 | AJ16: =INDEX(rngRawResults.Costs.Total, (AJ$2-1)*3+AJ$3) -> £0.00 | AL16: =INDEX(rngRawResults.QALYs.Total, (AL$2-1)*3+AL$3) -> -1801.312 | AM16: =INDEX(rngRawResults.QALYs.Total, (AM$2-1)*3+AM$3) -> 0.000 | AO16: =INDEX(rngRawResults.Costs.Total, (AO$2-1)*3+AO$3) -> £167,486.43 | AP16: =INDEX(rngRawResults.Costs.Total, (AP$2-1)*3+AP$3) -> £0.00 | AR16: =INDEX(rngRawResults.QALYs.Total, (AR$2-1)*3+AR$3) -> -99.933 | AS16: =INDEX(rngRawResults.QALYs.Total, (AS$2-1)*3+AS$3) -> 0.000 | AU16: =INDEX(rngRawResults.Costs.Total, (AU$2-1)*3+AU$3) -> £23,614,361.83 | AV16: =INDEX(rngRawResults.Costs.Total, (AV$2-1)*3+AV$3) -> £0.00 | AX16: =INDEX(rngRawResults.QALYs.Total, (AX$2-1)*3+AX$3) -> -2007.848 | AY16: =INDEX(rngRawResults.QALYs.Total, (AY$2-1)*3+AY$3) -> 0.000 | BA16: =INDEX(rngRawResults.Costs.Total, (BA$2-1)*3+BA$3) -> £139,201.28 | BB16: =INDEX(rngRawResults.Costs.Total, (BB$2-1)*3+BB$3) -> £0.00 | BD16: =INDEX(rngRawResults.QALYs.Total, (BD$2-1)*3+BD$3) -> -408.751 | BE16: =INDEX(rngRawResults.QALYs.Total, (BE$2-1)*3+BE$3) -> 0.000 | BG16: =INDEX(rngRawResults.Costs.Total, (BG$2-1)*3+BG$3) -> £3,324,171.27 | BH16: =INDEX(rngRawResults.Costs.Total, (BH$2-1)*3+BH$3) -> £0.00 | BJ16: =INDEX(rngRawResults.QALYs.Total, (BJ$2-1)*3+BJ$3) -> -1733.124 | BK16: =INDEX(rngRawResults.QALYs.Total, (BK$2-1)*3+BK$3) -> 0.000 | BM16: =INDEX(rngRawResults.Costs.Total, (BM$2-1)*3+BM$3) -> £29,804,408.04 | BN16: =INDEX(rngRawResults.Costs.Total, (BN$2-1)*3+BN$3) -> £0.00 | BP16: =INDEX(rngRawResults.QALYs.Total, (BP$2-1)*3+BP$3) -> -6050.968 | BQ16: =INDEX(rngRawResults.QALYs.Total, (BQ$2-1)*3+BQ$3) -> 0.000
D17: 1 | E17: £258.73 | F17: £237.14 | H17: 5.760 | I17: 5.775 | K17: £277.79 | L17: £255.70 | N17: 6.701 | O17: 6.714 | Q17: £2,801.76 | R17: £1,609.41 | T17: 4.703 | U17: 4.793 | W17: £15,802.77 | X17: £15,764.11 | Z17: 2.930 | AA17: 2.975 | AC17: £52,981.00 | AD17: £52,102.83 | AF17: 4.328 | AG17: 4.492 | AI17: £2,309,306.68 | AJ17: £0.00 | AL17: -1639.847 | AM17: 0.000 | AO17: £157,210.13 | AP17: £0.00 | AR17: -96.711 | AS17: 0.000 | AU17: £28,500,994.70 | AV17: £0.00 | AX17: -2163.199 | AY17: 0.000 | BA17: £340,083.28 | BB17: £0.00 | BD17: -391.802 | BE17: 0.000 | BG17: £13,834,510.66 | BH17: £0.00 | BJ17: -2587.512 | BK17: 0.000 | BM17: £45,142,105.45 | BN17: £0.00 | BP17: -6879.072 | BQ17: 0.000 | BS17: =H17*WTP-E17 -> £114,934 | BT17: =I17*WTP-F17 -> £115,262 | BV17: =SUM(IF(BS17:BT17>=BS17, 1)) -> 2 | BW17: =SUM(IF(BS17:BT17>=BT17, 1)) -> 1 | BY17: =N17*WTP-K17 -> £133,736 | BZ17: =O17*WTP-L17 -> £134,030 | CB17: =SUM(IF(BY17:BZ17>=BY17, 1)) -> 2 | CC17: =SUM(IF(BY17:BZ17>=BZ17, 1)) -> 1 | CE17: =T17*WTP-Q17 -> £91,254 | CF17: =U17*WTP-R17 -> £94,257 | CH17: =SUM(IF(CE17:CF17>=CE17, 1)) -> 2 | CI17: =SUM(IF(CE17:CF17>=CF17, 1)) -> 1 | CK17: =Z17*WTP-W17 -> £42,806 | CL17: =AA17*WTP-X17 -> £43,735 | CN17: =SUM(IF(CK17:CL17>=CK17, 1)) -> 2 | CO17: =SUM(IF(CK17:CL17>=CL17, 1)) -> 1 | CQ17: =AF17*WTP-AC17 -> £33,572 | CR17: =AG17*WTP-AD17 -> £37,735 | CT17: =SUM(IF(CQ17:CR17>=CQ17, 1)) -> 2 | CU17: =SUM(IF(CQ17:CR17>=CR17, 1)) -> 1 | CW17: =AL17*WTP-AI17 -> -£35,106,249 | CX17: =AM17*WTP-AJ17 -> £0 | CZ17: =SUM(IF(CW17:CX17>=CW17, 1)) -> 2 | DA17: =SUM(IF(CW17:CX17>=CX17, 1)) -> 1 | DC17: =AR17*WTP-AO17 -> -£2,091,429 | DD17: =AS17*WTP-AP17 -> £0 | DF17: =SUM(IF(DC17:DD17>=DC17, 1)) -> 2 | DG17: =SUM(IF(DC17:DD17>=DD17, 1)) -> 1 | DI17: =AX17*WTP-AU17 -> -£71,764,981 | DJ17: =AY17*WTP-AV17 -> £0 | DL17: =SUM(IF(DI17:DJ17>=DI17, 1)) -> 2 | DM17: =SUM(IF(DI17:DJ17>=DJ17, 1)) -> 1 | DO17: =BD17*WTP-BA17 -> -£8,176,126 | DP17: =BE17*WTP-BB17 -> £0 | DR17: =SUM(IF(DO17:DP17>=DO17, 1)) -> 2 | DS17: =SUM(IF(DO17:DP17>=DP17, 1)) -> 1 | DU17: =BJ17*WTP-BG17 -> -£65,584,752 | DV17: =BK17*WTP-BH17 -> £0 | DX17: =SUM(IF(DU17:DV17>=DU17, 1)) -> 2 | DY17: =SUM(IF(DU17:DV17>=DV17, 1)) -> 1 | EA17: =BP17*WTP-BM17 -> -£182,723,537 | EB17: =BQ17*WTP-BN17 -> £0 | ED17: =SUM(IF(EA17:EB17>=EA17, 1)) -> 2 | EE17: =SUM(IF(EA17:EB17>=EB17, 1)) -> 1
D18: 2 | E18: £226.61 | F18: £191.29 | H18: 5.840 | I18: 5.858 | K18: £242.35 | L18: £206.26 | N18: 6.696 | O18: 6.712 | Q18: £2,817.39 | R18: £1,735.58 | T18: 4.936 | U18: 5.024 | W18: £13,651.11 | X18: £13,671.63 | Z18: 3.157 | AA18: 3.221 | AC18: £49,023.74 | AD18: £49,098.51 | AF18: 4.726 | AG18: 4.792 | AI18: £3,808,942.20 | AJ18: £0.00 | AL18: -1947.836 | AM18: 0.000 | AO18: £253,724.66 | AP18: £0.00 | AR18: -112.326 | AS18: 0.000 | AU18: £25,091,227.13 | AV18: £0.00 | AX18: -2034.038 | AY18: 0.000 | BA18: -£183,821.06 | BB18: £0.00 | BD18: -577.481 | BE18: 0.000 | BG18: -£1,159,990.61 | BH18: £0.00 | BJ18: -1022.161 | BK18: 0.000 | BM18: £27,810,082.32 | BN18: £0.00 | BP18: -5693.842 | BQ18: 0.000 | BS18: =H18*WTP-E18 -> £116,564 | BT18: =I18*WTP-F18 -> £116,961 | BV18: =SUM(IF(BS18:BT18>=BS18, 1)) -> 2 | BW18: =SUM(IF(BS18:BT18>=BT18, 1)) -> 1 | BY18: =N18*WTP-K18 -> £133,672 | BZ18: =O18*WTP-L18 -> £134,028 | CB18: =SUM(IF(BY18:BZ18>=BY18, 1)) -> 2 | CC18: =SUM(IF(BY18:BZ18>=BZ18, 1)) -> 1 | CE18: =T18*WTP-Q18 -> £95,908 | CF18: =U18*WTP-R18 -> £98,744 | CH18: =SUM(IF(CE18:CF18>=CE18, 1)) -> 2 | CI18: =SUM(IF(CE18:CF18>=CF18, 1)) -> 1 | CK18: =Z18*WTP-W18 -> £49,484 | CL18: =AA18*WTP-X18 -> £50,752 | CN18: =SUM(IF(CK18:CL18>=CK18, 1)) -> 2 | CO18: =SUM(IF(CK18:CL18>=CL18, 1)) -> 1 | CQ18: =AF18*WTP-AC18 -> £45,503 | CR18: =AG18*WTP-AD18 -> £46,746 | CT18: =SUM(IF(CQ18:CR18>=CQ18, 1)) -> 2 | CU18: =SUM(IF(CQ18:CR18>=CR18, 1)) -> 1 | CW18: =AL18*WTP-AI18 -> -£42,765,656 | CX18: =AM18*WTP-AJ18 -> £0 | CZ18: =SUM(IF(CW18:CX18>=CW18, 1)) -> 2 | DA18: =SUM(IF(CW18:CX18>=CX18, 1)) -> 1 | DC18: =AR18*WTP-AO18 -> -£2,500,248 | DD18: =AS18*WTP-AP18 -> £0 | DF18: =SUM(IF(DC18:DD18>=DC18, 1)) -> 2 | DG18: =SUM(IF(DC18:DD18>=DD18, 1)) -> 1 | DI18: =AX18*WTP-AU18 -> -£65,771,995 | DJ18: =AY18*WTP-AV18 -> £0 | DL18: =SUM(IF(DI18:DJ18>=DI18, 1)) -> 2 | DM18: =SUM(IF(DI18:DJ18>=DJ18, 1)) -> 1 | DO18: =BD18*WTP-BA18 -> -£11,365,796 | DP18: =BE18*WTP-BB18 -> £0 | DR18: =SUM(IF(DO18:DP18>=DO18, 1)) -> 2 | DS18: =SUM(IF(DO18:DP18>=DP18, 1)) -> 1 | DU18: =BJ18*WTP-BG18 -> -£19,283,235 | DV18: =BK18*WTP-BH18 -> £0 | DX18: =SUM(IF(DU18:DV18>=DU18, 1)) -> 2 | DY18: =SUM(IF(DU18:DV18>=DV18, 1)) -> 1 | EA18: =BP18*WTP-BM18 -> -£141,686,931 | EB18: =BQ18*WTP-BN18 -> £0 | ED18: =SUM(IF(EA18:EB18>=EA18, 1)) -> 2 | EE18: =SUM(IF(EA18:EB18>=EB18, 1)) -> 1
D19: 3 | E19: £266.49 | F19: £240.78 | H19: 5.849 | I19: 5.872 | K19: £286.01 | L19: £259.67 | N19: 6.720 | O19: 6.741 | Q19: £1,512.20 | R19: £1,145.53 | T19: 4.921 | U19: 4.992 | W19: £13,760.05 | X19: £13,687.62 | Z19: 3.136 | AA19: 3.168 | AC19: £49,865.97 | AD19: £49,603.27 | AF19: 3.995 | AG19: 4.059 | AI19: £2,774,950.71 | AJ19: £0.00 | AL19: -2494.383 | AM19: 0.000 | AO19: £177,575.04 | AP19: £0.00 | AR19: -143.345 | AS19: 0.000 | AU19: £8,629,470.94 | AV19: £0.00 | AX19: -1677.752 | AY19: 0.000 | BA19: £626,443.64 | BB19: £0.00 | BD19: -281.772 | BE19: 0.000 | BG19: £4,003,198.29 | BH19: £0.00 | BJ19: -980.511 | BK19: 0.000 | BM19: £16,211,638.61 | BN19: £0.00 | BP19: -5577.763 | BQ19: 0.000 | BS19: £116,705 | BT19: £117,193 | BV19: =SUM(IF(BS19:BT19>=BS19, 1)) -> 2 | BW19: =SUM(IF(BS19:BT19>=BT19, 1)) -> 1 | BY19: £134,116 | BZ19: £134,568 | CB19: =SUM(IF(BY19:BZ19>=BY19, 1)) -> 2 | CC19: =SUM(IF(BY19:BZ19>=BZ19, 1)) -> 1 | CE19: £96,910 | CF19: £98,703 | CH19: =SUM(IF(CE19:CF19>=CE19, 1)) -> 2 | CI19: =SUM(IF(CE19:CF19>=CF19, 1)) -> 1 | CK19: £48,952 | CL19: £49,676 | CN19: =SUM(IF(CK19:CL19>=CK19, 1)) -> 2 | CO19: =SUM(IF(CK19:CL19>=CL19, 1)) -> 1 | CQ19: =AF19*WTP-AC19 -> £30,028 | CR19: £31,577 | CT19: =SUM(IF(CQ19:CR19>=CQ19, 1)) -> 2 | CU19: =SUM(IF(CQ19:CR19>=CR19, 1)) -> 1 | CW19: -£52,662,618 | CX19: £0 | CZ19: =SUM(IF(CW19:CX19>=CW19, 1)) -> 2 | DA19: =SUM(IF(CW19:CX19>=CX19, 1)) -> 1 | DC19: -£3,044,479 | DD19: £0 | DF19: =SUM(IF(DC19:DD19>=DC19, 1)) -> 2 | DG19: =SUM(IF(DC19:DD19>=DD19, 1)) -> 1 | DI19: -£42,184,503 | DJ19: £0 | DL19: =SUM(IF(DI19:DJ19>=DI19, 1)) -> 2 | DM19: =SUM(IF(DI19:DJ19>=DJ19, 1)) -> 1 | DO19: -£6,261,876 | DP19: £0 | DR19: =SUM(IF(DO19:DP19>=DO19, 1)) -> 2 | DS19: =SUM(IF(DO19:DP19>=DP19, 1)) -> 1 | DU19: -£23,613,417 | DV19: £0 | DX19: =SUM(IF(DU19:DV19>=DU19, 1)) -> 2 | DY19: =SUM(IF(DU19:DV19>=DV19, 1)) -> 1 | EA19: -£127,766,894 | EB19: £0 | ED19: =SUM(IF(EA19:EB19>=EA19, 1)) -> 2 | EE19: =SUM(IF(EA19:EB19>=EB19, 1)) -> 1
D20: 4 | E20: £265.08 | F20: £239.96 | H20: 5.834 | I20: 5.852 | K20: £284.45 | L20: £258.75 | N20: 6.701 | O20: 6.718 | Q20: £2,253.42 | R20: £1,151.75 | T20: 4.716 | U20: 4.814 | W20: £10,014.28 | X20: £9,973.55 | Z20: 2.902 | AA20: 2.937 | AC20: £49,760.31 | AD20: £49,462.02 | AF20: 4.647 | AG20: 4.702 | AI20: £2,675,687.27 | AJ20: £0.00 | AL20: -1958.198 | AM20: 0.000 | AO20: £171,046.74 | AP20: £0.00 | AR20: -108.169 | AS20: 0.000 | AU20: £26,286,892.12 | AV20: £0.00 | AX20: -2331.288 | AY20: 0.000 | BA20: £374,361.52 | BB20: £0.00 | BD20: -320.022 | BE20: 0.000 | BG20: £4,712,039.85 | BH20: £0.00 | BJ20: -855.907 | BK20: 0.000 | BM20: £34,220,027.50 | BN20: £0.00 | BP20: -5573.583 | BQ20: 0.000 | BS20: £116,405 | BT20: £116,798 | BV20: =SUM(IF(BS20:BT20>=BS20, 1)) -> 2 | BW20: =SUM(IF(BS20:BT20>=BT20, 1)) -> 1 | BY20: £133,741 | BZ20: £134,092 | CB20: =SUM(IF(BY20:BZ20>=BY20, 1)) -> 2 | CC20: =SUM(IF(BY20:BZ20>=BZ20, 1)) -> 1 | CE20: £92,074 | CF20: £95,130 | CH20: =SUM(IF(CE20:CF20>=CE20, 1)) -> 2 | CI20: =SUM(IF(CE20:CF20>=CF20, 1)) -> 1 | CK20: £48,027 | CL20: £48,764 | CN20: =SUM(IF(CK20:CL20>=CK20, 1)) -> 2 | CO20: =SUM(IF(CK20:CL20>=CL20, 1)) -> 1 | CQ20: =AF20*WTP-AC20 -> £43,187 | CR20: £44,569 | CT20: =SUM(IF(CQ20:CR20>=CQ20, 1)) -> 2 | CU20: =SUM(IF(CQ20:CR20>=CR20, 1)) -> 1 | CW20: -£41,839,650 | CX20: £0 | CZ20: =SUM(IF(CW20:CX20>=CW20, 1)) -> 2 | DA20: =SUM(IF(CW20:CX20>=CX20, 1)) -> 1 | DC20: -£2,334,432 | DD20: £0 | DF20: =SUM(IF(DC20:DD20>=DC20, 1)) -> 2 | DG20: =SUM(IF(DC20:DD20>=DD20, 1)) -> 1 | DI20: -£72,912,645 | DJ20: £0 | DL20: =SUM(IF(DI20:DJ20>=DI20, 1)) -> 2 | DM20: =SUM(IF(DI20:DJ20>=DJ20, 1)) -> 1 | DO20: -£6,774,793 | DP20: £0 | DR20: =SUM(IF(DO20:DP20>=DO20, 1)) -> 2 | DS20: =SUM(IF(DO20:DP20>=DP20, 1)) -> 1 | DU20: -£21,830,176 | DV20: £0 | DX20: =SUM(IF(DU20:DV20>=DU20, 1)) -> 2 | DY20: =SUM(IF(DU20:DV20>=DV20, 1)) -> 1 | EA20: -£145,691,696 | EB20: £0 | ED20: =SUM(IF(EA20:EB20>=EA20, 1)) -> 2 | EE20: =SUM(IF(EA20:EB20>=EB20, 1)) -> 1
D21: 5 | E21: £199.30 | F21: £162.61 | H21: 5.837 | I21: 5.856 | K21: £212.83 | L21: £175.28 | N21: 6.696 | O21: 6.714 | Q21: £2,058.36 | R21: £1,389.93 | T21: 4.954 | U21: 5.064 | W21: £12,758.92 | X21: £12,762.44 | Z21: 2.933 | AA21: 2.983 | AC21: £51,042.78 | AD21: £50,781.14 | AF21: 4.733 | AG21: 4.873 | AI21: £3,998,811.60 | AJ21: £0.00 | AL21: -2137.746 | AM21: 0.000 | AO21: £260,800.63 | AP21: £0.00 | AR21: -121.017 | AS21: 0.000 | AU21: £15,532,358.87 | AV21: £0.00 | AX21: -2548.959 | AY21: 0.000 | BA21: -£32,076.08 | BB21: £0.00 | BD21: -459.928 | BE21: 0.000 | BG21: £4,233,983.75 | BH21: £0.00 | BJ21: -2261.133 | BK21: 0.000 | BM21: £23,993,878.77 | BN21: £0.00 | BP21: -7528.782 | BQ21: 0.000 | BS21: £116,534 | BT21: £116,963 | BV21: =SUM(IF(BS21:BT21>=BS21, 1)) -> 2 | BW21: =SUM(IF(BS21:BT21>=BT21, 1)) -> 1 | BY21: £133,714 | BZ21: £134,100 | CB21: =SUM(IF(BY21:BZ21>=BY21, 1)) -> 2 | CC21: =SUM(IF(BY21:BZ21>=BZ21, 1)) -> 1 | CE21: £97,023 | CF21: £99,885 | CH21: =SUM(IF(CE21:CF21>=CE21, 1)) -> 2 | CI21: =SUM(IF(CE21:CF21>=CF21, 1)) -> 1 | CK21: £45,896 | CL21: £46,901 | CN21: =SUM(IF(CK21:CL21>=CK21, 1)) -> 2 | CO21: =SUM(IF(CK21:CL21>=CL21, 1)) -> 1 | CQ21: =AF21*WTP-AC21 -> £43,624 | CR21: £46,681 | CT21: =SUM(IF(CQ21:CR21>=CQ21, 1)) -> 2 | CU21: =SUM(IF(CQ21:CR21>=CR21, 1)) -> 1 | CW21: -£46,753,725 | CX21: £0 | CZ21: =SUM(IF(CW21:CX21>=CW21, 1)) -> 2 | DA21: =SUM(IF(CW21:CX21>=CX21, 1)) -> 1 | DC21: -£2,681,145 | DD21: £0 | DF21: =SUM(IF(DC21:DD21>=DC21, 1)) -> 2 | DG21: =SUM(IF(DC21:DD21>=DD21, 1)) -> 1 | DI21: -£66,511,532 | DJ21: £0 | DL21: =SUM(IF(DI21:DJ21>=DI21, 1)) -> 2 | DM21: =SUM(IF(DI21:DJ21>=DJ21, 1)) -> 1 | DO21: -£9,166,485 | DP21: £0 | DR21: =SUM(IF(DO21:DP21>=DO21, 1)) -> 2 | DS21: =SUM(IF(DO21:DP21>=DP21, 1)) -> 1 | DU21: -£49,456,641 | DV21: £0 | DX21: =SUM(IF(DU21:DV21>=DU21, 1)) -> 2 | DY21: =SUM(IF(DU21:DV21>=DV21, 1)) -> 1 | EA21: -£174,569,527 | EB21: £0 | ED21: =SUM(IF(EA21:EB21>=EA21, 1)) -> 2 | EE21: =SUM(IF(EA21:EB21>=EB21, 1)) -> 1
D22: 6 | E22: £259.28 | F22: £243.63 | H22: 5.830 | I22: 5.845 | K22: £278.78 | L22: £262.73 | N22: 6.669 | O22: 6.681 | Q22: £2,505.31 | R22: £1,540.65 | T22: 4.748 | U22: 4.830 | W22: £10,959.31 | X22: £10,922.41 | Z22: 2.869 | AA22: 2.890 | AC22: £51,416.27 | AD22: £51,124.36 | AF22: 4.728 | AG22: 4.852 | AI22: £1,662,968.15 | AJ22: £0.00 | AL22: -1532.863 | AM22: 0.000 | AO22: £110,458.90 | AP22: £0.00 | AR22: -83.618 | AS22: 0.000 | AU22: £22,128,504.09 | AV22: £0.00 | AX22: -1871.455 | AY22: 0.000 | BA22: £327,714.13 | BB22: £0.00 | BD22: -184.697 | BE22: 0.000 | BG22: £4,662,800.72 | BH22: £0.00 | BJ22: -1976.880 | BK22: 0.000 | BM22: £28,892,445.99 | BN22: £0.00 | BP22: -5649.513 | BQ22: 0.000 | BS22: £116,349 | BT22: £116,653 | BV22: =SUM(IF(BS22:BT22>=BS22, 1)) -> 2 | BW22: =SUM(IF(BS22:BT22>=BT22, 1)) -> 1 | BY22: £133,093 | BZ22: £133,352 | CB22: =SUM(IF(BY22:BZ22>=BY22, 1)) -> 2 | CC22: =SUM(IF(BY22:BZ22>=BZ22, 1)) -> 1 | CE22: £92,461 | CF22: £95,057 | CH22: =SUM(IF(CE22:CF22>=CE22, 1)) -> 2 | CI22: =SUM(IF(CE22:CF22>=CF22, 1)) -> 1 | CK22: £46,428 | CL22: £46,881 | CN22: =SUM(IF(CK22:CL22>=CK22, 1)) -> 2 | CO22: =SUM(IF(CK22:CL22>=CL22, 1)) -> 1 | CQ22: =AF22*WTP-AC22 -> £43,151 | CR22: £45,918 | CT22: =SUM(IF(CQ22:CR22>=CQ22, 1)) -> 2 | CU22: =SUM(IF(CQ22:CR22>=CR22, 1)) -> 1 | CW22: -£32,320,236 | CX22: £0 | CZ22: =SUM(IF(CW22:CX22>=CW22, 1)) -> 2 | DA22: =SUM(IF(CW22:CX22>=CX22, 1)) -> 1 | DC22: -£1,782,818 | DD22: £0 | DF22: =SUM(IF(DC22:DD22>=DC22, 1)) -> 2 | DG22: =SUM(IF(DC22:DD22>=DD22, 1)) -> 1 | DI22: -£59,557,607 | DJ22: £0 | DL22: =SUM(IF(DI22:DJ22>=DI22, 1)) -> 2 | DM22: =SUM(IF(DI22:DJ22>=DJ22, 1)) -> 1 | DO22: -£4,021,656 | DP22: £0 | DR22: =SUM(IF(DO22:DP22>=DO22, 1)) -> 2 | DS22: =SUM(IF(DO22:DP22>=DP22, 1)) -> 1 | DU22: -£44,200,393 | DV22: £0 | DX22: =SUM(IF(DU22:DV22>=DU22, 1)) -> 2 | DY22: =SUM(IF(DU22:DV22>=DV22, 1)) -> 1 | EA22: -£141,882,710 | EB22: £0 | ED22: =SUM(IF(EA22:EB22>=EA22, 1)) -> 2 | EE22: =SUM(IF(EA22:EB22>=EB22, 1)) -> 1
D23: 7 | E23: £229.03 | F23: £215.04 | H23: 5.827 | I23: 5.843 | K23: £246.21 | L23: £231.88 | N23: 6.647 | O23: 6.661 | Q23: £1,671.68 | R23: £1,036.78 | T23: 4.690 | U23: 4.792 | W23: £14,915.92 | X23: £14,924.83 | Z23: 2.871 | AA23: 2.918 | AC23: £49,281.84 | AD23: £49,104.12 | AF23: 4.529 | AG23: 4.638 | AI23: £1,495,785.12 | AJ23: £0.00 | AL23: -1674.346 | AM23: 0.000 | AO23: £98,445.74 | AP23: £0.00 | AR23: -92.953 | AS23: 0.000 | AU23: £14,917,695.84 | AV23: £0.00 | AX23: -2384.864 | AY23: 0.000 | BA23: -£76,959.37 | BB23: £0.00 | BD23: -408.051 | BE23: 0.000 | BG23: £2,771,171.99 | BH23: £0.00 | BJ23: -1714.093 | BK23: 0.000 | BM23: £19,206,139.32 | BN23: £0.00 | BP23: -6274.306 | BQ23: 0.000 | BS23: £116,309 | BT23: £116,636 | BV23: =SUM(IF(BS23:BT23>=BS23, 1)) -> 2 | BW23: =SUM(IF(BS23:BT23>=BT23, 1)) -> 1 | BY23: £132,704 | BZ23: £132,989 | CB23: =SUM(IF(BY23:BZ23>=BY23, 1)) -> 2 | CC23: =SUM(IF(BY23:BZ23>=BZ23, 1)) -> 1 | CE23: £92,138 | CF23: £94,803 | CH23: =SUM(IF(CE23:CF23>=CE23, 1)) -> 2 | CI23: =SUM(IF(CE23:CF23>=CF23, 1)) -> 1 | CK23: £42,500 | CL23: £43,435 | CN23: =SUM(IF(CK23:CL23>=CK23, 1)) -> 2 | CO23: =SUM(IF(CK23:CL23>=CL23, 1)) -> 1 | CQ23: =AF23*WTP-AC23 -> £41,289 | CR23: £43,665 | CT23: =SUM(IF(CQ23:CR23>=CQ23, 1)) -> 2 | CU23: =SUM(IF(CQ23:CR23>=CR23, 1)) -> 1 | CW23: -£34,982,707 | CX23: £0 | CZ23: =SUM(IF(CW23:CX23>=CW23, 1)) -> 2 | DA23: =SUM(IF(CW23:CX23>=CX23, 1)) -> 1 | DC23: -£1,957,497 | DD23: £0 | DF23: =SUM(IF(DC23:DD23>=DC23, 1)) -> 2 | DG23: =SUM(IF(DC23:DD23>=DD23, 1)) -> 1 | DI23: -£62,614,979 | DJ23: £0 | DL23: =SUM(IF(DI23:DJ23>=DI23, 1)) -> 2 | DM23: =SUM(IF(DI23:DJ23>=DJ23, 1)) -> 1 | DO23: -£8,084,055 | DP23: £0 | DR23: =SUM(IF(DO23:DP23>=DO23, 1)) -> 2 | DS23: =SUM(IF(DO23:DP23>=DP23, 1)) -> 1 | DU23: -£37,053,024 | DV23: £0 | DX23: =SUM(IF(DU23:DV23>=DU23, 1)) -> 2 | DY23: =SUM(IF(DU23:DV23>=DV23, 1)) -> 1 | EA23: -£144,692,261 | EB23: £0 | ED23: =SUM(IF(EA23:EB23>=EA23, 1)) -> 2 | EE23: =SUM(IF(EA23:EB23>=EB23, 1)) -> 1
D24: 8 | E24: £245.65 | F24: £216.31 | H24: 5.808 | I24: 5.824 | K24: £263.17 | L24: £233.14 | N24: 6.715 | O24: 6.729 | Q24: £2,764.92 | R24: £1,134.39 | T24: 4.622 | U24: 4.809 | W24: £12,404.98 | X24: £12,440.47 | Z24: 2.908 | AA24: 2.964 | AC24: £50,328.99 | AD24: £49,892.54 | AF24: 4.349 | AG24: 4.450 | AI24: £3,160,249.29 | AJ24: £0.00 | AL24: -1756.745 | AM24: 0.000 | AO24: £214,190.94 | AP24: £0.00 | AR24: -100.375 | AS24: 0.000 | AU24: £38,401,616.19 | AV24: £0.00 | AX24: -4385.338 | AY24: 0.000 | BA24: -£320,213.02 | BB24: £0.00 | BD24: -510.901 | BE24: 0.000 | BG24: £6,839,246.13 | BH24: £0.00 | BJ24: -1572.584 | BK24: 0.000 | BM24: £48,295,089.53 | BN24: £0.00 | BP24: -8325.943 | BQ24: 0.000 | BS24: £115,916 | BT24: £116,271 | BV24: =SUM(IF(BS24:BT24>=BS24, 1)) -> 2 | BW24: =SUM(IF(BS24:BT24>=BT24, 1)) -> 1 | BY24: £134,027 | BZ24: £134,339 | CB24: =SUM(IF(BY24:BZ24>=BY24, 1)) -> 2 | CC24: =SUM(IF(BY24:BZ24>=BZ24, 1)) -> 1 | CE24: £89,684 | CF24: £95,038 | CH24: =SUM(IF(CE24:CF24>=CE24, 1)) -> 2 | CI24: =SUM(IF(CE24:CF24>=CF24, 1)) -> 1 | CK24: £45,753 | CL24: £46,849 | CN24: =SUM(IF(CK24:CL24>=CK24, 1)) -> 2 | CO24: =SUM(IF(CK24:CL24>=CL24, 1)) -> 1 | CQ24: =AF24*WTP-AC24 -> £36,657 | CR24: £39,101 | CT24: =SUM(IF(CQ24:CR24>=CQ24, 1)) -> 2 | CU24: =SUM(IF(CQ24:CR24>=CR24, 1)) -> 1 | CW24: -£38,295,157 | CX24: £0 | CZ24: =SUM(IF(CW24:CX24>=CW24, 1)) -> 2 | DA24: =SUM(IF(CW24:CX24>=CX24, 1)) -> 1 | DC24: -£2,221,689 | DD24: £0 | DF24: =SUM(IF(DC24:DD24>=DC24, 1)) -> 2 | DG24: =SUM(IF(DC24:DD24>=DD24, 1)) -> 1 | DI24: -£126,108,386 | DJ24: £0 | DL24: =SUM(IF(DI24:DJ24>=DI24, 1)) -> 2 | DM24: =SUM(IF(DI24:DJ24>=DJ24, 1)) -> 1 | DO24: -£9,897,797 | DP24: £0 | DR24: =SUM(IF(DO24:DP24>=DO24, 1)) -> 2 | DS24: =SUM(IF(DO24:DP24>=DP24, 1)) -> 1 | DU24: -£38,290,928 | DV24: £0 | DX24: =SUM(IF(DU24:DV24>=DU24, 1)) -> 2 | DY24: =SUM(IF(DU24:DV24>=DV24, 1)) -> 1 | EA24: -£214,813,957 | EB24: £0 | ED24: =SUM(IF(EA24:EB24>=EA24, 1)) -> 2 | EE24: =SUM(IF(EA24:EB24>=EB24, 1)) -> 1
D25: 9 | E25: £336.82 | F25: £315.87 | H25: 5.825 | I25: 5.840 | K25: £362.11 | L25: £340.63 | N25: 6.760 | O25: 6.773 | Q25: £2,602.60 | R25: £1,672.66 | T25: 4.705 | U25: 4.781 | W25: £11,397.41 | X25: £11,389.55 | Z25: 3.098 | AA25: 3.143 | AC25: £50,703.19 | AD25: £50,308.17 | AF25: 4.890 | AG25: 5.092 | AI25: £2,266,345.02 | AJ25: £0.00 | AL25: -1700.595 | AM25: 0.000 | AO25: £150,872.17 | AP25: £0.00 | AR25: -95.685 | AS25: 0.000 | AU25: £21,570,698.35 | AV25: £0.00 | AX25: -1762.610 | AY25: 0.000 | BA25: £70,934.24 | BB25: £0.00 | BD25: -409.109 | BE25: 0.000 | BG25: £6,118,086.73 | BH25: £0.00 | BJ25: -3127.154 | BK25: 0.000 | BM25: £30,176,936.51 | BN25: £0.00 | BP25: -7095.153 | BQ25: 0.000 | BS25: £116,155 | BT25: £116,490 | BV25: =SUM(IF(BS25:BT25>=BS25, 1)) -> 2 | BW25: =SUM(IF(BS25:BT25>=BT25, 1)) -> 1 | BY25: £134,828 | BZ25: £135,122 | CB25: =SUM(IF(BY25:BZ25>=BY25, 1)) -> 2 | CC25: =SUM(IF(BY25:BZ25>=BZ25, 1)) -> 1 | CE25: £91,502 | CF25: £93,952 | CH25: =SUM(IF(CE25:CF25>=CE25, 1)) -> 2 | CI25: =SUM(IF(CE25:CF25>=CF25, 1)) -> 1 | CK25: £50,555 | CL25: £51,469 | CN25: =SUM(IF(CK25:CL25>=CK25, 1)) -> 2 | CO25: =SUM(IF(CK25:CL25>=CL25, 1)) -> 1 | CQ25: =AF25*WTP-AC25 -> £47,102 | CR25: £51,536 | CT25: =SUM(IF(CQ25:CR25>=CQ25, 1)) -> 2 | CU25: =SUM(IF(CQ25:CR25>=CR25, 1)) -> 1 | CW25: -£36,278,235 | CX25: £0 | CZ25: =SUM(IF(CW25:CX25>=CW25, 1)) -> 2 | DA25: =SUM(IF(CW25:CX25>=CX25, 1)) -> 1 | DC25: -£2,064,575 | DD25: £0 | DF25: =SUM(IF(DC25:DD25>=DC25, 1)) -> 2 | DG25: =SUM(IF(DC25:DD25>=DD25, 1)) -> 1 | DI25: -£56,822,893 | DJ25: £0 | DL25: =SUM(IF(DI25:DJ25>=DI25, 1)) -> 2 | DM25: =SUM(IF(DI25:DJ25>=DJ25, 1)) -> 1 | DO25: -£8,253,122 | DP25: £0 | DR25: =SUM(IF(DO25:DP25>=DO25, 1)) -> 2 | DS25: =SUM(IF(DO25:DP25>=DP25, 1)) -> 1 | DU25: -£68,661,168 | DV25: £0 | DX25: =SUM(IF(DU25:DV25>=DU25, 1)) -> 2 | DY25: =SUM(IF(DU25:DV25>=DV25, 1)) -> 1 | EA25: -£172,079,993 | EB25: £0 | ED25: =SUM(IF(EA25:EB25>=EA25, 1)) -> 2 | EE25: =SUM(IF(EA25:EB25>=EB25, 1)) -> 1
D26: 10 | E26: £250.44 | F26: £226.20 | H26: 5.817 | I26: 5.837 | K26: £268.74 | L26: £243.91 | N26: 6.735 | O26: 6.752 | Q26: £1,521.08 | R26: £1,044.24 | T26: 4.925 | U26: 4.982 | W26: £12,877.29 | X26: £12,833.58 | Z26: 3.100 | AA26: 3.150 | AC26: £49,556.26 | AD26: £49,105.92 | AF26: 4.018 | AG26: 4.129 | AI26: £2,602,609.14 | AJ26: £0.00 | AL26: -2115.431 | AM26: 0.000 | AO26: £169,142.27 | AP26: £0.00 | AR26: -119.356 | AS26: 0.000 | AU26: £10,663,029.49 | AV26: £0.00 | AX26: -1269.972 | AY26: 0.000 | BA26: £384,647.12 | BB26: £0.00 | BD26: -438.864 | BE26: 0.000 | BG26: £7,154,142.96 | BH26: £0.00 | BJ26: -1771.763 | BK26: 0.000 | BM26: £20,973,570.98 | BN26: £0.00 | BP26: -5715.385 | BQ26: 0.000 | BS26: £116,093 | BT26: £116,511 | BV26: =SUM(IF(BS26:BT26>=BS26, 1)) -> 2 | BW26: =SUM(IF(BS26:BT26>=BT26, 1)) -> 1 | BY26: £134,424 | BZ26: £134,799 | CB26: =SUM(IF(BY26:BZ26>=BY26, 1)) -> 2 | CC26: =SUM(IF(BY26:BZ26>=BZ26, 1)) -> 1 | CE26: £96,988 | CF26: £98,601 | CH26: =SUM(IF(CE26:CF26>=CE26, 1)) -> 2 | CI26: =SUM(IF(CE26:CF26>=CF26, 1)) -> 1 | CK26: £49,128 | CL26: £50,169 | CN26: =SUM(IF(CK26:CL26>=CK26, 1)) -> 2 | CO26: =SUM(IF(CK26:CL26>=CL26, 1)) -> 1 | CQ26: =AF26*WTP-AC26 -> £30,798 | CR26: £33,479 | CT26: =SUM(IF(CQ26:CR26>=CQ26, 1)) -> 2 | CU26: =SUM(IF(CQ26:CR26>=CR26, 1)) -> 1 | CW26: -£44,911,232 | CX26: £0 | CZ26: =SUM(IF(CW26:CX26>=CW26, 1)) -> 2 | DA26: =SUM(IF(CW26:CX26>=CX26, 1)) -> 1 | DC26: -£2,556,269 | DD26: £0 | DF26: =SUM(IF(DC26:DD26>=DC26, 1)) -> 2 | DG26: =SUM(IF(DC26:DD26>=DD26, 1)) -> 1 | DI26: -£36,062,462 | DJ26: £0 | DL26: =SUM(IF(DI26:DJ26>=DI26, 1)) -> 2 | DM26: =SUM(IF(DI26:DJ26>=DJ26, 1)) -> 1 | DO26: -£9,161,918 | DP26: £0 | DR26: =SUM(IF(DO26:DP26>=DO26, 1)) -> 2 | DS26: =SUM(IF(DO26:DP26>=DP26, 1)) -> 1 | DU26: -£42,589,397 | DV26: £0 | DX26: =SUM(IF(DU26:DV26>=DU26, 1)) -> 2 | DY26: =SUM(IF(DU26:DV26>=DV26, 1)) -> 1 | EA26: -£135,281,278 | EB26: £0 | ED26: =SUM(IF(EA26:EB26>=EA26, 1)) -> 2 | EE26: =SUM(IF(EA26:EB26>=EB26, 1)) -> 1
D27: 11 | E27: £229.97 | F27: £198.81 | H27: 5.840 | I27: 5.858 | K27: £246.27 | L27: £214.36 | N27: 6.715 | O27: 6.730 | Q27: £2,545.03 | R27: £1,542.19 | T27: 4.698 | U27: 4.774 | W27: £14,713.57 | X27: £14,649.19 | Z27: 3.026 | AA27: 3.065 | AC27: £49,313.65 | AD27: £49,300.95 | AF27: 4.812 | AG27: 4.954 | AI27: £3,374,163.34 | AJ27: £0.00 | AL27: -1924.900 | AM27: 0.000 | AO27: £215,379.92 | AP27: £0.00 | AR27: -104.702 | AS27: 0.000 | AU27: £22,880,616.56 | AV27: £0.00 | AX27: -1718.182 | AY27: 0.000 | BA27: £575,716.48 | BB27: £0.00 | BD27: -347.260 | BE27: 0.000 | BG27: £202,142.92 | BH27: £0.00 | BJ27: -2259.433 | BK27: 0.000 | BM27: £27,248,019.23 | BN27: £0.00 | BP27: -6354.477 | BQ27: 0.000 | BS27: £116,574 | BT27: £116,961 | BV27: =SUM(IF(BS27:BT27>=BS27, 1)) -> 2 | BW27: =SUM(IF(BS27:BT27>=BT27, 1)) -> 1 | BY27: £134,048 | BZ27: £134,390 | CB27: =SUM(IF(BY27:BZ27>=BY27, 1)) -> 2 | CC27: =SUM(IF(BY27:BZ27>=BZ27, 1)) -> 1 | CE27: £91,425 | CF27: £93,933 | CH27: =SUM(IF(CE27:CF27>=CE27, 1)) -> 2 | CI27: =SUM(IF(CE27:CF27>=CF27, 1)) -> 1 | CK27: £45,804 | CL27: £46,645 | CN27: =SUM(IF(CK27:CL27>=CK27, 1)) -> 2 | CO27: =SUM(IF(CK27:CL27>=CL27, 1)) -> 1 | CQ27: =AF27*WTP-AC27 -> £46,936 | CR27: £49,788 | CT27: =SUM(IF(CQ27:CR27>=CQ27, 1)) -> 2 | CU27: =SUM(IF(CQ27:CR27>=CR27, 1)) -> 1 | CW27: -£41,872,172 | CX27: £0 | CZ27: =SUM(IF(CW27:CX27>=CW27, 1)) -> 2 | DA27: =SUM(IF(CW27:CX27>=CX27, 1)) -> 1 | DC27: -£2,309,413 | DD27: £0 | DF27: =SUM(IF(DC27:DD27>=DC27, 1)) -> 2 | DG27: =SUM(IF(DC27:DD27>=DD27, 1)) -> 1 | DI27: -£57,244,258 | DJ27: £0 | DL27: =SUM(IF(DI27:DJ27>=DI27, 1)) -> 2 | DM27: =SUM(IF(DI27:DJ27>=DJ27, 1)) -> 1 | DO27: -£7,520,915 | DP27: £0 | DR27: =SUM(IF(DO27:DP27>=DO27, 1)) -> 2 | DS27: =SUM(IF(DO27:DP27>=DP27, 1)) -> 1 | DU27: -£45,390,798 | DV27: £0 | DX27: =SUM(IF(DU27:DV27>=DU27, 1)) -> 2 | DY27: =SUM(IF(DU27:DV27>=DV27, 1)) -> 1 | EA27: -£154,337,557 | EB27: £0 | ED27: =SUM(IF(EA27:EB27>=EA27, 1)) -> 2 | EE27: =SUM(IF(EA27:EB27>=EB27, 1)) -> 1
D28: 12 | E28: £246.58 | F28: £220.23 | H28: 5.868 | I28: 5.885 | K28: £264.42 | L28: £237.41 | N28: 6.696 | O28: 6.711 | Q28: £1,608.12 | R28: £1,140.44 | T28: 4.697 | U28: 4.751 | W28: £13,624.55 | X28: £13,615.60 | Z28: 3.037 | AA28: 3.071 | AC28: £49,778.03 | AD28: £49,708.87 | AF28: 4.502 | AG28: 4.541 | AI28: £2,852,315.08 | AJ28: £0.00 | AL28: -1860.199 | AM28: 0.000 | AO28: £184,117.35 | AP28: £0.00 | AR28: -99.918 | AS28: 0.000 | AU28: £10,667,188.88 | AV28: £0.00 | AX28: -1231.906 | AY28: 0.000 | BA28: £79,907.01 | BB28: £0.00 | BD28: -303.465 | BE28: 0.000 | BG28: £1,086,434.08 | BH28: £0.00 | BJ28: -625.022 | BK28: 0.000 | BM28: £14,869,962.40 | BN28: £0.00 | BP28: -4120.510 | BQ28: 0.000 | BS28: £117,118 | BT28: £117,488 | BV28: =SUM(IF(BS28:BT28>=BS28, 1)) -> 2 | BW28: =SUM(IF(BS28:BT28>=BT28, 1)) -> 1 | BY28: £133,654 | BZ28: £133,974 | CB28: =SUM(IF(BY28:BZ28>=BY28, 1)) -> 2 | CC28: =SUM(IF(BY28:BZ28>=BZ28, 1)) -> 1 | CE28: £92,340 | CF28: £93,888 | CH28: =SUM(IF(CE28:CF28>=CE28, 1)) -> 2 | CI28: =SUM(IF(CE28:CF28>=CF28, 1)) -> 1 | CK28: £47,110 | CL28: £47,798 | CN28: =SUM(IF(CK28:CL28>=CK28, 1)) -> 2 | CO28: =SUM(IF(CK28:CL28>=CL28, 1)) -> 1 | CQ28: =AF28*WTP-AC28 -> £40,256 | CR28: £41,121 | CT28: =SUM(IF(CQ28:CR28>=CQ28, 1)) -> 2 | CU28: =SUM(IF(CQ28:CR28>=CR28, 1)) -> 1 | CW28: -£40,056,286 | CX28: £0 | CZ28: =SUM(IF(CW28:CX28>=CW28, 1)) -> 2 | DA28: =SUM(IF(CW28:CX28>=CX28, 1)) -> 1 | DC28: -£2,182,482 | DD28: £0 | DF28: =SUM(IF(DC28:DD28>=DC28, 1)) -> 2 | DG28: =SUM(IF(DC28:DD28>=DD28, 1)) -> 1 | DI28: -£35,305,310 | DJ28: £0 | DL28: =SUM(IF(DI28:DJ28>=DI28, 1)) -> 2 | DM28: =SUM(IF(DI28:DJ28>=DJ28, 1)) -> 1 | DO28: -£6,149,208 | DP28: £0 | DR28: =SUM(IF(DO28:DP28>=DO28, 1)) -> 2 | DS28: =SUM(IF(DO28:DP28>=DP28, 1)) -> 1 | DU28: -£13,586,871 | DV28: £0 | DX28: =SUM(IF(DU28:DV28>=DU28, 1)) -> 2 | DY28: =SUM(IF(DU28:DV28>=DV28, 1)) -> 1 | EA28: -£97,280,157 | EB28: £0 | ED28: =SUM(IF(EA28:EB28>=EA28, 1)) -> 2 | EE28: =SUM(IF(EA28:EB28>=EB28, 1)) -> 1
D29: 13 | E29: £247.22 | F29: £222.72 | H29: 5.875 | I29: 5.891 | K29: £265.19 | L29: £240.10 | N29: 6.663 | O29: 6.678 | Q29: £3,939.62 | R29: £1,782.20 | T29: 4.828 | U29: 4.949 | W29: £14,424.27 | X29: £14,477.49 | Z29: 2.794 | AA29: 2.851 | AC29: £48,984.17 | AD29: £49,061.76 | AF29: 4.966 | AG29: 5.135 | AI29: £2,634,512.42 | AJ29: £0.00 | AL29: -1749.085 | AM29: 0.000 | AO29: £177,717.92 | AP29: £0.00 | AR29: -101.930 | AS29: 0.000 | AU29: £49,761,026.54 | AV29: £0.00 | AX29: -2785.289 | AY29: 0.000 | BA29: -£498,858.49 | BB29: £0.00 | BD29: -537.712 | BE29: 0.000 | BG29: -£1,246,825.61 | BH29: £0.00 | BJ29: -2708.494 | BK29: 0.000 | BM29: £50,827,572.79 | BN29: £0.00 | BP29: -7882.510 | BQ29: 0.000 | BS29: £117,247 | BT29: £117,597 | BV29: =SUM(IF(BS29:BT29>=BS29, 1)) -> 2 | BW29: =SUM(IF(BS29:BT29>=BT29, 1)) -> 1 | BY29: £133,004 | BZ29: £133,317 | CB29: =SUM(IF(BY29:BZ29>=BY29, 1)) -> 2 | CC29: =SUM(IF(BY29:BZ29>=BZ29, 1)) -> 1 | CE29: £92,622 | CF29: £97,195 | CH29: =SUM(IF(CE29:CF29>=CE29, 1)) -> 2 | CI29: =SUM(IF(CE29:CF29>=CF29, 1)) -> 1 | CK29: £41,454 | CL29: £42,548 | CN29: =SUM(IF(CK29:CL29>=CK29, 1)) -> 2 | CO29: =SUM(IF(CK29:CL29>=CL29, 1)) -> 1 | CQ29: =AF29*WTP-AC29 -> £50,337 | CR29: £53,631 | CT29: =SUM(IF(CQ29:CR29>=CQ29, 1)) -> 2 | CU29: =SUM(IF(CQ29:CR29>=CR29, 1)) -> 1 | CW29: -£37,616,212 | CX29: £0 | CZ29: =SUM(IF(CW29:CX29>=CW29, 1)) -> 2 | DA29: =SUM(IF(CW29:CX29>=CX29, 1)) -> 1 | DC29: -£2,216,313 | DD29: £0 | DF29: =SUM(IF(DC29:DD29>=DC29, 1)) -> 2 | DG29: =SUM(IF(DC29:DD29>=DD29, 1)) -> 1 | DI29: -£105,466,806 | DJ29: £0 | DL29: =SUM(IF(DI29:DJ29>=DI29, 1)) -> 2 | DM29: =SUM(IF(DI29:DJ29>=DJ29, 1)) -> 1 | DO29: -£10,255,377 | DP29: £0 | DR29: =SUM(IF(DO29:DP29>=DO29, 1)) -> 2 | DS29: =SUM(IF(DO29:DP29>=DP29, 1)) -> 1 | DU29: -£52,923,059 | DV29: £0 | DX29: =SUM(IF(DU29:DV29>=DU29, 1)) -> 2 | DY29: =SUM(IF(DU29:DV29>=DV29, 1)) -> 1 | EA29: -£208,477,768 | EB29: £0 | ED29: =SUM(IF(EA29:EB29>=EA29, 1)) -> 2 | EE29: =SUM(IF(EA29:EB29>=EB29, 1)) -> 1
D30: 14 | E30: £298.64 | F30: £265.12 | H30: 5.905 | I30: 5.921 | K30: £320.23 | L30: £285.92 | N30: 6.687 | O30: 6.701 | Q30: £2,110.57 | R30: £1,314.69 | T30: 4.931 | U30: 5.015 | W30: £12,172.17 | X30: £12,133.56 | Z30: 2.935 | AA30: 2.976 | AC30: £51,194.15 | AD30: £50,839.37 | AF30: 4.698 | AG30: 4.856 | AI30: £3,580,902.58 | AJ30: £0.00 | AL30: -1696.363 | AM30: 0.000 | AO30: £236,874.35 | AP30: £0.00 | AR30: -93.854 | AS30: 0.000 | AU30: £18,699,233.03 | AV30: £0.00 | AX30: -1985.464 | AY30: 0.000 | BA30: £341,680.94 | BB30: £0.00 | BD30: -369.234 | BE30: 0.000 | BG30: £5,831,345.98 | BH30: £0.00 | BJ30: -2590.604 | BK30: 0.000 | BM30: £28,690,036.88 | BN30: £0.00 | BP30: -6735.520 | BQ30: 0.000 | BS30: £117,800 | BT30: £118,151 | BV30: =SUM(IF(BS30:BT30>=BS30, 1)) -> 2 | BW30: =SUM(IF(BS30:BT30>=BT30, 1)) -> 1 | BY30: £133,421 | BZ30: £133,727 | CB30: =SUM(IF(BY30:BZ30>=BY30, 1)) -> 2 | CC30: =SUM(IF(BY30:BZ30>=BZ30, 1)) -> 1 | CE30: £96,508 | CF30: £98,994 | CH30: =SUM(IF(CE30:CF30>=CE30, 1)) -> 2 | CI30: =SUM(IF(CE30:CF30>=CF30, 1)) -> 1 | CK30: £46,523 | CL30: £47,396 | CN30: =SUM(IF(CK30:CL30>=CK30, 1)) -> 2 | CO30: =SUM(IF(CK30:CL30>=CL30, 1)) -> 1 | CQ30: =AF30*WTP-AC30 -> £42,764 | CR30: £46,271 | CT30: =SUM(IF(CQ30:CR30>=CQ30, 1)) -> 2 | CU30: =SUM(IF(CQ30:CR30>=CR30, 1)) -> 1 | CW30: -£37,508,166 | CX30: £0 | CZ30: =SUM(IF(CW30:CX30>=CW30, 1)) -> 2 | DA30: =SUM(IF(CW30:CX30>=CX30, 1)) -> 1 | DC30: -£2,113,960 | DD30: £0 | DF30: =SUM(IF(DC30:DD30>=DC30, 1)) -> 2 | DG30: =SUM(IF(DC30:DD30>=DD30, 1)) -> 1 | DI30: -£58,408,520 | DJ30: £0 | DL30: =SUM(IF(DI30:DJ30>=DI30, 1)) -> 2 | DM30: =SUM(IF(DI30:DJ30>=DJ30, 1)) -> 1 | DO30: -£7,726,363 | DP30: £0 | DR30: =SUM(IF(DO30:DP30>=DO30, 1)) -> 2 | DS30: =SUM(IF(DO30:DP30>=DP30, 1)) -> 1 | DU30: -£57,643,432 | DV30: £0 | DX30: =SUM(IF(DU30:DV30>=DU30, 1)) -> 2 | DY30: =SUM(IF(DU30:DV30>=DV30, 1)) -> 1 | EA30: -£163,400,443 | EB30: £0 | ED30: =SUM(IF(EA30:EB30>=EA30, 1)) -> 2 | EE30: =SUM(IF(EA30:EB30>=EB30, 1)) -> 1
D31: 15 | E31: £267.05 | F31: £241.87 | H31: 5.813 | I31: 5.830 | K31: £286.57 | L31: £260.80 | N31: 6.705 | O31: 6.720 | Q31: £2,434.93 | R31: £1,535.40 | T31: 4.971 | U31: 5.049 | W31: £10,009.90 | X31: £9,970.20 | Z31: 2.974 | AA31: 3.012 | AC31: £51,207.67 | AD31: £51,094.61 | AF31: 4.918 | AG31: 5.060 | AI31: £2,653,114.48 | AJ31: £0.00 | AL31: -1798.666 | AM31: 0.000 | AO31: £179,657.03 | AP31: £0.00 | AR31: -104.576 | AS31: 0.000 | AU31: £20,542,647.63 | AV31: £0.00 | AX31: -1778.016 | AY31: 0.000 | BA31: £349,835.88 | BB31: £0.00 | BD31: -334.685 | BE31: 0.000 | BG31: £1,731,219.52 | BH31: £0.00 | BJ31: -2173.283 | BK31: 0.000 | BM31: £25,456,474.53 | BN31: £0.00 | BP31: -6189.227 | BQ31: 0.000 | BS31: £115,986 | BT31: £116,353 | BV31: =SUM(IF(BS31:BT31>=BS31, 1)) -> 2 | BW31: =SUM(IF(BS31:BT31>=BT31, 1)) -> 1 | BY31: £133,813 | BZ31: £134,139 | CB31: =SUM(IF(BY31:BZ31>=BY31, 1)) -> 2 | CC31: =SUM(IF(BY31:BZ31>=BZ31, 1)) -> 1 | CE31: £96,985 | CF31: £99,441 | CH31: =SUM(IF(CE31:CF31>=CE31, 1)) -> 2 | CI31: =SUM(IF(CE31:CF31>=CF31, 1)) -> 1 | CK31: £49,472 | CL31: £50,272 | CN31: =SUM(IF(CK31:CL31>=CK31, 1)) -> 2 | CO31: =SUM(IF(CK31:CL31>=CL31, 1)) -> 1 | CQ31: =AF31*WTP-AC31 -> £47,145 | CR31: £50,096 | CT31: =SUM(IF(CQ31:CR31>=CQ31, 1)) -> 2 | CU31: =SUM(IF(CQ31:CR31>=CR31, 1)) -> 1 | CW31: -£38,626,436 | CX31: £0 | CZ31: =SUM(IF(CW31:CX31>=CW31, 1)) -> 2 | DA31: =SUM(IF(CW31:CX31>=CX31, 1)) -> 1 | DC31: -£2,271,187 | DD31: £0 | DF31: =SUM(IF(DC31:DD31>=DC31, 1)) -> 2 | DG31: =SUM(IF(DC31:DD31>=DD31, 1)) -> 1 | DI31: -£56,102,970 | DJ31: £0 | DL31: =SUM(IF(DI31:DJ31>=DI31, 1)) -> 2 | DM31: =SUM(IF(DI31:DJ31>=DJ31, 1)) -> 1 | DO31: -£7,043,539 | DP31: £0 | DR31: =SUM(IF(DO31:DP31>=DO31, 1)) -> 2 | DS31: =SUM(IF(DO31:DP31>=DP31, 1)) -> 1 | DU31: -£45,196,879 | DV31: £0 | DX31: =SUM(IF(DU31:DV31>=DU31, 1)) -> 2 | DY31: =SUM(IF(DU31:DV31>=DV31, 1)) -> 1 | EA31: -£149,241,011 | EB31: £0 | ED31: =SUM(IF(EA31:EB31>=EA31, 1)) -> 2 | EE31: =SUM(IF(EA31:EB31>=EB31, 1)) -> 1
D32: 16 | E32: £229.96 | F32: £189.46 | H32: 5.913 | I32: 5.933 | K32: £245.63 | L32: £204.27 | N32: 6.719 | O32: 6.737 | Q32: £2,843.06 | R32: £1,841.36 | T32: 4.903 | U32: 4.969 | W32: £16,403.95 | X32: £16,405.93 | Z32: 2.984 | AA32: 3.040 | AC32: £50,880.28 | AD32: £50,656.93 | AF32: 4.518 | AG32: 4.609 | AI32: £4,384,689.74 | AJ32: £0.00 | AL32: -2196.204 | AM32: 0.000 | AO32: £257,420.14 | AP32: £0.00 | AR32: -112.285 | AS32: 0.000 | AU32: £23,495,143.52 | AV32: £0.00 | AX32: -1561.180 | AY32: 0.000 | BA32: -£17,528.63 | BB32: £0.00 | BD32: -492.479 | BE32: 0.000 | BG32: £3,526,172.80 | BH32: £0.00 | BJ32: -1425.622 | BK32: 0.000 | BM32: £31,645,897.58 | BN32: £0.00 | BP32: -5787.770 | BQ32: 0.000 | BS32: £118,023 | BT32: £118,469 | BV32: =SUM(IF(BS32:BT32>=BS32, 1)) -> 2 | BW32: =SUM(IF(BS32:BT32>=BT32, 1)) -> 1 | BY32: £134,137 | BZ32: £134,539 | CB32: =SUM(IF(BY32:BZ32>=BY32, 1)) -> 2 | CC32: =SUM(IF(BY32:BZ32>=BZ32, 1)) -> 1 | CE32: £95,208 | CF32: £97,541 | CH32: =SUM(IF(CE32:CF32>=CE32, 1)) -> 2 | CI32: =SUM(IF(CE32:CF32>=CF32, 1)) -> 1 | CK32: £43,282 | CL32: £44,392 | CN32: =SUM(IF(CK32:CL32>=CK32, 1)) -> 2 | CO32: =SUM(IF(CK32:CL32>=CL32, 1)) -> 1 | CQ32: =AF32*WTP-AC32 -> £39,490 | CR32: £41,519 | CT32: =SUM(IF(CQ32:CR32>=CQ32, 1)) -> 2 | CU32: =SUM(IF(CQ32:CR32>=CR32, 1)) -> 1 | CW32: -£48,308,766 | CX32: £0 | CZ32: =SUM(IF(CW32:CX32>=CW32, 1)) -> 2 | DA32: =SUM(IF(CW32:CX32>=CX32, 1)) -> 1 | DC32: -£2,503,114 | DD32: £0 | DF32: =SUM(IF(DC32:DD32>=DC32, 1)) -> 2 | DG32: =SUM(IF(DC32:DD32>=DD32, 1)) -> 1 | DI32: -£54,718,745 | DJ32: £0 | DL32: =SUM(IF(DI32:DJ32>=DI32, 1)) -> 2 | DM32: =SUM(IF(DI32:DJ32>=DJ32, 1)) -> 1 | DO32: -£9,832,058 | DP32: £0 | DR32: =SUM(IF(DO32:DP32>=DO32, 1)) -> 2 | DS32: =SUM(IF(DO32:DP32>=DP32, 1)) -> 1 | DU32: -£32,038,613 | DV32: £0 | DX32: =SUM(IF(DU32:DV32>=DU32, 1)) -> 2 | DY32: =SUM(IF(DU32:DV32>=DV32, 1)) -> 1 | EA32: -£147,401,295 | EB32: £0 | ED32: =SUM(IF(EA32:EB32>=EA32, 1)) -> 2 | EE32: =SUM(IF(EA32:EB32>=EB32, 1)) -> 1
D33: 17 | E33: £205.92 | F33: £188.77 | H33: 5.831 | I33: 5.847 | K33: £221.05 | L33: £203.52 | N33: 6.682 | O33: 6.696 | Q33: £2,380.71 | R33: £1,242.39 | T33: 4.771 | U33: 4.864 | W33: £14,462.58 | X33: £14,359.35 | Z33: 3.089 | AA33: 3.107 | AC33: £49,023.18 | AD33: £48,890.00 | AF33: 4.401 | AG33: 4.472 | AI33: £1,845,902.12 | AJ33: £0.00 | AL33: -1691.111 | AM33: 0.000 | AO33: £120,763.14 | AP33: £0.00 | AR33: -94.681 | AS33: 0.000 | AU33: £26,301,846.88 | AV33: £0.00 | AX33: -2143.979 | AY33: 0.000 | BA33: £930,881.07 | BB33: £0.00 | BD33: -168.873 | BE33: 0.000 | BG33: £2,092,229.89 | BH33: £0.00 | BJ33: -1111.022 | BK33: 0.000 | BM33: £31,291,623.10 | BN33: £0.00 | BP33: -5209.665 | BQ33: 0.000 | BS33: £116,415 | BT33: £116,746 | BV33: =SUM(IF(BS33:BT33>=BS33, 1)) -> 2 | BW33: =SUM(IF(BS33:BT33>=BT33, 1)) -> 1 | BY33: £133,414 | BZ33: £133,707 | CB33: =SUM(IF(BY33:BZ33>=BY33, 1)) -> 2 | CC33: =SUM(IF(BY33:BZ33>=BZ33, 1)) -> 1 | CE33: £93,038 | CF33: £96,032 | CH33: =SUM(IF(CE33:CF33>=CE33, 1)) -> 2 | CI33: =SUM(IF(CE33:CF33>=CF33, 1)) -> 1 | CK33: £47,311 | CL33: £47,789 | CN33: =SUM(IF(CK33:CL33>=CK33, 1)) -> 2 | CO33: =SUM(IF(CK33:CL33>=CL33, 1)) -> 1 | CQ33: =AF33*WTP-AC33 -> £39,004 | CR33: £40,551 | CT33: =SUM(IF(CQ33:CR33>=CQ33, 1)) -> 2 | CU33: =SUM(IF(CQ33:CR33>=CR33, 1)) -> 1 | CW33: -£35,668,116 | CX33: £0 | CZ33: =SUM(IF(CW33:CX33>=CW33, 1)) -> 2 | DA33: =SUM(IF(CW33:CX33>=CX33, 1)) -> 1 | DC33: -£2,014,391 | DD33: £0 | DF33: =SUM(IF(DC33:DD33>=DC33, 1)) -> 2 | DG33: =SUM(IF(DC33:DD33>=DD33, 1)) -> 1 | DI33: -£69,181,423 | DJ33: £0 | DL33: =SUM(IF(DI33:DJ33>=DI33, 1)) -> 2 | DM33: =SUM(IF(DI33:DJ33>=DJ33, 1)) -> 1 | DO33: -£4,308,335 | DP33: £0 | DR33: =SUM(IF(DO33:DP33>=DO33, 1)) -> 2 | DS33: =SUM(IF(DO33:DP33>=DP33, 1)) -> 1 | DU33: -£24,312,668 | DV33: £0 | DX33: =SUM(IF(DU33:DV33>=DU33, 1)) -> 2 | DY33: =SUM(IF(DU33:DV33>=DV33, 1)) -> 1 | EA33: -£135,484,931 | EB33: £0 | ED33: =SUM(IF(EA33:EB33>=EA33, 1)) -> 2 | EE33: =SUM(IF(EA33:EB33>=EB33, 1)) -> 1
D34: 18 | E34: £234.82 | F34: £208.45 | H34: 5.740 | I34: 5.758 | K34: £251.75 | L34: £224.71 | N34: 6.628 | O34: 6.643 | Q34: £2,249.94 | R34: £1,715.99 | T34: 4.799 | U34: 4.854 | W34: £12,577.94 | X34: £12,568.90 | Z34: 3.053 | AA34: 3.095 | AC34: £52,305.67 | AD34: £52,164.44 | AF34: 4.771 | AG34: 4.843 | AI34: £2,836,235.29 | AJ34: £0.00 | AL34: -1931.670 | AM34: 0.000 | AO34: £179,531.82 | AP34: £0.00 | AR34: -98.489 | AS34: 0.000 | AU34: £12,343,249.99 | AV34: £0.00 | AX34: -1265.741 | AY34: 0.000 | BA34: £82,139.16 | BB34: £0.00 | BD34: -381.281 | BE34: 0.000 | BG34: £2,234,478.20 | BH34: £0.00 | BJ34: -1149.263 | BK34: 0.000 | BM34: £17,675,634.46 | BN34: £0.00 | BP34: -4826.444 | BQ34: 0.000 | BS34: £114,568 | BT34: £114,954 | BV34: =SUM(IF(BS34:BT34>=BS34, 1)) -> 2 | BW34: =SUM(IF(BS34:BT34>=BT34, 1)) -> 1 | BY34: £132,302 | BZ34: £132,626 | CB34: =SUM(IF(BY34:BZ34>=BY34, 1)) -> 2 | CC34: =SUM(IF(BY34:BZ34>=BZ34, 1)) -> 1 | CE34: £93,739 | CF34: £95,368 | CH34: =SUM(IF(CE34:CF34>=CE34, 1)) -> 2 | CI34: =SUM(IF(CE34:CF34>=CF34, 1)) -> 1 | CK34: £48,482 | CL34: £49,331 | CN34: =SUM(IF(CK34:CL34>=CK34, 1)) -> 2 | CO34: =SUM(IF(CK34:CL34>=CL34, 1)) -> 1 | CQ34: =AF34*WTP-AC34 -> £43,108 | CR34: £44,702 | CT34: =SUM(IF(CQ34:CR34>=CQ34, 1)) -> 2 | CU34: =SUM(IF(CQ34:CR34>=CR34, 1)) -> 1 | CW34: -£41,469,628 | CX34: £0 | CZ34: =SUM(IF(CW34:CX34>=CW34, 1)) -> 2 | DA34: =SUM(IF(CW34:CX34>=CX34, 1)) -> 1 | DC34: -£2,149,309 | DD34: £0 | DF34: =SUM(IF(DC34:DD34>=DC34, 1)) -> 2 | DG34: =SUM(IF(DC34:DD34>=DD34, 1)) -> 1 | DI34: -£37,658,067 | DJ34: £0 | DL34: =SUM(IF(DI34:DJ34>=DI34, 1)) -> 2 | DM34: =SUM(IF(DI34:DJ34>=DJ34, 1)) -> 1 | DO34: -£7,707,763 | DP34: £0 | DR34: =SUM(IF(DO34:DP34>=DO34, 1)) -> 2 | DS34: =SUM(IF(DO34:DP34>=DP34, 1)) -> 1 | DU34: -£25,219,739 | DV34: £0 | DX34: =SUM(IF(DU34:DV34>=DU34, 1)) -> 2 | DY34: =SUM(IF(DU34:DV34>=DV34, 1)) -> 1 | EA34: -£114,204,505 | EB34: £0 | ED34: =SUM(IF(EA34:EB34>=EA34, 1)) -> 2 | EE34: =SUM(IF(EA34:EB34>=EB34, 1)) -> 1
